Workbook

Sheet FIO (hidden)
A1: Nom de l'outil | B1: Logiciel PAC_Vaillant
A2: Version | B2: =LOOKUP("zz",To_Do!B:B) -> V2_61
A3: Date d'application de la version | B3: 09/01/2024
A4: Date limite d'application | B4: 2025-01-31
A6: Nom de la version (visible) | B6: =B1&" "&B2&" du "&B3 -> Logiciel PAC_Vaillant V2_61 du 09/01/2024
A7: Date_enregistrement | B7: =Date_enregistrement -> 2024-04-30 | D7: ="Il reste "&_xlfn.DAYS(B7,TODAY())&" jours avant expiration de l'outil" -> Il reste 112 jours avant expiration de l'outil
A8: Date dépassée | B8: =IF(Date_enregistrement="",FALSE,IF(TODAY()>Date_enregistrement+15,TRUE,FALSE)) -> FALSE
A10: Lien avec | B10: du Logiciel PAC VAILLANT
A14: PRIMERY COLOR | B14: VAILLANT
A15: Vaillant Green | B15: RGB 0/145/126
A16: Secondary Vaillant Green I | B16: RGB 113/175/165
A17: Secondary Vaillant Green II | B17: RGB 160/202/191
A18: Secondary Vaillant Green III | B18: RGB 204/221/216
A19: WHITE
A21: Black | B21: 0/0/0
A23: Sekundär Vaillant Grau 90
A24: Secondary Vaillant Grey 90 | B24: 71/71/71
A26: Sekundär Vaillant Grau 45
A27: Secondary Vaillant Grey 45 | B27: 174/174/174
A29: Sekundär Vaillant Grau 35
A30: Secondary Vaillant Grey 35 | B30: 183/183/183
A32: Sekundär Vaillant Grau 25
A33: Secondary Vaillant Grey 25 | B33: 204/204/204
A35: Sekundär Vaillant Grau 15
A36: Secondary Vaillant Grey 15 | B36: 225/225/225
A38: Primär 1: Braun
A39: Primary 1: Brown | B39: 154/139/113
A41: Sekundär Braun I
A42: Secondary Brown I | B42: 217/212/200
A44: Primär 2: Blau
A45: Primary 2: Blue | B45: 101/139/190
A47: Sekundär Blau
A48: Secondary Blue | B48: 185/207/237
A50: Signalfarbe
A51: Signal colour | B51: 255/133/0
A54: Couleur Gris : 224/224/224
A55: Couleur Vert : 0/145/126

Sheet To_Do (hidden)
A1: Date | B1: Logiciel PAC_2020 v2 | C1: Feuille | D1: Modification faite / à faire | E1: 0.25 | F1: 0.5 | G1: 0.75 | H1: 1 | I1: Date réalisé à 100% | J1: Date réalisé à 100% par qui | K1: Réponce ou commentaire | L1: Non du fichier
D2: Vaillant - Logiciel PAC 2022 V2v00_00042 sans BDD_G | E2: x | F2: x | G2: x | H2: x | I2: 2022-08-04
B3: V2v00_00045 | D3: correction taux de couverture 80% -> 70% | E3: x | F3: x | G3: x | H3: x
B4: V2v00_00062 | E4: x | F4: x | G4: x | H4: x | I4: 2022-10-10
B5: V2v03_00062 | D5: erreur sur ECS colonne | E5: x | F5: x | G5: x | H5: x | I5: 2022-10-10
B6: V2v04_00062 | D6: Split Hybride | E6: x | F6: x | G6: x | H6: x | I6: 2022-10-10
B7: V2v05_00062 | D7: inversion bouton couplage decouplage | E7: x | F7: x | G7: x | H7: x | I7: 2022-10-11
B8: V2v06 | D8: Inversion VWL avec VWLAS | E8: x | F8: x | G8: x | H8: x | I8: 2022-10-11
B9: V2v07 | D9: Correction affichage Note Hybride ou pas hybride | E9: x | F9: x | G9: x | H9: x | I9: 2022-10-13
B10: V2v08 | D10: correction DBBcommun VR 70 en cascade | E10: x | F10: x | G10: x | H10: x | I10: 2022-10-18
B11: V2v08 | D11: Fluocollec pas dans la bonne ligne | E11: x | F11: x | G11: x | H11: x | I11: 2022-10-18
B12: V2_09 | D12: regression en ko et utilisation
B13: V2_10 | C13: DBB commun | D13: VR70 si flexo pour B-D et Q-B-D | E13: x | F13: x | G13: x | H13: x | I13: 2022-10-19
B14: V2_10 | C14: export | D14: cellule ecrasser | E14: x | F14: x | G14: x | H14: x | I14: 2022-10-19
B15: V2_10 | C15: Calcul | D15: revu tout ajout "ou(système hybride = vraix pour utiliser les depert à t base | E15: x | F15: x | G15: x | H15: x | I15: 2022-10-19 | J15: GM
B16: V2_11 | C16: BDD_Produits | D16: =RECHERCHEH(T209;Data_Tech!H6:GA7;2;FAUX) | E16: x | F16: x | G16: x | H16: x | I16: 2022-10-19 | J16: GM
B17: V2_11 | D17: Suppression image Flexo! | E17: x | F17: x | G17: x | H17: x | I17: 2022-10-19 | J17: GM
B18: V2_11 | D18: mise en page | E18: x | F18: x | G18: x | H18: x | I18: 2022-10-19 | J18: GM
B19: V2_11 | D19: appoint pas de photo si flexo | E19: x | F19: x | G19: x | H19: x | I19: 2022-10-19 | J19: GM
B20: V2_11 | D20: Ballon ECS sur gamme flexo
B21: V2_12 | C21: DBB commun | D21: VR70 si flexo pour B-D et Q-B-D | E21: x | F21: x | G21: x | H21: x | I21: 2022-10-25 | J21: GM
B22: V2_12 | C22: calculs | D22: decalage sur le T° max depart de 5 degres sur lea corbe et les consomation | E22: x | F22: x | G22: x | H22: x | I22: 2022-10-25 | J22: GM
B23: V2_12 | C23: rapport | D23: ajout type d'installation BDD G plus DBB commun | E23: x | F23: x | G23: x | H23: x | I23: 2022-10-25 | J23: GM
B24: V2_12 | C24: rapport | D24: Type de PAC eau glycolé / eau | E24: x | F24: x | G24: x | H24: x | I24: 2022-10-25 | J24: GM
B25: V2_12 | C25: rapport | D25: Régulation simultanée faute orthographe | E25: x | F25: x | G25: x | H25: x | I25: 2022-10-25 | J25: GM
B26: V2_12 | C26: BDD_Produits | D26: index ballon 200 = 2 c-a-d pas de ballon ppour les valeur RT | E26: x | F26: x | G26: x | H26: x | I26: 2022-10-25 | J26: GM
B27: V2_13 | C27: DBB commun | D27: VR70 si flexo pour B-D et Q-B-D | E27: x | F27: x | G27: x | H27: x | I27: 2022-10-25 | J27: GM
B28: V2_13 | D28: Fluocollec pas dans la bonne ligne | E28: x | F28: x | G28: x | H28: x | I28: 2022-10-28 | J28: GM
B29: V2_13 | C29: SchémaListe | D29: modif '0020284685 | E29: x | F29: x | G29: x | H29: x | I29: 2022-10-28 | J29: GM
B30: V2_14 | D30: Modif adresse schématèque (Excel + macro) | E30: x | F30: x | G30: x | H30: x | I30: 2022-11-03 | J30: SDA
B31: V2_14 | D31: Correction image appoint si pas d'ECS | E31: x | F31: x | G31: x | H31: x | I31: 2022-11-03 | J31: SDA
A32: 2022-11-10 | B32: V2_15 | C32: rapport_piece | D32: Correction afichage HSP PPP | E32: x | F32: x | G32: x | H32: x | I32: 2022-11-10 | J32: GM
A33: 2022-11-10 | B33: V2_15 | C33: choix pac2 et bis | D33: si pas de solution en tri l'annoncé
A34: 2022-11-10 | B34: V2_15 | C34: BDD_Produits | D34: index de la PAC " = RECHERCHEV(Calculs!C2021;BDD_Produits!$D$9:$N$59;11;FAUX)+T206" | E34: x | F34: x | G34: x | H34: x | I34: 2022-11-10 | J34: GM
A35: 2022-11-10 | B35: V2_15 | C35: SchémaListe | D35: VWFC- modif en VWFC-Q- | E35: x | F35: x | G35: x | H35: x | I35: 2022-11-10 | J35: GM
B36: V2_16 | C36: CP_ville | D36: Modif Tbase pour département 13 | E36: x | F36: x | G36: x | H36: x | I36: 2022-11-25 | J36: SDA
B37: V2_17 | C37: Calculs | D37: Eta s à 55 °C | E37: x | F37: x | G37: x | H37: x | I37: 2022-11-25
B38: V2_17 | C38: renseignement | D38: N° SIRET | E38: x | F38: x | G38: x | H38: x | I38: 2022-11-25
B39: V2_18 | C39: Calculs | D39: Eta s à 55 °C AF1304 ==SI(INDEX(AF1298:AF1302;SI(Source_energie_PAC=1;Calculs!$H$1820;5))="";"";ARRONDI(INDEX(AF1298:AF1302;SI(Source_energie_PAC=1;Calculs!$H$1820;5))*100;1)&" %") | E39: x | F39: x | G39: x | H39: x | I39: 2022-11-29
B40: V2_19 | C40: ChoixPAC1hybride | D40: Modif formule choix de la gamme chaudière pour afficher que les types dispo | E40: x | F40: x | G40: x | H40: x | I40: 2022-12-02 | J40: SDA
B41: V2_19 | C41: Calculs | D41: Modifs tables températures extérieurs de base | E41: x | F41: x | G41: x | H41: x | I41: 2022-12-02 | J41: SDA
B42: V2_19 | C42: CP_ville | D42: Modif de la lettre du département 70 | E42: x | F42: x | G42: x | H42: x | I42: 2022-12-02 | J42: SDA
B43: V2_19 | C43: chiffrage | D43: Ajout d'un bouton pour ajouter une ref | E43: x | F43: x | G43: x | H43: x | I43: 2022-12-02 | J43: SDA
B44: V2_19 | C44: chiffrage | D44: Ajout d'un bouton pour supprimer tous les éléments ajoutés | E44: x | F44: x | G44: x | H44: x | I44: 2022-12-02 | J44: SDA
B45: V2_20 | C45: Rapport_simpli | D45: Ajout d'un bouton pour fusionner des PDF | E45: x | F45: x | G45: x | H45: x | I45: 2022-12-04 | J45: SDA
B46: V2_20 | C46: renseignement | D46: Ajout d'un bouton pour réinitialiser le projet | E46: x | F46: x | G46: x | H46: x | I46: 2022-12-04 | J46: SDA
B47: V2_22 | C47: Calcul | D47: Correction cellule C1313 (ajout d'un MAX dans la recherche) | E47: x | F47: x | G47: x | H47: x | I47: 2022-12-07 | J47: SDA
B48: V2_23 | C48: chiffrage | D48: Amélioration du userform pour ajouter une référence au chiffrage | E48: x | F48: x | G48: x | H48: x | I48: 2022-12-16 | J48: SDA
B49: V2_24 | C49: chiffrage | D49: Mise en forme des celulles où on ajoute des références | E49: x | F49: x | G49: x | H49: x | I49: 2022-12-20 | J49: SDA
B50: V2_24 | C50: Macro | D50: Initialisation : efface les cases de quantité corrigé du chiffrage, alimentation elec monophasé | E50: x | F50: x | G50: x | H50: x | I50: 2022-12-20 | J50: SDA
B51: V2_25 | C51: Tarif | D51: tarif 2023 | E51: x | F51: x | G51: x | H51: x | I51: 2023-01-06 | J51: GM
B52: V2_25 | C52: FIO | D52: plages nommées | E52: x | F52: x | G52: x | H52: x | I52: 2023-01-06 | J52: GM
B53: V2_25 | C53: Renseignement | D53: plages nommées | E53: x | F53: x | G53: x | H53: x | I53: 2023-01-06 | J53: GM
B54: V2_26 | C54: Calculs | D54: Correction des altitudes maxi (était 1100m, devient 1300m) pour les départments 1, 5, 8, 10, 21, 38, 39, 42, 51, 58, 69, 71, 73, 74, 89 | E54: x | F54: x | G54: x | H54: x | I54: 2023-01-06 | J54: GM
B55: V2_27 | C55: Calculs | D55: correction Devis contrôle des accessoire autorisé en foction de la pac selectionne pb avec la cascade | E55: x | F55: x | G55: x | H55: x | I55: 2023-01-09 | J55: GM
B56: V2_28 | C56: BDD_DEV | D56: List_alti | E56: x | F56: x | G56: x | H56: x | I56: 2023-01-23 | J56: GM
B57: V2_28 | C57: BDD_G | D57: languette P&P | E57: x | F57: x | G57: x | H57: x | I57: 2023-01-23 | J57: GM
B58: V2_28 | C58: BDD_Commun | D58: VR 70 si hybride =SI(ET(Calculs!$H$1820<4;OU(Systeme_PAC_hybride=VRAI;$AA$5>1));1;0) | E58: x | F58: x | G58: x | H58: x | I58: 2023-01-24 | J58: GM
B59: V2_28 | C59: Rapport_Simpli | D59: Ajout ref et denomination Hydride | E59: x | F59: x | G59: x | H59: x | I59: 2023-01-24 | J59: GM
B60: V2_28 | C60: BDD_Commun | D60: Ajout vr10 pour B-D et Q-B-D | E60: x | F60: x | G60: x | H60: x | I60: 2023-01-24 | J60: GM
B61: V2_29 | C61: Calcul | D61: Correction d'affichage de la puissance dans le rapport si calcul pièce par pièce | E61: x | F61: x | G61: x | H61: x | I61: 2023-02-03 | J61: SDA
B62: V2_29 | C62: BDD_DEV | D62: Ajout de la possibilité de sélectionner "Plancher chauffant" dans le tableau pièce par pièce | E62: x | F62: x | G62: x | H62: x | I62: 2023-02-03 | J62: SDA
B63: V2_29 | C63: Rapport_PàP | D63: Ajout de la surface totale et surface totale vitrée dans le rapport pièce par pièce | E63: x | F63: x | G63: x | H63: x | I63: 2023-02-03 | J63: SDA
B64: V2_30 | C64: Macro | D64: Sauvegarde des infos installateur dans la base de registre | E64: x | F64: x | G64: x | H64: x | I64: 2023-02-08 | J64: SDA
B65: V2_31 | C65: Macro | D65: Ajout d'un bouton pour importer un ancien projet | E65: x | F65: x | G65: x | H65: x | I65: 2023-03-16 | J65: SDA
B66: V2_31 | C66: Ribbon | D66: Ajout du ruban pour un accès plus rapide aux onglets | E66: x | F66: x | G66: x | H66: x | I66: 2023-03-16 | J66: SDA
B67: V2_31 | C67: Aide | D67: Ajout d'une page d'aide | E67: x | F67: x | G67: x | H67: x | I67: 2023-03-16 | J67: SDA
B68: V2_31 | C68: PrixEnergie | D68: Mise à jour des prix des énergies | E68: x | F68: x | G68: x | H68: x | I68: 2023-03-16 | J68: SDA
B69: V2_32 | C69: Calculs | D69: Correction du calcul de la température moyenne des radiateurs lors d'une étude pièce par pièce | E69: x | F69: x | G69: x | H69: x | I69: 2023-03-29 | J69: SDA
B70: V2_32 | C70: Macro | D70: Correction des macros à l'ouverture et à la fermeture du fichier | E70: x | F70: x | G70: x | H70: x | I70: 2023-03-29 | J70: SDA
B71: V2_33 | C71: CP_ville | D71: Mise à jour des départments 22, 29, 50 et 56 | E71: x | F71: x | G71: x | H71: x | I71: 2023-03-30 | J71: SDA
B72: V2_34 | C72: BDD_Dev | D72: Ajout de pièce pour le PàP | E72: x | F72: x | G72: x | H72: x | I72: 2023-04-05 | J72: SDA
B73: V2_34 | C73: BDD_Dev | D73: Ajout de "Sans émetteur" | E73: x | F73: x | G73: x | H73: x | I73: 2023-04-05 | J73: SDA
B74: V2_34 | C74: BDD_Commun | D74: Ajout de 100 lignes pour les accessoires PAC (ajout option circu + V3V si > 10kW) | E74: x | F74: x | G74: x | H74: x | I74: 2023-04-05 | J74: SDA
B75: V2_34 | C75: Calculs | D75: Ajout de 100 lignes pour le chiffrage | E75: x | F75: x | G75: x | H75: x | I75: 2023-04-05 | J75: SDA
B76: V2_35 | C76: BDD_G1 à G5 | D76: Ajout de 100 lignes pour le chiffrage | E76: x | F76: x | G76: x | H76: x | I76: 2023-04-06 | J76: SDA
B77: V2_36 | C77: Data_Tech | D77: Mise à jour des Eta S des PAC aroTHERM plus | E77: x | F77: x | G77: x | H77: x | I77: 2023-04-27 | J77: SDA
B78: V2_37 | C78: Calculs | D78: Changement du calcul "Puissance à 130 % des déperditions à T base ou T arrêt PAC si T arrêt PAC > T base :" | E78: x | F78: x | G78: x | H78: x | I78: 2023-05-11 | J78: SDA
B79: V2_38 | C79: CP_ville | D79: Modif Tbase Paris | E79: x | F79: x | G79: x | H79: x | I79: 2023-05-23 | J79: SDA
B80: V2_39 | C80: Macro | D80: Ajout de la sauvegarde et de la restauration des informations du projeteur | E80: x | F80: x | G80: x | H80: x | I80: 2023-05-24 | J80: SDA
B81: V2_39 | C81: BDD_Commun | D81: Correction dans le chiffrage d'une flexoCOMPACT en 2 zones, un kit intégrable est remplacé par des modules hydrauliques | E81: x | F81: x | G81: x | H81: x | I81: 2023-05-24 | J81: SDA
B82: V2_40 | C82: BDD | D82: Remplacement sensoNET par myVAILLANT connect | E82: x | F82: x | G82: x | H82: x | I82: 2023-05-26 | J82: GM
B83: V2_40 | C83: BDD | D83: sensoCONFORT par sensoCOMFORT | E83: x | F83: x | G83: x | H83: x | I83: 2023-05-26 | J83: GM
B84: V2_41 | C84: Macro | D84: Ajout de l'importation de la fiche de renseignement web | E84: x | F84: x | G84: x | H84: x | I84: 2023-06-13 | J84: SDA
B85: V2_41 | C85: Simpli | D85: Dans le calcul pièce par pièce, une erreur apparait si un radiateur à une longueur ou une largeur supérieure à 300cm | E85: x | F85: x | G85: x | H85: x | I85: 2023-06-13 | J85: SDA
B86: V2_42 | C86: Calculs | D86: Correction référence circulaire (Version 1) | E86: x | F86: x | G86: x | H86: x | I86: 2023-06-19 | J86: SDA
B87: V2_42 | C87: Simpli7 | D87: Correction bouton "suivant" pour renvoi sur la bonne page | E87: x | F87: x | G87: x | H87: x | I87: 2023-06-19 | J87: SDA
B88: V2_43 | C88: renseignement | D88: Correction du choix de la ville du projeteur | E88: x | F88: x | G88: x | H88: x | I88: 2023-06-22 | J88: SDA
B89: V2_44 | C89: Macro | D89: Lors du choix d'une PAC eau/eau, les raccourcies du ruban après le 3.2 ne fonctionnait pas | E89: x | F89: x | G89: x | H89: x | I89: 2023-06-27 | J89: SDA
B90: V2_45 | C90: Data_Tech | D90: Mise à jour des Eta S des PAC aroTHERM plus & Hybride | E90: x | F90: x | G90: x | H90: x | I90: 2023-07-11 | J90: GM
B91: V2_46 | C91: Calculs | D91: Correction recherche de colonne correspond à la PAC dans Data_tech, il y avait un offset de 1 | E91: x | F91: x | G91: x | H91: x | I91: 2023-07-12 | J91: SDA
B92: V2_47 | C92: Tarif | D92: Mise à jour tarif 09/2023 | E92: x | F92: x | G92: x | H92: x | I92: 2023-08-04 | J92: GM
B93: V2_47 | C93: Rapport_Simpli | D93: Modification affichage surfaces du bâtiment et des vivrages | E93: x | F93: x | G93: x | H93: x | I93: 2023-08-04 | J93: GM
B94: V2_48 | C94: Macro | D94: Ajout de la fonction sauvegarde et ouverture d'une offre | E94: x | F94: x | G94: x | H94: x | I94: 2023-08-22 | J94: SDA
B95: V2_48 | C95: Ribbon | D95: Ajout du menu "Sauver / importer" | E95: x | F95: x | G95: x | H95: x | I95: 2023-08-22 | J95: SDA
B96: V2_49 | C96: BDD_Commun | D96: Le kit intégrable à la colonne apparaissait 2 fois dans le chiffrage | E96: x | F96: x | G96: x | H96: x | I96: 2023-08-31 | J96: SDA
B97: V2_50 | C97: Macro | D97: Correction de l'erreur d'importation d'une offre | E97: x | F97: x | G97: x | H97: x | I97: 2023-09-12 | J97: SDA
B98: V2_50 | C98: Data_Tech | D98: Ajout du triple vitrage U = 0,7 W / m².K | E98: x | F98: x | G98: x | H98: x | I98: 2023-09-12 | J98: SDA
B99: V2_51 | C99: Inconnue | D99: Correction inconnue | E99: x | F99: x | G99: x | H99: x | I99: 2023-09-12 | J99: SDA
B100: V2_52 | C100: Macro | D100: Correction de la macro de génération du PDF pour Excel 2013 | E100: x | F100: x | G100: x | H100: x | I100: 2023-10-04 | J100: SDA
B101: V2_53 | C101: Macro | D101: Correction des macros de l'importation d'une fiche de renseignement et sauvegarde de l'offre | E101: x | F101: x | G101: x | H101: x | I101: 2023-10-19 | J101: SDA
B102: V2_54 | C102: Macro | D102: Correction importation nom/prénom de la fiche de renseignement | E102: x | F102: x | G102: x | H102: x | I102: 2023-10-30 | J102: SDA
B103: V2_54 | C103: Tarif | D103: Changement du nom de la carte ebus PAC hybride | E103: x | F103: x | G103: x | H103: x | I103: 2023-10-30 | J103: SDA
B104: V2_55 | C104: BDD_G1 à G5 | D104: Ajout de lignes | E104: x | F104: x | G104: x | H104: x | I104: 2023-11-04 | J104: SDA
B105: V2_55 | C105: BDD_G4 | D105: Ajout accessoire raccordement aroCOLLECT | E105: x | F105: x | G105: x | H105: x | I105: 2023-11-04 | J105: SDA
B106: V2_56 | C106: BDD_Commun | D106: Ajout de 8 lignes | E106: x | F106: x | G106: x | H106: x | I106: 2023-11-07 | J106: SDA
B107: V2_57 | C107: Rapport_simpli | D107: Correction de l'affichage des courbes de puissance jusqu'à -20°C | E107: x | F107: x | G107: x | H107: x | I107: 2023-11-09 | J107: SDA
B108: V2_57 | C108: BDD_DEV | D108: Ajout de -9°C dans la colonne G | E108: x | F108: x | G108: x | H108: x | I108: 2023-11-09 | J108: SDA
B109: V2_57 | C109: BDD_Ch | D109: Quantité ajustable pour les accessoires chaudière | E109: x | F109: x | G109: x | H109: x | I109: 2023-11-09 | J109: SDA
B110: V2_58 | C110: Macro | D110: Amélioration de la macro d'importation d'une fiche de renseignement | E110: x | F110: x | G110: x | H110: x | I110: 2023-11-14 | J110: SDA
B111: V2_58 | C111: ChoixPAC1hybride | D111: Amélioration de l'affichage | E111: x | F111: x | G111: x | H111: x | I111: 2023-11-14 | J111: SDA
B112: V2_59 | C112: Macro | D112: Modif macro au demarrage pour afficher les onglets si classeur déverouillé | E112: x | F112: x | G112: x | H112: x | I112: 2023-11-21 | J112: SDA
B113: V2_60 | C113: Tarif | D113: Tarif 2024 | E113: x | F113: x | G113: x | H113: x | I113: 2024-01-03 | J113: GM
B114: V2_60 | C114: Calculs | D114: BAR-TH-171 & 172 | E114: x | F114: x | G114: x | H114: x | I114: 2024-01-03 | J114: GM
B115: V2_60 | C115: Data_Tech | D115: NF PAC que pour les Split ! | E115: x | F115: x | G115: x | H115: x | I115: 2024-01-03 | J115: GM
B116: V2_61 | C116: ChoixPAC3ECS | D116: Correction de la sélection de la production ECS | E116: x | F116: x | G116: x | H116: x | I116: 2024-01-09 | J116: SDA

Sheet Export (hidden)
A1: description | B1: Logiciel PAC_2020 v2 | C1: Qté | D1: ligne active | E1: nombre de ligne active | H1: Export1 | I1: ="'Export'!A2:A"&N -> 'Export'!A2:A12
A2: =Calculs!AI1256 -> PAC | B2: =Calculs!AJ1256 -> 0010021644 | C2: =Calculs!AL1256 -> 1 | D2: =IF(OR(C2=0,C2="",C2="-"),0,1) -> 1 | E2: =SUM(D2:D32)+1 -> 12 | H2: Export2 | I2: ="'Export'!B2:B"&N -> 'Export'!B2:B12
A3: =Calculs!AI1257 -> Accessoires hydrauliques et électriques | B3: =Calculs!AJ1257 -> 0010022087 | C3: =Calculs!AL1257 -> 1 | D3: =IF(OR(C3=0,C3="",C3="-"),0,1) -> 1 | H3: Export3 | I3: ="'Export'!C2:C"&N -> 'Export'!C2:C12
A4: =Calculs!AI1258 ->  | B4: =Calculs!AJ1258 -> 0020221263 | C4: =Calculs!AL1258 -> 1 | D4: 1
A5: =Calculs!AI1259 ->  | B5: =Calculs!AJ1259 -> 302040 | C5: =Calculs!AL1259 -> 1 | D5: 1
A6: =Calculs!AI1260 ->  | B6: =Calculs!AJ1260 -> 0010021456 | C6: =Calculs!AL1260 -> 1 | D6: 1
A7: =Calculs!AI1261 ->  | B7: =Calculs!AJ1261 -> 0020191814 | C7: =Calculs!AL1261 -> 1 | D7: 1
A8: =Calculs!AI1262 -> Accessoires régulation : sensoCOMFORT VRC 720f (radio) | B8: =Calculs!AJ1262 -> 0020260929 | C8: =Calculs!AL1262 -> 1 | D8: 1
A9: =Calculs!AI1263 ->  | B9: =Calculs!AJ1263 -> 0020184847 | C9: =Calculs!AL1263 -> 1 | D9: 1
A10: =Calculs!AI1264 ->  | B10: =Calculs!AJ1264 -> 009642 | C10: =Calculs!AL1264 -> 1 | D10: 1
A11: =Calculs!AI1265 -> Accessoires Supports unité extérieure : Support anti-vibratiles 60 cm (x2) | B11: =Calculs!AJ1265 -> 0020250226 | C11: =Calculs!AL1265 -> 1 | D11: 1
A12: =Calculs!AI1266 -> Mise en service | B12: =Calculs!AJ1266 -> 0010028538 | C12: =Calculs!AL1266 -> 1 | D12: 1
A13: =Calculs!AI1267 ->  | B13: =Calculs!AJ1267 ->  | C13: =Calculs!AL1267 ->  | D13: 0
A14: =Calculs!AI1268 ->  | B14: =Calculs!AJ1268 ->  | C14: =Calculs!AL1268 ->  | D14: 0
A15: =Calculs!AI1269 ->  | B15: =Calculs!AJ1269 ->  | C15: =Calculs!AL1269 ->  | D15: 0
A16: =Calculs!AI1270 ->  | B16: =Calculs!AJ1270 ->  | C16: =Calculs!AL1270 ->  | D16: 0
A17: =Calculs!AI1271 ->  | B17: =Calculs!AJ1271 ->  | C17: =Calculs!AL1271 ->  | D17: 0
A18: =Calculs!AI1272 ->  | B18: =Calculs!AJ1272 ->  | C18: =Calculs!AL1272 ->  | D18: 0
A19: =Calculs!AI1273 ->  | B19: =Calculs!AJ1273 ->  | C19: =Calculs!AL1273 ->  | D19: 0
A20: =Calculs!AI1274 ->  | B20: =Calculs!AJ1274 ->  | C20: =Calculs!AL1274 ->  | D20: 0
A21: =Calculs!AI1275 ->  | B21: =Calculs!AJ1275 ->  | C21: =Calculs!AL1275 ->  | D21: 0
A22: =Calculs!AI1276 ->  | B22: =Calculs!AJ1276 ->  | C22: =Calculs!AL1276 ->  | D22: 0
A23: =Calculs!AI1277 ->  | B23: =Calculs!AJ1277 ->  | C23: =Calculs!AL1277 ->  | D23: 0
A24: =Calculs!AI1278 ->  | B24: =Calculs!AJ1278 ->  | C24: =Calculs!AL1278 ->  | D24: 0
A25: =Calculs!AI1279 ->  | B25: =Calculs!AJ1279 ->  | C25: =Calculs!AL1279 ->  | D25: 0
A26: =Calculs!AI1280 ->  | B26: =Calculs!AJ1280 ->  | C26: =Calculs!AL1280 ->  | D26: 0
A27: =Calculs!AI1281 ->  | B27: =Calculs!AJ1281 ->  | C27: =Calculs!AL1281 ->  | D27: 0
A28: =Calculs!AI1282 ->  | B28: =Calculs!AJ1282 ->  | C28: =Calculs!AL1282 ->  | D28: 0
A29: =Calculs!AI1283 ->  | B29: =Calculs!AJ1283 ->  | C29: =Calculs!AL1283 ->  | D29: 0
A30: =Calculs!AI1284 ->  | B30: =Calculs!AJ1284 ->  | C30: =Calculs!AL1284 ->  | D30: 0
A31: =Calculs!AI1285 ->  | B31: =Calculs!AJ1285 ->  | C31: =Calculs!AL1285 ->  | D31: 0
A32: =Calculs!AI1286 ->  | B32: =Calculs!AJ1286 ->  | C32: =Calculs!AL1286 ->  | D32: 0

Sheet TARIF (hidden)
A1: Grande famille | B1: Sous-famille | C1: REFERENCE | D1: DESIGNATION | E1: TARIF 2024 | F1: Eco-participation
A2: Régulation | B2: Régulateurs | C2: 0020092435 | D2: calorMATIC VRC 630, eBUS | E2: 876 | F2: 0.12
A3: Accessoires | B3: Fumisterie | C3: 0020095541 | D3: Access. montage + corde Ø 160 | E3: 49 | F3: 0.01
A4: Accessoires | B4: Fumisterie | C4: 0020095542 | D4: Access. montage + corde Ø 200 | E4: 51 | F4: 0.01
A5: Accessoires | B5: Fumisterie | C5: 303513 | D5: Accessoire de montage flexible | E5: 76 | F5: 0.03
A6: Accessoires | B6: Fumisterie | C6: 303519 | D6: Access. montage flexible Ø 100 | E6: 100 | F6: 0.04
A7: Accessoires | B7: Fumisterie | C7: 0020106399 | D7: Accessoire de montage Ø 250 | E7: 138 | F7: 0.01
A8: Solaire | B8: Accessoires de montage | C8: 0020080177 | D8: Accroches larges pattes de fix | E8: 116 | F8: 0.01
A9: Accessoires | B9: Fumisterie | C9: 0020106393 | D9: Adapt. 110/100mm Coude support | E9: 97 | F9: 0.01
A10: Accessoires | B10: Fumisterie | C10: 0020147469 | D10: Adapt. 60/100 sur 80/125 PPs | E10: 40 | F10: 0.01
A11: Accessoires | B11: Fumisterie | C11: 303840 | D11: Adaptateur Sine-Turbo Ø 60/100 | E11: 204 | F11: 0.01
A12: Accessoires | B12: Fumisterie | C12: 303813 | D12: Adapt. ventouse 60/100 - 63/96 | E12: 81 | F12: 0.01
A13: Ballons sanitaires | B13: Ballons primaires | C13: 0010014311 | D13: aguaFLOW exclusiv VPM 20/25/2 | E13: 2749 | F13: 0.88
A14: Ballons sanitaires | B14: Ballons primaires | C14: 0010014312 | D14: aguaFLOW exclusiv VPM 30/35/2 | E14: 2871 | F14: 0.88
A15: Ballons sanitaires | B15: Ballons primaires | C15: 0010014313 | D15: aguaFLOW exclusiv VPM 40/45/2 | E15: 3610 | F15: 4.15
A16: Ballons sanitaires | B16: Accessoires | C16: 0020170505 | D16: Anode à courant imposé éco/aur | E16: 476 | F16: 0.12
A17: Ballons sanitaires | B17: Accessoires | C17: 302042 | D17: Anode universelle a courant im | E17: 521 | F17: 0.12
A18: Pompes à chaleur | B18: Unités extérieures air/eau | C18: 0010019764 | D18: aroTHERM 5 kW 230 V | E18: 6035 | F18: 6.67
A19: Pompes à chaleur | B19: Unités extérieures air/eau | C19: 0010019765 | D19: aroTHERM 8 kW 230 V | E19: 7722 | F19: 6.67
A20: Pompes à chaleur | B20: Unités extérieures air/eau | C20: 0010016410 | D20: aroTHERM 11 kW 230 V | E20: 9507 | F20: 6.67
A21: Pompes à chaleur | B21: Unités extérieures air/eau | C21: 0010016412 | D21: aroTHERM 15 kW 230 V | E21: 11094 | F21: 6.67
A22: Chauffe Eau / Chauffe-bain | B22: Chauffe-bain | C22: 0010022553 | D22: atmoMAG 114/1 G (E-BE/FR) | E22: 1000 | F22: 1.67
A23: Chauffe Eau / Chauffe-bain | B23: Chauffe-bain | C23: 0010022552 | D23: atmoMAG 114/1 G (P-BE/FR) | E23: 1000 | F23: 1.67
A24: Chauffe Eau / Chauffe-bain | B24: Chauffe-bain | C24: 0010022555 | D24: atmoMAG 114/1 Z (E-BE/FR) | E24: 877 | F24: 1.67
A25: Chauffe Eau / Chauffe-bain | B25: Chauffe-bain | C25: 0010022554 | D25: atmoMAG 114/1 Z (P-BE/FR) | E25: 877 | F25: 1.67
A26: Chauffe Eau / Chauffe-bain | B26: Chauffe-bain | C26: 0010022549 | D26: atmoMAG 144/1 G (E-FR) | E26: 1074 | F26: 1.67
A27: Chauffe Eau / Chauffe-bain | B27: Chauffe-bain | C27: 0010022545 | D27: atmoMAG 144/1 Z (E-FR) | E27: 936 | F27: 1.67
A28: Chauffe Eau / Chauffe-bain | B28: Chauffe-bain | C28: 0010022547 | D28: atmoMAG 144/1 Z (P-FR) | E28: 936 | F28: 1.67
A29: Chaudières | B29: Colonne Solaire Intégrée | C29: 0010014660 | D29: auroCOMPACT VSC D 206/4-5 190 | E29: 7058 | F29: 5
A30: Chaudières | B30: Colonne Solaire Intégrée | C30: 0010014661 | D30: auroCOMPACT VSC D 306/4-5 190 | E30: 7596 | F30: 5
A31: Chaudières | B31: Colonne Solaire Intégrée | C31: 0010014663 | D31: auroCOMPACT VSC S 206/4-5 190 | E31: 7220 | F31: 5
A32: Chaudières | B32: Colonne Solaire Intégrée | C32: 0010014662 | D32: auroCOMPACT VSC S 306/4-5 190 | E32: 7749 | F32: 5
A33: Solaire | B33: Accessoires | C33: 0010014314 | D33: auroFLOW EXCLUSIV VPM 20/2 S | E33: 3353 | F33: 4.15
A34: Solaire | B34: Accessoires | C34: 0010014315 | D34: auroFLOW EXCLUSIV VPM 60/2 S | E34: 3511 | F34: 4.15
A35: Solaire | B35: Accessoires | C35: 0010015086 | D35: auroFLOW Plus VPM 15 D | E35: 4077 | F35: 4.15
A36: Régulation | B36: Régulateurs | C36: 0020203654 | D36: auroMATIC VRS 570 | E36: 357 | F36: 0.12
A37: Ballons sanitaires | B37: Ballons sanitaires | C37: 305945 | D37: Ballon actoSTOR VIH K 300 | E37: 2475 | F37: 5
A38: Ballons sanitaires | B38: Ballons sanitaires échangeur | C38: 0010015988 | D38: Ballon actoSTOR VIH QL 75 B | E38: 1039 | F38: 5
A39: Solaire | B39: Ballons solaires | C39: 0010017724 | D39: auroSTEP Plus VIH S2 250 biD | E39: 2907 | F39: 5
A40: Solaire | B40: Ballons solaires | C40: 0010017721 | D40: auroSTEP plus VIHS1 150BiDE | E40: 2942 | F40: 5
A41: Solaire | B41: Ballons solaires | C41: 0010017723 | D41: auroSTEP plus VIHS1 250BiDE | E41: 3305 | F41: 5
A42: Solaire | B42: Ballons solaires | C42: 0010017720 | D42: auroSTEP Plus VIH S1 150 BiD | E42: 2365 | F42: 5
A43: Solaire | B43: Ballons solaires | C43: 0010017722 | D43: auroSTEP Plus VIH S1 250 BiD | E43: 2685 | F43: 5
A44: Solaire | B44: Ballons solaires | C44: 0010017710 | D44: auroSTEP + seul VIH S1 350 B | E44: 1864 | F44: 5
A45: Solaire | B45: Ballons solaires | C45: 0010017711 | D45: auroSTEP + seul VIH S2 350 B | E45: 1971 | F45: 5
A46: Ballons sanitaires | B46: Ballons primaires | C46: 0010015115 | D46: allSTOR EXCLUSIVE VPS 1000/3 | E46: 4101 | F46: 16.2
A47: Ballons sanitaires | B47: Ballons primaires | C47: 0010015116 | D47: allSTOR EXCLUSIVE VPS 1500/3 | E47: 6090 | F47: 16.2
A48: Ballons sanitaires | B48: Ballons primaires | C48: 0010015117 | D48: allSTOR EXCLUSIVE VPS 2000/3 | E48: 6646 | F48: 16.2
A49: Ballons sanitaires | B49: Ballons primaires | C49: 0010015114 | D49: allSTOR EXCLUSIVE VPS 800/3 | E49: 3818 | F49: 5
A50: Ballons sanitaires | B50: Ballons primaires | C50: 0010015118 | D50: Tampon allSTOR Plus VPS 300 | E50: 1653 | F50: 5
A51: Ballons sanitaires | B51: Ballons primaires | C51: 0010015119 | D51: Tampon allSTOR Plus VPS 500 | E51: 1882 | F51: 5
A52: Pompes à chaleur | B52: Ballons tampon | C52: 0010021456 | D52: Ballon Tampon VPS R 100/1 M | E52: 1097 | F52: 5
A53: Pompes à chaleur | B53: Ballons tampon | C53: 0010021457 | D53: Ballon Tampon VPS R 200/1 B | E53: 1234 | F53: 5
A54: Ballons sanitaires | B54: Ballons sanitaires chargement dynamique | C54: 0010015978 | D54: Ballon uniSTOR VIH Q 75 B | E54: 1228 | F54: 5
A55: Ballons sanitaires | B55: Ballons sanitaires chargement dynamique | C55: 0010015949 | D55: Ballon uniSTOR VIH R 120/6 BA | E55: 1189 | F55: 5
A56: Ballons sanitaires | B56: Ballons sanitaires chargement dynamique | C56: 0010015931 | D56: Ballon uniSTOR VIH R 120/6 HA | E56: 1556 | F56: 5
A57: Ballons sanitaires | B57: Ballons sanitaires chargement dynamique | C57: 0010015950 | D57: Ballon uniSTOR VIH R 150/6 BA | E57: 1265 | F57: 5
A58: Ballons sanitaires | B58: Ballons sanitaires chargement dynamique | C58: 0010015932 | D58: Ballon uniSTOR VIH R 150/6 HA | E58: 1707 | F58: 5
A59: Ballons sanitaires | B59: Ballons sanitaires chargement dynamique | C59: 0010015951 | D59: Ballon uniSTOR VIH R 200/6 BA | E59: 1403 | F59: 5
A60: Ballons sanitaires | B60: Ballons sanitaires chargement dynamique | C60: 0010015933 | D60: Ballon uniSTOR VIH R 200/6 HA | E60: 1861 | F60: 5
A61: Ballons sanitaires | B61: Ballons sanitaires chargement dynamique | C61: 0010020639 | D61: Ballon uniSTOR VIH R 300/3 BR | E61: 2311 | F61: 5
A62: Ballons sanitaires | B62: Ballons sanitaires chargement dynamique | C62: 0010020640 | D62: Ballon uniSTOR VIH R 400/3 BR | E62: 2793 | F62: 5
A63: Ballons sanitaires | B63: Ballons sanitaires chargement dynamique | C63: 0010020641 | D63: Ballon uniSTOR VIH R 500/3 BR | E63: 3387 | F63: 5
A64: Solaire | B64: Accessoires de montage | C64: 0020092562 | D64: Bandeau finition capteur VFK H | E64: 70 | F64: 0.01
A65: Solaire | B65: Accessoires de montage | C65: 0020092553 | D65: Bati montage auvent 15/30/45° | E65: 236 | F65: 0.01
A66: Solaire | B66: Accessoires de montage | C66: 0020137775 | D66: Bati montage terrasse capt H | E66: 225 | F66: 0.01
A67: Solaire | B67: Accessoires de montage | C67: 0020137774 | D67: Bati montage terrasse capt V | E67: 260 | F67: 0.01
A68: Chauffe Eau / Chauffe-bain | B68: Accessoires | C68: 0020234537 | D68: Batt. mélgeuse + bec dévers. 9 | E68: 89 | F68: 0.01
A69: Solaire | B69: Accessoires de montage | C69: 0020080801 | D69: BAVETTE ETANCHEITE EN ROULEAU | E69: 205 | F69: 0.07
A70: Chauffe Eau / Chauffe-bain | B70: Accessoires | C70: 0020175047 | D70: Bec déverseur 15 cm | E70: 42 | F70: 0.01
A71: Chauffe Eau / Chauffe-bain | B71: Accessoires | C71: 0020175048 | D71: Bec déverseur 25 cm | E71: 50 | F71: 0.01
A72: Chauffe Eau / Chauffe-bain | B72: Accessoires | C72: 0020128197 | D72: Bec déverseur 9 cm | E72: 36 | F72: 0.01
A73: Ballons sanitaires | B73: Ballons primaires | C73: 0010015141 | D73: Bouchons isolants VPS 2 PC 1,5 | E73: 41 | F73: 0.01
A74: Ballons sanitaires | B74: Ballons primaires | C74: 0010015142 | D74: Bouchons isolants VPS 1PCE 2" | E74: 49 | F74: 0.01
A75: Ballons sanitaires | B75: Ballons primaires | C75: 0010015143 | D75: Bouchons isolants PR VPS/3 1P | E75: 50 | F75: 0.01
A76: Accessoires | B76: Accessoires pour le collectif | C76: 306726 | D76: Bouteille de découplage WH 160 | E76: 1835 | F76: 0.02
A77: Accessoires | B77: Accessoires pour le collectif | C77: 306725 | D77: Bouteille de découplage WH 280 | E77: 2035 | F77: 0.03
A78: Accessoires | B78: Accessoires pour le collectif | C78: 306720 | D78: Bouteille de découplage WH 40 | E78: 519 | F78: 0.01
A79: Accessoires | B79: Accessoires pour le collectif | C79: 0020248932 | D79: Bout. découpl. WH 40 + isol. | E79: 471 | F79: 0.01
A80: Accessoires | B80: Accessoires pour le collectif | C80: 306721 | D80: Bouteille de découplage WH 95 | E80: 759 | F80: 0.01
A81: Accessoires | B81: Accessoires pour le collectif | C81: 0020107874 | D81: Bout. découpl. WH C 110+filtre | E81: 1082 | F81: 0.02
A82: Accessoires | B82: Accessoires pour le collectif | C82: 0020107875 | D82: Bout. découpl. WH C 160+filtre | E82: 1227 | F82: 0.02
A83: Accessoires | B83: Accessoires pour le collectif | C83: 0020151859 | D83: Bout. découpl. WH C 280+filtre | E83: 2085 | F83: 0.03
A84: Accessoires | B84: Accessoires pour le collectif | C84: 0020107876 | D84: Bout. découpl. WH C 160+filtre | E84: 1953 | F84: 0.03
A85: Régulation | B85: Accessoires | C85: 306727 | D85: Bouteille de découplage WH27 | E85: 239 | F85: 0.01
A86: Accessoires | B86: Fumisterie | C86: 301369 | D86: Buse 80/125 + orifices contr. | E86: 52 | F86: 0.01
A87: Solaire | B87: Accessoires | C87: 0020160611 | D87: Câble pilotage V3V auroFLOW + | E87: 31 | F87: 0.02
A88: Ballons sanitaires | B88: Accessoires | C88: 0020183366 | D88: Câble anti-légionnelle | E88: 26 | F88: 0.02
A89: Ballons sanitaires | B89: Accessoires | C89: 302076 | D89: Câble Pompe anti-légionnelle | E89: 722 | F89: 0.02
A90: Solaire | B90: Accessoires de montage | C90: 0020160658 | D90: Câbles d'ancrage châssis terra | E90: 472 | F90: 0.01
A91: Ventilation | B91: Accessoires | C91: 0020236366 | D91: Cache extérieur ventilation | E91: 78 | F91: 0.01
A92: Chauffe Eau / Chauffe-bain | B92: Accessoires | C92: 0020234554 | D92: Cache-tubulures turboMAG | E92: 44 | F92: 0.01
A93: Accessoires | B93: Accessoires | C93: 0020021856 | D93: Cadre écarteur 105 MM | E93: 155 | F93: 0.01
A94: Accessoires | B94: Accessoires | C94: 0020105566 | D94: Cadre écarteur 35 MM | E94: 120 | F94: 0.01
A95: Accessoires | B95: Accessoires | C95: 308650 | D95: Cadre écarteur 65 MM | E95: 79 | F95: 0.01
A96: Accessoires | B96: Accessoires | C96: 0020051316 | D96: Cadre écarteur 125 MM | E96: 80 | F96: 0.01
A97: Régulation | B97: Régulateurs | C97: 0020124486 | D97: calorMATIC 450 | E97: 310 | F97: 0.12
A98: Régulation | B98: Régulateurs | C98: 0020108135 | D98: calorMATIC VRC 470f | E98: 561 | F98: 0.12
A99: Régulation | B99: Régulateurs | C99: 0020124473 | D99: calorMATIC 350 | E99: 258 | F99: 0.12
A100: Solaire | B100: Capteurs solaires | C100: 0010008899 | D100: VFK 145/2 H | E100: 1468 | F100: 6.67
A101: Ventilation | B101: Accessoires | C101: 0020236367 | D101: Capteur CO2 filaire ventil | E101: 514 | F101: 0.02
A102: Ventilation | B102: Accessoires | C102: 0020236368 | D102: Capteur CO2 sans fil ventil | E102: 551 | F102: 0.02
A103: Accessoires | B103: Accessoires | C103: 301363 | D103: CARTOUCHE ADOUCISSEUR D'EAU | E103: 1106 | F103: 0.07
A104: Accessoires | B104: Fumisterie | C104: 0020145527 | D104: Centreur cdt acier Ø 250 x4 | E104: 155 | F104: 0.01
A105: Accessoires | B105: Fumisterie | C105: 0020052281 | D105: Centreur cdt flexible Ø 100 | E105: 94 | F105: 0.01
A106: Accessoires | B106: Fumisterie | C106: 0020042771 | D106: Centreur cdt flexible Ø 80 x7 | E106: 89 | F106: 0.01
A107: Accessoires | B107: Fumisterie | C107: 0020106420 | D107: Centreur cdt Ø 160 x10 | E107: 106 | F107: 0.02
A108: Accessoires | B108: Fumisterie | C108: 0020095565 | D108: Centreur cdt acier Ø 160 x4 | E108: 67 | F108: 0.01
A109: Accessoires | B109: Fumisterie | C109: 0020095563 | D109: Centreur cdt fumées Ø 160 PPs | E109: 25 | F109: 0.01
A110: Accessoires | B110: Fumisterie | C110: 0020106436 | D110: Centreur cdt fumées Ø 200 x10 | E110: 296 | F110: 0.01
A111: Accessoires | B111: Fumisterie | C111: 0020095564 | D111: Centreur cdt acier Ø 200 | E111: 51 | F111: 0.01
A112: Accessoires | B112: Fumisterie | C112: 0020106561 | D112: Centreur cdt fumées Ø 250 x10 | E112: 374 | F112: 0.01
A113: Accessoires | B113: Fumisterie | C113: 0020095566 | D113: Centreur cdt acier Ø 200 x4 | E113: 154 | F113: 0.01
A114: Accessoires | B114: Accessoires pour le collectif | C114: 0020151805 | D114: Châssis Support base cascade | E114: 279 | F114: 0.01
A115: Accessoires | B115: Accessoires pour le collectif | C115: 0020151813 | D115: Châssis extension 1 ch. casc. | E115: 639 | F115: 0.01
A116: Accessoires | B116: Accessoires pour le collectif | C116: 0020151814 | D116: Châssis extension 2 ch. Casc. | E116: 795 | F116: 0.02
A117: Accessoires | B117: Accessoires pour le collectif | C117: 0020258990 | D117: Clapet mécan. DN 80 / DN 110 | E117: 182 | F117: 0.01
A118: Accessoires | B118: Fumisterie | C118: 0020175893 | D118: Clapet anti-retour 3 CEp | E118: 48 | F118: 0.01
A119: Accessoires | B119: Fumisterie | C119: 0020135072 | D119: Clapet AR + adapt. icoVIT | E119: 237 | F119: 0.01
A120: Accessoires | B120: Accessoires pour le collectif | C120: 0020151165 | D120: Clapet motorisé Ø 160 | E120: 1014 | F120: 3.9
A121: Accessoires | B121: Accessoires pour le collectif | C121: 0020151166 | D121: Clapet motorisé Ø 200 | E121: 1060 | F121: 3.9
A122: Accessoires | B122: Accessoires pour le collectif | C122: 303960 | D122: Clapet anti-retour Ø 80 | E122: 390 | F122: 0.01
A123: Accessoires | B123: Accessoires pour le collectif | C123: 0020207200 | D123: Clapet mécanique DN 110 | E123: 332 | F123: 0.01
A124: Accessoires | B124: Accessoires pour le collectif | C124: 0020106418 | D124: Clapet motorisé Ø 110 | E124: 762 | F124: 3.9
A125: Accessoires | B125: Fumisterie | C125: 0020106411 | D125: Colerette alu Toit terr. Ø 160 | E125: 59 | F125: 0.01
A126: Accessoires | B126: Fumisterie | C126: 0020095588 | D126: Colerette alu toit.plate Ø200 | E126: 351 | F126: 0.01
A127: Accessoires | B127: Fumisterie | C127: 0020108013 | D127: Colerette alu toit.plate Ø250 | E127: 377 | F127: 0.01
A128: Accessoires | B128: Accessoires pour le collectif | C128: 0020151819 | D128: Collect Ø 100 1 chaud. cascade | E128: 1486 | F128: 0.02
A129: Accessoires | B129: Accessoires pour le collectif | C129: 0020151821 | D129: Collect Ø 100 2 chaud. cascade | E129: 1992 | F129: 0.03
A130: Accessoires | B130: Accessoires pour le collectif | C130: 0020151818 | D130: Collect Ø 65 1 chaud. cascade | E130: 1255 | F130: 0.02
A131: Accessoires | B131: Accessoires pour le collectif | C131: 0020151820 | D131: Collect Ø 65 2 chaud. cascade | E131: 1759 | F131: 0.02
A132: Régulation | B132: Accessoires | C132: 307556 | D132: Collecteur hydraul. 2 circuits | E132: 299 | F132: 0.01
A133: Régulation | B133: Accessoires | C133: 307597 | D133: Collecteur hydraul. 3 circuits | E133: 359 | F133: 0.01
A134: Accessoires | B134: Fumisterie | C134: 303824 | D134: Collier ventouse f 100 x4 | E134: 33 | F134: 0.01
A135: Solaire | B135: Accessoires | C135: 0020025385 | D135: Collier fixat Twin Tube DN 16 | E135: 31 | F135: 0.01
A136: Solaire | B136: Accessoires | C136: 0020025386 | D136: Collier fixat Twin Tube DN 20 | E136: 31 | F136: 0.01
A137: Solaire | B137: Accessoires | C137: 302364 | D137: Colliers de fixation TWIN T x4 | E137: 29 | F137: 0.01
A138: Accessoires | B138: Fumisterie | C138: 303821 | D138: Colliers fixation Ø100, 140 x5 | E138: 90 | F138: 0.01
A139: Accessoires | B139: Fumisterie | C139: 0020106381 | D139: Colliers de fixation Ø 160 x5 | E139: 76 | F139: 0.01
A140: Accessoires | B140: Fumisterie | C140: 303921 | D140: Colliers fixation Ø100, 200 x5 | E140: 90 | F140: 0.01
A141: Ventilation | B141: Accessoires | C141: 0020236365 | D141: Conduit D160 ventilation | E141: 77 | F141: 0.01
A142: Accessoires | B142: Fumisterie | C142: 0020004961 | D142: Flexible 7,5m Ø100+4 centreurs | E142: 537 | F142: 0.07
A143: Accessoires | B143: Fumisterie | C143: 0020042768 | D143: Coude 15° Ø 130 PPs (2 pièces) | E143: 176 | F143: 0.01
A144: Accessoires | B144: Fumisterie | C144: 0020095560 | D144: Coude 15° Ø 160 PPs (1 pièce) | E144: 74 | F144: 0.01
A145: Accessoires | B145: Fumisterie | C145: 303820 | D145: Coude 15° Ø 60/100 | E145: 91 | F145: 0.01
A146: Accessoires | B146: Fumisterie | C146: 0020042767 | D146: Coude 30° Ø 130 PPs (2 pièces) | E146: 168 | F146: 0.01
A147: Accessoires | B147: Fumisterie | C147: 0020095559 | D147: Coude 30° Ø 200 PPs (1 pièce) | E147: 264 | F147: 0.02
A148: Accessoires | B148: Fumisterie | C148: 0020106565 | D148: Coude 30° Ø 250 PPs | E148: 289 | F148: 0.03
A149: Accessoires | B149: Fumisterie | C149: 0020042766 | D149: Coude 45° DN 130 PP (2 pièces) | E149: 157 | F149: 0.01
A150: Accessoires | B150: Fumisterie | C150: 0020106379 | D150: Coude 45° Ø 110/160 PPs x2 | E150: 160 | F150: 0.02
A151: Accessoires | B151: Fumisterie | C151: 0020095556 | D151: Coude 45° Ø 160 PPs (1 pièce) | E151: 87 | F151: 0.01
A152: Accessoires | B152: Fumisterie | C152: 0020095557 | D152: Coude 45° Ø 200 PPs (1 pièce) | E152: 252 | F152: 0.02
A153: Accessoires | B153: Fumisterie | C153: 0020106564 | D153: Coude 45° Ø 250 mm PPs | E153: 289 | F153: 0.03
A154: Accessoires | B154: Fumisterie | C154: 303809 | D154: Coude 45° Ø 60/100 | E154: 113 | F154: 0.01
A155: Accessoires | B155: Fumisterie | C155: 303911 | D155: Coude 45° Ø 60/100 (2 pièces) | E155: 113 | F155: 0.01
A156: Accessoires | B156: Fumisterie | C156: 303611 | D156: Coude 45° Ø 80/125 BT x2 | E156: 144 | F156: 0.01
A157: Accessoires | B157: Fumisterie | C157: 303211 | D157: Coude 45° Ø 80/125 Cds x2 | E157: 175 | F157: 0.01
A158: Accessoires | B158: Fumisterie | C158: 0020106383 | D158: Coude 87°+trappe Ø110/160 PPs | E158: 149 | F158: 0.02
A159: Accessoires | B159: Fumisterie | C159: 303916 | D159: Coude 87° concentr. Ø60/100PPs | E159: 83 | F159: 0.01
A160: Accessoires | B160: Fumisterie | C160: 0020095553 | D160: Coude 87° fumées Ø200 | E160: 292 | F160: 0.02
A161: Accessoires | B161: Fumisterie | C161: 0020042765 | D161: Coude 87° DN 130 PP | E161: 83 | F161: 0.01
A162: Accessoires | B162: Fumisterie | C162: 0020095552 | D162: Coude 87° Ø 160 PPs | E162: 81 | F162: 0.01
A163: Accessoires | B163: Fumisterie | C163: 0020095554 | D163: Coude 87° Ø 160 PPs + trappe | E163: 219 | F163: 0.02
A164: Accessoires | B164: Fumisterie | C164: 0020095555 | D164: Coude 87° Ø 200 PPs + trappe | E164: 469 | F164: 0.03
A165: Accessoires | B165: Fumisterie | C165: 303910 | D165: Coude 87° Ø 60/100 PP x1 | E165: 58 | F165: 0.01
A166: Accessoires | B166: Fumisterie | C166: 303210 | D166: Coude 87° Ø 80/125 | E166: 93 | F166: 0.01
A167: Accessoires | B167: Fumisterie | C167: 0020145529 | D167: Coude 87° PPs + trappe Ø 250 | E167: 377 | F167: 0.03
A168: Accessoires | B168: Fumisterie | C168: 0020106380 | D168: Coude 87° PPs Ø 110/160 | E168: 96 | F168: 0.01
A169: Accessoires | B169: Fumisterie | C169: 0020106563 | D169: Coude 87° PPs Ø 250 | E169: 321 | F169: 0.03
A170: Accessoires | B170: Fumisterie | C170: 303808 | D170: Coude 90° Ø 60/100 | E170: 71 | F170: 0.01
A171: Accessoires | B171: Fumisterie | C171: 303610 | D171: Coude 90° Ø 80/125 | E171: 99 | F171: 0.01
A172: Chauffe-eau thermodynamique | B172: Accessoires | C172: 0020205773 | D172: Coude PVC mâle / femelle 90 - | E172: 34 | F172: 0.02
A173: Accessoires | B173: Fumisterie | C173: 303816 | D173: Dispositif séparation Ø 60/100 | E173: 70 | F173: 0.01
A174: Accessoires | B174: Fumisterie | C174: 303617 | D174: Dispositif séparation Ø 80/125 | E174: 77 | F174: 0.01
A175: Accessoires | B175: Fumisterie | C175: 0020042763 | D175: Distanceurs Ø 130 (7pces) | E175: 43 | F175: 0.01
A176: Accessoires | B176: Accessoires pour le collectif | C176: 0020137070 | D176: Echangeur plaques PHE C 240-40 | E176: 3457 | F176: 0.02
A177: Accessoires | B177: Accessoires pour le collectif | C177: 0020137071 | D177: Echangeur plaques PHE C 360-70 | E177: 5002 | F177: 0.03
A178: Accessoires | B178: Accessoires pour le collectif | C178: 0020137072 | D178: Echangeur plaques PHE C 480-90 | E178: 5154 | F178: 0.04
A179: Accessoires | B179: Accessoires pour le collectif | C179: 0020137073 | D179: Echang. plaques PHE C 600-120 | E179: 6173 | F179: 0.04
A180: Accessoires | B180: Accessoires pour le collectif | C180: 0020137074 | D180: Echang. plaques PHE C 720-170 | E180: 6357 | F180: 0.05
A181: Accessoires | B181: Accessoires pour le collectif | C181: 0020137069 | D181: Echangeur plaques PHE S 120-70 | E181: 964 | F181: 0.01
A182: Chaudières | B182: Sol Gaz Condensation < 45 kW | C182: 0010015607 | D182: ecoCOMPACT VCC 266/4-5 150 | E182: 5244 | F182: 5
A183: Chaudières | B183: Sol Gaz Condensation < 45 kW | C183: 0010014997 | D183: ecoCOMPACT VCC 306/4-5 150 | E183: 6025 | F183: 5
A184: Chaudières | B184: Sol Gaz Condensation < 45 kW | C184: 0010015708 | D184: ecoCOMPACT VSC 206/4-5 90 | E184: 4761 | F184: 5
A185: Chaudières | B185: Sol Gaz Condensation < 45 kW | C185: 0010015606 | D185: ecoCOMPACT VSC 266/4-5 150 | E185: 5465 | F185: 5
A186: Chaudières | B186: Sol Gaz Condensation < 45 kW | C186: 0010019341 | D186: ecoCOMPACT VSC 266/4-5 90 | E186: 5214 | F186: 5
A187: Chaudières | B187: Sol Gaz Condensation < 45 kW | C187: 0010015709 | D187: ecoCOMPACT VSC 306/4-5 150 | E187: 6162 | F187: 5
A188: Chaudières | B188: Sol Gaz Condensation > 45 kW | C188: 0010014131 | D188: ecoCRAFT VKK 1206/3-E HL R1 | E188: 12898 | F188: 23.5
A189: Chaudières | B189: Sol Gaz Condensation > 45 kW | C189: 0010014132 | D189: ecoCRAFT VKK 1606/3-E HL R1 | E189: 14937 | F189: 23.5
A190: Chaudières | B190: Sol Gaz Condensation > 45 kW | C190: 0010014133 | D190: ecoCRAFT VKK 2006/3-E HL R1 | E190: 16141 | F190: 23.5
A191: Chaudières | B191: Sol Gaz Condensation > 45 kW | C191: 0010014134 | D191: ecoCRAFT VKK 2406/3-E HL R1 | E191: 18709 | F191: 23.5
A192: Chaudières | B192: Sol Gaz Condensation > 45 kW | C192: 0010014135 | D192: ecoCRAFT VKK 2806/3-E HL R1 | E192: 21876 | F192: 23.5
A193: Chaudières | B193: Sol Gaz Condensation > 45 kW | C193: 0010014130 | D193: ecoCRAFT VKK 806/3-E HL R1 | E193: 11993 | F193: 23.5
A194: Accessoires | B194: Accessoires | C194: 306287 | D194: ECOLEVEL Pompe RELEVAGE COND. | E194: 401 | F194: 0.42
A195: Chaudières | B195: Murales Condensation > 45 kW | C195: 0010021514 | D195: ecoTEC Plus systèmes 48 kW | E195: 4500 | F195: 5
A196: Chaudières | B196: Murales Condensation > 45 kW | C196: 0010021515 | D196: ecoTEC Plus systèmes 65 kW | E196: 5608 | F196: 5
A197: Chaudières | B197: Murales Condensation > 45 kW | C197: 0010010775 | D197: ecoTEC Plus systèmes 100 kW | E197: 9388 | F197: 23.5
A198: Chaudières | B198: Murales Condensation > 45 kW | C198: 0010010787 | D198: ecoTEC Plus systèmes 120 kW | E198: 10633 | F198: 23.5
A199: Chaudières | B199: Murales Condensation > 45 kW | C199: 0010010762 | D199: ecoTEC Plus systèmes 80 kW | E199: 8296 | F199: 23.5
A200: Chaudières | B200: Murales Condensation < 45 kW | C200: 0010021866 | D200: ecoTEC Plus VCI 30 kW BP | E200: 4432 | F200: 5
... 741 more rows

Sheet Paramétrage (hidden)
B1: Logiciel PAC_2020 v2
B2: PARAMETRAGE DE L'OUTIL | J2: Vers page PRINCIPALE
B3: 2022-08-02
B4: Dénomination de la marque
B5: =IF(ISBLANK(D5),"",B$6) -> Dénomination des gammes | D5: Vaillant
B6: Dénomination des gammes
B7: =IF(ISBLANK(D7),"",B$6) -> Dénomination des gammes | C7: Gamme 1 | D7: aroTHERM plus VWL | F7: Base de données
C8: Gamme 2 | D8: aroTHERM Split VWL | F8: Base de données
B9: =IF(ISBLANK(D9),"",B$6) -> Dénomination des gammes | C9: Gamme 3 | D9: aroTHERM VWL | F9: Base de données
C10: Gamme 4 | D10: flexoTHERM exclusive air / eau | F10: Base de données
B11: Dénomination des gammes | C11: Gamme 5 | D11: flexoTHERM exclusive eau glycolée / eau | F11: Base de données
B12: =IF(ISBLANK(D12),"",B$6) ->  | C12: Gamme 6 | F12: Base de données
C13: Gamme 7 | F13: Base de données
B14: =IF(ISBLANK(D14),"",B$6) ->  | C14: Gamme 8 | F14: Base de données
C15: Gamme 9 | F15: Base de données
C16: Gamme 10 | F16: Base de données
C17: Gamme 11 | F17: Base de données
C18: Gamme 12 | F18: Base de données
B19: Description des gammes | H19: Alim Elect Mono,Tri, Mono/Tri
B20: =IF(C20="","",B$19) -> Description des gammes | C20: =Calculs!C5 -> aroTHERM plus VWL | D20: Pompe à chaleur monobloc air / eau haute température | H20: Mono/Tri
C21: =Calculs!C6 -> aroTHERM Split VWL | D21: Pompe à chaleur bi-bloc air / eau | H21: Mono/Tri
B22: =IF(C22="","",B$19) -> Description des gammes | C22: =Calculs!C7 -> aroTHERM VWL | D22: Pompe à chaleur monobloc air / eau, avec découplage eau glycolée (monophasée) | H22: Mono
C23: =Calculs!C8 -> flexoTHERM exclusive air / eau | D23: Pompe à chaleur air / eau avec module aroCOLLECT (triphasée) | H23: Tri
B24: Description des gammes | C24: =Calculs!C9 -> flexoTHERM exclusive eau glycolée / eau | D24: Pompe à chaleur eau glycolée / eau | H24: Mono/Tri
B25: =IF(C25="","",B$19) -> Description des gammes | C25: =Calculs!C10 -> 0
C26: =Calculs!C11 -> 0
B27: =IF(C27="","",B$19) -> Description des gammes | C27: =Calculs!C12 -> 0
B28: Description des gammes | C28: =Calculs!C13 -> 0
B29: Description des gammes | C29: =Calculs!C14 -> 0 | J29: Vers Bdd SCHEMAS
B30: Description des gammes | C30: =Calculs!C15 -> 0
B31: Description des gammes | C31: =Calculs!C16 -> 0
B32: Dénomination des schémas type
B33: =IF(ISBLANK(E33),"",B$32) -> Dénomination des schémas type | C33: ="G1_"&Calculs!C$5 -> G1_aroTHERM plus VWL | D33: Schéma 1 | E33: Chauffage seul - 1 circuit direct | I33: 1
D34: Schéma 2 | E34: Chauffage seul - 2 circuits directs avec 2 circulateurs | I34: 2
D35: Schéma 3 | E35: Chauffage seul - 1 circuit direct et 1 circuit mélangé | I35: 3
D36: Schéma 4 | E36: Double service - 1 circuit direct | I36: 4
D37: Schéma 5 | E37: Double service - 2 circuits directs avec 2 circulateurs | I37: 5
D38: Schéma 6 | E38: Double service - 1 circuit direct et 1 circuit mélangé | I38: 6
D39: Schéma 7 | I39: 7
D40: Schéma 8 | I40: 8
D41: Schéma 9 | I41: 9
D42: Schéma 10 | I42: 10
C43: ="G2_"&Calculs!C$6 -> G2_aroTHERM Split VWL | D43: Schéma 1 | E43: Double service - 1 circuit direct | I43: 11
D44: Schéma 2 | E44: Double service - 2 circuits directs avec 2 circulateurs | I44: 12
D45: Schéma 3 | E45: Double service - 1 circuit direct et 1 circuit mélangé | I45: 13
D46: Schéma 4 | I46: 14
D47: Schéma 5 | I47: 15
D48: Schéma 6 | I48: 16
D49: Schéma 7 | I49: 17
D50: Schéma 8 | I50: 18
D51: Schéma 9 | I51: 19
D52: Schéma 10 | I52: 20
B53: =IF(ISBLANK(E53),"",B$32) -> Dénomination des schémas type | C53: ="G3_"&Calculs!C$7 -> G3_aroTHERM VWL | D53: Schéma 1 | E53: Chauffage seul - 1 circuit direct | I53: 21
B54: Dénomination des schémas type | D54: Schéma 2 | E54: Chauffage seul - 2 circuits directs avec 2 circulateurs | I54: 22
B55: Dénomination des schémas type | D55: Schéma 3 | E55: Chauffage seul - 1 circuit direct et 1 circuit mélangé | I55: 23
B56: Dénomination des schémas type | D56: Schéma 4 | E56: Double service - 1 circuit direct | I56: 24
B57: Dénomination des schémas type | D57: Schéma 5 | E57: Double service - 2 circuits directs avec 2 circulateurs | I57: 25
B58: Dénomination des schémas type | D58: Schéma 6 | E58: Double service - 1 circuit direct et 1 circuit mélangé | I58: 26
D59: Schéma 7 | I59: 27
D60: Schéma 8 | I60: 28
D61: Schéma 9 | I61: 29
D62: Schéma 10 | I62: 30
C63: ="G4_"&Calculs!C$8 -> G4_flexoTHERM exclusive air / eau | D63: Schéma 1 | E63: Double service - 1 circuit direct | I63: 31
D64: Schéma 2 | E64: Double service - 2 circuits directs avec 2 circulateurs | I64: 32
D65: Schéma 3 | E65: Double service - 1 circuit direct et 1 circuit mélangé | I65: 33
D66: Schéma 4 | I66: 34
D67: Schéma 5 | I67: 35
D68: Schéma 6 | I68: 36
D69: Schéma 7 | I69: 37
D70: Schéma 8 | I70: 38
D71: Schéma 9 | I71: 39
D72: Schéma 10 | I72: 40
B73: =IF(ISBLANK(E73),"",B$32) -> Dénomination des schémas type | C73: ="G5_"&Calculs!C$9 -> G5_flexoTHERM exclusive eau glycolée / eau | D73: Schéma 1 | E73: Hybride chaudière e-BUS - 1 circuit direct | I73: 41
B74: Dénomination des schémas type | D74: Schéma 2 | E74: Hybride chaudière e-BUS - 1 circuit mélangé | I74: 42
B75: Dénomination des schémas type | D75: Schéma 3 | E75: Hybride chaudière sol ordre par contact sec - 1 circuit mélangé | I75: 43
B76: Dénomination des schémas type | D76: Schéma 4 | E76: Hybride chaudière sol avec régulation interne - 1 circuit mélangé | I76: 44
D77: Schéma 5 | I77: 45
D78: Schéma 6 | I78: 46
D79: Schéma 7 | I79: 47
D80: Schéma 8 | I80: 48
D81: Schéma 9 | I81: 49
D82: Schéma 10 | I82: 50
B83: =IF(ISBLANK(E83),"",B$32) ->  | C83: ="G6_"&Calculs!C$10 -> G6_0 | D83: Schéma 1 | I83: 51
D84: Schéma 2 | I84: 52
D85: Schéma 3 | I85: 53
D86: Schéma 4 | I86: 54
D87: Schéma 5 | I87: 55
D88: Schéma 6 | I88: 56
D89: Schéma 7 | I89: 57
D90: Schéma 8 | I90: 58
D91: Schéma 9 | I91: 59
D92: Schéma 10 | I92: 60
C93: ="G7_"&Calculs!C$11 -> G7_0 | D93: Schéma 1 | I93: 61
D94: Schéma 2 | I94: 62
D95: Schéma 3 | I95: 63
D96: Schéma 4 | I96: 64
D97: Schéma 5 | I97: 65
D98: Schéma 6 | I98: 66
D99: Schéma 7 | I99: 67
D100: Schéma 8 | I100: 68
D101: Schéma 9 | I101: 69
D102: Schéma 10 | I102: 70
B103: =IF(ISBLANK(E103),"",B$32) ->  | C103: ="G8_"&Calculs!C$12 -> G8_0 | D103: Schéma 1 | I103: 71
D104: Schéma 2 | I104: 72
D105: Schéma 3 | I105: 73
D106: Schéma 4 | I106: 74
D107: Schéma 5 | I107: 75
D108: Schéma 6 | I108: 76
D109: Schéma 7 | I109: 77
D110: Schéma 8 | I110: 78
D111: Schéma 9 | I111: 79
D112: Schéma 10 | I112: 80
B113: =IF(ISBLANK(E113),"",B$32) ->  | C113: ="G9_"&Calculs!C$13 -> G9_0 | D113: Schéma 1 | I113: 81
D114: Schéma 2 | I114: 82
D115: Schéma 3 | I115: 83
D116: Schéma 4 | I116: 84
D117: Schéma 5 | I117: 85
D118: Schéma 6 | I118: 86
D119: Schéma 7 | I119: 87
D120: Schéma 8 | I120: 88
D121: Schéma 9 | I121: 89
D122: Schéma 10 | I122: 90
C123: ="G10_"&Calculs!C$14 -> G10_0 | D123: Schéma 1 | I123: 91
D124: Schéma 2 | I124: 92
B125: =IF(ISBLANK(E125),"",B$32) ->  | D125: Schéma 3 | I125: 93
D126: Schéma 4 | I126: 94
D127: Schéma 5 | I127: 95
D128: Schéma 6 | I128: 96
D129: Schéma 7 | I129: 97
D130: Schéma 8 | I130: 98
D131: Schéma 9 | I131: 99
D132: Schéma 10 | I132: 100
C133: ="G11_"&Calculs!C$15 -> G11_0 | D133: Schéma 1 | I133: 101
D134: Schéma 2 | I134: 102
D135: Schéma 3 | I135: 103
D136: Schéma 4 | I136: 104
D137: Schéma 5 | I137: 105
D138: Schéma 6 | I138: 106
D139: Schéma 7 | I139: 107
D140: Schéma 8 | I140: 108
D141: Schéma 9 | I141: 109
D142: Schéma 10 | I142: 110
C143: ="G12_"&Calculs!C$16 -> G12_0 | D143: Schéma 1 | I143: 111
D144: Schéma 2 | I144: 112
D145: Schéma 3 | I145: 113
D146: Schéma 4 | I146: 114
D147: Schéma 5 | I147: 115
D148: Schéma 6 | I148: 116
D149: Schéma 7 | I149: 117
D150: Schéma 8 | I150: 118
D151: Schéma 9 | I151: 119
D152: Schéma 10 | I152: 120
B154: Préciser les modes ECS possibles | D154: Chaudière seule ou électrique | E154: Ballon ECS 200 l | F154: Ballon ECS 300 l | G154: Ballon ECS 400 l | H154: Ballon ECS 500 l | I154: Ballon ECS intégré
B155: =IF(ISBLANK(#REF!),"",B$168) -> Définition des options | C155: =IF(ISBLANK(D7),"",D7) -> aroTHERM plus VWL | D155: Pas possible | E155: Possible | F155: Possible | G155: Possible | H155: Possible | I155: Possible
C156: aroTHERM Split VWL | D156: Pas possible | E156: Possible | F156: Possible | G156: Possible | H156: Possible | I156: Possible
B157: =IF(ISBLANK(#REF!),"",B$168) -> Définition des options | C157: aroTHERM VWL | D157: Pas possible | E157: Possible | F157: Possible | G157: Possible | H157: Possible | I157: Possible
C158: flexoTHERM exclusive air / eau | D158: Pas possible | E158: Possible | F158: Possible | G158: Possible | H158: Possible | I158: Possible
B159: =IF(ISBLANK(#REF!),"",B$168) -> Définition des options | C159: flexoTHERM exclusive eau glycolée / eau | D159: Pas possible | E159: Possible | F159: Possible | G159: Possible | H159: Possible | I159: Possible
B160: =IF(ISBLANK(#REF!),"",B$168) -> Définition des options
B162: =IF(ISBLANK(#REF!),"",B$168) -> Définition des options
B163: =IF(ISBLANK(#REF!),"",B$168) -> Définition des options
B164: =IF(ISBLANK(#REF!),"",B$168) -> Définition des options
B165: =IF(ISBLANK(#REF!),"",B$168) -> Définition des options
B166: =IF(ISBLANK(#REF!),"",B$168) -> Définition des options
B168: Définition des options | E168: Nom | F168: Valeur 1 | G168: Valeur 2 | H168: Valeur 3 | I168: Valeur 4 | J168: Valeur 5
C169: =C33 -> G1_aroTHERM plus VWL | D169: Variante 1 | E169: Régulation : | F169: sensoCOMFORT VRC 720 (filaire) | G169: sensoCOMFORT VRC 720f (radio) | H169: =IF(_xlfn.NUMBERVALUE(Calculs!$C$2173)>1,"","multiMATIC VRC 700 (filaire)") -> multiMATIC VRC 700 (filaire)
D170: Variante 2 | E170: Connectivité : | F170: myVAILLANT connect | G170: Sans
D171: Variante 3
D172: Variante 4 | E172: Découplage glycol : | F172: Avec échangeur | G172: Pas de découplage
D173: Variante 5 | E173: Supports unité extérieure : | F173: Plots anti-vibratiles en caoutchouc (x4) | G173: Support anti-vibratiles 60 cm (x2) | H173: =IF(Calculs!$G$1456=FALSE,"Support mural pour mur isolé (PAC < 10 kW)","") ->  | I173: =IF(Calculs!$G$1456=FALSE,"Support mural standard (PAC < 10 kW)","") ->  | J173: Réhausse anti-neige (40 centimètres)
C174: =C43 -> G2_aroTHERM Split VWL | D174: Variante 1 | E174: Régulation : | F174: sensoCOMFORT VRC 720 (filaire) | G174: sensoCOMFORT VRC 720f (radio) | H174: =IF(_xlfn.NUMBERVALUE(Calculs!$C$2173)>1,"","multiMATIC VRC 700 (filaire)") -> multiMATIC VRC 700 (filaire)
D175: Variante 2 | E175: Connectivité : | F175: myVAILLANT connect | G175: Sans
D176: Variante 3
D177: Variante 4 | E177: Découplage glycol :
D178: Variante 5 | E178: Supports unité extérieure : | F178: Plots anti-vibratiles en caoutchouc (x4) | G178: Support anti-vibratiles 60 cm (x2) | H178: =IF(Calculs!$G$1456=FALSE,"Support mural pour mur isolé (PAC < 10 kW)","") ->  | I178: =IF(Calculs!$G$1456=FALSE,"Support mural standard (PAC < 10 kW)","") ->  | J178: Réhausse anti-neige (40 centimètres)
B179: =IF(ISBLANK(E179),"",B$168) -> Définition des options | C179: =C53 -> G3_aroTHERM VWL | D179: Variante 1 | E179: Régulation : | F179: sensoCOMFORT VRC 720 (filaire) | G179: sensoCOMFORT VRC 720f (radio) | H179: =IF(_xlfn.NUMBERVALUE(Calculs!$C$2173)>1,"","multiMATIC VRC 700 (filaire)") -> multiMATIC VRC 700 (filaire)
B180: Définition des options | D180: Variante 2 | E180: Connectivité : | F180: myVAILLANT connect | G180: Sans
D181: Variante 3
B182: Définition des options | D182: Variante 4 | E182: Découplage glycol : | F182: Avec échangeur | G182: Pas de découplage
B183: Définition des options | D183: Variante 5 | E183: Supports unité extérieure : | F183: Plots anti-vibratiles en caoutchouc (x4) | G183: Support anti-vibratiles 60 cm (x2) | H183: =IF(Calculs!$G$1456=FALSE,"Support mural pour mur isolé (PAC < 10 kW)","") ->  | I183: =IF(Calculs!$G$1456=FALSE,"Support mural standard (PAC < 10 kW)","") ->  | J183: Réhausse anti-neige (40 centimètres)
C184: =C63 -> G4_flexoTHERM exclusive air / eau | D184: Variante 1 | E184: Régulation : | F184: sensoCOMFORT VRC 720 (filaire) | G184: sensoCOMFORT VRC 720f (radio) | H184: =IF(_xlfn.NUMBERVALUE(Calculs!$C$2173)>1,"","multiMATIC VRC 700 (filaire)") -> multiMATIC VRC 700 (filaire)
D185: Variante 2 | E185: Connectivité : | F185: myVAILLANT connect | G185: Sans
D186: Variante 3
D187: Variante 4 | E187: Raccordements : | F187: Verticaux | G187: Horizontaux
D188: Variante 5
B189: Définition des options | C189: =C73 -> G5_flexoTHERM exclusive eau glycolée / eau | D189: Variante 1 | E189: Régulation : | F189: sensoCOMFORT VRC 720 (filaire) | G189: sensoCOMFORT VRC 720f (radio) | H189: =IF(_xlfn.NUMBERVALUE(Calculs!$C$2173)>1,"","multiMATIC VRC 700 (filaire)") -> multiMATIC VRC 700 (filaire)
B190: Définition des options | D190: Variante 2 | E190: Connectivité : | F190: myVAILLANT connect | G190: Sans
B191: Définition des options | D191: Variante 3 | E191: source d'énergie sur | F191: air | G191: captage horizontal | H191: captage vertical | I191: eau de nappe
B192: Définition des options | D192: Variante 4 | E192: Raccordements : | F192: Verticaux | G192: Horizontaux | H192: Kit d'installation complet pour passive cooling
B193: Définition des options | D193: Variante 5 | E193: Passive cooling : | F193: Oui | G193: Non
B194: =IF(ISBLANK(E194),"",B$168) ->  | C194: =C83 -> G6_0 | D194: Variante 1
B195: =IF(ISBLANK(E195),"",B$168) ->  | D195: Variante 2
B196: =IF(ISBLANK(E196),"",B$168) ->  | D196: Variante 3
B197: =IF(ISBLANK(E197),"",B$168) ->  | D197: Variante 4
B198: =IF(ISBLANK(E198),"",B$168) ->  | D198: Variante 5
C199: =C93 -> G7_0 | D199: Variante 1
D200: Variante 2
D201: Variante 3
D202: Variante 4
D203: Variante 5
... 83 more rows

Sheet BDD_PAC (hidden)
B1: Logiciel PAC_2020 v2
B2: Vers page PRINCIPALE | D2: =Calculs!B135 -> Base de données PAC de la marque Vaillant | S2: Vers PARAMETRAGE
B3: 2022-08-02
C4: Visualisation des performances de la PAC :
C5: flexoTHERM exclusive - 5 kW - 230V
C6: =Calculs!O348 -> 
E15: Appoint Interne
B16: Nom | C16: Source froide | D16: Mono / Tri | E16: Type | F16: Puissance | G16: Régul | J16: Pc | N16: COP | R16: T°dep max | W16: Utiliser le tableau complet
B18: flexoTHERM exclusive - 5 kW - 230V | C18: Eau glycolée/Eau | D18: Mono | E18: Electrique | F18: 5.5 | G18: TOR | I18: =Calculs!I137 -> Tglyc -> | J18: 0 | K18: 10 | N18: =IF(ISBLANK(J18),"",J18) -> 0 | O18: 10 | R18: =IF(ISBLANK(N18),"",N18) -> 0 | S18: 10 | T18: =IF(ISBLANK(P18),"",P18) ->  | U18: =IF(ISBLANK(Q18),"",Q18) ->  | V18: =Calculs!V137 ->  | W18: TRUE
B19: =IF(ISBLANK(B18),"",B18) -> flexoTHERM exclusive - 5 kW - 230V | C19: Eau glycolée/Eau | D19: Mono | E19: Electrique | F19: 5.5 | G19: TOR | H19: Td | I19: 35 | J19: 5.4 | K19: 6.2 | L19: 5.4 | M19: 5.9 | N19: 4.2 | O19: 4.9 | R19: 60 | S19: 60
B20: =IF(ISBLANK(B19),"",B19) -> flexoTHERM exclusive - 5 kW - 230V | C20: =IF(ISBLANK(C18),"",C18) -> Eau glycolée/Eau | D20: =IF(ISBLANK(D18),"",D18) -> Mono | E20: =IF(ISBLANK(E18),"",E18) -> Electrique | F20: =IF(ISBLANK(F18),"",F18) -> 5.5 | G20: =IF(ISBLANK(G18),"",G18) -> TOR | I20: 55 | J20: 5.4 | K20: 6.4 | L20: 5.4 | M20: 6.6 | N20: 2.8 | O20: 3.3 | R20: 60 | S20: 60
B21: flexoTHERM exclusive - 8 kW - 230V | C21: Eau glycolée/Eau | D21: Mono | E21: Electrique | F21: 5.5 | G21: TOR | I21: =Calculs!I140 -> Tglyc -> | J21: 0 | K21: 10.1 | N21: =IF(ISBLANK(J21),"",J21) -> 0 | O21: 10.1 | P21: =IF(ISBLANK(L21),"",L21) ->  | R21: 0 | S21: 10.1 | V21: =Calculs!V140 ->  | W21: TRUE
B22: =IF(ISBLANK(B21),"",B21) -> flexoTHERM exclusive - 8 kW - 230V | C22: Eau glycolée/Eau | D22: Mono | E22: Electrique | F22: 5.5 | G22: TOR | H22: Td | I22: 35 | J22: 8.4 | K22: 9.9 | N22: 4.1 | O22: 4.8 | R22: 60 | S22: 60
B23: =IF(ISBLANK(B22),"",B22) -> flexoTHERM exclusive - 8 kW - 230V | C23: =IF(ISBLANK(C21),"",C21) -> Eau glycolée/Eau | D23: =IF(ISBLANK(D21),"",D21) -> Mono | E23: =IF(ISBLANK(E21),"",E21) -> Electrique | F23: =IF(ISBLANK(F21),"",F21) -> 5.5 | G23: =IF(ISBLANK(G21),"",G21) -> TOR | I23: 55 | J23: 8.7 | K23: 10.7 | N23: 2.9 | O23: 3.3
B24: flexoTHERM exclusive - 11 kW - 230V | C24: Eau glycolée/Eau | D24: Mono | E24: Electrique | F24: 5.5 | G24: TOR | I24: =Calculs!I143 -> Tglyc -> | J24: 0 | K24: 10.1 | N24: =IF(ISBLANK(J24),"",J24) -> 0 | O24: 10.1 | P24: =IF(ISBLANK(L24),"",L24) ->  | R24: 0 | S24: 10.1 | V24: =Calculs!V143 ->  | W24: TRUE
B25: =IF(ISBLANK(B24),"",B24) -> flexoTHERM exclusive - 11 kW - 230V | C25: Eau glycolée/Eau | D25: Mono | E25: Electrique | F25: 5.5 | G25: TOR | H25: Td | I25: 35 | J25: 11.5 | K25: 13.7 | N25: 4.4 | O25: 5.6 | R25: 60 | S25: 60
B26: =IF(ISBLANK(B25),"",B25) -> flexoTHERM exclusive - 11 kW - 230V | C26: =IF(ISBLANK(C24),"",C24) -> Eau glycolée/Eau | D26: =IF(ISBLANK(D24),"",D24) -> Mono | E26: =IF(ISBLANK(E24),"",E24) -> Electrique | F26: =IF(ISBLANK(F24),"",F24) -> 5.5 | G26: =IF(ISBLANK(G24),"",G24) -> TOR | I26: 55 | J26: 11.7 | K26: 14.2 | N26: 3 | O26: 3.7
B27: flexoTHERM exclusive - 5 kW - 3x400 V | C27: Eau glycolée/Eau | D27: Tri | E27: Electrique | F27: 9 | G27: TOR | I27: =Calculs!I146 -> Tglyc -> | J27: 0 | K27: 10.1 | N27: =IF(ISBLANK(J27),"",J27) -> 0 | O27: 10.1 | P27: =IF(ISBLANK(L27),"",L27) ->  | R27: 0 | S27: 10.1 | V27: =Calculs!V146 ->  | W27: TRUE
B28: =IF(ISBLANK(B27),"",B27) -> flexoTHERM exclusive - 5 kW - 3x400 V | C28: Eau glycolée/Eau | D28: Tri | E28: Electrique | F28: 9 | G28: TOR | H28: Td | I28: 35 | J28: 5.3 | K28: 6.6 | N28: 4.4 | O28: 5.4 | R28: 60 | S28: 60
B29: =IF(ISBLANK(B28),"",B28) -> flexoTHERM exclusive - 5 kW - 3x400 V | C29: =IF(ISBLANK(C27),"",C27) -> Eau glycolée/Eau | D29: =IF(ISBLANK(D27),"",D27) -> Tri | E29: =IF(ISBLANK(E27),"",E27) -> Electrique | F29: =IF(ISBLANK(F27),"",F27) -> 9 | G29: =IF(ISBLANK(G27),"",G27) -> TOR | I29: 55 | J29: 5.4 | K29: 6.5 | N29: 2.9 | O29: 3.5
B30: flexoTHERM exclusive - 8 kW - 3x400 V | C30: Eau glycolée/Eau | D30: Tri | E30: Electrique | F30: 9 | G30: TOR | I30: =Calculs!I149 -> Tglyc -> | J30: 0 | K30: 10.1 | N30: =IF(ISBLANK(J30),"",J30) -> 0 | O30: 10.1 | P30: =IF(ISBLANK(L30),"",L30) ->  | R30: 0 | S30: 10.1 | V30: =Calculs!V149 ->  | W30: TRUE
B31: =IF(ISBLANK(B30),"",B30) -> flexoTHERM exclusive - 8 kW - 3x400 V | C31: Eau glycolée/Eau | D31: Tri | E31: Electrique | F31: 9 | G31: TOR | H31: Td | I31: 35 | J31: 8.9 | K31: 10.5 | N31: 4.8 | O31: 5.7 | R31: 60 | S31: 60
B32: =IF(ISBLANK(B31),"",B31) -> flexoTHERM exclusive - 8 kW - 3x400 V | C32: =IF(ISBLANK(C30),"",C30) -> Eau glycolée/Eau | D32: =IF(ISBLANK(D30),"",D30) -> Tri | E32: =IF(ISBLANK(E30),"",E30) -> Electrique | F32: =IF(ISBLANK(F30),"",F30) -> 9 | G32: =IF(ISBLANK(G30),"",G30) -> TOR | I32: 55 | J32: 9 | K32: 10.8 | N32: 3.2 | O32: 3.8
B33: flexoTHERM exclusive - 11 kW - 3x400 V | C33: Eau glycolée/Eau | D33: Tri | E33: Electrique | F33: 9 | G33: TOR | I33: =Calculs!I152 -> Tglyc -> | J33: 0 | K33: 10.1 | N33: =IF(ISBLANK(J33),"",J33) -> 0 | O33: 10.1 | P33: =IF(ISBLANK(L33),"",L33) ->  | R33: 0 | S33: 10.1 | V33: =Calculs!V152 ->  | W33: TRUE
B34: =IF(ISBLANK(B33),"",B33) -> flexoTHERM exclusive - 11 kW - 3x400 V | C34: Eau glycolée/Eau | D34: Tri | E34: Electrique | F34: 9 | G34: TOR | H34: Td | I34: 35 | J34: 11.2 | K34: 13.7 | N34: 4.8 | O34: 6 | R34: 60 | S34: 60
B35: =IF(ISBLANK(B34),"",B34) -> flexoTHERM exclusive - 11 kW - 3x400 V | C35: =IF(ISBLANK(C33),"",C33) -> Eau glycolée/Eau | D35: =IF(ISBLANK(D33),"",D33) -> Tri | E35: =IF(ISBLANK(E33),"",E33) -> Electrique | F35: =IF(ISBLANK(F33),"",F33) -> 9 | G35: =IF(ISBLANK(G33),"",G33) -> TOR | I35: 55 | J35: 11.4 | K35: 14.2 | N35: 3.1 | O35: 3.9
B36: flexoTHERM exclusive - 15 kW - 3x400 V | C36: Eau glycolée/Eau | D36: Tri | E36: Electrique | F36: 9 | G36: TOR | I36: =Calculs!I155 -> Tglyc -> | J36: 0 | K36: 10.1 | N36: =IF(ISBLANK(J36),"",J36) -> 0 | O36: 10.1 | P36: =IF(ISBLANK(L36),"",L36) ->  | R36: 0 | S36: 10.1 | V36: =Calculs!V155 ->  | W36: TRUE
B37: =IF(ISBLANK(B36),"",B36) -> flexoTHERM exclusive - 15 kW - 3x400 V | C37: Eau glycolée/Eau | D37: Tri | E37: Electrique | F37: 9 | G37: TOR | H37: Td | I37: 35 | J37: 14.5 | K37: 17.7 | N37: 4.7 | O37: 6 | R37: 60 | S37: 60
B38: =IF(ISBLANK(B37),"",B37) -> flexoTHERM exclusive - 15 kW - 3x400 V | C38: =IF(ISBLANK(C36),"",C36) -> Eau glycolée/Eau | D38: =IF(ISBLANK(D36),"",D36) -> Tri | E38: =IF(ISBLANK(E36),"",E36) -> Electrique | F38: =IF(ISBLANK(F36),"",F36) -> 9 | G38: =IF(ISBLANK(G36),"",G36) -> TOR | I38: 55 | J38: 14.7 | K38: 17.9 | N38: 3.1 | O38: 3.9
B39: flexoTHERM exclusive - 19 kW - 3x400 V | C39: Eau glycolée/Eau | D39: Tri | E39: Electrique | F39: 9 | G39: TOR | I39: =Calculs!I158 -> Tglyc -> | J39: 0 | K39: 10.1 | N39: =IF(ISBLANK(J39),"",J39) -> 0 | O39: 10.1 | P39: =IF(ISBLANK(L39),"",L39) ->  | R39: 0 | S39: 10.1 | V39: =Calculs!V158 ->  | W39: TRUE
B40: =IF(ISBLANK(B39),"",B39) -> flexoTHERM exclusive - 19 kW - 3x400 V | C40: Eau glycolée/Eau | D40: Tri | E40: Electrique | F40: 9 | G40: TOR | H40: Td | I40: 35 | J40: 19.7 | K40: 24.2 | N40: 4.5 | O40: 5.6 | R40: 60 | S40: 60
B41: =IF(ISBLANK(B40),"",B40) -> flexoTHERM exclusive - 19 kW - 3x400 V | C41: =IF(ISBLANK(C39),"",C39) -> Eau glycolée/Eau | D41: =IF(ISBLANK(D39),"",D39) -> Tri | E41: =IF(ISBLANK(E39),"",E39) -> Electrique | F41: =IF(ISBLANK(F39),"",F39) -> 9 | G41: =IF(ISBLANK(G39),"",G39) -> TOR | I41: 55 | J41: 20 | K41: 24.8 | N41: 3.2 | O41: 3.9
B42: flexoTHERM exclusive VWF 57/4-5 - 400V + aroCOLLECT | C42: Air/Eau | D42: Tri | E42: Electrique | F42: 9 | G42: TOR | I42: =Calculs!I161 -> Text -> | J42: -15 | K42: -7 | L42: 7 | M42: 12 | N42: =IF(ISBLANK(J42),"",J42) -> -15 | O42: -7 | P42: 7 | Q42: 12 | R42: -15 | S42: -7 | T42: 7 | U42: 12 | V42: =Calculs!V161 ->  | W42: TRUE
B43: =IF(ISBLANK(B42),"",B42) -> flexoTHERM exclusive VWF 57/4-5 - 400V + aroCOLLECT | C43: Air/Eau | D43: Tri | E43: Electrique | F43: 9 | G43: TOR | H43: Td | I43: 35 | J43: 3.2 | K43: 4.4 | L43: 6.2 | M43: 6.7 | N43: 2.2 | O43: 3 | P43: 4.4 | Q43: 5.4 | R43: 50 | S43: 60 | T43: 65 | U43: 65
B44: =IF(ISBLANK(B43),"",B43) -> flexoTHERM exclusive VWF 57/4-5 - 400V + aroCOLLECT | C44: =IF(ISBLANK(C42),"",C42) -> Air/Eau | D44: =IF(ISBLANK(D42),"",D42) -> Tri | E44: =IF(ISBLANK(E42),"",E42) -> Electrique | F44: =IF(ISBLANK(F42),"",F42) -> 9 | G44: =IF(ISBLANK(G42),"",G42) -> TOR | I44: 55 | J44: 3.8 | K44: 4.6 | L44: 6.1 | M44: 6.6 | N44: 1.9 | O44: 2.3 | P44: 3.1 | Q44: 3.7
B45: flexoTHERM exclusive VWF 87/4-5 - 400V + aroCOLLECT | C45: Air/Eau | D45: Tri | E45: Electrique | F45: 9 | G45: TOR | I45: =Calculs!I164 -> Text -> | J45: -15 | K45: -7 | L45: 7 | M45: 12 | N45: =IF(ISBLANK(J45),"",J45) -> -15 | O45: -7 | P45: 7 | Q45: 12 | R45: -15 | S45: -7 | T45: 7 | U45: 12 | V45: =Calculs!V164 ->  | W45: TRUE
B46: =IF(ISBLANK(B45),"",B45) -> flexoTHERM exclusive VWF 87/4-5 - 400V + aroCOLLECT | C46: Air/Eau | D46: Tri | E46: Electrique | F46: 9 | G46: TOR | H46: Td | I46: 35 | J46: 5 | K46: 6.5 | L46: 8.8 | M46: 9.3 | N46: 2.5 | O46: 3.1 | P46: 4.4 | Q46: 5.3 | R46: 50 | S46: 60 | T46: 65 | U46: 65
B47: =IF(ISBLANK(B46),"",B46) -> flexoTHERM exclusive VWF 87/4-5 - 400V + aroCOLLECT | C47: =IF(ISBLANK(C45),"",C45) -> Air/Eau | D47: =IF(ISBLANK(D45),"",D45) -> Tri | E47: =IF(ISBLANK(E45),"",E45) -> Electrique | F47: =IF(ISBLANK(F45),"",F45) -> 9 | G47: =IF(ISBLANK(G45),"",G45) -> TOR | I47: 55 | J47: 6.1 | K47: 6.9 | L47: 9.5 | M47: 10 | N47: 2 | O47: 2.3 | P47: 3.2 | Q47: 3.7
B48: flexoTHERM exclusive VWF 117/4-5 - 400V + aroCOLLECT | C48: Air/Eau | D48: Tri | E48: Electrique | F48: 9 | G48: TOR | I48: =Calculs!I167 -> Text -> | J48: -15 | K48: -7 | L48: 7 | M48: 12 | N48: =IF(ISBLANK(J48),"",J48) -> -15 | O48: -7 | P48: 7 | Q48: 12 | R48: -15 | S48: -7 | T48: 7 | U48: 12 | V48: =Calculs!V167 ->  | W48: TRUE
B49: =IF(ISBLANK(B48),"",B48) -> flexoTHERM exclusive VWF 117/4-5 - 400V + aroCOLLECT | C49: Air/Eau | D49: Tri | E49: Electrique | F49: 9 | G49: TOR | H49: Td | I49: 35 | J49: 6.9 | K49: 8.4 | L49: 11.5 | M49: 12.6 | N49: 2.4 | O49: 2.9 | P49: 4.4 | Q49: 5.6 | R49: 50 | S49: 60 | T49: 65 | U49: 65
B50: =IF(ISBLANK(B49),"",B49) -> flexoTHERM exclusive VWF 117/4-5 - 400V + aroCOLLECT | C50: =IF(ISBLANK(C48),"",C48) -> Air/Eau | D50: =IF(ISBLANK(D48),"",D48) -> Tri | E50: =IF(ISBLANK(E48),"",E48) -> Electrique | F50: =IF(ISBLANK(F48),"",F48) -> 9 | G50: =IF(ISBLANK(G48),"",G48) -> TOR | I50: 55 | J50: 7.9 | K50: 9.1 | L50: 12.2 | M50: 12.9 | N50: 1.8 | O50: 2.2 | P50: 3.1 | Q50: 3.6
B51: flexoTHERM exclusive VWF 157/4-5 - 400V + aroCOLLECT | C51: Air/Eau | D51: Tri | E51: Electrique | F51: 9 | G51: TOR | I51: =Calculs!I170 -> Text -> | J51: -15 | K51: -7 | L51: 7 | M51: 12 | N51: =IF(ISBLANK(J51),"",J51) -> -15 | O51: -7 | P51: 7 | Q51: 12 | R51: -15 | S51: -7 | T51: 7 | U51: 12 | V51: =Calculs!V170 ->  | W51: TRUE
B52: =IF(ISBLANK(B51),"",B51) -> flexoTHERM exclusive VWF 157/4-5 - 400V + aroCOLLECT | C52: Air/Eau | D52: Tri | E52: Electrique | F52: 9 | G52: TOR | H52: Td | I52: 35 | J52: 9.5 | K52: 11.2 | L52: 15.3 | M52: 16.6 | N52: 2.6 | O52: 3.2 | P52: 4.6 | Q52: 5.6 | R52: 50 | S52: 60 | T52: 65 | U52: 65
B53: =IF(ISBLANK(B52),"",B52) -> flexoTHERM exclusive VWF 157/4-5 - 400V + aroCOLLECT | C53: =IF(ISBLANK(C51),"",C51) -> Air/Eau | D53: =IF(ISBLANK(D51),"",D51) -> Tri | E53: =IF(ISBLANK(E51),"",E51) -> Electrique | F53: =IF(ISBLANK(F51),"",F51) -> 9 | G53: =IF(ISBLANK(G51),"",G51) -> TOR | I53: 55 | J53: 9.9 | K53: 11.6 | L53: 16 | M53: 16.7 | N53: 1.9 | O53: 2.3 | P53: 3.2 | Q53: 3.7
B54: flexoTHERM exclusive VWF 197/4-5 - 400V + aroCOLLECT | C54: Air/Eau | D54: Tri | E54: Electrique | F54: 9 | G54: TOR | I54: =Calculs!I173 -> Text -> | J54: -15 | K54: -7 | L54: 7 | M54: 12 | N54: =IF(ISBLANK(J54),"",J54) -> -15 | O54: -7 | P54: 7 | Q54: 12 | R54: -15 | S54: -7 | T54: 7 | U54: 12 | V54: =Calculs!V173 ->  | W54: TRUE
B55: =IF(ISBLANK(B54),"",B54) -> flexoTHERM exclusive VWF 197/4-5 - 400V + aroCOLLECT | C55: Air/Eau | D55: Tri | E55: Electrique | F55: 9 | G55: TOR | H55: Td | I55: 35 | J55: 11.3 | K55: 14.6 | L55: 19.8 | M55: 22 | N55: 2.4 | O55: 3 | P55: 4.3 | Q55: 5.6 | R55: 50 | S55: 60 | T55: 65 | U55: 65
B56: =IF(ISBLANK(B55),"",B55) -> flexoTHERM exclusive VWF 197/4-5 - 400V + aroCOLLECT | C56: =IF(ISBLANK(C54),"",C54) -> Air/Eau | D56: =IF(ISBLANK(D54),"",D54) -> Tri | E56: =IF(ISBLANK(E54),"",E54) -> Electrique | F56: =IF(ISBLANK(F54),"",F54) -> 9 | G56: =IF(ISBLANK(G54),"",G54) -> TOR | I56: 55 | J56: 13.2 | K56: 15.8 | L56: 20.9 | M56: 22.3 | N56: 1.8 | O56: 2.3 | P56: 3.1 | Q56: 3.7
B57: flexoCOMPACT exclusive - 5 kW - 230V | C57: Eau glycolée/Eau | D57: Mono | E57: Electrique | F57: 5.5 | G57: TOR | I57: =Calculs!I176 -> Tglyc -> | J57: -5 | K57: 10 | N57: =IF(ISBLANK(J57),"",J57) -> -5 | O57: 10 | R57: -5 | S57: 10 | V57: =Calculs!V176 ->  | W57: TRUE
B58: =IF(ISBLANK(B57),"",B57) -> flexoCOMPACT exclusive - 5 kW - 230V | C58: Eau glycolée/Eau | D58: Mono | E58: Electrique | F58: 5.5 | G58: TOR | H58: Td | I58: 35 | J58: 4.8 | K58: 6.6 | N58: 4.2 | O58: 5.3 | R58: 60 | S58: 60
B59: =IF(ISBLANK(B58),"",B58) -> flexoCOMPACT exclusive - 5 kW - 230V | C59: =IF(ISBLANK(C57),"",C57) -> Eau glycolée/Eau | D59: =IF(ISBLANK(D57),"",D57) -> Mono | E59: =IF(ISBLANK(E57),"",E57) -> Electrique | F59: =IF(ISBLANK(F57),"",F57) -> 5.5 | G59: =IF(ISBLANK(G57),"",G57) -> TOR | I59: 55 | J59: 4.9 | K59: 6.5 | N59: 2.7 | O59: 3.3
B60: flexoCOMPACT exclusive - 8 kW - 230V | C60: Eau glycolée/Eau | D60: Mono | E60: Electrique | F60: 5.5 | G60: TOR | I60: =Calculs!I179 -> Tglyc -> | J60: -5 | K60: 10 | N60: =IF(ISBLANK(J60),"",J60) -> -5 | O60: 10 | R60: -5 | S60: 10 | V60: =Calculs!V179 ->  | W60: TRUE
B61: =IF(ISBLANK(B60),"",B60) -> flexoCOMPACT exclusive - 8 kW - 230V | C61: Eau glycolée/Eau | D61: Mono | E61: Electrique | F61: 5.5 | G61: TOR | H61: Td | I61: 35 | J61: 7.9 | K61: 10.5 | N61: 4.2 | O61: 5.4 | R61: 60 | S61: 60
B62: =IF(ISBLANK(B61),"",B61) -> flexoCOMPACT exclusive - 8 kW - 230V | C62: =IF(ISBLANK(C60),"",C60) -> Eau glycolée/Eau | D62: =IF(ISBLANK(D60),"",D60) -> Mono | E62: =IF(ISBLANK(E60),"",E60) -> Electrique | F62: =IF(ISBLANK(F60),"",F60) -> 5.5 | G62: =IF(ISBLANK(G60),"",G60) -> TOR | I62: 55 | J62: 8.1 | K62: 10.8 | N62: 2.7 | O62: 6.6
B63: flexoCOMPACT exclusive - 11 kW - 230V | C63: Eau glycolée/Eau | D63: Mono | E63: Electrique | F63: 5.5 | G63: TOR | I63: =Calculs!I182 -> Tglyc -> | J63: -5 | K63: 10 | N63: =IF(ISBLANK(J63),"",J63) -> -5 | O63: 10 | R63: -5 | S63: 10 | V63: =Calculs!V182 ->  | W63: TRUE
B64: =IF(ISBLANK(B63),"",B63) -> flexoCOMPACT exclusive - 11 kW - 230V | C64: Eau glycolée/Eau | D64: Mono | E64: Electrique | F64: 5.5 | G64: TOR | H64: Td | I64: 35 | J64: 9.9 | K64: 13.7 | N64: 4 | O64: 6.2 | R64: 60 | S64: 60
B65: =IF(ISBLANK(B64),"",B64) -> flexoCOMPACT exclusive - 11 kW - 230V | C65: =IF(ISBLANK(C63),"",C63) -> Eau glycolée/Eau | D65: =IF(ISBLANK(D63),"",D63) -> Mono | E65: =IF(ISBLANK(E63),"",E63) -> Electrique | F65: =IF(ISBLANK(F63),"",F63) -> 5.5 | G65: =IF(ISBLANK(G63),"",G63) -> TOR | I65: 55 | J65: 10 | K65: 14.2 | N65: 2.5 | O65: 3.7
B66: flexoCOMPACT exclusive - 5 kW - 3x400 V | C66: Eau glycolée/Eau | D66: Tri | E66: Electrique | F66: 9 | G66: TOR | I66: =Calculs!I185 -> Tglyc -> | J66: -5 | K66: 10 | N66: =IF(ISBLANK(J66),"",J66) -> -5 | O66: 10 | R66: -5 | S66: 10 | V66: =Calculs!V185 ->  | W66: TRUE
B67: =IF(ISBLANK(B66),"",B66) -> flexoCOMPACT exclusive - 5 kW - 3x400 V | C67: Eau glycolée/Eau | D67: Tri | E67: Electrique | F67: 9 | G67: TOR | H67: Td | I67: 35 | J67: 4.8 | K67: 6.6 | N67: 4.2 | O67: 5.3 | R67: 60 | S67: 60
B68: =IF(ISBLANK(B67),"",B67) -> flexoCOMPACT exclusive - 5 kW - 3x400 V | C68: =IF(ISBLANK(C66),"",C66) -> Eau glycolée/Eau | D68: =IF(ISBLANK(D66),"",D66) -> Tri | E68: =IF(ISBLANK(E66),"",E66) -> Electrique | F68: =IF(ISBLANK(F66),"",F66) -> 9 | G68: =IF(ISBLANK(G66),"",G66) -> TOR | I68: 55 | J68: 4.9 | K68: 6.5 | N68: 2.7 | O68: 3.3
B69: flexoCOMPACT exclusive - 8 kW - 3x400 V | C69: Eau glycolée/Eau | D69: Tri | E69: Electrique | F69: 9 | G69: TOR | I69: =Calculs!I188 -> Tglyc -> | J69: -5 | K69: 10 | N69: =IF(ISBLANK(J69),"",J69) -> -5 | O69: 10 | R69: -5 | S69: 10 | V69: =Calculs!V188 ->  | W69: TRUE
B70: =IF(ISBLANK(B69),"",B69) -> flexoCOMPACT exclusive - 8 kW - 3x400 V | C70: Eau glycolée/Eau | D70: Tri | E70: Electrique | F70: 9 | G70: TOR | H70: Td | I70: 35 | J70: 7.9 | K70: 10.5 | N70: 4.2 | O70: 5.4 | R70: 60 | S70: 60
B71: =IF(ISBLANK(B70),"",B70) -> flexoCOMPACT exclusive - 8 kW - 3x400 V | C71: =IF(ISBLANK(C69),"",C69) -> Eau glycolée/Eau | D71: =IF(ISBLANK(D69),"",D69) -> Tri | E71: =IF(ISBLANK(E69),"",E69) -> Electrique | F71: =IF(ISBLANK(F69),"",F69) -> 9 | G71: =IF(ISBLANK(G69),"",G69) -> TOR | I71: 55 | J71: 8.1 | K71: 10.8 | N71: 2.7 | O71: 6.6
B72: flexoCOMPACT exclusive - 11 kW - 3x400 V | C72: Eau glycolée/Eau | D72: Tri | E72: Electrique | F72: 9 | G72: TOR | I72: =Calculs!I191 -> Tglyc -> | J72: -5 | K72: 10 | N72: =IF(ISBLANK(J72),"",J72) -> -5 | O72: 10 | R72: -5 | S72: 10 | V72: =Calculs!V191 ->  | W72: TRUE
B73: =IF(ISBLANK(B72),"",B72) -> flexoCOMPACT exclusive - 11 kW - 3x400 V | C73: Eau glycolée/Eau | D73: Tri | E73: Electrique | F73: 9 | G73: TOR | H73: Td | I73: 35 | J73: 9.9 | K73: 13.7 | N73: 4 | O73: 6.2 | R73: 60 | S73: 60
B74: =IF(ISBLANK(B73),"",B73) -> flexoCOMPACT exclusive - 11 kW - 3x400 V | C74: =IF(ISBLANK(C72),"",C72) -> Eau glycolée/Eau | D74: =IF(ISBLANK(D72),"",D72) -> Tri | E74: =IF(ISBLANK(E72),"",E72) -> Electrique | F74: =IF(ISBLANK(F72),"",F72) -> 9 | G74: =IF(ISBLANK(G72),"",G72) -> TOR | I74: 55 | J74: 10 | K74: 14.2 | N74: 2.5 | O74: 3.7
B75: FlexoCOMPACT exclusive VWF 58/4-5 - 400V + aroCOLLEC | C75: Air/Eau | D75: Tri | E75: Electrique | F75: 9 | G75: TOR | I75: =Calculs!I194 -> Text -> | J75: -15 | K75: -7 | L75: 7 | M75: 20 | N75: =IF(ISBLANK(J75),"",J75) -> -15 | O75: -7 | P75: 7 | Q75: 20 | R75: -15 | S75: -7 | T75: 7 | U75: 20 | V75: =Calculs!V194 ->  | W75: TRUE
B76: FlexoCOMPACT exclusive VWF 58/4-5 - 400V + aroCOLLEC | C76: =IF(ISBLANK(C75),"",C75) -> Air/Eau | D76: =IF(ISBLANK(D75),"",D75) -> Tri | E76: =IF(ISBLANK(E75),"",E75) -> Electrique | F76: =IF(ISBLANK(F75),"",F75) -> 9 | G76: =IF(ISBLANK(G75),"",G75) -> TOR | H76: Td | I76: 35 | J76: 3.1 | K76: 4.2 | L76: 6.2 | M76: 7.6 | N76: 2.2 | O76: 3 | P76: 4.4 | Q76: 5.4 | R76: 55 | S76: 65 | T76: 65 | U76: 65
B77: FlexoCOMPACT exclusive VWF 58/4-5 - 400V + aroCOLLEC | C77: =IF(ISBLANK(C75),"",C75) -> Air/Eau | D77: =IF(ISBLANK(D75),"",D75) -> Tri | E77: =IF(ISBLANK(E75),"",E75) -> Electrique | F77: =IF(ISBLANK(F75),"",F75) -> 9 | G77: =IF(ISBLANK(G75),"",G75) -> TOR | I77: 55 | J77: 3.8 | K77: 4.6 | L77: 6.1 | M77: 7.3 | N77: 1.9 | O77: 2.3 | P77: 3.1 | Q77: 3.7
B78: FlexoCOMPACT exclusive VWF 88/4-5 - 400V + aroCOLLECT | C78: Air/Eau | D78: Tri | E78: Electrique | F78: 9 | G78: TOR | I78: =Calculs!I197 -> Text -> | J78: -15 | K78: -7 | L78: 7 | M78: 20 | N78: =IF(ISBLANK(J78),"",J78) -> -15 | O78: -7 | P78: 7 | Q78: 20 | R78: -15 | S78: -7 | T78: 7 | U78: 20 | V78: =Calculs!V197 ->  | W78: TRUE
B79: =IF(ISBLANK(B78),"",B78) -> FlexoCOMPACT exclusive VWF 88/4-5 - 400V + aroCOLLECT | C79: Air/Eau | D79: Tri | E79: Electrique | F79: 9 | G79: TOR | H79: Td | I79: 35 | J79: 5 | K79: 6.5 | L79: 8.8 | M79: 10.5 | N79: 2.5 | O79: 3.1 | P79: 4.4 | Q79: 5.3 | R79: 55 | S79: 65 | T79: 65 | U79: 65
B80: =IF(ISBLANK(B79),"",B79) -> FlexoCOMPACT exclusive VWF 88/4-5 - 400V + aroCOLLECT | C80: =IF(ISBLANK(C78),"",C78) -> Air/Eau | D80: =IF(ISBLANK(D78),"",D78) -> Tri | E80: =IF(ISBLANK(E78),"",E78) -> Electrique | F80: =IF(ISBLANK(F78),"",F78) -> 9 | G80: =IF(ISBLANK(G78),"",G78) -> TOR | I80: 55 | J80: 6.1 | K80: 6.9 | L80: 9.5 | M80: 11 | N80: 2 | O80: 2.3 | P80: 3.2 | Q80: 3.7
B81: FlexoCOMPACT exclusive VWF 118/4-5 - 400V + aroCOLLECT | C81: Air/Eau | D81: Tri | E81: Electrique | F81: 9 | G81: TOR | I81: =Calculs!I200 -> Text -> | J81: -15 | K81: -7 | L81: 7 | M81: 20 | N81: =IF(ISBLANK(J81),"",J81) -> -15 | O81: -7 | P81: 7 | Q81: 20 | R81: -15 | S81: -7 | T81: 7 | U81: 20 | V81: =Calculs!V200 ->  | W81: TRUE
B82: =IF(ISBLANK(B81),"",B81) -> FlexoCOMPACT exclusive VWF 118/4-5 - 400V + aroCOLLECT | C82: Air/Eau | D82: Tri | E82: Electrique | F82: 9 | G82: TOR | H82: Td | I82: 35 | J82: 6.9 | K82: 8.4 | L82: 11.5 | M82: 14.5 | N82: 2.4 | O82: 2.9 | P82: 4.4 | Q82: 5.6 | R82: 55 | S82: 65 | T82: 65 | U82: 65
B83: =IF(ISBLANK(B82),"",B82) -> FlexoCOMPACT exclusive VWF 118/4-5 - 400V + aroCOLLECT | C83: =IF(ISBLANK(C81),"",C81) -> Air/Eau | D83: =IF(ISBLANK(D81),"",D81) -> Tri | E83: =IF(ISBLANK(E81),"",E81) -> Electrique | F83: =IF(ISBLANK(F81),"",F81) -> 9 | G83: =IF(ISBLANK(G81),"",G81) -> TOR | I83: 55 | J83: 7.9 | K83: 9.1 | L83: 12.2 | M83: 14.5 | N83: 1.8 | O83: 2.2 | P83: 3.1 | Q83: 3.6
B84: aroTHERM plus 45/6 - 230 V S3 | C84: Air/Eau | D84: Mono | E84: Electrique | F84: 5.4 | G84: Inverter | I84: =Calculs!I182 -> Tglyc -> | J84: -15 | K84: -7 | L84: 7 | M84: 20 | N84: =IF(ISBLANK(J84),"",J84) -> -15 | O84: -7 | P84: 7 | Q84: 20 | R84: -15 | S84: -7 | T84: 7 | U84: 20 | V84: =Calculs!V182 ->  | W84: TRUE
B85: =IF(ISBLANK(B84),"",B84) -> aroTHERM plus 45/6 - 230 V S3 | C85: Air/Eau | D85: Mono | E85: Electrique | F85: 5.4 | G85: Inverter | H85: Td | I85: 35 | J85: 3.1 | K85: 4.9 | L85: 4.2 | M85: 7.7 | N85: 2.3 | O85: 2.4 | P85: 4.4 | Q85: 6.2 | R85: 60 | S85: 68 | T85: 75 | U85: 75
B86: =IF(ISBLANK(B85),"",B85) -> aroTHERM plus 45/6 - 230 V S3 | C86: =IF(ISBLANK(C84),"",C84) -> Air/Eau | D86: =IF(ISBLANK(D84),"",D84) -> Mono | E86: =IF(ISBLANK(E84),"",E84) -> Electrique | F86: =IF(ISBLANK(F84),"",F84) -> 5.4 | G86: =IF(ISBLANK(G84),"",G84) -> Inverter | I86: 55 | J86: 2.9 | K86: 5.1 | L86: 4.5 | M86: 6.8 | N86: 1.6 | O86: 2 | P86: 2.3 | Q86: 3.6
B87: aroTHERM plus 55/6 - 230 V S3 | C87: Air/Eau | D87: Mono | E87: Electrique | F87: 5.4 | G87: Inverter | I87: =Calculs!I185 -> Tglyc -> | J87: -15 | K87: -7 | L87: 7 | M87: 20 | N87: =IF(ISBLANK(J87),"",J87) -> -15 | O87: -7 | P87: 7 | Q87: 20 | R87: -15 | S87: -7 | T87: 7 | U87: 20 | V87: =Calculs!V185 ->  | W87: TRUE
B88: =IF(ISBLANK(B87),"",B87) -> aroTHERM plus 55/6 - 230 V S3 | C88: Air/Eau | D88: Mono | E88: Electrique | F88: 5.4 | G88: Inverter | H88: Td | I88: 35 | J88: 4.7 | K88: 4.9 | L88: 4.2 | M88: 7.6 | N88: 2.3 | O88: 2.4 | P88: 4.4 | Q88: 6.1 | R88: 60 | S88: 68 | T88: 75 | U88: 75
B89: =IF(ISBLANK(B88),"",B88) -> aroTHERM plus 55/6 - 230 V S3 | C89: =IF(ISBLANK(C87),"",C87) -> Air/Eau | D89: =IF(ISBLANK(D87),"",D87) -> Mono | E89: =IF(ISBLANK(E87),"",E87) -> Electrique | F89: =IF(ISBLANK(F87),"",F87) -> 5.4 | G89: =IF(ISBLANK(G87),"",G87) -> Inverter | I89: 55 | J89: 4.5 | K89: 5.1 | L89: 4.5 | M89: 6.8 | N89: 1.7 | O89: 2 | P89: 2.3 | Q89: 3.6
B90: aroTHERM plus 85/6 - 230 V S3 | C90: Air/Eau | D90: Mono | E90: Electrique | F90: 5.4 | G90: Inverter | I90: =Calculs!I188 -> Tglyc -> | J90: -15 | K90: -7 | L90: 7 | M90: 20 | N90: =IF(ISBLANK(J90),"",J90) -> -15 | O90: -7 | P90: 7 | Q90: 20 | R90: -15 | S90: -7 | T90: 7 | U90: 20 | V90: =Calculs!V188 ->  | W90: TRUE
B91: =IF(ISBLANK(B90),"",B90) -> aroTHERM plus 85/6 - 230 V S3 | C91: Air/Eau | D91: Mono | E91: Electrique | F91: 5.4 | G91: Inverter | H91: Td | I91: 35 | J91: 6.45 | K91: 6.5 | L91: 7.8 | M91: 10.1 | N91: 2.3 | O91: 2.5 | P91: 4.4 | Q91: 6 | R91: 60 | S91: 68 | T91: 75 | U91: 75
B92: =IF(ISBLANK(B91),"",B91) -> aroTHERM plus 85/6 - 230 V S3 | C92: =IF(ISBLANK(C90),"",C90) -> Air/Eau | D92: =IF(ISBLANK(D90),"",D90) -> Mono | E92: =IF(ISBLANK(E90),"",E90) -> Electrique | F92: =IF(ISBLANK(F90),"",F90) -> 5.4 | G92: =IF(ISBLANK(G90),"",G90) -> Inverter | I92: 55 | J92: 6.1 | K92: 6.5 | L92: 7.6 | M92: 9.6 | N92: 1.7 | O92: 2 | P92: 2.9 | Q92: 3.7
B93: aroTHERM plus 125/6 - 230 V S3 | C93: Air/Eau | D93: Mono | E93: Electrique | F93: 5.4 | G93: Inverter | I93: =Calculs!I191 -> Tglyc -> | J93: -15 | K93: -7 | L93: 7 | M93: 20 | N93: =IF(ISBLANK(J93),"",J93) -> -15 | O93: -7 | P93: 7 | Q93: 20 | R93: -15 | S93: -7 | T93: 7 | U93: 20 | V93: =Calculs!V191 ->  | W93: TRUE
B94: =IF(ISBLANK(B93),"",B93) -> aroTHERM plus 125/6 - 230 V S3 | C94: Air/Eau | D94: Mono | E94: Electrique | F94: 5.4 | G94: Inverter | H94: Td | I94: 35 | J94: 8.1 | K94: 11.3 | L94: 14.3 | M94: 18.4 | N94: 2.3 | O94: 2.4 | P94: 4.3 | Q94: 6.2 | R94: 60 | S94: 68 | T94: 75 | U94: 75
B95: =IF(ISBLANK(B94),"",B94) -> aroTHERM plus 125/6 - 230 V S3 | C95: =IF(ISBLANK(C93),"",C93) -> Air/Eau | D95: =IF(ISBLANK(D93),"",D93) -> Mono | E95: =IF(ISBLANK(E93),"",E93) -> Electrique | F95: =IF(ISBLANK(F93),"",F93) -> 5.4 | G95: =IF(ISBLANK(G93),"",G93) -> Inverter | I95: 55 | J95: 7.9 | K95: 11.5 | L95: 14.2 | M95: 16.9 | N95: 1.6 | O95: 1.8 | P95: 2.8 | Q95: 3.7
B96: aroTHERM plus 125/6 - 400 V S3 | C96: Air/Eau | D96: Tri | E96: Electrique | F96: 8.54 | G96: Inverter | I96: =Calculs!I194 -> Text -> | J96: -15 | K96: -7 | L96: 7 | M96: 20 | N96: =IF(ISBLANK(J96),"",J96) -> -15 | O96: -7 | P96: 7 | Q96: 20 | R96: -15 | S96: -7 | T96: 7 | U96: 20 | V96: =Calculs!V194 ->  | W96: TRUE
B97: =IF(ISBLANK(B96),"",B96) -> aroTHERM plus 125/6 - 400 V S3 | C97: Air/Eau | D97: Tri | E97: Electrique | F97: 8.54 | G97: Inverter | H97: Td | I97: 35 | J97: 8.1 | K97: 11.3 | L97: 14.3 | M97: 18.4 | N97: 2.3 | O97: 2.4 | P97: 4.3 | Q97: 6.2 | R97: 60 | S97: 68 | T97: 75 | U97: 75
B98: =IF(ISBLANK(B97),"",B97) -> aroTHERM plus 125/6 - 400 V S3 | C98: =IF(ISBLANK(C96),"",C96) -> Air/Eau | D98: =IF(ISBLANK(D96),"",D96) -> Tri | E98: =IF(ISBLANK(E96),"",E96) -> Electrique | F98: =IF(ISBLANK(F96),"",F96) -> 8.54 | G98: =IF(ISBLANK(G96),"",G96) -> Inverter | I98: 55 | J98: 7.9 | K98: 11.5 | L98: 14.2 | M98: 16.9 | N98: 1.6 | O98: 1.8 | P98: 2.8 | Q98: 3.7
B99: aroTHERM plus 155/6 - 230 V S3 | C99: Air/Eau | D99: Mono | E99: Electrique | F99: 5.4 | G99: Inverter | I99: =Calculs!I197 -> Text -> | J99: -15 | K99: -7 | L99: 7 | M99: 20 | N99: =IF(ISBLANK(J99),"",J99) -> -15 | O99: -7 | P99: 7 | Q99: 20 | R99: -15 | S99: -7 | T99: 7 | U99: 20 | V99: =Calculs!V197 ->  | W99: TRUE
B100: =IF(ISBLANK(B99),"",B99) -> aroTHERM plus 155/6 - 230 V S3 | C100: Air/Eau | D100: Mono | E100: Electrique | F100: 5.4 | G100: Inverter | H100: Td | I100: 35 | J100: 9.7 | K100: 11.3 | L100: 14.3 | M100: 18.7 | N100: 2 | O100: 2.4 | P100: 4.3 | Q100: 6 | R100: 60 | S100: 68 | T100: 75 | U100: 75
B101: =IF(ISBLANK(B100),"",B100) -> aroTHERM plus 155/6 - 230 V S3 | C101: =IF(ISBLANK(C99),"",C99) -> Air/Eau | D101: =IF(ISBLANK(D99),"",D99) -> Mono | E101: =IF(ISBLANK(E99),"",E99) -> Electrique | F101: =IF(ISBLANK(F99),"",F99) -> 5.4 | G101: =IF(ISBLANK(G99),"",G99) -> Inverter | I101: 55 | J101: 8.4 | K101: 11.5 | L101: 14.2 | M101: 16.8 | N101: 1.5 | O101: 1.8 | P101: 2.8 | Q101: 3.8
B102: aroTHERM plus 155/6 - 400 V S3 | C102: Air/Eau | D102: Tri | E102: Electrique | F102: 8.5 | G102: Inverter | I102: =Calculs!I200 -> Text -> | J102: -15 | K102: -7 | L102: 7 | M102: 20 | N102: =IF(ISBLANK(J102),"",J102) -> -15 | O102: -7 | P102: 7 | Q102: 20 | R102: -15 | S102: -7 | T102: 7 | U102: 20 | V102: =Calculs!V200 ->  | W102: TRUE
B103: =IF(ISBLANK(B102),"",B102) -> aroTHERM plus 155/6 - 400 V S3 | C103: Air/Eau | D103: Tri | E103: Electrique | F103: 8.5 | G103: Inverter | H103: Td | I103: 35 | J103: 9.7 | K103: 11.3 | L103: 14.3 | M103: 18.7 | N103: 2 | O103: 2.4 | P103: 4.3 | Q103: 6 | R103: 60 | S103: 68 | T103: 75 | U103: 75
B104: =IF(ISBLANK(B103),"",B103) -> aroTHERM plus 155/6 - 400 V S3 | C104: =IF(ISBLANK(C102),"",C102) -> Air/Eau | D104: =IF(ISBLANK(D102),"",D102) -> Tri | E104: =IF(ISBLANK(E102),"",E102) -> Electrique | F104: =IF(ISBLANK(F102),"",F102) -> 8.5 | G104: =IF(ISBLANK(G102),"",G102) -> Inverter | I104: 55 | J104: 8.4 | K104: 11.5 | L104: 14.2 | M104: 16.8 | N104: 1.5 | O104: 1.8 | P104: 2.8 | Q104: 3.8
B105: aroTHERM Split 3 - 230V | C105: Air/Eau | D105: Mono | E105: Electrique | F105: 5.4 | G105: Inverter | I105: =Calculs!I224 -> Text -> | J105: -15 | K105: -7 | L105: 7 | M105: 20 | N105: =IF(ISBLANK(J105),"",J105) -> -15 | O105: -7 | P105: 7 | Q105: 20 | R105: -15 | S105: -7 | T105: 7 | U105: 20 | V105: =Calculs!V224 ->  | W105: TRUE
B106: =IF(ISBLANK(B105),"",B105) -> aroTHERM Split 3 - 230V | C106: Air/Eau | D106: Mono | E106: Electrique | F106: 5.4 | G106: Inverter | H106: Td | I106: 35 | J106: 2.7 | K106: 3.6 | L106: 3.2 | M106: 4.52 | N106: 2.5 | O106: 3.2 | P106: 5 | Q106: 6.25 | R106: 49 | S106: 55 | T106: 55 | U106: 55
B107: =IF(ISBLANK(B106),"",B106) -> aroTHERM Split 3 - 230V | C107: =IF(ISBLANK(C105),"",C105) -> Air/Eau | D107: =IF(ISBLANK(D105),"",D105) -> Mono | E107: =IF(ISBLANK(E105),"",E105) -> Electrique | F107: =IF(ISBLANK(F105),"",F105) -> 5.4 | G107: =IF(ISBLANK(G105),"",G105) -> Inverter | I107: 55 | J107: 2.3 | K107: 3.1 | L107: 2.8 | M107: 4 | N107: 1.5 | O107: 1.9 | P107: 2.6 | Q107: 3.25
B108: aroTHERM Split 5 - 230V | C108: Air/Eau | D108: Mono | E108: Electrique | F108: 5.4 | G108: Inverter | I108: =Calculs!I227 -> Text -> | J108: -15 | K108: -7 | L108: 7 | M108: 20 | N108: =IF(ISBLANK(J108),"",J108) -> -15 | O108: -7 | P108: 7 | Q108: 20 | R108: -15 | S108: -7 | T108: 7 | U108: 20 | V108: =Calculs!V227 ->  | W108: TRUE
B109: =IF(ISBLANK(B108),"",B108) -> aroTHERM Split 5 - 230V | C109: Air/Eau | D109: Mono | E109: Electrique | F109: 5.4 | G109: Inverter | H109: Td | I109: 35 | J109: 4.4 | K109: 4.9 | L109: 4.5 | M109: 6.37 | N109: 2.4 | O109: 2.7 | P109: 4.8 | Q109: 6 | R109: 49 | S109: 55 | T109: 55 | U109: 55
B110: =IF(ISBLANK(B109),"",B109) -> aroTHERM Split 5 - 230V | C110: =IF(ISBLANK(C108),"",C108) -> Air/Eau | D110: =IF(ISBLANK(D108),"",D108) -> Mono | E110: =IF(ISBLANK(E108),"",E108) -> Electrique | F110: =IF(ISBLANK(F108),"",F108) -> 5.4 | G110: =IF(ISBLANK(G108),"",G108) -> Inverter | I110: 55 | J110: 3.1 | K110: 4.1 | L110: 3.7 | M110: 5.2 | N110: 1.6 | O110: 2 | P110: 2.7 | Q110: 3.38
B111: aroTHERM Split 7 - 230V | C111: Air/Eau | D111: Mono | E111: Electrique | F111: 5.4 | G111: Inverter | I111: =Calculs!I230 -> Text -> | J111: -15 | K111: -7 | L111: 7 | M111: 20 | N111: =IF(ISBLANK(J111),"",J111) -> -15 | O111: -7 | P111: 7 | Q111: 20 | R111: -15 | S111: -7 | T111: 7 | U111: 20 | V111: =Calculs!V230 ->  | W111: TRUE
B112: =IF(ISBLANK(B111),"",B111) -> aroTHERM Split 7 - 230V | C112: Air/Eau | D112: Mono | E112: Electrique | F112: 5.4 | G112: Inverter | H112: Td | I112: 35 | J112: 5.7 | K112: 6.7 | L112: 5.8 | M112: 8.17 | N112: 2.4 | O112: 2.7 | P112: 4.7 | Q112: 5.88 | R112: 49 | S112: 55 | T112: 55 | U112: 55
B113: =IF(ISBLANK(B112),"",B112) -> aroTHERM Split 7 - 230V | C113: =IF(ISBLANK(C111),"",C111) -> Air/Eau | D113: =IF(ISBLANK(D111),"",D111) -> Mono | E113: =IF(ISBLANK(E111),"",E111) -> Electrique | F113: =IF(ISBLANK(F111),"",F111) -> 5.4 | G113: =IF(ISBLANK(G111),"",G111) -> Inverter | I113: 55 | J113: 4.2 | K113: 5.5 | L113: 5 | M113: 7.1 | N113: 1.7 | O113: 2 | P113: 2.7 | Q113: 3.38
B114: aroTHERM Split 10 - 230V | C114: Air/Eau | D114: Mono | E114: Electrique | F114: 5.4 | G114: Inverter | I114: =Calculs!I233 -> Text -> | J114: -15 | K114: -7 | L114: 7 | M114: 20 | N114: =IF(ISBLANK(J114),"",J114) -> -15 | O114: -7 | P114: 7 | Q114: 20 | R114: -15 | S114: -7 | T114: 7 | U114: 20 | V114: =Calculs!V233 ->  | W114: TRUE
B115: =IF(ISBLANK(B114),"",B114) -> aroTHERM Split 10 - 230V | C115: Air/Eau | D115: Mono | E115: Electrique | F115: 5.4 | G115: Inverter | H115: Td | I115: 35 | J115: 7.9 | K115: 10.2 | L115: 9.8 | M115: 15.3 | N115: 2.3 | O115: 2.8 | P115: 4.7 | Q115: 5.6 | R115: 49 | S115: 55 | T115: 55 | U115: 55
B116: =IF(ISBLANK(B115),"",B115) -> aroTHERM Split 10 - 230V | C116: =IF(ISBLANK(C114),"",C114) -> Air/Eau | D116: =IF(ISBLANK(D114),"",D114) -> Mono | E116: =IF(ISBLANK(E114),"",E114) -> Electrique | F116: =IF(ISBLANK(F114),"",F114) -> 5.4 | G116: =IF(ISBLANK(G114),"",G114) -> Inverter | I116: 55 | J116: 5.3 | K116: 8.5 | L116: 10.4 | M116: 14 | N116: 1.2 | O116: 2 | P116: 2.8 | Q116: 3.6
B117: aroTHERM Split 10 - 400V | C117: Air/Eau | D117: Tri | E117: Electrique | F117: 8.5 | G117: Inverter | I117: =Calculs!I236 -> Text -> | J117: -15 | K117: -7 | L117: 7 | M117: 20 | N117: =IF(ISBLANK(J117),"",J117) -> -15 | O117: -7 | P117: 7 | Q117: 20 | R117: -15 | S117: -7 | T117: 7 | U117: 20 | V117: =Calculs!V236 ->  | W117: TRUE
B118: =IF(ISBLANK(B117),"",B117) -> aroTHERM Split 10 - 400V | C118: Air/Eau | D118: Tri | E118: Electrique | F118: 8.5 | G118: Inverter | H118: Td | I118: 35 | J118: 7.9 | K118: 10.2 | L118: 9.8 | M118: 15.3 | N118: 2.3 | O118: 2.8 | P118: 4.7 | Q118: 5.6 | R118: 49 | S118: 56 | T118: 60 | U118: 60
B119: =IF(ISBLANK(B118),"",B118) -> aroTHERM Split 10 - 400V | C119: =IF(ISBLANK(C117),"",C117) -> Air/Eau | D119: =IF(ISBLANK(D117),"",D117) -> Tri | E119: =IF(ISBLANK(E117),"",E117) -> Electrique | F119: =IF(ISBLANK(F117),"",F117) -> 8.5 | G119: =IF(ISBLANK(G117),"",G117) -> Inverter | I119: 55 | J119: 5.3 | K119: 8.5 | L119: 10.4 | M119: 14 | N119: 1.2 | O119: 2 | P119: 2.8 | Q119: 3.6
B120: aroTHERM Split 12 - 230V | C120: Air/Eau | D120: Mono | E120: Electrique | F120: 5.4 | G120: Inverter | I120: =Calculs!I239 -> Text -> | J120: -15 | K120: -7 | L120: 7 | M120: 20 | N120: =IF(ISBLANK(J120),"",J120) -> -15 | O120: -7 | P120: 7 | Q120: 20 | R120: -15 | S120: -7 | T120: 7 | U120: 20 | V120: =Calculs!V239 ->  | W120: TRUE
B121: =IF(ISBLANK(B120),"",B120) -> aroTHERM Split 12 - 230V | C121: Air/Eau | D121: Mono | E121: Electrique | F121: 5.4 | G121: Inverter | H121: Td | I121: 35 | J121: 10 | K121: 11.9 | L121: 10.3 | M121: 15 | N121: 2.2 | O121: 2.5 | P121: 4.6 | Q121: 5.1 | R121: 49 | S121: 55 | T121: 55 | U121: 55
B122: =IF(ISBLANK(B121),"",B121) -> aroTHERM Split 12 - 230V | C122: =IF(ISBLANK(C120),"",C120) -> Air/Eau | D122: =IF(ISBLANK(D120),"",D120) -> Mono | E122: =IF(ISBLANK(E120),"",E120) -> Electrique | F122: =IF(ISBLANK(F120),"",F120) -> 5.4 | G122: =IF(ISBLANK(G120),"",G120) -> Inverter | I122: 55 | J122: 5.7 | K122: 9.4 | L122: 11 | M122: 13.9 | N122: 1.2 | O122: 2 | P122: 2.8 | Q122: 3.3
B123: aroTHERM Split 12 - 400V | C123: Air/Eau | D123: Tri | E123: Electrique | F123: 8.5 | G123: Inverter | I123: =Calculs!I242 -> Text -> | J123: -15 | K123: -7 | L123: 7 | M123: 20 | N123: =IF(ISBLANK(J123),"",J123) -> -15 | O123: -7 | P123: 7 | Q123: 20 | R123: -15 | S123: -7 | T123: 7 | U123: 20 | V123: =Calculs!V242 ->  | W123: TRUE
B124: =IF(ISBLANK(B123),"",B123) -> aroTHERM Split 12 - 400V | C124: Air/Eau | D124: Tri | E124: Electrique | F124: 8.5 | G124: Inverter | H124: Td | I124: 35 | J124: 10 | K124: 11.9 | L124: 10.3 | M124: 15 | N124: 2.2 | O124: 2.5 | P124: 4.6 | Q124: 5.1 | R124: 49 | S124: 55 | T124: 55 | U124: 55
B125: =IF(ISBLANK(B124),"",B124) -> aroTHERM Split 12 - 400V | C125: =IF(ISBLANK(C123),"",C123) -> Air/Eau | D125: =IF(ISBLANK(D123),"",D123) -> Tri | E125: =IF(ISBLANK(E123),"",E123) -> Electrique | F125: =IF(ISBLANK(F123),"",F123) -> 8.5 | G125: =IF(ISBLANK(G123),"",G123) -> Inverter | I125: 55 | J125: 5.7 | K125: 9.4 | L125: 11 | M125: 13.9 | N125: 1.2 | O125: 2 | P125: 2.8 | Q125: 3.3
B126: aroTHERM Split 3 - 230V Hybride | C126: Air/Eau | D126: Mono | E126: Condensation | F126: 25 | G126: Inverter | I126: =Calculs!I245 -> Text -> | J126: -15 | K126: -7 | L126: 7 | M126: 20 | N126: =IF(ISBLANK(J126),"",J126) -> -15 | O126: -7 | P126: 7 | Q126: 20 | R126: -15 | S126: -7 | T126: 7 | U126: 20 | V126: =Calculs!V245 ->  | W126: TRUE
B127: =IF(ISBLANK(B126),"",B126) -> aroTHERM Split 3 - 230V Hybride | C127: Air/Eau | D127: Mono | E127: Condensation | F127: 25 | G127: Inverter | H127: Td | I127: 35 | J127: 2.7 | K127: 3.6 | L127: 3.2 | M127: 4.52 | N127: 2.5 | O127: 3.2 | P127: 5 | Q127: 6.25 | R127: 49 | S127: 55 | T127: 55 | U127: 55
B128: =IF(ISBLANK(B127),"",B127) -> aroTHERM Split 3 - 230V Hybride | C128: =IF(ISBLANK(C126),"",C126) -> Air/Eau | D128: =IF(ISBLANK(D126),"",D126) -> Mono | E128: =IF(ISBLANK(E126),"",E126) -> Condensation | F128: =IF(ISBLANK(F126),"",F126) -> 25 | G128: =IF(ISBLANK(G126),"",G126) -> Inverter | I128: 55 | J128: 2.3 | K128: 3.1 | L128: 2.8 | M128: 4 | N128: 1.5 | O128: 1.9 | P128: 2.6 | Q128: 3.25
B129: aroTHERM Split 5 - 230V Hybride | C129: Air/Eau | D129: Mono | E129: Condensation | F129: 25 | G129: Inverter | I129: =Calculs!I248 -> Text -> | J129: -15 | K129: -7 | L129: 7 | M129: 20 | N129: =IF(ISBLANK(J129),"",J129) -> -15 | O129: -7 | P129: 7 | Q129: 20 | R129: -15 | S129: -7 | T129: 7 | U129: 20 | V129: =Calculs!V248 ->  | W129: TRUE
B130: =IF(ISBLANK(B129),"",B129) -> aroTHERM Split 5 - 230V Hybride | C130: Air/Eau | D130: Mono | E130: Condensation | F130: 25 | G130: Inverter | H130: Td | I130: 35 | J130: 4.4 | K130: 4.9 | L130: 4.5 | M130: 6.37 | N130: 2.4 | O130: 2.7 | P130: 4.8 | Q130: 6 | R130: 49 | S130: 55 | T130: 55 | U130: 55
B131: =IF(ISBLANK(B130),"",B130) -> aroTHERM Split 5 - 230V Hybride | C131: =IF(ISBLANK(C129),"",C129) -> Air/Eau | D131: =IF(ISBLANK(D129),"",D129) -> Mono | E131: =IF(ISBLANK(E129),"",E129) -> Condensation | F131: =IF(ISBLANK(F129),"",F129) -> 25 | G131: =IF(ISBLANK(G129),"",G129) -> Inverter | I131: 55 | J131: 3.1 | K131: 4.1 | L131: 3.7 | M131: 5.2 | N131: 1.6 | O131: 2 | P131: 2.7 | Q131: 3.38
B132: aroTHERM Split 7 - 230V Hybride | C132: Air/Eau | D132: Mono | E132: Condensation | F132: 25 | G132: Inverter | I132: =Calculs!I251 -> Text -> | J132: -15 | K132: -7 | L132: 7 | M132: 20 | N132: =IF(ISBLANK(J132),"",J132) -> -15 | O132: -7 | P132: 7 | Q132: 20 | R132: -15 | S132: -7 | T132: 7 | U132: 20 | V132: =Calculs!V251 ->  | W132: TRUE
B133: =IF(ISBLANK(B132),"",B132) -> aroTHERM Split 7 - 230V Hybride | C133: Air/Eau | D133: Mono | E133: Condensation | F133: 25 | G133: Inverter | H133: Td | I133: 35 | J133: 5.7 | K133: 6.7 | L133: 5.8 | M133: 8.17 | N133: 2.4 | O133: 2.7 | P133: 4.7 | Q133: 5.88 | R133: 49 | S133: 55 | T133: 55 | U133: 55
B134: =IF(ISBLANK(B133),"",B133) -> aroTHERM Split 7 - 230V Hybride | C134: =IF(ISBLANK(C132),"",C132) -> Air/Eau | D134: =IF(ISBLANK(D132),"",D132) -> Mono | E134: =IF(ISBLANK(E132),"",E132) -> Condensation | F134: =IF(ISBLANK(F132),"",F132) -> 25 | G134: =IF(ISBLANK(G132),"",G132) -> Inverter | I134: 55 | J134: 4.2 | K134: 5.5 | L134: 5 | M134: 7.1 | N134: 1.7 | O134: 2 | P134: 2.7 | Q134: 3.38
B135: aroTHERM Split 10 - 230V Hybride | C135: Air/Eau | D135: Mono | E135: Condensation | F135: 25 | G135: Inverter | I135: =Calculs!I254 -> Text -> | J135: -15 | K135: -7 | L135: 7 | M135: 20 | N135: =IF(ISBLANK(J135),"",J135) -> -15 | O135: -7 | P135: 7 | Q135: 20 | R135: -15 | S135: -7 | T135: 7 | U135: 20 | V135: =Calculs!V254 ->  | W135: TRUE
B136: =IF(ISBLANK(B135),"",B135) -> aroTHERM Split 10 - 230V Hybride | C136: Air/Eau | D136: Mono | E136: Condensation | F136: 25 | G136: Inverter | H136: Td | I136: 35 | J136: 7.9 | K136: 10.2 | L136: 9.8 | M136: 15.3 | N136: 2.3 | O136: 2.8 | P136: 4.7 | Q136: 5.6 | R136: 49 | S136: 55 | T136: 55 | U136: 55
B137: =IF(ISBLANK(B136),"",B136) -> aroTHERM Split 10 - 230V Hybride | C137: =IF(ISBLANK(C135),"",C135) -> Air/Eau | D137: =IF(ISBLANK(D135),"",D135) -> Mono | E137: =IF(ISBLANK(E135),"",E135) -> Condensation | F137: =IF(ISBLANK(F135),"",F135) -> 25 | G137: =IF(ISBLANK(G135),"",G135) -> Inverter | I137: 55 | J137: 5.3 | K137: 8.5 | L137: 10.4 | M137: 14 | N137: 1.2 | O137: 2 | P137: 2.8 | Q137: 3.6
B138: aroTHERM Split 10 - 400V Hybride | C138: Air/Eau | D138: Tri | E138: Condensation | F138: 25 | G138: Inverter | I138: =Calculs!I257 -> Text -> | J138: -15 | K138: -7 | L138: 7 | M138: 20 | N138: =IF(ISBLANK(J138),"",J138) -> -15 | O138: -7 | P138: 7 | Q138: 20 | R138: -15 | S138: -7 | T138: 7 | U138: 20 | V138: =Calculs!V257 ->  | W138: TRUE
B139: =IF(ISBLANK(B138),"",B138) -> aroTHERM Split 10 - 400V Hybride | C139: Air/Eau | D139: Tri | E139: Condensation | F139: 25 | G139: Inverter | H139: Td | I139: 35 | J139: 7.9 | K139: 10.2 | L139: 9.8 | M139: 15.3 | N139: 2.3 | O139: 2.8 | P139: 4.7 | Q139: 5.6 | R139: 49 | S139: 55 | T139: 55 | U139: 55
B140: =IF(ISBLANK(B139),"",B139) -> aroTHERM Split 10 - 400V Hybride | C140: =IF(ISBLANK(C138),"",C138) -> Air/Eau | D140: =IF(ISBLANK(D138),"",D138) -> Tri | E140: =IF(ISBLANK(E138),"",E138) -> Condensation | F140: =IF(ISBLANK(F138),"",F138) -> 25 | G140: =IF(ISBLANK(G138),"",G138) -> Inverter | I140: 55 | J140: 5.3 | K140: 8.5 | L140: 10.4 | M140: 14 | N140: 1.2 | O140: 2 | P140: 2.8 | Q140: 3.6
B141: aroTHERM Split 12 - 230V Hybride | C141: Air/Eau | D141: Mono | E141: Condensation | F141: 25 | G141: Inverter | I141: =Calculs!I260 -> Text -> | J141: -15 | K141: -7 | L141: 7 | M141: 20 | N141: =IF(ISBLANK(J141),"",J141) -> -15 | O141: -7 | P141: 7 | Q141: 20 | R141: -15 | S141: -7 | T141: 7 | U141: 20 | V141: =Calculs!V260 ->  | W141: TRUE
B142: =IF(ISBLANK(B141),"",B141) -> aroTHERM Split 12 - 230V Hybride | C142: Air/Eau | D142: Mono | E142: Condensation | F142: 25 | G142: Inverter | H142: Td | I142: 35 | J142: 10 | K142: 11.9 | L142: 10.3 | M142: 15 | N142: 2.2 | O142: 2.5 | P142: 4.6 | Q142: 5.1 | R142: 49 | S142: 55 | T142: 55 | U142: 55
B143: =IF(ISBLANK(B142),"",B142) -> aroTHERM Split 12 - 230V Hybride | C143: =IF(ISBLANK(C141),"",C141) -> Air/Eau | D143: =IF(ISBLANK(D141),"",D141) -> Mono | E143: =IF(ISBLANK(E141),"",E141) -> Condensation | F143: =IF(ISBLANK(F141),"",F141) -> 25 | G143: =IF(ISBLANK(G141),"",G141) -> Inverter | I143: 55 | J143: 5.7 | K143: 9.4 | L143: 11 | M143: 13.9 | N143: 1.2 | O143: 2 | P143: 2.8 | Q143: 3.3
B144: aroTHERM Split 12 - 400V Hybride | C144: Air/Eau | D144: Tri | E144: Condensation | F144: 25 | G144: Inverter | I144: =Calculs!I263 -> Text -> | J144: -15 | K144: -7 | L144: 7 | M144: 20 | N144: =IF(ISBLANK(J144),"",J144) -> -15 | O144: -7 | P144: 7 | Q144: 20 | R144: -15 | S144: -7 | T144: 7 | U144: 20 | V144: =Calculs!V263 ->  | W144: TRUE
B145: =IF(ISBLANK(B144),"",B144) -> aroTHERM Split 12 - 400V Hybride | C145: Air/Eau | D145: Tri | E145: Condensation | F145: 25 | G145: Inverter | H145: Td | I145: 35 | J145: 10 | K145: 11.9 | L145: 10.3 | M145: 15 | N145: 2.2 | O145: 2.5 | P145: 4.6 | Q145: 5.1 | R145: 49 | S145: 55 | T145: 55 | U145: 55
B146: =IF(ISBLANK(B145),"",B145) -> aroTHERM Split 12 - 400V Hybride | C146: =IF(ISBLANK(C144),"",C144) -> Air/Eau | D146: =IF(ISBLANK(D144),"",D144) -> Tri | E146: =IF(ISBLANK(E144),"",E144) -> Condensation | F146: =IF(ISBLANK(F144),"",F144) -> 25 | G146: =IF(ISBLANK(G144),"",G144) -> Inverter | I146: 55 | J146: 5.7 | K146: 9.4 | L146: 11 | M146: 13.9 | N146: 1.2 | O146: 2 | P146: 2.8 | Q146: 3.3
B147: aroTHERM VWL 55/3 A 230V | C147: Air/Eau | D147: Mono | E147: Electrique | F147: 6 | G147: Inverter | I147: =Calculs!I266 -> Text -> | J147: -15 | K147: -7 | L147: 7 | M147: 20 | N147: =IF(ISBLANK(J147),"",J147) -> -15 | O147: -7 | P147: 7 | Q147: 20 | R147: -15 | S147: -7 | T147: 7 | U147: 20 | V147: =Calculs!V266 ->  | W147: TRUE
B148: =IF(ISBLANK(B147),"",B147) -> aroTHERM VWL 55/3 A 230V | C148: Air/Eau | D148: Mono | E148: Electrique | F148: 6 | G148: Inverter | H148: Td | I148: 35 | J148: 3.9 | K148: 4.9 | L148: 4.7 | M148: 5.8 | N148: 2.29 | O148: 2.4 | P148: 4.7 | Q148: 6.3 | R148: 45 | S148: 56 | T148: 60 | U148: 60
B149: =IF(ISBLANK(B148),"",B148) -> aroTHERM VWL 55/3 A 230V | C149: =IF(ISBLANK(C147),"",C147) -> Air/Eau | D149: =IF(ISBLANK(D147),"",D147) -> Mono | E149: =IF(ISBLANK(E147),"",E147) -> Electrique | F149: =IF(ISBLANK(F147),"",F147) -> 6 | G149: =IF(ISBLANK(G147),"",G147) -> Inverter | I149: 45 | J149: 3.5 | K149: 4.7 | L149: 4.4 | M149: 5.4 | N149: 1.9 | O149: 2.3 | P149: 3.41 | Q149: 4.5
B150: aroTHERM VWL 85/3 A 230V | C150: Air/Eau | D150: Mono | E150: Electrique | F150: 6 | G150: Inverter | I150: =Calculs!I269 -> Text -> | J150: -15 | K150: -7 | L150: 7 | M150: 20 | N150: =IF(ISBLANK(J150),"",J150) -> -15 | O150: -7 | P150: 7 | Q150: 20 | R150: -15 | S150: -7 | T150: 7 | U150: 20 | V150: =Calculs!V269 ->  | W150: TRUE
B151: =IF(ISBLANK(B150),"",B150) -> aroTHERM VWL 85/3 A 230V | C151: Air/Eau | D151: Mono | E151: Electrique | F151: 6 | G151: Inverter | H151: Td | I151: 35 | J151: 4.8 | K151: 6.2 | L151: 7.6 | M151: 8.28 | N151: 2.09 | O151: 2.4 | P151: 4.5 | Q151: 4.87 | R151: 49 | S151: 57 | T151: 63 | U151: 63
B152: =IF(ISBLANK(B151),"",B151) -> aroTHERM VWL 85/3 A 230V | C152: =IF(ISBLANK(C150),"",C150) -> Air/Eau | D152: =IF(ISBLANK(D150),"",D150) -> Mono | E152: =IF(ISBLANK(E150),"",E150) -> Electrique | F152: =IF(ISBLANK(F150),"",F150) -> 6 | G152: =IF(ISBLANK(G150),"",G150) -> Inverter | I152: 45 | J152: 3.59 | K152: 5 | L152: 7.2 | M152: 8 | N152: 1.84 | O152: 2.16 | P152: 3.5 | Q152: 3.97
B153: aroTHERM VWL 115/2 A 230V | C153: Air/Eau | D153: Mono | E153: Electrique | F153: 6 | G153: Inverter | I153: =Calculs!I272 -> Text -> | J153: -15 | K153: -7 | L153: 7 | M153: 20 | N153: =IF(ISBLANK(J153),"",J153) -> -15 | O153: -7 | P153: 7 | Q153: 20 | R153: -15 | S153: -7 | T153: 7 | U153: 20 | V153: =Calculs!V272 ->  | W153: TRUE
B154: =IF(ISBLANK(B153),"",B153) -> aroTHERM VWL 115/2 A 230V | C154: Air/Eau | D154: Mono | E154: Electrique | F154: 6 | G154: Inverter | H154: Td | I154: 35 | J154: 5.73 | K154: 7.6 | L154: 10.6 | M154: 11.42 | N154: 2.04 | O154: 2.4 | P154: 4.3 | Q154: 4.63 | R154: 49 | S154: 57 | T154: 63 | U154: 63
B155: =IF(ISBLANK(B154),"",B154) -> aroTHERM VWL 115/2 A 230V | C155: =IF(ISBLANK(C153),"",C153) -> Air/Eau | D155: =IF(ISBLANK(D153),"",D153) -> Mono | E155: =IF(ISBLANK(E153),"",E153) -> Electrique | F155: =IF(ISBLANK(F153),"",F153) -> 6 | G155: =IF(ISBLANK(G153),"",G153) -> Inverter | I155: 45 | J155: 4.34 | K155: 5.95 | L155: 10.2 | M155: 11.08 | N155: 1.75 | O155: 2.03 | P155: 3.35 | Q155: 3.65
B156: aroTHERM VWL 155/2 A 230V | C156: Air/Eau | D156: Mono | E156: Electrique | F156: 6 | G156: Inverter | I156: =Calculs!I275 -> Text -> | J156: -15 | K156: -7 | L156: 7 | M156: 20 | N156: =IF(ISBLANK(J156),"",J156) -> -15 | O156: -7 | P156: 7 | Q156: 20 | R156: -15 | S156: -7 | T156: 7 | U156: 20 | V156: =Calculs!V275 ->  | W156: TRUE
B157: =IF(ISBLANK(B156),"",B156) -> aroTHERM VWL 155/2 A 230V | C157: Air/Eau | D157: Mono | E157: Electrique | F157: 6 | G157: Inverter | H157: Td | I157: 35 | J157: 10.2 | K157: 11.8 | L157: 14.6 | M157: 19.1 | N157: 2.3 | O157: 2.6 | P157: 4.5 | Q157: 6.2 | R157: 49 | S157: 57 | T157: 63 | U157: 63
B158: =IF(ISBLANK(B157),"",B157) -> aroTHERM VWL 155/2 A 230V | C158: =IF(ISBLANK(C156),"",C156) -> Air/Eau | D158: =IF(ISBLANK(D156),"",D156) -> Mono | E158: =IF(ISBLANK(E156),"",E156) -> Electrique | F158: =IF(ISBLANK(F156),"",F156) -> 6 | G158: =IF(ISBLANK(G156),"",G156) -> Inverter | I158: 45 | J158: 7.9 | K158: 10.2 | L158: 13.4 | M158: 19.3 | N158: 2.1 | O158: 2.3 | P158: 3.4 | Q158: 4.1
B159: aroTHERM VWL 55/3 A 230V Hybride | C159: Air/Eau | D159: Mono | E159: Condensation | F159: 25 | G159: Inverter | I159: =Calculs!I278 -> Text -> | J159: -15 | K159: -7 | L159: 7 | M159: 20 | N159: =IF(ISBLANK(J159),"",J159) -> -15 | O159: -7 | P159: 7 | Q159: 20 | R159: -15 | S159: -7 | T159: 7 | U159: 20 | V159: =Calculs!V278 ->  | W159: TRUE
B160: =IF(ISBLANK(B159),"",B159) -> aroTHERM VWL 55/3 A 230V Hybride | C160: Air/Eau | D160: Mono | E160: Condensation | F160: 25 | G160: Inverter | H160: Td | I160: 35 | J160: 3.9 | K160: 4.9 | L160: 4.7 | M160: 5.8 | N160: 2.29 | O160: 2.4 | P160: 4.7 | Q160: 6.3 | R160: 45 | S160: 56 | T160: 60 | U160: 60
B161: =IF(ISBLANK(B160),"",B160) -> aroTHERM VWL 55/3 A 230V Hybride | C161: =IF(ISBLANK(C159),"",C159) -> Air/Eau | D161: =IF(ISBLANK(D159),"",D159) -> Mono | E161: =IF(ISBLANK(E159),"",E159) -> Condensation | F161: =IF(ISBLANK(F159),"",F159) -> 25 | G161: =IF(ISBLANK(G159),"",G159) -> Inverter | I161: 45 | J161: 3.5 | K161: 4.7 | L161: 4.4 | M161: 5.4 | N161: 1.9 | O161: 2.3 | P161: 3.41 | Q161: 4.5
B162: aroTHERM VWL 85/3 A 230V Hybride | C162: Air/Eau | D162: Mono | E162: Condensation | F162: 25 | G162: Inverter | I162: =Calculs!I281 -> Text -> | J162: -15 | K162: -7 | L162: 7 | M162: 20 | N162: =IF(ISBLANK(J162),"",J162) -> -15 | O162: -7 | P162: 7 | Q162: 20 | R162: -15 | S162: -7 | T162: 7 | U162: 20 | V162: =Calculs!V281 ->  | W162: TRUE
B163: =IF(ISBLANK(B162),"",B162) -> aroTHERM VWL 85/3 A 230V Hybride | C163: Air/Eau | D163: Mono | E163: Condensation | F163: 25 | G163: Inverter | H163: Td | I163: 35 | J163: 4.8 | K163: 6.2 | L163: 7.6 | M163: 8.28 | N163: 2.09 | O163: 2.4 | P163: 4.5 | Q163: 4.87 | R163: 49 | S163: 57 | T163: 63 | U163: 63
B164: =IF(ISBLANK(B163),"",B163) -> aroTHERM VWL 85/3 A 230V Hybride | C164: =IF(ISBLANK(C162),"",C162) -> Air/Eau | D164: =IF(ISBLANK(D162),"",D162) -> Mono | E164: =IF(ISBLANK(E162),"",E162) -> Condensation | F164: =IF(ISBLANK(F162),"",F162) -> 25 | G164: =IF(ISBLANK(G162),"",G162) -> Inverter | I164: 45 | J164: 3.59 | K164: 5 | L164: 7.2 | M164: 8 | N164: 1.84 | O164: 2.16 | P164: 3.5 | Q164: 3.97
B165: aroTHERM VWL 115/2 A 230V Hybride | C165: Air/Eau | D165: Mono | E165: Condensation | F165: 25 | G165: Inverter | I165: =Calculs!I284 -> Text -> | J165: -15 | K165: -7 | L165: 7 | M165: 20 | N165: =IF(ISBLANK(J165),"",J165) -> -15 | O165: -7 | P165: 7 | Q165: 20 | R165: -15 | S165: -7 | T165: 7 | U165: 20 | V165: =Calculs!V284 ->  | W165: TRUE
B166: =IF(ISBLANK(B165),"",B165) -> aroTHERM VWL 115/2 A 230V Hybride | C166: Air/Eau | D166: Mono | E166: Condensation | F166: 25 | G166: Inverter | H166: Td | I166: 35 | J166: 5.73 | K166: 7.6 | L166: 10.6 | M166: 11.42 | N166: 2.04 | O166: 2.4 | P166: 4.3 | Q166: 4.63 | R166: 49 | S166: 57 | T166: 63 | U166: 63
B167: =IF(ISBLANK(B166),"",B166) -> aroTHERM VWL 115/2 A 230V Hybride | C167: =IF(ISBLANK(C165),"",C165) -> Air/Eau | D167: =IF(ISBLANK(D165),"",D165) -> Mono | E167: =IF(ISBLANK(E165),"",E165) -> Condensation | F167: =IF(ISBLANK(F165),"",F165) -> 25 | G167: =IF(ISBLANK(G165),"",G165) -> Inverter | I167: 45 | J167: 4.34 | K167: 5.95 | L167: 10.2 | M167: 11.08 | N167: 1.75 | O167: 2.03 | P167: 3.35 | Q167: 3.65
B168: aroTHERM VWL 155/2 A 230V Hybride | C168: Air/Eau | D168: Mono | E168: Condensation | F168: 25 | G168: Inverter | I168: =Calculs!I287 -> Text -> | J168: -15 | K168: -7 | L168: 7 | M168: 20 | N168: =IF(ISBLANK(J168),"",J168) -> -15 | O168: -7 | P168: 7 | Q168: 20 | R168: -15 | S168: -7 | T168: 7 | U168: 20 | V168: =Calculs!V287 ->  | W168: TRUE
B169: =IF(ISBLANK(B168),"",B168) -> aroTHERM VWL 155/2 A 230V Hybride | C169: Air/Eau | D169: Mono | E169: Condensation | F169: 25 | G169: Inverter | H169: Td | I169: 35 | J169: 10.2 | K169: 11.8 | L169: 14.6 | M169: 19.1 | N169: 2.3 | O169: 2.6 | P169: 4.5 | Q169: 6.2 | R169: 49 | S169: 57 | T169: 63 | U169: 63
B170: =IF(ISBLANK(B169),"",B169) -> aroTHERM VWL 155/2 A 230V Hybride | C170: =IF(ISBLANK(C168),"",C168) -> Air/Eau | D170: =IF(ISBLANK(D168),"",D168) -> Mono | E170: =IF(ISBLANK(E168),"",E168) -> Condensation | F170: =IF(ISBLANK(F168),"",F168) -> 25 | G170: =IF(ISBLANK(G168),"",G168) -> Inverter | I170: 45 | J170: 7.9 | K170: 10.2 | L170: 13.4 | M170: 19.3 | N170: 2.1 | O170: 2.3 | P170: 3.4 | Q170: 4.1

Sheet BDD_Ch (hidden)
B1: Logiciel PAC_2020 v2
B2: Vers page PRINCIPALE | E2: =Calculs!C353 -> Base de données chaudières de la marque Vaillant | K2: Vers PARAMETRAGE
B3: 2022-08-02
E4: Gamme | G4: Ref | H4: Nom | I4: Prix | J4: Energie | K4: Puissance | L4: Mixte | M4: Elig. CEE
E6: ecoTEC plus VCI | G6: 0010021866 | H6: =VLOOKUP(G6,MATRICE_VA,2,FALSE) -> ecoTEC Plus VCI 30 kW BP | I6: =VLOOKUP(G6,MATRICE_VA,3,FALSE) -> 4432 | J6: Propane | K6: 30 | L6: TRUE | M6: FALSE
E7: ecoTEC plus VCI | G7: 0010025179 | H7: ecoTEC plus VCI 32 kW | I7: 4514 | J7: Gaz naturel | K7: 32 | L7: TRUE | M7: FALSE
E8: ecoTEC plus VCI | G8: 0010025180 | H8: ecoTEC plus VCI 36 kW | I8: 4815 | J8: Gaz naturel | K8: 36 | L8: TRUE | M8: FALSE
E9: ecoTEC plus | G9: 0010024578 | H9: =VLOOKUP(G9,MATRICE_VA,2,FALSE) -> ecoTEC plus VUW 32 kW | I9: =VLOOKUP(G9,MATRICE_VA,3,FALSE) -> 3679 | J9: Gaz naturel | K9: 32 | L9: TRUE | M9: TRUE
E10: ecoTEC plus | G10: 0010024580 | H10: ecoTEC plus VUW 36 kW | I10: 3975 | J10: Gaz naturel | K10: 36 | L10: TRUE | M10: TRUE
E11: ecoTEC plus systèmes | G11: 0010024575 | H11: ecoTEC plus systèmes 15 kW | I11: 3849 | J11: Gaz naturel | K11: 15 | L11: FALSE | M11: TRUE
E12: ecoTEC plus systèmes | G12: 0010024576 | H12: ecoTEC plus systèmes 25 kW | I12: 4093 | J12: Gaz naturel | K12: 25 | L12: FALSE | M12: FALSE
E13: ecoTEC plus systèmes | G13: 0010024577 | H13: ecoTEC plus systèmes 35 kW | I13: 4335 | J13: Gaz naturel | K13: 35 | L13: FALSE | M13: FALSE
E14: ecoTEC pro | G14: 0010021868 | H14: =VLOOKUP(G14,MATRICE_VA,2,FALSE) -> ecoTEC pro VUW FR 286/5-3 A E | I14: =VLOOKUP(G14,MATRICE_VA,3,FALSE) -> 2894 | J14: Gaz naturel | K14: 28 | L14: TRUE | M14: TRUE
E15: ecoCOMPACT | G15: 0010015607 | H15: ecoCOMPACT VCC 266/4-5 150 | I15: 5244 | J15: Gaz naturel | K15: 26 | L15: TRUE | M15: TRUE
E16: ecoCOMPACT | G16: 0010014997 | H16: ecoCOMPACT VCC 306/4-5 150 | I16: 6025 | J16: Gaz naturel | K16: 30 | L16: TRUE | M16: FALSE
E17: ecoCOMPACT | G17: 0010015708 | H17: ecoCOMPACT VSC 206/4-5 90 | I17: 4761 | J17: Gaz naturel | K17: 20 | L17: TRUE | M17: TRUE
E18: ecoCOMPACT | G18: 0010015606 | H18: ecoCOMPACT VSC 266/4-5 150 | I18: 5465 | J18: Gaz naturel | K18: 36 | L18: TRUE | M18: FALSE
E19: ecoCOMPACT | G19: 0010019341 | H19: ecoCOMPACT VSC 266/4-5 90 | I19: 5214 | J19: Gaz naturel | K19: 36 | L19: TRUE | M19: FALSE
E20: ecoCOMPACT | G20: 0010015709 | H20: ecoCOMPACT VSC 306/4-5 150 | I20: 6162 | J20: Gaz naturel | K20: 30 | L20: TRUE | M20: FALSE
E21: ecoVIT exclusive | G21: 0010027275 | H21: ecoVIT exclusive VKK FR 226/4 | I21: 4728 | J21: Gaz naturel | K21: 22 | L21: TRUE | M21: FALSE
E22: ecoVIT exclusive | G22: 0010027276 | H22: ecoVIT exclusive VKK FR 286/4 | I22: 4856 | J22: Gaz naturel | K22: 28 | L22: TRUE | M22: FALSE
E23: ecoVIT exclusive | G23: 0010027277 | H23: ecoVIT exclusive VKK FR 366/4 | I23: 5577 | J23: Gaz naturel | K23: 36 | L23: TRUE | M23: FALSE
E24: ecoVIT exclusive | G24: 0010027278 | H24: ecoVIT exclusive VKK FR 476/4 | I24: 6084 | J24: Gaz naturel | K24: 47 | L24: TRUE | M24: FALSE
E25: ecoVIT exclusive | G25: 0010027279 | H25: ecoVIT exclusive VKK FR 656/4 | I25: 6647 | J25: Gaz naturel | K25: 65 | L25: TRUE | M25: FALSE
E26: icoVIT exclusive | G26: 0010010675 | J26: Fioul | K26: 15 | L26: TRUE | M26: FALSE
E27: icoVIT exclusive | G27: 0010010677 | J27: Fioul | K27: 25 | L27: TRUE | M27: FALSE
E28: icoVIT exclusive | G28: 0010010679 | J28: Fioul | K28: 35 | L28: TRUE | M28: FALSE
E29: ecoTEC exclusive | G29: 0010024573 | H29: =VLOOKUP(G29,MATRICE_VA,2,FALSE) -> ecoTEC exclusive 36 kW | I29: =VLOOKUP(G29,MATRICE_VA,3,FALSE) -> 4768 | J29: Gaz naturel | K29: 36 | L29: TRUE | M29: FALSE
E30: ecoTEC exclusive | G30: 0010024574 | H30: =VLOOKUP(G30,MATRICE_VA,2,FALSE) -> ecoTEC exclusive 43 kW | I30: =VLOOKUP(G30,MATRICE_VA,3,FALSE) -> 5058 | J30: Gaz naturel | K30: 43 | L30: TRUE | M30: FALSE
E31: ecoTEC plus extraCONDENS | G31: 0010024579 | H31: =VLOOKUP(G31,MATRICE_VA,2,FALSE) -> ecoTEC Plus extraCONdeNS 30 kW | I31: =VLOOKUP(G31,MATRICE_VA,3,FALSE) -> 4052 | J31: Gaz naturel | K31: 30 | L31: TRUE | M31: FALSE
E32: ecoTEC plus extraCONDENS | G32: 0010024581 | H32: ecoTEC Plus extraCONdeNS 36 kW | I32: 4350 | J32: Gaz naturel | K32: 36 | L32: TRUE | M32: FALSE

Sheet BDD_Acc_Ch (hidden)
B1: Logiciel PAC_2020 v2
D2: =Calculs!L93 -> INSTALLATIONS ET ACCESSOIRES pour la gamme BDD_G5 : flexoTHERM exclusive eau glycolée / eau | G2: HeBus-B-D
B3: 02/08/2022 | G3: 1 | H3: 2 | I3: 3 | J3: 4
F4: Schéma | G4: ecoTEC pro VUW | H4: ecoTEC plus systèmes VU | I4: ecoCOMPACT | J4: ecoVIT exclusive | K4: icoVIT ecclusive
B5: Vers PARAMETRAGE | F5: Appoint | G5: Chaudière | H5: Chaudière | I5: Chaudière | J5: Chaudière | K5: Chaudière
F6: Mode gestion | G6: Simultané optimisé | H6: Simultané optimisé | I6: Simultané optimisé | J6: Simultané optimisé | K6: Simultané optimisé
F7: ECS
F8: =Calculs!D39 -> Régulation :
F9: =Calculs!D40 -> Connectivité :
F10: =Calculs!D41 -> source d'énergie sur
F11: =Calculs!D42 -> Raccordements :
F12: =Calculs!D43 -> Passive cooling :
F13: .
D14: Réf. | E14: Dénomination | F14: PU HT
A15: 1 | B15: PAC | C15: Obligatoire | D15: . | E15: Accessoires Accessoires chaudière : Ventouse horizontale Ø 60/100 et autre | G15: . | H15: . | I15: . | J15: . | K15: .
C16: Ajustez les quantités | D16: 0010035460 | E16: =VLOOKUP($D16,MATRICE_VA,2,FALSE) -> Plaque raccordement mixte VUW | F16: =VLOOKUP($D16,MATRICE_VA,3,FALSE) -> 113 | G16: 1
C17: Ajustez les quantités | D17: 0010035461 | E17: =VLOOKUP($D17,MATRICE_VA,2,FALSE) -> Plaque raccordement VU | F17: =VLOOKUP($D17,MATRICE_VA,3,FALSE) -> 80 | H17: 1
C18: Ajustez les quantités | D18: 0010040210 | E18: =VLOOKUP($D18,MATRICE_VA,2,FALSE) -> Plaque racc. ecoCOMPACT NF | F18: =VLOOKUP($D18,MATRICE_VA,3,FALSE) -> 299 | I18: 1
C19: Ajustez les quantités | D19: 0020219517 | E19: =VLOOKUP($D19,MATRICE_VA,2,FALSE) -> Ventouse horiz. Ø 60/100 conds | F19: =VLOOKUP($D19,MATRICE_VA,3,FALSE) -> 84 | G19: 1 | H19: 1 | I19: 1
C21: Ajustez les quantités | D21: 0020160888 | E21: =VLOOKUP($D21,MATRICE_VA,2,FALSE) -> Kit changmt gaz > PecoTEC 25 | F21: =VLOOKUP($D21,MATRICE_VA,3,FALSE) -> 132 | I21: 1
C22: Ajustez les quantités | D22: 0020160887 | E22: =VLOOKUP($D22,MATRICE_VA,2,FALSE) -> Kit changmt gaz > PecoTEC 15 | F22: =VLOOKUP($D22,MATRICE_VA,3,FALSE) -> 29 | I22: 1
B28: PAC | C28: Obligatoire | D28: . | E28: Accessoires Accessoires chaudière : Ventouse verticale Ø 60/100 et autre | G28: . | H28: . | I28: . | J28: . | K28: .
C29: Ajustez les quantités | D29: 0010035460 | E29: =VLOOKUP($D29,MATRICE_VA,2,FALSE) -> Plaque raccordement mixte VUW | F29: =VLOOKUP($D29,MATRICE_VA,3,FALSE) -> 113 | G29: 1
C30: Ajustez les quantités | D30: 0010035461 | E30: Plaque raccordement VU | F30: 80 | H30: 1
C31: Ajustez les quantités | D31: 0010040210 | E31: Plaque racc. ecoCOMPACT NF | F31: 299 | I31: 1
C32: Ajustez les quantités | D32: 0020220657 | E32: Vtse vert. Ø 60/100 brique cds | F32: 137 | G32: 1 | H32: 1 | I32: 1
C33: Ajustez les quantités | D33: 0020220656 | E33: Ventouse vert. Ø 60/100 noire | F33: 137 | G33: 1 | H33: 1 | I33: 1
C34: Ajustez les quantités | D34: 0020160888 | E34: Kit changmt gaz > PecoTEC 25 | F34: 132 | I34: 1
C35: Ajustez les quantités | D35: 0020160887 | E35: Kit changmt gaz > PecoTEC 15 | F35: 29 | I35: 1
B41: PAC | C41: Obligatoire | D41: . | E41: Accessoires Accessoires chaudière : Ventouse horizontale Ø 80/125 et autre | G41: . | H41: . | I41: . | J41: . | K41: .
C42: Ajustez les quantités | D42: 0010035460 | E42: =VLOOKUP($D42,MATRICE_VA,2,FALSE) -> Plaque raccordement mixte VUW | F42: =VLOOKUP($D42,MATRICE_VA,3,FALSE) -> 113 | G42: 1
C43: Ajustez les quantités | D43: 0010035461 | E43: =VLOOKUP($D43,MATRICE_VA,2,FALSE) -> Plaque raccordement VU | F43: =VLOOKUP($D43,MATRICE_VA,3,FALSE) -> 80 | H43: 1
C44: Ajustez les quantités | D44: 0010040210 | E44: =VLOOKUP($D44,MATRICE_VA,2,FALSE) -> Plaque racc. ecoCOMPACT NF | F44: =VLOOKUP($D44,MATRICE_VA,3,FALSE) -> 299 | I44: 1
C46: Ajustez les quantités | D46: 301369 | E46: =VLOOKUP($D46,MATRICE_VA,2,FALSE) -> Buse 80/125 + orifices contr. | F46: =VLOOKUP($D46,MATRICE_VA,3,FALSE) -> 52 | J46: 1
C47: Ajustez les quantités | D47: 0020147469 | E47: =VLOOKUP($D47,MATRICE_VA,2,FALSE) -> Adapt. 60/100 sur 80/125 PPs | F47: =VLOOKUP($D47,MATRICE_VA,3,FALSE) -> 40 | G47: 1 | H47: 1 | I47: 1
C48: Ajustez les quantités | D48: 303209 | E48: =VLOOKUP($D48,MATRICE_VA,2,FALSE) -> Ventouse horiz. Ø 80/125 cds | F48: =VLOOKUP($D48,MATRICE_VA,3,FALSE) -> 193 | G48: 1 | H48: 1 | I48: 1 | J48: 1
C50: Ajustez les quantités | D50: 0020160888 | E50: =VLOOKUP($D50,MATRICE_VA,2,FALSE) -> Kit changmt gaz > PecoTEC 25 | F50: =VLOOKUP($D50,MATRICE_VA,3,FALSE) -> 132 | I50: 1 | J50: 1
C51: Ajustez les quantités | D51: 0020160887 | E51: =VLOOKUP($D51,MATRICE_VA,2,FALSE) -> Kit changmt gaz > PecoTEC 15 | F51: =VLOOKUP($D51,MATRICE_VA,3,FALSE) -> 29 | I51: 1 | J51: 1
B54: PAC | C54: Obligatoire | D54: . | E54: Accessoires Accessoires chaudière : Ventouse verticale Ø 80/125 et autre | G54: . | H54: . | I54: . | J54: . | K54: .
C55: Ajustez les quantités | D55: 0010035460 | E55: =VLOOKUP($D55,MATRICE_VA,2,FALSE) -> Plaque raccordement mixte VUW | F55: =VLOOKUP($D55,MATRICE_VA,3,FALSE) -> 113 | G55: 1
C56: Ajustez les quantités | D56: 0010035461 | E56: Plaque raccordement VU | F56: 80 | H56: 1
C57: Ajustez les quantités | D57: 0010040210 | E57: Plaque racc. ecoCOMPACT NF | F57: 299 | I57: 1
C58: Ajustez les quantités | D58: 301369 | E58: Buse 80/125 + orifices contr. | F58: 52
C59: Ajustez les quantités | D59: 0020147469 | E59: Adapt. 60/100 sur 80/125 PPs | F59: =VLOOKUP($D59,MATRICE_VA,3,FALSE) -> 40 | G59: 1 | H59: 1 | I59: 1
C60: Ajustez les quantités | D60: 303200 | E60: Ventouse vert. Ø 80/125 noire | F60: 152 | G60: 1 | H60: 1 | I60: 1
C61: Ajustez les quantités | D61: 303201 | E61: Ventouse vert. Ø 80/125 brique | F61: 152 | G61: 1 | H61: 1 | I61: 1 | J61: 1 | K61: 1
C62: Ajustez les quantités | D62: 0020160888 | E62: Kit changmt gaz > PecoTEC 25 | F62: 132 | I62: 1 | J62: 1 | K62: 1
C63: Ajustez les quantités | D63: 0020160887 | E63: Kit changmt gaz > PecoTEC 15 | F63: 29 | I63: 1 | J63: 1 | K63: 1
C66: Ajustez les quantités | D66: 0020023134 | E66: =VLOOKUP($D66,MATRICE_VA,2,FALSE) -> FILTRE FIOUL PR ALIMENTATION M | F66: =VLOOKUP($D66,MATRICE_VA,3,FALSE) -> 263 | K66: 1
B67: PAC | C67: Obligatoire | D67: . | E67: Message d'erreur | G67: . | H67: . | I67: . | J67: . | K67: .
E68: Veuillez modifier la selection | G68: 1 | H68: 1 | I68: 1 | J68: 1 | K68: 1

Sheet BDD_G5 (hidden)
B1: Logiciel PAC_2020 v2
D2: =Calculs!L93 -> INSTALLATIONS ET ACCESSOIRES pour la gamme BDD_G5 : flexoTHERM exclusive eau glycolée / eau | G2: Q-commun | H2: EI-commun | I2: commun-EI | J2: commun | K2: H-EI-commun | L2: H-commun-EI | M2: H-commun | N2: Hext-commun-EI | O2: Hext-commun | P2: Q-E-commun | Q2: EI-E-commun | R2: E-commun-EI | S2: E-commun | T2: E-H-EI-commun | U2: E-H-commun-EI | V2: E-H-commun | W2: E-Hext-commun-EI | X2: E-Hext-commun | Y2: Cascade de PAC
B3: 02/08/2022 | G3: 1 | H3: 2 | I3: 3 | J3: 4 | K3: 5 | L3: 6 | M3: 7 | N3: 8 | O3: 9 | P3: 10 | Q3: 11 | R3: 12 | S3: 13 | T3: 14 | U3: 15 | V3: 16 | W3: 17 | X3: 18
E4: ="Recherche la configuration >> "&Calculs!$C$2018&" << =>" -> Recherche la configuration >> colonne << => | F4: Schéma | G4: colonne | H4: ballon ECS avant bouteille | I4: ballon ECS aprés bouteille | J4: chauffage seul | K4: Hybride et ballon ECS avant Bouteille | L4: hybride et ballon ECS aprés bouteille | M4: hybride chauffage seul | N4: hybride non Ebus et ballon ECS aprés bouteille | O4: hybride non Ebus chauffage seul | P4: colonne avec echangeur glycol | Q4: ballon ECS avant bouteille avec echangeur glycol | R4: ballon ECS aprés bouteille avec echangeur glycol | S4: Chauffage Seul avec echangeur glycol | T4: hybride et ballon ECS avant bouteille avec echangeur glycol | U4: hybride et ballon ECS aprés bouteille avec echangeur glycol | V4: hybride chauffage Seul avec echangeur glycol | W4: hybride non Ebus et ballon ECS aprés bouteille avec echangeur glycol | X4: hybride non Ebus chauffage seul avec echangeur glycol | Y4: Nombre de PAC valeur à multipliers au accessoires
B5: Vers PARAMETRAGE | F5: Appoint | G5: Appoint interne | H5: Appoint interne | I5: Appoint interne | J5: Appoint interne | K5: Chaudière neuve | L5: Chaudière neuve | M5: Chaudière neuve | N5: Chaudière existante | O5: Chaudière existante | P5: Appoint interne | Q5: Appoint interne | R5: Appoint interne | S5: Appoint interne | T5: Chaudière neuve | U5: Chaudière neuve | V5: Chaudière neuve | W5: Chaudière existante | X5: Chaudière existante | Y5: =_xlfn.NUMBERVALUE(Calculs!$C$2173) -> 1
F6: Mode gestion | G6: Simultané | H6: Simultané | I6: Simultané | J6: Simultané | K6: Simultané | L6: Simultané | M6: Simultané | N6: Simultané | O6: Simultané | P6: Simultané | Q6: Simultané | R6: Simultané | S6: Simultané | T6: Simultané | U6: Simultané | V6: Simultané | W6: Simultané | X6: Simultané
F7: ECS | G7: Var. impossible | H7: Var. possible | I7: Var. possible | J7: Var. possible | K7: Var. possible | L7: Var. possible | M7: Var. impossible | N7: Var. impossible | O7: Var. possible | P7: Var. possible | Q7: Var. possible | R7: Var. possible | S7: Var. possible | T7: Var. impossible | U7: Var. possible | V7: Var. impossible | W7: Var. possible | X7: Var. impossible
F8: =Calculs!D39 -> Régulation : | G8: Var. possible | H8: Var. possible | I8: Var. possible | J8: Var. possible | K8: Var. possible | L8: Var. possible | M8: Var. possible | N8: Var. possible | O8: Var. possible | P8: Var. possible | Q8: Var. possible | R8: Var. possible | S8: Var. possible | T8: Var. possible | U8: Var. possible | V8: Var. possible | W8: Var. possible | X8: Var. possible
F9: =Calculs!D40 -> Connectivité : | G9: Var. possible | H9: Var. possible | I9: Var. possible | J9: Var. possible | K9: Var. possible | L9: Var. possible | M9: Var. possible | N9: Var. possible | O9: Var. possible | P9: Var. possible | Q9: Var. possible | R9: Var. possible | S9: Var. possible | T9: Var. possible | U9: Var. possible | V9: Var. possible | W9: Var. possible | X9: Var. possible
F10: =Calculs!D41 -> source d'énergie sur | G10: Var. possible | H10: Var. possible | I10: Var. possible | J10: Var. possible | K10: Var. possible | L10: Var. possible | M10: Var. possible | N10: Var. possible | O10: Var. possible | P10: Var. possible | Q10: Var. possible | R10: Var. possible | S10: Var. possible | T10: Var. possible | U10: Var. possible | V10: Var. possible | W10: Var. possible | X10: Var. possible
F11: =Calculs!D42 -> Raccordements : | G11: Var. possible | H11: Var. possible | I11: Var. possible | J11: Var. possible | K11: Var. possible | L11: Var. possible | M11: Var. possible | N11: Var. possible | O11: Var. possible | P11: Var. possible | Q11: Var. possible | R11: Var. possible | S11: Var. possible | T11: Var. possible | U11: Var. possible | V11: Var. possible | W11: Var. possible | X11: Var. possible
F12: =Calculs!D43 -> Passive cooling : | G12: Var. possible | H12: Var. possible | I12: Var. possible | J12: Var. possible | K12: Var. possible | L12: Var. possible | M12: Var. possible | N12: Var. possible | O12: Var. possible | P12: Var. possible | Q12: Var. possible | R12: Var. possible | S12: Var. possible | T12: Var. possible | U12: Var. possible | V12: Var. possible | W12: Var. possible | X12: Var. possible
F13: .
D14: Réf. | E14: Dénomination | F14: PU HT
D15: . | E15: Pompes à chaleur de la gamme | F15: . | G15: . | H15: . | I15: . | J15: . | K15: . | L15: . | M15: . | N15: . | O15: . | P15: . | Q15: . | R15: . | S15: . | U15: . | V15: . | W15: . | X15: .
D16: 0010016428 | E16: flexoTHERM exclusive - 5 kW - 230V | F16: =VLOOKUP(D16,MATRICE_VA,3,FALSE) -> 9911 | H16: 1 | I16: 1 | J16: 1 | K16: 1 | L16: 1 | M16: 1 | N16: 1 | O16: 1 | Y16: 1
D17: 0010016429 | E17: flexoTHERM exclusive - 8 kW - 230V | F17: 10868 | H17: 1 | I17: 1 | J17: 1 | K17: 1 | L17: 1 | M17: 1 | N17: 1 | O17: 1 | Y17: 1
D18: 0010016430 | E18: flexoTHERM exclusive - 11 kW - 230V | F18: 11103 | H18: 1 | I18: 1 | J18: 1 | K18: 1 | L18: 1 | M18: 1 | N18: 1 | O18: 1 | Y18: 1
D19: 0010016677 | E19: flexoTHERM exclusive - 5 kW - 3x400 V | F19: 9911 | H19: 1 | I19: 1 | J19: 1 | K19: 1 | L19: 1 | M19: 1 | N19: 1 | O19: 1 | Y19: =_xlfn.NUMBERVALUE($Y$5) -> 1
D20: 0010016678 | E20: flexoTHERM exclusive - 8 kW - 3x400 V | F20: 10973 | H20: 1 | I20: 1 | J20: 1 | K20: 1 | L20: 1 | M20: 1 | N20: 1 | O20: 1 | Y20: =_xlfn.NUMBERVALUE($Y$5) -> 1
D21: 0010016679 | E21: flexoTHERM exclusive - 11 kW - 3x400 V | F21: 11207 | H21: 1 | I21: 1 | J21: 1 | K21: 1 | L21: 1 | M21: 1 | N21: 1 | O21: 1
D22: 0010016680 | E22: flexoTHERM exclusive - 15 kW - 3x400 V | F22: 12525 | H22: =$Y22 -> 1 | I22: 1 | J22: 1 | K22: 1 | L22: 1 | M22: 1 | N22: 1 | O22: 1 | Y22: =_xlfn.NUMBERVALUE($Y$5) -> 1
D23: 0010016681 | E23: flexoTHERM exclusive - 19 kW - 3x400 V | F23: 13865 | H23: 1 | I23: 1 | J23: 1 | K23: 1 | L23: 1 | M23: 1 | N23: 1 | O23: 1 | Y23: =_xlfn.NUMBERVALUE($Y$5) -> 1
D24: 0010016431 | E24: flexoCOMPACT exclusive - 5 kW - 230V | F24: =VLOOKUP(D24,MATRICE_VA,3,FALSE) -> 12365 | G24: 1
D25: 0010016432 | E25: flexoCOMPACT exclusive - 8 kW - 230V | F25: 12934 | G25: 1
D26: 0010016433 | E26: flexoCOMPACT exclusive - 11 kW - 230V | F26: 13375 | G26: 1
D27: 0010016682 | E27: flexoCOMPACT exclusive - 5 kW - 3x400 V | F27: 12471 | G27: 1
D28: 0010016683 | E28: flexoCOMPACT exclusive - 8 kW - 3x400 V | F28: 13035 | G28: 1
D29: 0010016684 | E29: flexoCOMPACT exclusive - 11 kW - 3x400 V | F29: 13482 | G29: 1
B30: PAC | C30: Puissance | D30: . | E30: Appoint électrique Option 1 | F30: . | G30: . | H30: . | I30: . | J30: . | O30: . | P30: . | Q30: . | R30: . | S30: .
B45: PAC | C45: Puissance | D45: . | E45: Appoint électrique Option 2 | F45: . | G45: . | H45: . | I45: . | J45: . | O45: . | P45: . | Q45: . | R45: . | S45: .
C60: Puissance | D60: . | E60: Chaudière | F60: . | G60: . | H60: . | I60: . | J60: . | O60: . | P60: . | Q60: . | R60: . | S60: .
E61: chaudière | F61: 0 | K61: 1 | L61: 1 | M61: 1 | T61: 1 | U61: 1 | V61: 1
D62: . | E62: Accessoires chaudière | F62: . | G62: . | H62: . | I62: . | J62: . | K62: . | L62: . | M62: . | N62: . | O62: . | P62: . | Q62: . | R62: . | S62: . | T62: . | U62: . | V62: . | W62: . | X62: .
A63: BDD_Acc_Ch
B75: PAC | C75: Obligatoire | D75: . | E75: Préparateur ECS | F75: . | G75: . | H75: . | I75: . | J75: . | O75: . | P75: . | Q75: . | R75: . | S75: .
C76: Non | D76: 302040 | E76: =VLOOKUP(D76,MATRICE_VA,2,FALSE) -> Mitigeur thermostatique | F76: =VLOOKUP(D76,MATRICE_VA,3,FALSE) -> 133 | G76: 1
C77: Non | D77: 305827 | E77: =VLOOKUP(D77,MATRICE_VA,2,FALSE) -> Grpe sécu. ballon sup. à 200l | F77: =VLOOKUP(D77,MATRICE_VA,3,FALSE) -> 159 | G77: 1
B90: PAC | C90: Obligatoire | D90: . | E90: Accessoires hydrauliques | F90: . | G90: . | H90: . | I90: . | J90: . | O90: . | P90: . | Q90: . | R90: . | S90: .
B91: flexoTHERM exclusive - 5 kW - 230V | C91: Non | D91: 302097 | E91: Vase d'expansion circuit primaire 18 l | F91: =VLOOKUP(D91,MATRICE_VA,3,FALSE) -> 106 | G91: 1 | H91: 1 | I91: 1 | J91: 1 | K91: 1 | L91: 1 | M91: 1 | N91: 1 | O91: 1
B92: flexoTHERM exclusive - 8 kW - 230V | C92: Non | D92: 302097 | E92: Vase d'expansion circuit primaire 18 l | F92: 106 | G92: 1 | H92: 1 | I92: 1 | J92: 1 | K92: 1 | L92: 1 | M92: 1 | N92: 1 | O92: 1
B93: flexoTHERM exclusive - 11 kW - 230V | C93: Non | D93: 302097 | E93: Vase d'expansion circuit primaire 18 l | F93: 106 | G93: 1 | H93: 1 | I93: 1 | J93: 1 | K93: 1 | L93: 1 | M93: 1 | N93: 1 | O93: 1
B94: flexoTHERM exclusive - 5 kW - 3x400 V | C94: Non | D94: 302097 | E94: Vase d'expansion circuit primaire 18 l | F94: 106 | G94: 1 | H94: 1 | I94: 1 | J94: 1 | K94: 1 | L94: 1 | M94: 1 | N94: 1 | O94: 1
B95: flexoTHERM exclusive - 8 kW - 3x400 V | C95: Non | D95: 302097 | E95: Vase d'expansion circuit primaire 18 l | F95: 106 | G95: 1 | H95: 1 | I95: 1 | J95: 1 | K95: 1 | L95: 1 | M95: 1 | N95: 1 | O95: 1
B96: flexoTHERM exclusive - 11 kW - 3x400 V | C96: Non | D96: 302097 | E96: Vase d'expansion circuit primaire 18 l | F96: 106 | G96: 1 | H96: 1 | I96: 1 | J96: 1 | K96: 1 | L96: 1 | M96: 1 | N96: 1 | O96: 1
B97: flexoTHERM exclusive - 15 kW - 3x400 V | C97: Non | D97: 302098 | E97: Vase d'expansion 25 l (fixation murale) | F97: 142 | G97: =1*$Y97 -> 1 | H97: 1 | I97: 1 | J97: 1 | K97: 1 | L97: 1 | M97: 1 | N97: 1 | O97: 1 | Y97: =_xlfn.NUMBERVALUE($Y$5) -> 1
B98: flexoTHERM exclusive - 19 kW - 3x400 V | C98: Non | D98: 302098 | E98: Vase d'expansion 25 l (fixation murale) | F98: 142 | G98: 1 | H98: 1 | I98: 1 | J98: 1 | K98: 1 | L98: 1 | M98: 1 | N98: 1 | O98: 1 | Y98: 1
B99: flexoCOMPACT exclusive - 5 kW - 230V | C99: Non | D99: 302097 | E99: Vase d'expansion circuit primaire 18 l | F99: 106 | G99: 1 | H99: 1 | I99: 1 | J99: 1 | K99: 1 | L99: 1 | M99: 1 | N99: 1 | O99: 1
B100: flexoCOMPACT exclusive - 8 kW - 230V | C100: Non | D100: 302097 | E100: Vase d'expansion circuit primaire 18 l | F100: 106 | G100: 1 | H100: 1 | I100: 1 | J100: 1 | K100: 1 | L100: 1 | M100: 1 | N100: 1 | O100: 1
B101: flexoCOMPACT exclusive - 11 kW - 230V | C101: Non | D101: 302097 | E101: Vase d'expansion circuit primaire 18 l | F101: 106 | G101: 1 | H101: 1 | I101: 1 | J101: 1 | K101: 1 | L101: 1 | M101: 1 | N101: 1 | O101: 1
B102: flexoCOMPACT exclusive - 5 kW - 3x400 V | C102: Non | D102: 302097 | E102: Vase d'expansion circuit primaire 18 l | F102: 106 | G102: 1 | H102: 1 | I102: 1 | J102: 1 | K102: 1 | L102: 1 | M102: 1 | N102: 1 | O102: 1
B103: flexoCOMPACT exclusive - 8 kW - 3x400 V | C103: Non | D103: 302097 | E103: Vase d'expansion circuit primaire 18 l | F103: 106 | G103: 1 | H103: 1 | I103: 1 | J103: 1 | K103: 1 | L103: 1 | M103: 1 | N103: 1 | O103: 1
B104: flexoCOMPACT exclusive - 11 kW - 3x400 V | C104: Non | D104: 302097 | E104: Vase d'expansion circuit primaire 18 l | F104: 106 | G104: 1 | H104: 1 | I104: 1 | J104: 1 | K104: 1 | L104: 1 | M104: 1 | N104: 1 | O104: 1
C116: Non | D116: 0020173592 | E116: Support mural du vase d'expansion | F116: 102 | G116: 1 | H116: 1 | I116: 1 | J116: 1 | K116: 1 | L116: 1 | M116: 1 | N116: 1 | O116: 1 | Y116: 1
C118: Non | D118: 0020106265 | E118: Module d'isolement et de remplissage eau glycolée | F118: =VLOOKUP(D118,MATRICE_VA,3,FALSE) -> 584 | G118: =1*$Y118 -> 1 | H118: 1 | I118: 1 | J118: 1 | K118: 1 | L118: 1 | M118: 1 | N118: 1 | O118: 1 | Y118: 1
A119: BDD_Commun
B349: PAC | C349: Obligatoire | D349: . | E349: =Calculs!L$95 -> Accessoires ECS : chaudière seule ou électrique | F349: =Calculs!M$95 -> . | G349: . | H349: . | I349: . | J349: . | O349: . | P349: . | Q349: . | R349: . | S349: .
B360: PAC | C360: Obligatoire | D360: . | E360: =Calculs!L$96 -> Accessoires ECS : Ballon ECS 200 l | F360: =Calculs!M$96 -> . | G360: . | H360: . | I360: . | J360: . | O360: . | P360: . | Q360: . | R360: . | S360: .
C361: Non | D361: 0020214407 | E361: =VLOOKUP(D361,MATRICE_VA,2,FALSE) -> Ballon uniSTOR VIH RW 200 | F361: =VLOOKUP(D361,MATRICE_VA,3,FALSE) -> 1850 | H361: 1 | I361: 1 | K361: 1 | L361: 1 | N361: 1 | Q361: 1 | R361: 1 | T361: 1 | U361: 1 | W361: 1
C368: Non | D368: 302040 | E368: =VLOOKUP(D368,MATRICE_VA,2,FALSE) -> Mitigeur thermostatique | F368: =VLOOKUP(D368,MATRICE_VA,3,FALSE) -> 133 | H368: 1 | I368: 1 | K368: 1 | L368: 1 | N368: 1 | Q368: 1 | R368: 1 | T368: 1 | U368: 1 | W368: 1
C369: Non | D369: 305827 | E369: =VLOOKUP(D369,MATRICE_VA,2,FALSE) -> Grpe sécu. ballon sup. à 200l | F369: =VLOOKUP(D369,MATRICE_VA,3,FALSE) -> 159 | H369: 1 | I369: 1 | K369: 1 | L369: 1 | N369: 1 | Q369: 1 | R369: 1 | T369: 1 | U369: 1 | W369: 1
C370: Ajustez les quantités | D370: 306787 | E370: =VLOOKUP(D370,MATRICE_VA,2,FALSE) -> Sonde temp. sans connecteur | F370: =VLOOKUP(D370,MATRICE_VA,3,FALSE) -> 20 | H370: 1 | I370: 1 | K370: 1 | L370: 1 | N370: 1 | Q370: 1 | R370: 1 | T370: 1 | U370: 1 | W370: 1
B371: PAC | C371: Obligatoire | D371: . | E371: =Calculs!L$97 -> Accessoires ECS : Ballon ECS 300 l | F371: =Calculs!M$96 -> . | G371: . | H371: . | I371: . | J371: . | N371: . | Q371: . | R371: . | T371: .
C372: Non | D372: 0010020645 | E372: =VLOOKUP(D372,MATRICE_VA,2,FALSE) -> Ballon uniSTOR VIH RW 300/3 BR | F372: =VLOOKUP(D372,MATRICE_VA,3,FALSE) -> 2150 | H372: 1 | I372: 1 | K372: 1 | L372: 1 | N372: 1 | Q372: 1 | R372: 1 | T372: 1 | U372: 1 | W372: 1
C379: Non | D379: 302040 | E379: =VLOOKUP(D379,MATRICE_VA,2,FALSE) -> Mitigeur thermostatique | F379: =VLOOKUP(D379,MATRICE_VA,3,FALSE) -> 133 | H379: 1 | I379: 1 | K379: 1 | L379: 1 | N379: 1 | Q379: 1 | R379: 1 | T379: 1 | U379: 1 | W379: 1
C380: Non | D380: 305827 | E380: =VLOOKUP(D380,MATRICE_VA,2,FALSE) -> Grpe sécu. ballon sup. à 200l | F380: =VLOOKUP(D380,MATRICE_VA,3,FALSE) -> 159 | H380: 1 | I380: 1 | K380: 1 | L380: 1 | N380: 1 | Q380: 1 | R380: 1 | T380: 1 | U380: 1 | W380: 1
C381: Ajustez les quantités | D381: 306787 | E381: =VLOOKUP(D381,MATRICE_VA,2,FALSE) -> Sonde temp. sans connecteur | F381: =VLOOKUP(D381,MATRICE_VA,3,FALSE) -> 20 | H381: 1 | I381: 1 | K381: 1 | L381: 1 | N381: 1 | Q381: 1 | R381: 1 | T381: 1 | U381: 1 | W381: 1
B382: PAC | C382: Obligatoire | D382: . | E382: =Calculs!L$98 -> Accessoires ECS : Ballon ECS 400 l | F382: =Calculs!M$96 -> . | G382: . | H382: . | I382: . | J382: . | N382: . | Q382: . | R382: . | T382: .
C383: Non | D383: 0010020646 | E383: =VLOOKUP(D383,MATRICE_VA,2,FALSE) -> Ballon uniSTOR VIH RW 400/3 BR | F383: =VLOOKUP(D383,MATRICE_VA,3,FALSE) -> 2510 | H383: 1 | I383: 1 | K383: 1 | L383: 1 | N383: 1 | Q383: 1 | R383: 1 | T383: 1 | U383: 1 | W383: 1
C390: Non | D390: 302040 | E390: =VLOOKUP(D390,MATRICE_VA,2,FALSE) -> Mitigeur thermostatique | F390: =VLOOKUP(D390,MATRICE_VA,3,FALSE) -> 133 | H390: 1 | I390: 1 | K390: 1 | L390: 1 | N390: 1 | Q390: 1 | R390: 1 | T390: 1 | U390: 1 | W390: 1
C391: Non | D391: 305827 | E391: =VLOOKUP(D391,MATRICE_VA,2,FALSE) -> Grpe sécu. ballon sup. à 200l | F391: =VLOOKUP(D391,MATRICE_VA,3,FALSE) -> 159 | H391: 1 | I391: 1 | K391: 1 | L391: 1 | N391: 1 | Q391: 1 | R391: 1 | T391: 1 | U391: 1 | W391: 1
C392: Ajustez les quantités | D392: 306787 | E392: =VLOOKUP(D392,MATRICE_VA,2,FALSE) -> Sonde temp. sans connecteur | F392: =VLOOKUP(D392,MATRICE_VA,3,FALSE) -> 20 | H392: 1 | I392: 1 | K392: 1 | L392: 1 | N392: 1 | Q392: 1 | R392: 1 | T392: 1 | U392: 1 | W392: 1
B393: PAC | C393: Obligatoire | D393: . | E393: =Calculs!L$99 -> Accessoires ECS : Ballon ECS 500 l | F393: =Calculs!M$96 -> . | G393: . | H393: . | I393: . | J393: . | N393: . | Q393: . | R393: . | T393: .
C394: Non | D394: 0010020647 | E394: =VLOOKUP(D394,MATRICE_VA,2,FALSE) -> Ballon uniSTOR VIH RW 500/3 BR | F394: =VLOOKUP(D394,MATRICE_VA,3,FALSE) -> 3150 | H394: 1 | I394: 1 | K394: 1 | L394: 1 | N394: 1 | Q394: 1 | R394: 1 | T394: 1 | U394: 1 | W394: 1
C401: Non | D401: 302040 | E401: =VLOOKUP(D401,MATRICE_VA,2,FALSE) -> Mitigeur thermostatique | F401: =VLOOKUP(D401,MATRICE_VA,3,FALSE) -> 133 | H401: 1 | I401: 1 | K401: 1 | L401: 1 | N401: 1 | Q401: 1 | R401: 1 | T401: 1 | U401: 1 | W401: 1
C402: Non | D402: 305827 | E402: =VLOOKUP(D402,MATRICE_VA,2,FALSE) -> Grpe sécu. ballon sup. à 200l | F402: =VLOOKUP(D402,MATRICE_VA,3,FALSE) -> 159 | H402: 1 | I402: 1 | K402: 1 | L402: 1 | N402: 1 | Q402: 1 | R402: 1 | T402: 1 | U402: 1 | W402: 1
C403: Ajustez les quantités | D403: 306787 | E403: =VLOOKUP(D403,MATRICE_VA,2,FALSE) -> Sonde temp. sans connecteur | F403: =VLOOKUP(D403,MATRICE_VA,3,FALSE) -> 20 | H403: 1 | I403: 1 | K403: 1 | L403: 1 | N403: 1 | Q403: 1 | R403: 1 | T403: 1 | U403: 1 | W403: 1
B404: PAC | C404: Obligatoire | D404: . | E404: =Calculs!L$100 -> Accessoires ECS : Ballon ECS intégré | F404: =Calculs!M$100 -> . | G404: . | H404: . | I404: . | J404: . | O404: . | P404: . | Q404: . | R404: . | S404: .
B415: PAC | C415: Obligatoire | D415: . | E415: =Calculs!J$101 -> Régulation : sensocomfort vrc 720 (filaire) | F415: =Calculs!E$101 -> . | G415: . | H415: . | I415: . | J415: . | O415: . | P415: . | Q415: . | R415: . | S415: .
A416: BDD_Commun
B436: PAC | C436: Obligatoire | D436: . | E436: =Calculs!J$102 -> Régulation : sensocomfort vrc 720f (radio) | F436: =Calculs!E$102 -> . | G436: . | H436: . | I436: . | J436: . | O436: . | P436: . | Q436: . | R436: . | S436: .
B457: PAC | C457: Obligatoire | D457: . | E457: =Calculs!J$103 -> Accessoires régulation : multimatic vrc 700 (filaire) | F457: =Calculs!E$103 -> . | G457: . | H457: . | I457: . | J457: . | O457: . | P457: . | Q457: . | R457: . | S457: .
B478: PAC | C478: Obligatoire | D478: . | E478: =Calculs!D$104 ->  | F478: =Calculs!E$104 ->  | G478: . | H478: . | I478: . | J478: . | O478: . | P478: . | Q478: . | R478: . | S478: .
B499: PAC | C499: Obligatoire | D499: . | E499: =Calculs!D$105 ->  | F499: =Calculs!E$105 ->  | G499: . | H499: . | I499: . | J499: . | O499: . | P499: . | Q499: . | R499: . | S499: .
A500: BDD_Commun
B520: PAC | C520: Obligatoire | D520: . | E520: =Calculs!L$106 -> Connectivité : myvaillant connect | F520: =Calculs!M$106 -> . | G520: . | H520: . | I520: . | J520: . | O520: . | P520: . | Q520: . | R520: . | S520: .
C521: Oui | D521: 0020260962 | E521: =VLOOKUP(D521,MATRICE_VA,2,FALSE) -> sensoNET eBUS (230 V) | F521: =VLOOKUP(D521,MATRICE_VA,3,FALSE) -> 190 | G521: 1 | H521: 1 | I521: 1 | J521: 1 | K521: 1 | L521: 1 | M521: 1 | N521: 1 | O521: 1 | P521: 1 | Q521: 1 | R521: 1 | S521: 1 | T521: 1 | U521: 1 | V521: 1 | W521: 1 | X521: 1
C522: Ajustez les quantités | D522: 0010048535 | E522: =VLOOKUP(D522,MATRICE_VA,2,FALSE) -> Superposition Plug&Play | F522: =VLOOKUP(D522,MATRICE_VA,3,FALSE) -> 6 | K522: 1 | L522: 1 | M522: 1 | T522: 1 | U522: 1 | V522: 1
B531: PAC | C531: Obligatoire | D531: . | E531: =Calculs!L$107 -> Connectivité : sans | F531: =Calculs!M$107 -> . | G531: . | H531: . | I531: . | J531: . | O531: . | P531: . | Q531: . | R531: . | S531: .
B542: PAC | C542: Obligatoire | D542: . | E542: =Calculs!L$108 ->  | F542: =Calculs!M$108 ->  | G542: . | H542: . | I542: . | J542: . | O542: . | P542: . | Q542: . | R542: . | S542: .
B553: PAC | C553: Obligatoire | D553: . | E553: =Calculs!D$109 ->  | F553: =Calculs!E$109 ->  | G553: . | H553: . | I553: . | J553: . | O553: . | P553: . | Q553: . | R553: . | S553: .
B564: PAC | C564: Obligatoire | D564: . | E564: =Calculs!D$110 ->  | F564: =Calculs!E$110 ->  | G564: . | H564: . | I564: . | J564: . | O564: . | P564: . | Q564: . | R564: . | S564: .
B575: PAC | C575: Obligatoire | D575: . | E575: =Calculs!L$111 -> Accessoires source d'énergie sur air | F575: =Calculs!M$111 -> . | G575: . | H575: . | I575: . | J575: . | K575: . | L575: . | M575: . | N575: . | O575: . | P575: . | Q575: . | R575: . | S575: . | T575: . | U575: . | V575: . | W575: . | X575: . | Y575: .
C576: Ajustez les quantités | D576: 0020106265 | E576: Module d'isolement et de remplissage eau glycolée | F576: =VLOOKUP(D576,MATRICE_VA,3,FALSE) -> 584 | G576: 1
C577: Oui | D577: A prévoir | E577: Captage horizontal | F577: - | G577: 1 | L577: 2
B586: PAC | C586: Obligatoire | D586: . | E586: =Calculs!L$112 -> Accessoires source d'énergie sur captage horizontal | F586: =Calculs!M$112 -> . | G586: . | H586: . | I586: . | J586: . | K586: . | L586: . | M586: . | N586: . | O586: . | P586: . | Q586: . | R586: . | S586: . | T586: . | U586: . | V586: . | W586: . | X586: .
C588: Oui | D588: A prévoir | E588: captage horizontal non fourni | F588: - | G588: 1 | H588: 1 | I588: 1 | J588: 1 | K588: 1 | L588: 1 | M588: 1 | N588: 1 | O588: 1 | P588: 1 | Q588: 1 | R588: 1 | S588: 1 | T588: 1 | U588: 1 | V588: 1 | W588: 1 | X588: 1
B597: PAC | C597: Obligatoire | D597: . | E597: =Calculs!L$113 -> Accessoires source d'énergie sur captage vertical | F597: =Calculs!M$113 -> . | G597: . | H597: . | I597: . | J597: . | O597: . | P597: . | Q597: . | R597: . | S597: .
C599: Oui | D599: A prévoir | E599: Sondes verticales non fournies | F599: - | G599: 1 | H599: 1 | I599: 1 | J599: 1 | K599: 1 | L599: 1 | M599: 1 | N599: 1 | O599: 1 | P599: 1 | Q599: 1 | R599: 1 | S599: 1 | T599: 1 | U599: 1 | V599: 1 | W599: 1 | X599: 1
B608: PAC | C608: Obligatoire | D608: . | E608: =Calculs!L$114 -> Accessoires source d'énergie sur eau de nappe | F608: =Calculs!E$114 ->  | G608: . | H608: . | I608: . | J608: . | O608: . | P608: . | Q608: . | R608: . | S608: .
B609: flexoTHERM exclusive - 5 kW - 230V | C609: Oui | D609: 0010016719 | E609: Module Eau / Eau fluoCOLLECT 11 kW | F609: =VLOOKUP(D609,MATRICE_VA,3,FALSE) -> 2000 | H609: =$Y609 -> 1 | I609: 1 | J609: 1 | K609: 1 | L609: 1 | M609: 1 | N609: 1 | O609: 1 | Y609: =_xlfn.NUMBERVALUE($Y$5) -> 1
B610: flexoTHERM exclusive - 8 kW - 230V | C610: Oui | D610: 0010016719 | E610: Module Eau / Eau fluoCOLLECT 11 kW | F610: 2000 | H610: 1 | I610: 1 | J610: 1 | K610: 1 | L610: 1 | M610: 1 | N610: 1 | O610: 1 | Y610: 1
B611: flexoTHERM exclusive - 11 kW - 230V | C611: Oui | D611: 0010016719 | E611: Module Eau / Eau fluoCOLLECT 11 kW | F611: 2000 | H611: 1 | I611: 1 | J611: 1 | K611: 1 | L611: 1 | M611: 1 | N611: 1 | O611: 1 | Y611: 1
B612: flexoTHERM exclusive - 5 kW - 3x400 V | C612: Oui | D612: 0010016719 | E612: Module Eau / Eau fluoCOLLECT 11 kW | F612: 2000 | H612: 1 | I612: 1 | J612: 1 | K612: 1 | L612: 1 | M612: 1 | N612: 1 | O612: 1 | Y612: 1
B613: flexoTHERM exclusive - 8 kW - 3x400 V | C613: Oui | D613: 0010016719 | E613: Module Eau / Eau fluoCOLLECT 11 kW | F613: 2000 | H613: 1 | I613: 1 | J613: 1 | K613: 1 | L613: 1 | M613: 1 | N613: 1 | O613: 1 | Y613: 1
B614: flexoTHERM exclusive - 11 kW - 3x400 V | C614: Oui | D614: 0010016719 | E614: Module Eau / Eau fluoCOLLECT 11 kW | F614: 2000 | H614: 1 | I614: 1 | J614: 1 | K614: 1 | L614: 1 | M614: 1 | N614: 1 | O614: 1 | Y614: 1
B615: flexoTHERM exclusive - 15 kW - 3x400 V | C615: Oui | D615: 0010016720 | E615: Module Eau / Eau fluoCOLLECT 19 kW | F615: 2684 | H615: 1 | I615: 1 | J615: 1 | K615: 1 | L615: 1 | M615: 1 | N615: 1 | O615: 1 | Y615: 1
B616: flexoTHERM exclusive - 19 kW - 3x400 V | C616: Oui | D616: 0010016720 | E616: Module Eau / Eau fluoCOLLECT 19 kW | F616: 2684 | H616: 1 | I616: 1 | J616: 1 | K616: 1 | L616: 1 | M616: 1 | N616: 1 | O616: 1 | Y616: 1
C617: Oui | D617: A prévoir | E617: Pompe de puits / Filtre / relais électrique… | F617: - | G617: 1 | H617: 1 | I617: 1 | J617: 1 | K617: 1 | L617: 1 | M617: 1 | N617: 1 | O617: 1
C618: Oui | D618: 0010016719 | E618: Module Eau / Eau fluoCOLLECT 11 kW | F618: =VLOOKUP(D618,MATRICE_VA,3,FALSE) -> 2000 | G618: 1
B619: PAC | C619: Obligatoire | D619: . | E619: =Calculs!D$115 ->  | F619: =Calculs!E$115 ->  | G619: . | H619: . | I619: . | J619: . | O619: . | P619: . | Q619: . | R619: . | S619: .
B630: PAC | C630: Obligatoire | D630: . | E630: =Calculs!L116 -> Accessoires Raccordements : Verticaux | F630: =Calculs!M$116 -> . | G630: . | H630: . | I630: . | J630: . | O630: . | P630: . | Q630: . | R630: . | S630: .
C631: Non | D631: 0020212716 | E631: Kit de raccordement pour flexoTHERM, départs verticaux | F631: =VLOOKUP(D631,MATRICE_VA,3,FALSE) -> 234 | H631: =$Y631 -> 1 | I631: 1 | J631: 1 | K631: 1 | L631: 1 | M631: 1 | N631: 1 | O631: 1 | Y631: =_xlfn.NUMBERVALUE($Y$5) -> 1
C632: Non | D632: 0020212718 | E632: Kit de raccordement pour flexoCOMPACT, départs verticaux | F632: 190 | G632: 1
B641: PAC | C641: Obligatoire | D641: . | E641: =Calculs!L117 -> Accessoires Raccordements : Horizontaux | F641: =Calculs!M$117 -> . | G641: . | H641: . | I641: . | J641: . | O641: . | P641: . | Q641: . | R641: . | S641: .
D642: 0020212715 | E642: Kit de raccordement pour flexoTHERM, départs horizontaux | F642: =VLOOKUP(D642,MATRICE_VA,3,FALSE) -> 197 | H642: =$Y642 -> 1 | I642: 1 | J642: 1 | K642: 1 | L642: 1 | M642: 1 | N642: 1 | O642: 1 | Y642: =_xlfn.NUMBERVALUE($Y$5) -> 1
D643: 0020212717 | E643: Kit de raccordement pour flexoCOMPACT, départs horizontaux | F643: 159 | G643: 1 | Y643: 1
Y644: 1
Y645: 1
Y646: 1
Y647: 1
B652: PAC | C652: Obligatoire | D652: . | E652: =Calculs!L118 -> Accessoires Raccordements : Kit d'installation complet pour passive cooling | F652: =Calculs!M$118 -> . | G652: . | H652: . | I652: . | J652: . | O652: . | P652: . | Q652: . | R652: . | S652: .
D653: 0020229713 | E653: =VLOOKUP(D653,MATRICE_VA,2,FALSE) -> Kit pré-install flexoTHERM | F653: =VLOOKUP(D653,MATRICE_VA,3,FALSE) -> 1731 | H653: 1 | I653: 1 | J653: 1 | K653: 1 | L653: 1 | M653: 1 | N653: 1 | O653: 1
D654: 0020205412 | E654: Kit de pré-installation flexoCOMPACT | F654: =VLOOKUP(D654,MATRICE_VA,3,FALSE) -> 1731 | G654: 1
B663: PAC | C663: Obligatoire | D663: . | E663: =Calculs!L119 ->  | F663: =Calculs!E$119 ->  | G663: . | H663: . | I663: . | J663: . | O663: . | P663: . | Q663: . | R663: . | S663: .
B674: PAC | C674: Obligatoire | D674: . | E674: =Calculs!L$120 ->  | F674: =Calculs!E$120 ->  | G674: . | H674: . | I674: . | J674: . | O674: . | P674: . | Q674: . | R674: . | S674: .
B685: PAC | C685: Obligatoire | D685: . | E685: =Calculs!L$121 -> Accessoires Passive cooling : Oui | F685: =Calculs!M$121 -> . | G685: . | H685: . | I685: . | J685: . | O685: . | P685: . | Q685: . | R685: . | S685: .
B686: flexoTHERM exclusive - 5 kW - 230V | C686: Ajustez les quantités | D686: 0010016721 | E686: Kit de refroidissement 11 kW | F686: =VLOOKUP(D686,MATRICE_VA,3,FALSE) -> 1110 | H686: =$Y686 -> 1 | I686: 1 | J686: 1 | K686: 1 | L686: 1 | M686: 1 | N686: 1 | O686: 1 | Y686: =_xlfn.NUMBERVALUE($Y$5) -> 1
B687: flexoTHERM exclusive - 8 kW - 230V | C687: Ajustez les quantités | D687: 0010016721 | E687: Kit de refroidissement 11 kW | F687: 1110 | H687: 1 | I687: 1 | J687: 1 | K687: 1 | L687: 1 | M687: 1 | N687: 1 | O687: 1 | Y687: 1
B688: flexoTHERM exclusive - 11 kW - 230V | C688: Ajustez les quantités | D688: 0010016721 | E688: Kit de refroidissement 11 kW | F688: 1110 | H688: 1 | I688: 1 | J688: 1 | K688: 1 | L688: 1 | M688: 1 | N688: 1 | O688: 1 | Y688: 1
B689: flexoTHERM exclusive - 5 kW - 3x400 V | C689: Ajustez les quantités | D689: 0010016721 | E689: Kit de refroidissement 11 kW | F689: 1110 | H689: 1 | I689: 1 | J689: 1 | K689: 1 | L689: 1 | M689: 1 | N689: 1 | O689: 1 | Y689: 1
B690: flexoTHERM exclusive - 8 kW - 3x400 V | C690: Ajustez les quantités | D690: 0010016721 | E690: Kit de refroidissement 11 kW | F690: 1110 | H690: 1 | I690: 1 | J690: 1 | K690: 1 | L690: 1 | M690: 1 | N690: 1 | O690: 1 | Y690: 1
B691: flexoTHERM exclusive - 11 kW - 3x400 V | C691: Ajustez les quantités | D691: 0010016721 | E691: Kit de refroidissement 11 kW | F691: 1110 | H691: 1 | I691: 1 | J691: 1 | K691: 1 | L691: 1 | M691: 1 | N691: 1 | O691: 1 | Y691: 1
B692: flexoTHERM exclusive - 15 kW - 3x400 V | C692: Ajustez les quantités | D692: 0010016722 | E692: Kit de refroidissement 19 kW | F692: 1326 | H692: 1 | I692: 1 | J692: 1 | K692: 1 | L692: 1 | M692: 1 | N692: 1 | O692: 1 | Y692: 1
B693: flexoTHERM exclusive - 19 kW - 3x400 V | C693: Ajustez les quantités | D693: 0010016722 | E693: Kit de refroidissement 19 kW | F693: 1326 | H693: 1 | I693: 1 | J693: 1 | K693: 1 | L693: 1 | M693: 1 | N693: 1 | O693: 1 | Y693: 1
C694: Oui | D694: 0010016721 | E694: Kit de refroidissement 11 kW | F694: =VLOOKUP(D694,MATRICE_VA,3,FALSE) -> 1110 | G694: 1
B696: PAC | C696: Obligatoire | D696: . | E696: =Calculs!L$122 -> Accessoires Passive cooling : Non | F696: =Calculs!M$122 -> . | G696: . | H696: . | I696: . | J696: . | O696: . | P696: . | Q696: . | R696: . | S696: .
B707: PAC | C707: Obligatoire | D707: . | E707: =Calculs!L$123 ->  | F707: =Calculs!K$123 ->  | G707: . | H707: . | I707: . | J707: . | O707: . | P707: . | Q707: . | R707: . | S707: .
B718: PAC | C718: Obligatoire | D718: . | E718: =Calculs!J$124 ->  | F718: =Calculs!K$124 ->  | G718: . | H718: . | I718: . | J718: . | O718: . | P718: . | Q718: . | R718: . | S718: .
B729: PAC | C729: Obligatoire | D729: . | E729: =Calculs!J$125 ->  | F729: =Calculs!E$125 -> . | G729: . | H729: . | I729: . | J729: . | O729: . | P729: . | Q729: . | R729: . | S729: .
B740: PAC | C740: Obligatoire | D740: . | E740: Mise en service | F740: . | G740: . | H740: . | I740: . | J740: . | K740: . | L740: . | M740: . | N740: . | O740: . | P740: . | Q740: . | R740: . | S740: . | T740: . | U740: . | V740: . | W740: . | X740: . | Y740: .
C741: Oui | D741: 0010028538 | E741: =VLOOKUP(D741,MATRICE_VA,2,FALSE) -> Mise en service pompe à chaleur (à commander sur la plateforme e-SERVICES) | F741: =VLOOKUP(D741,MATRICE_VA,3,FALSE) -> 350 | G741: =$Y741 -> 1 | H741: 1 | I741: 1 | J741: 1 | K741: 1 | L741: 1 | M741: 1 | N741: 1 | O741: 1 | P741: 1 | Q741: 1 | R741: 1 | S741: 1 | T741: 1 | U741: 1 | V741: 1 | W741: 1 | X741: =$Y741 -> 1 | Y741: =_xlfn.NUMBERVALUE($Y$5) -> 1
B751: PAC | C751: Obligatoire | D751: . | E751: Matériel à prévoir | F751: . | G751: . | H751: . | I751: . | J751: . | O751: . | P751: . | Q751: . | R751: . | S751: .
C752: Ajustez les quantités | D752: 302363 | E752: Mélange d'eau glycolée - 10 litres pour solaire et PAC aérothermique | F752: =VLOOKUP(D752,MATRICE_VA,3,FALSE) ->  | G752: 1 | H752: 1 | I752: 1 | J752: 1 | K752: 1 | L752: =$Y752 -> 1 | M752: 1 | N752: 1 | O752: 1 | P752: 1 | Q752: 1 | R752: 1 | S752: 1 | T752: 1 | U752: 1 | V752: 1 | W752: 1 | X752: =$Y752 -> 1 | Y752: =_xlfn.NUMBERVALUE($Y$5) -> 1
C753: Ajustez les quantités | D753: 302498 | E753: Mélange d'eau glycolée - 20 litres pour solaire et PAC aérothermique | F753: =VLOOKUP(D753,MATRICE_VA,3,FALSE) ->  | G753: 1 | H753: 1 | I753: 1 | J753: 1 | K753: 1 | M753: 1 | V753: 1 | X753: 1
C754: Ajustez les quantités | D754: A prévoir | E754: Filtre à tamis sur le retour PAC | F754: - | G754: =$Y754 -> 1 | H754: 1 | I754: 1 | J754: 1 | K754: 1 | L754: 1 | M754: 1 | N754: 1 | O754: 1 | P754: 1 | Q754: 1 | R754: 1 | S754: 1 | T754: 1 | U754: 1 | V754: 1 | W754: 1 | X754: =$Y754 -> 1 | Y754: =_xlfn.NUMBERVALUE($Y$5) -> 1
C755: Ajustez les quantités | D755: A prévoir | E755: Soupape différentielle (repère 9d) | F755: - | G755: 1 | H755: 1 | I755: 1 | J755: 1 | K755: 1 | L755: 1 | M755: 1 | N755: 1 | O755: 1 | P755: 1 | Q755: 1 | R755: 1 | S755: 1 | T755: 1 | U755: 1 | V755: 1 | W755: 1 | X755: 1
B756: flexoTHERM exclusive VWF 57/4-5 - 400V + aroCOLLECT | D756: A prévoir | E756: Volume tampon minimal de 60 l | F756: - | G756: 1 | H756: 1 | I756: 1 | J756: 1 | K756: 1 | L756: 1 | M756: 1 | N756: 1 | O756: 1 | P756: 1 | Q756: 1 | R756: 1 | S756: 1 | T756: 1 | U756: 1 | V756: 1 | W756: 1 | X756: 1
B757: flexoTHERM exclusive VWF 87/4-5 - 400V + aroCOLLECT | D757: A prévoir | E757: Volume tampon minimal de 100 l | F757: - | G757: 1 | H757: 1 | I757: 1 | J757: 1 | K757: 1 | L757: 1 | M757: 1 | N757: 1 | O757: 1 | P757: 1 | Q757: 1 | R757: 1 | S757: 1 | T757: 1 | U757: 1 | V757: 1 | W757: 1 | X757: 1
B758: flexoTHERM exclusive VWF 117/4-5 - 400V + aroCOLLECT | D758: A prévoir | E758: Volume tampon minimal de 140 l | F758: - | G758: 1 | H758: 1 | I758: 1 | J758: 1 | K758: 1 | L758: 1 | M758: 1 | N758: 1 | O758: 1 | P758: 1 | Q758: 1 | R758: 1 | S758: 1 | T758: 1 | U758: 1 | V758: 1 | W758: 1 | X758: 1
B759: flexoTHERM exclusive VWF 157/4-5 - 400V + aroCOLLECT | D759: A prévoir | E759: Volume tampon minimal de 170 l | F759: - | G759: =$Y759 -> 1 | H759: 1 | I759: 1 | J759: 1 | K759: 1 | L759: 1 | M759: 1 | N759: 1 | O759: 1 | P759: 1 | Q759: 1 | R759: 1 | S759: 1 | T759: 1 | U759: 1 | V759: 1 | W759: =$Y759 -> 1 | X759: 1 | Y759: =IF(_xlfn.NUMBERVALUE($Y$5)>1,0,1) -> 1
B760: flexoTHERM exclusive VWF 197/4-5 - 400V + aroCOLLECT | D760: A prévoir | E760: Volume tampon minimal de 240 l | F760: - | G760: 1 | H760: 1 | I760: 1 | J760: 1 | K760: 1 | L760: 1 | M760: 1 | N760: 1 | O760: 1 | P760: 1 | Q760: 1 | R760: 1 | S760: 1 | T760: 1 | U760: 1 | V760: 1 | W760: 1 | X760: 1 | Y760: =IF(_xlfn.NUMBERVALUE($Y$5)>1,0,1) -> 1
B761: FlexoCOMPACT exclusive VWF 58/4-5 - 400V + aroCOLLEC | D761: A prévoir | E761: Volume tampon minimal de 60 l | F761: - | G761: 1 | H761: 1 | I761: 1 | J761: 1 | K761: 1 | L761: 1 | M761: 1 | N761: 1 | O761: 1 | P761: 1 | Q761: 1 | R761: 1 | S761: 1 | T761: 1 | U761: 1 | V761: 1 | W761: 1 | X761: 1
B762: FlexoCOMPACT exclusive VWF 88/4-5 - 400V + aroCOLLECT | D762: A prévoir | E762: Volume tampon minimal de 100 l | F762: - | G762: 1 | H762: 1 | I762: 1 | J762: 1 | K762: 1 | L762: 1 | M762: 1 | N762: 1 | O762: 1 | P762: 1 | Q762: 1 | R762: 1 | S762: 1 | T762: 1 | U762: 1 | V762: 1 | W762: 1 | X762: 1
B763: FlexoCOMPACT exclusive VWF 118/4-5 - 400V + aroCOLLECT | C763: Ajustez les quantités | D763: A prévoir | E763: Volume tampon minimal de 140 l | F763: - | G763: 1 | H763: 1 | I763: 1 | J763: 1 | K763: 1 | L763: 1 | M763: 1 | N763: 1 | O763: 1 | P763: 1 | Q763: 1 | R763: 1 | S763: 1 | T763: 1 | U763: 1 | V763: 1 | W763: 1 | X763: 1
C776: Ajustez les quantités | D776: A prévoir | E776: Vase expansion, soupape, manomètre. | F776: - | G776: 1 | H776: 1 | I776: 1 | J776: 1 | K776: 1 | L776: 1 | M776: 1 | U776: 1 | V776: 1 | W776: 1 | X776: 1
C777: Ajustez les quantités | D777: A prévoir | E777: En option circulateur bouclage sanitaire, vase expansion sanitaire… | F777: - | J777: 1 | K777: 1 | L777: 1 | M777: 1 | U777: 1 | V777: 1 | W777: 1 | X777: 1

Sheet BDD_G4 (hidden)
B1: Logiciel PAC_2020 v2
D2: =Calculs!J93 -> INSTALLATIONS ET ACCESSOIRES pour la gamme BDD_G4 : flexoTHERM exclusive air / eau | G2: Q-commun | H2: EI-commun | I2: commun-EI | J2: commun | K2: H-EI-commun | L2: H-commun-EI | M2: H-commun | N2: Hext-commun-EI | O2: Hext-commun | P2: Q-E-commun | Q2: EI-E-commun | R2: E-commun-EI | S2: E-commun | T2: E-H-EI-commun | U2: E-H-commun-EI | V2: E-H-commun | W2: E-Hext-commun-EI | X2: E-Hext-commun | Y2: Cascade de PAC
B3: 02/08/2022 | G3: 1 | H3: 2 | I3: 3 | J3: 4 | K3: 5 | L3: 6 | M3: 7 | N3: 8 | O3: 9 | P3: 10 | Q3: 11 | R3: 12 | S3: 13 | T3: 14 | U3: 15 | V3: 16 | W3: 17 | X3: 18
E4: ="Recherche la configuration >> "&Calculs!$C$2018&" << =>" -> Recherche la configuration >> colonne << => | F4: Schéma | G4: colonne | H4: ballon ECS avant bouteille | I4: ballon ECS aprés bouteille | J4: chauffage seul | K4: Hybride et ballon ECS avant Bouteille | L4: hybride et ballon ECS aprés bouteille | M4: hybride chauffage seul | N4: hybride non Ebus et ballon ECS aprés bouteille | O4: hybride non Ebus chauffage seul | P4: colonne avec echangeur glycol | Q4: ballon ECS avant bouteille avec echangeur glycol | R4: ballon ECS aprés bouteille avec echangeur glycol | S4: Chauffage Seul avec echangeur glycol | T4: hybride et ballon ECS avant bouteille avec echangeur glycol | U4: hybride et ballon ECS aprés bouteille avec echangeur glycol | V4: hybride chauffage Seul avec echangeur glycol | W4: hybride non Ebus et ballon ECS aprés bouteille avec echangeur glycol | X4: hybride non Ebus chauffage seul avec echangeur glycol | Y4: Nombre de PAC valeur à multipliers au accessoires
B5: Vers PARAMETRAGE | F5: Appoint | G5: Appoint interne | H5: Appoint interne | I5: Appoint interne | J5: Appoint interne | K5: Chaudière neuve | L5: Chaudière neuve | M5: Chaudière neuve | N5: Chaudière existante | O5: Chaudière existante | P5: Appoint interne | Q5: Appoint interne | R5: Appoint interne | S5: Appoint interne | T5: Chaudière neuve | U5: Chaudière neuve | V5: Chaudière neuve | W5: Chaudière existante | X5: Chaudière existante | Y5: =_xlfn.NUMBERVALUE(Calculs!$C$2173) -> 1
F6: Mode gestion | G6: Simultané | H6: Simultané | I6: Simultané | J6: Simultané | K6: Simultané | L6: Simultané | M6: Simultané | N6: Simultané | O6: Simultané | P6: Simultané | Q6: Simultané | R6: Simultané | S6: Simultané | T6: Simultané | U6: Simultané | V6: Simultané | W6: Simultané | X6: Simultané
F7: ECS | G7: Var. impossible | H7: Var. possible | I7: Var. possible | J7: Var. possible | K7: Var. possible | L7: Var. possible | M7: Var. impossible | N7: Var. impossible | O7: Var. possible | P7: Var. possible | Q7: Var. possible | R7: Var. possible | S7: Var. possible | T7: Var. impossible | U7: Var. possible | V7: Var. impossible | W7: Var. possible | X7: Var. impossible
F8: =Calculs!D34 -> Régulation : | G8: Var. possible | H8: Var. possible | I8: Var. possible | J8: Var. possible | K8: Var. possible | L8: Var. possible | M8: Var. possible | N8: Var. possible | O8: Var. possible | P8: Var. possible | Q8: Var. possible | R8: Var. possible | S8: Var. possible | T8: Var. possible | U8: Var. possible | V8: Var. possible | W8: Var. possible | X8: Var. possible
F9: =Calculs!D35 -> Connectivité : | G9: Var. possible | H9: Var. possible | I9: Var. possible | J9: Var. possible | K9: Var. possible | L9: Var. possible | M9: Var. possible | N9: Var. possible | O9: Var. possible | P9: Var. possible | Q9: Var. possible | R9: Var. possible | S9: Var. possible | T9: Var. possible | U9: Var. possible | V9: Var. possible | W9: Var. possible | X9: Var. possible
F10: =Calculs!D36 ->  | G10: Var. possible | H10: Var. possible | I10: Var. possible | J10: Var. possible | K10: Var. possible | L10: Var. possible | M10: Var. possible | N10: Var. possible | O10: Var. possible | P10: Var. possible | Q10: Var. possible | R10: Var. possible | S10: Var. possible | T10: Var. possible | U10: Var. possible | V10: Var. possible | W10: Var. possible | X10: Var. possible
F11: =Calculs!D37 -> Raccordements : | G11: Var. possible | H11: Var. possible | I11: Var. possible | J11: Var. possible | K11: Var. possible | L11: Var. possible | M11: Var. possible | N11: Var. possible | O11: Var. possible | P11: Var. possible | Q11: Var. possible | R11: Var. possible | S11: Var. possible | T11: Var. possible | U11: Var. possible | V11: Var. possible | W11: Var. possible | X11: Var. possible
F12: =Calculs!D38 ->  | G12: Var. possible | H12: Var. possible | I12: Var. possible | J12: Var. possible | K12: Var. possible | L12: Var. possible | M12: Var. possible | N12: Var. possible | O12: Var. possible | P12: Var. possible | Q12: Var. possible | R12: Var. possible | S12: Var. possible | T12: Var. possible | U12: Var. possible | V12: Var. possible | W12: Var. possible | X12: Var. possible
F13: .
D14: Réf. | E14: Dénomination | F14: PU HT
D15: . | E15: Pompes à chaleur de la gamme | F15: . | G15: . | H15: . | I15: . | J15: . | K15: . | L15: . | M15: . | N15: . | O15: . | P15: . | Q15: . | R15: . | S15: . | U15: . | V15: . | W15: . | X15: .
D16: 0010016677 | E16: flexoTHERM exclusive VWF 57/4-5 - 400V + aroCOLLECT | F16: =VLOOKUP(D16,MATRICE_VA,3,FALSE) -> 9911 | G16: 1 | H16: 1 | I16: 1 | J16: 1 | K16: 1 | L16: 1 | M16: 1 | N16: 1 | O16: 1 | P16: 1 | Q16: 1 | R16: 1 | S16: 1 | T16: 1 | U16: 1 | V16: 1 | W16: 1 | X16: 1 | Y16: 1
D17: 0010016678 | E17: flexoTHERM exclusive VWF 87/4-5 - 400V + aroCOLLECT | F17: 10973 | G17: 1 | H17: 1 | I17: 1 | J17: 1 | K17: 1 | L17: 1 | M17: 1 | N17: 1 | O17: 1 | P17: 1 | Q17: 1 | R17: 1 | S17: 1 | T17: 1 | U17: 1 | V17: 1 | W17: 1 | X17: 1 | Y17: 1
D18: 0010016679 | E18: flexoTHERM exclusive VWF 117/4-5 - 400V + aroCOLLECT | F18: 11207 | G18: 1 | H18: 1 | I18: 1 | J18: 1 | K18: 1 | L18: 1 | M18: 1 | N18: 1 | O18: 1 | P18: 1 | Q18: 1 | R18: 1 | S18: 1 | T18: 1 | U18: 1 | V18: 1 | W18: 1 | X18: 1 | Y18: 1
D19: 0010016680 | E19: flexoTHERM exclusive VWF 157/4-5 - 400V + aroCOLLECT | F19: 12525 | G19: =$Y19 -> 1 | H19: 1 | I19: 1 | J19: 1 | K19: 1 | L19: 1 | M19: 1 | N19: 1 | O19: 1 | P19: 1 | Q19: 1 | R19: 1 | S19: 1 | T19: 1 | U19: 1 | V19: 1 | W19: 1 | X19: =$Y19 -> 1 | Y19: =_xlfn.NUMBERVALUE($Y$5) -> 1
D20: 0010016681 | E20: flexoTHERM exclusive VWF 197/4-5 - 400V + aroCOLLECT | F20: 13865 | G20: 1 | H20: 1 | I20: 1 | J20: 1 | K20: 1 | L20: 1 | M20: 1 | N20: 1 | O20: 1 | P20: 1 | Q20: 1 | R20: 1 | S20: 1 | T20: 1 | U20: 1 | V20: 1 | W20: 1 | X20: =$Y20 -> 1 | Y20: =_xlfn.NUMBERVALUE($Y$5) -> 1
D21: 0010016682 | E21: FlexoCOMPACT exclusive VWF 58/4-5 - 400V + aroCOLLEC | F21: 12471 | G21: 1
D22: 0010016683 | E22: FlexoCOMPACT exclusive VWF 88/4-5 - 400V + aroCOLLECT | F22: 13035 | G22: 1
D23: 0010016684 | E23: FlexoCOMPACT exclusive VWF 118/4-5 - 400V + aroCOLLECT | F23: 13482 | G23: 1
B30: PAC | C30: Puissance | D30: . | E30: Appoint électrique Option 1 | F30: . | G30: . | H30: . | I30: . | J30: . | O30: . | P30: . | Q30: . | R30: . | S30: .
B45: PAC | C45: Puissance | D45: . | E45: Appoint électrique Option 2 | F45: . | G45: . | H45: . | I45: . | J45: . | O45: . | P45: . | Q45: . | R45: . | S45: .
C60: Puissance | D60: . | E60: Chaudière | F60: . | G60: . | H60: . | I60: . | J60: . | O60: . | P60: . | Q60: . | R60: . | S60: .
E61: chaudière | F61: 0 | K61: 1 | L61: 1 | M61: 1 | T61: 1 | U61: 1 | V61: 1
D62: . | E62: Accessoires chaudière | F62: . | G62: . | H62: . | I62: . | J62: . | K62: . | L62: . | M62: . | N62: . | O62: . | P62: . | Q62: . | R62: . | S62: . | T62: . | U62: . | V62: . | W62: . | X62: .
A63: BDD_Acc_Ch
B75: PAC | C75: Obligatoire | D75: . | E75: Préparateur ECS | F75: . | G75: . | H75: . | I75: . | J75: . | O75: . | P75: . | Q75: . | R75: . | S75: .
B90: PAC | C90: Obligatoire | D90: . | E90: Accessoires hydrauliques et électriques | F90: . | G90: . | H90: . | I90: . | J90: . | O90: . | P90: . | Q90: . | R90: . | S90: .
B91: flexoTHERM exclusive VWF 57/4-5 - 400V + aroCOLLECT | C91: Oui | D91: 0010016716 | E91: Unité Air/Eau aroCOLLECT | F91: =VLOOKUP(D91,MATRICE_VA,3,FALSE) -> 7063 | G91: =1*$Y91 -> 1 | H91: =1*$Y91 -> 1 | I91: 1 | J91: 1 | K91: 1 | L91: 1 | M91: 1 | N91: 1 | O91: 1 | P91: 1 | Q91: 1 | R91: 1 | S91: 1 | T91: 1 | U91: 1 | V91: 1 | W91: 1 | X91: 1 | Y91: =_xlfn.NUMBERVALUE($Y$5) -> 1
B92: flexoTHERM exclusive VWF 87/4-5 - 400V + aroCOLLECT | C92: Oui | D92: 0010016716 | E92: Unité Air/Eau aroCOLLECT | F92: 7063 | G92: =1*$Y92 -> 1 | H92: 1 | I92: 1 | J92: 1 | K92: 1 | L92: 1 | M92: 1 | N92: 1 | O92: 1 | P92: 1 | Q92: 1 | R92: 1 | S92: 1 | T92: 1 | U92: 1 | V92: 1 | W92: 1 | X92: 1 | Y92: =_xlfn.NUMBERVALUE($Y$5) -> 1
B93: flexoTHERM exclusive VWF 117/4-5 - 400V + aroCOLLECT | C93: Oui | D93: 0010016716 | E93: Unité Air/Eau aroCOLLECT | F93: 7063 | G93: 1 | H93: 1 | I93: 1 | J93: 1 | K93: 1 | L93: 1 | M93: 1 | N93: 1 | O93: 1 | P93: 1 | Q93: 1 | R93: 1 | S93: 1 | T93: 1 | U93: 1 | V93: 1 | W93: 1 | X93: 1 | Y93: 1
B94: flexoTHERM exclusive VWF 157/4-5 - 400V + aroCOLLECT | C94: Oui | D94: 0010016716 | E94: Unité Air/Eau aroCOLLECT | F94: 7063 | G94: =2*$Y94 -> 2 | H94: =2*$Y94 -> 2 | I94: 2 | J94: 2 | K94: 2 | L94: 2 | M94: 2 | N94: 2 | O94: 2 | P94: 2 | Q94: 2 | R94: 2 | S94: 2 | T94: 2 | U94: 2 | V94: 2 | W94: 2 | X94: 2 | Y94: 1
B95: flexoTHERM exclusive VWF 197/4-5 - 400V + aroCOLLECT | C95: Oui | D95: 0010016716 | E95: Unité Air/Eau aroCOLLECT | F95: 7063 | G95: =2*$Y95 -> 2 | H95: 2 | I95: 2 | J95: 2 | K95: 2 | L95: 2 | M95: 2 | N95: 2 | O95: 2 | P95: 2 | Q95: 2 | R95: 2 | S95: 2 | T95: 2 | U95: 2 | V95: 2 | W95: 2 | X95: 2 | Y95: 1
B96: FlexoCOMPACT exclusive VWF 58/4-5 - 400V + aroCOLLEC | C96: Oui | D96: 0010016716 | E96: Unité Air/Eau aroCOLLECT | F96: 7063 | G96: 1 | H96: 1 | I96: 1 | J96: 1 | K96: 1 | L96: 1 | M96: 1 | N96: 1 | O96: 1 | P96: 1 | Q96: 1 | R96: 1 | S96: 1 | T96: 1 | U96: 1 | V96: 1 | W96: 1 | X96: 1 | Y96: 1
B97: FlexoCOMPACT exclusive VWF 88/4-5 - 400V + aroCOLLECT | C97: Oui | D97: 0010016716 | E97: Unité Air/Eau aroCOLLECT | F97: 7063 | G97: 1 | H97: 1 | I97: 1 | J97: 1 | K97: 1 | L97: 1 | M97: 1 | N97: 1 | O97: 1 | P97: 1 | Q97: 1 | R97: 1 | S97: 1 | T97: 1 | U97: 1 | V97: 1 | W97: 1 | X97: 1 | Y97: 1
B98: FlexoCOMPACT exclusive VWF 118/4-5 - 400V + aroCOLLECT | C98: Oui | D98: 0010016716 | E98: Unité Air/Eau aroCOLLECT | F98: 7063 | G98: 1 | H98: 1 | I98: 1 | J98: 1 | K98: 1 | L98: 1 | M98: 1 | N98: 1 | O98: 1 | P98: 1 | Q98: 1 | R98: 1 | S98: 1 | T98: 1 | U98: 1 | V98: 1 | W98: 1 | X98: 1 | Y98: 1
B99: flexoTHERM exclusive VWF 57/4-5 - 400V + aroCOLLECT | C99: Oui | D99: 0020213871 | E99: Socle pour aroCOLLECT | F99: 324 | G99: =1*$Y99 -> 1 | H99: 1 | I99: 1 | J99: 1 | K99: 1 | L99: 1 | M99: 1 | N99: 1 | O99: 1 | P99: 1 | Q99: 1 | R99: 1 | S99: 1 | T99: 1 | U99: 1 | V99: 1 | W99: =1*$Y99 -> 1 | X99: 1 | Y99: =_xlfn.NUMBERVALUE($Y$5) -> 1
B100: flexoTHERM exclusive VWF 87/4-5 - 400V + aroCOLLECT | C100: Oui | D100: 0020213871 | E100: Socle pour aroCOLLECT | F100: 324 | G100: 1 | H100: 1 | I100: 1 | J100: 1 | K100: 1 | L100: 1 | M100: 1 | N100: 1 | O100: 1 | P100: 1 | Q100: 1 | R100: 1 | S100: 1 | T100: 1 | U100: 1 | V100: 1 | W100: 1 | X100: 1 | Y100: 1
B101: flexoTHERM exclusive VWF 117/4-5 - 400V + aroCOLLECT | C101: Oui | D101: 0020213871 | E101: Socle pour aroCOLLECT | F101: 324 | G101: 1 | H101: 1 | I101: 1 | J101: 1 | K101: 1 | L101: 1 | M101: 1 | N101: 1 | O101: 1 | P101: 1 | Q101: 1 | R101: 1 | S101: 1 | T101: 1 | U101: 1 | V101: 1 | W101: 1 | X101: 1 | Y101: 1
B102: flexoTHERM exclusive VWF 157/4-5 - 400V + aroCOLLECT | C102: Oui | D102: 0020213871 | E102: Socle pour aroCOLLECT | F102: 324 | G102: =2*$Y102 -> 2 | H102: 2 | I102: 2 | J102: 2 | K102: 2 | L102: 2 | M102: 2 | N102: 2 | O102: 2 | P102: 2 | Q102: 2 | R102: 2 | S102: 2 | T102: 2 | U102: 2 | V102: 2 | W102: =2*$Y102 -> 2 | X102: 2 | Y102: 1
B103: flexoTHERM exclusive VWF 197/4-5 - 400V + aroCOLLECT | C103: Oui | D103: 0020213871 | E103: Socle pour aroCOLLECT | F103: 324 | G103: 2 | H103: 2 | I103: 2 | J103: 2 | K103: 2 | L103: 2 | M103: 2 | N103: 2 | O103: 2 | P103: 2 | Q103: 2 | R103: 2 | S103: 2 | T103: 2 | U103: 2 | V103: 2 | W103: 2 | X103: 2 | Y103: 1
B104: FlexoCOMPACT exclusive VWF 58/4-5 - 400V + aroCOLLEC | C104: Oui | D104: 0020213871 | E104: Socle pour aroCOLLECT | F104: 324 | G104: 1 | H104: 1 | I104: 1 | J104: 1 | K104: 1 | L104: 1 | M104: 1 | N104: 1 | O104: 1 | P104: 1 | Q104: 1 | R104: 1 | S104: 1 | T104: 1 | U104: 1 | V104: 1 | W104: 1 | X104: 1 | Y104: 1
B105: FlexoCOMPACT exclusive VWF 88/4-5 - 400V + aroCOLLECT | C105: Oui | D105: 0020213871 | E105: Socle pour aroCOLLECT | F105: 324 | G105: 1 | H105: 1 | I105: 1 | J105: 1 | K105: 1 | L105: 1 | M105: 1 | N105: 1 | O105: 1 | P105: 1 | Q105: 1 | R105: 1 | S105: 1 | T105: 1 | U105: 1 | V105: 1 | W105: 1 | X105: 1 | Y105: 1
B106: FlexoCOMPACT exclusive VWF 118/4-5 - 400V + aroCOLLECT | C106: Oui | D106: 0020213871 | E106: Socle pour aroCOLLECT | F106: 324 | G106: 1 | H106: 1 | I106: 1 | J106: 1 | K106: 1 | L106: 1 | M106: 1 | N106: 1 | O106: 1 | P106: 1 | Q106: 1 | R106: 1 | S106: 1 | T106: 1 | U106: 1 | V106: 1 | W106: 1 | X106: 1 | Y106: 1
B107: flexoTHERM exclusive VWF 57/4-5 - 400V + aroCOLLECT | C107: Oui | D107: 0020112803 | E107: Kit racc. pour un aroCOLLECT | F107: 295 | G107: 1 | H107: 1 | I107: 1 | J107: 1 | K107: 1 | L107: 1 | M107: 1 | N107: 1 | O107: 1 | P107: 1 | Q107: 1 | R107: 1 | S107: 1 | T107: 1 | U107: 1 | V107: 1 | W107: 1 | X107: 1 | Y107: 1
B108: flexoTHERM exclusive VWF 87/4-5 - 400V + aroCOLLECT | C108: Oui | D108: 0020112803 | E108: Kit racc. pour un aroCOLLECT | F108: 295 | G108: =1*$Y108 -> 1 | H108: 1 | I108: 1 | J108: 1 | K108: 1 | L108: 1 | M108: 1 | N108: 1 | O108: 1 | P108: 1 | Q108: 1 | R108: 1 | S108: 1 | T108: 1 | U108: 1 | V108: 1 | W108: 1 | X108: 1 | Y108: 1
B109: flexoTHERM exclusive VWF 117/4-5 - 400V + aroCOLLECT | C109: Oui | D109: 0020112803 | E109: Kit racc. pour un aroCOLLECT | F109: 295 | G109: 1 | H109: 1 | I109: 1 | J109: 1 | K109: 1 | L109: 1 | M109: 1 | N109: 1 | O109: 1 | P109: 1 | Q109: 1 | R109: 1 | S109: 1 | T109: 1 | U109: 1 | V109: 1 | W109: 1 | X109: 1 | Y109: 1
B110: flexoTHERM exclusive VWF 157/4-5 - 400V + aroCOLLECT | C110: Oui | D110: 0020205408 | E110: Kit racc. pour jumeler 2 aroCOLLECT | F110: 1326 | G110: 1 | H110: 1 | I110: 1 | J110: 1 | K110: 1 | L110: 1 | M110: 1 | N110: 1 | O110: 1 | P110: 1 | Q110: 1 | R110: 1 | S110: 1 | T110: 1 | U110: 1 | V110: 1 | W110: 1 | X110: 1 | Y110: 1
B111: flexoTHERM exclusive VWF 197/4-5 - 400V + aroCOLLECT | C111: Oui | D111: 0020205408 | E111: Kit racc. pour jumeler 2 aroCOLLECT | F111: 1326 | G111: 1 | H111: 1 | I111: 1 | J111: 1 | K111: 1 | L111: 1 | M111: 1 | N111: 1 | O111: 1 | P111: 1 | Q111: 1 | R111: 1 | S111: 1 | T111: 1 | U111: 1 | V111: 1 | W111: 1 | X111: 1 | Y111: 1
B112: FlexoCOMPACT exclusive VWF 58/4-5 - 400V + aroCOLLEC | C112: Oui | D112: 0020112803 | E112: Kit racc. pour un aroCOLLECT | F112: 295 | G112: 1 | H112: 1 | I112: 1 | J112: 1 | K112: 1 | L112: 1 | M112: 1 | N112: 1 | O112: 1 | P112: 1 | Q112: 1 | R112: 1 | S112: 1 | T112: 1 | U112: 1 | V112: 1 | W112: 1 | X112: 1 | Y112: 1
B113: FlexoCOMPACT exclusive VWF 88/4-5 - 400V + aroCOLLECT | C113: Oui | D113: 0020112803 | E113: Kit racc. pour un aroCOLLECT | F113: 295 | G113: 1 | H113: 1 | I113: 1 | J113: 1 | K113: 1 | L113: 1 | M113: 1 | N113: 1 | O113: 1 | P113: 1 | Q113: 1 | R113: 1 | S113: 1 | T113: 1 | U113: 1 | V113: 1 | W113: 1 | X113: 1 | Y113: 1
B114: FlexoCOMPACT exclusive VWF 118/4-5 - 400V + aroCOLLECT | C114: Oui | D114: 0020112803 | E114: Kit racc. pour un aroCOLLECT | F114: 295 | G114: 1 | H114: 1 | I114: 1 | J114: 1 | K114: 1 | L114: 1 | M114: 1 | N114: 1 | O114: 1 | P114: 1 | Q114: 1 | R114: 1 | S114: 1 | T114: 1 | U114: 1 | V114: 1 | W114: 1 | X114: 1 | Y114: 1
C115: Ajustez les quantités | D115: 302097 | E115: Vase d'expansion circuit primaire 18 L | F115: 106 | G115: 1 | H115: 1 | I115: 1 | J115: 1 | K115: 1 | L115: 1 | M115: 1 | N115: 1 | O115: 1 | P115: 1 | Q115: 1 | R115: 1 | S115: 1 | T115: 1 | U115: 1 | V115: 1 | W115: 1 | X115: 1 | Y115: 1
C116: Ajustez les quantités | D116: 0020173592 | E116: Support mural du vase d'expansion | F116: 102 | G116: 1 | H116: 1 | I116: 1 | J116: 1 | K116: 1 | L116: 1 | M116: 1 | N116: 1 | O116: 1 | P116: 1 | Q116: 1 | R116: 1 | S116: 1 | T116: 1 | U116: 1 | V116: 1 | W116: 1 | X116: 1 | Y116: 1
C117: Ajustez les quantités | D117: 0020106265 | E117: Module d'isolement et de remplissage eau glycolée | F117: 584 | G117: 1 | H117: 1 | I117: 1 | J117: 1 | K117: 1 | L117: 1 | M117: 1 | N117: 1 | O117: 1 | P117: 1 | Q117: 1 | R117: 1 | S117: 1 | T117: 1 | U117: 1 | V117: 1 | W117: 1 | X117: 1 | Y117: 1
C118: Oui | D118: 0020139895 | E118: Module d'isolement et de remplissage eau glycolée | F118: =VLOOKUP(D118,MATRICE_VA,3,FALSE) -> 153 | G118: =IF(COUNTIF(G2,"*H-*"),1,"") ->  | H118: =IF(COUNTIF(H2,"*H-*"),1,"") ->  | K118: 1 | L118: 1 | M118: 1 | T118: 1 | U118: 1 | V118: 1
A119: BDD_Commun
B349: PAC | C349: Obligatoire | D349: . | E349: =Calculs!J$95 -> Accessoires ECS : Chaudière seule ou électrique | F349: =Calculs!K$95 -> . | G349: . | H349: . | I349: . | J349: . | O349: . | P349: . | Q349: . | R349: . | S349: .
B360: PAC | C360: Obligatoire | D360: . | E360: =Calculs!J$96 -> Accessoires ECS : Ballon ECS 200 l | F360: =Calculs!K$96 -> . | G360: . | H360: . | I360: . | J360: . | O360: . | P360: . | Q360: . | R360: . | S360: .
B361: flexoTHERM exclusive VWF 57/4-5 - 400V + aroCOLLECT | C361: Non | D361: 0020214407 | E361: =VLOOKUP(D361,MATRICE_VA,2,FALSE) -> Ballon uniSTOR VIH RW 200 | F361: =VLOOKUP(D361,MATRICE_VA,3,FALSE) -> 1850 | H361: 1 | I361: 1 | K361: 1 | L361: 1 | N361: 1 | Q361: 1 | R361: 1 | T361: 1 | U361: 1 | W361: 1
B362: flexoTHERM exclusive VWF 87/4-5 - 400V + aroCOLLECT | D362: 0020214407 | E362: Ballon uniSTOR VIH RW 200 | F362: 1850 | H362: 1 | I362: 1 | K362: 1 | L362: 1 | N362: 1 | Q362: 1 | R362: 1 | T362: 1 | U362: 1 | W362: 1
B363: flexoTHERM exclusive VWF 117/4-5 - 400V + aroCOLLECT | D363: 0020214407 | E363: Ballon uniSTOR VIH RW 200 | F363: 1850 | H363: 1 | I363: 1 | K363: 1 | L363: 1 | N363: 1 | Q363: 1 | R363: 1 | T363: 1 | U363: 1 | W363: 1
B364: flexoTHERM exclusive VWF 157/4-5 - 400V + aroCOLLECT | D364: 0020214407 | E364: Ballon uniSTOR VIH RW 200 | F364: 1850 | H364: 1 | I364: 1 | K364: 1 | L364: 1 | N364: 1 | Q364: 1 | R364: 1 | T364: 1 | U364: 1 | W364: 1
B365: flexoTHERM exclusive VWF 197/4-5 - 400V + aroCOLLECT | D365: 0020214407 | E365: Ballon uniSTOR VIH RW 200 | F365: 1850 | H365: 1 | I365: 1 | K365: 1 | L365: 1 | N365: 1 | Q365: 1 | R365: 1 | T365: 1 | U365: 1 | W365: 1
C368: Non | D368: 302040 | E368: =VLOOKUP(D368,MATRICE_VA,2,FALSE) -> Mitigeur thermostatique | F368: =VLOOKUP(D368,MATRICE_VA,3,FALSE) -> 133 | H368: 1 | I368: 1 | K368: 1 | L368: 1 | N368: 1 | Q368: 1 | R368: 1 | T368: 1 | U368: 1 | W368: 1
C369: Non | D369: 305827 | E369: =VLOOKUP(D369,MATRICE_VA,2,FALSE) -> Grpe sécu. ballon sup. à 200l | F369: =VLOOKUP(D369,MATRICE_VA,3,FALSE) -> 159 | H369: 1 | I369: 1 | K369: 1 | L369: 1 | N369: 1 | Q369: 1 | R369: 1 | T369: 1 | U369: 1 | W369: 1
C370: Ajustez les quantités | D370: 306787 | E370: =VLOOKUP(D370,MATRICE_VA,2,FALSE) -> Sonde temp. sans connecteur | F370: =VLOOKUP(D370,MATRICE_VA,3,FALSE) -> 20 | H370: 1 | I370: 1 | K370: 1 | L370: 1 | N370: 1 | Q370: 1 | R370: 1 | T370: 1 | U370: 1 | W370: 1
B371: PAC | C371: Obligatoire | D371: . | E371: =Calculs!J$97 -> Accessoires ECS : Ballon ECS 300 l | F371: =Calculs!E$96 -> . | G371: . | H371: . | I371: . | J371: . | N371: . | Q371: . | R371: . | T371: .
B372: flexoTHERM exclusive VWF 57/4-5 - 400V + aroCOLLECT | C372: Non | D372: 0010020645 | E372: Ballon uniSTOR VIH RW 300/3 BR (déconseillé avec le modèle 45/6) | F372: =VLOOKUP(D372,MATRICE_VA,3,FALSE) -> 2150 | H372: 1 | I372: 1 | K372: 1 | L372: 1 | N372: 1 | Q372: 1 | R372: 1 | T372: 1 | U372: 1 | W372: 1
B373: flexoTHERM exclusive VWF 87/4-5 - 400V + aroCOLLECT | C373: Non | D373: 0010020645 | E373: =VLOOKUP(D373,MATRICE_VA,2,FALSE) -> Ballon uniSTOR VIH RW 300/3 BR | F373: 2150 | H373: 1 | I373: 1 | K373: 1 | L373: 1 | N373: 1 | Q373: 1 | R373: 1 | T373: 1 | U373: 1 | W373: 1
B374: flexoTHERM exclusive VWF 117/4-5 - 400V + aroCOLLECT | C374: Non | D374: 0010020645 | E374: Ballon uniSTOR VIH RW 300/3 BR | F374: 2150 | H374: 1 | I374: 1 | K374: 1 | L374: 1 | N374: 1 | Q374: 1 | R374: 1 | T374: 1 | U374: 1 | W374: 1
B375: flexoTHERM exclusive VWF 157/4-5 - 400V + aroCOLLECT | C375: Non | D375: 0010020645 | E375: Ballon uniSTOR VIH RW 300/3 BR | F375: 2150 | H375: 1 | I375: 1 | K375: 1 | L375: 1 | N375: 1 | Q375: 1 | R375: 1 | T375: 1 | U375: 1 | W375: 1
B376: flexoTHERM exclusive VWF 197/4-5 - 400V + aroCOLLECT | C376: Non | D376: 0010020645 | E376: Ballon uniSTOR VIH RW 300/3 BR | F376: 2150 | H376: 1 | I376: 1 | K376: 1 | L376: 1 | N376: 1 | Q376: 1 | R376: 1 | T376: 1 | U376: 1 | W376: 1
C379: Non | D379: 302040 | E379: =VLOOKUP(D379,MATRICE_VA,2,FALSE) -> Mitigeur thermostatique | F379: =VLOOKUP(D379,MATRICE_VA,3,FALSE) -> 133 | H379: 1 | I379: 1 | K379: 1 | L379: 1 | N379: 1 | Q379: 1 | R379: 1 | T379: 1 | U379: 1 | W379: 1
C380: Non | D380: 305827 | E380: =VLOOKUP(D380,MATRICE_VA,2,FALSE) -> Grpe sécu. ballon sup. à 200l | F380: =VLOOKUP(D380,MATRICE_VA,3,FALSE) -> 159 | H380: 1 | I380: 1 | K380: 1 | L380: 1 | N380: 1 | Q380: 1 | R380: 1 | T380: 1 | U380: 1 | W380: 1
C381: Ajustez les quantités | D381: 306787 | E381: =VLOOKUP(D381,MATRICE_VA,2,FALSE) -> Sonde temp. sans connecteur | F381: =VLOOKUP(D381,MATRICE_VA,3,FALSE) -> 20 | H381: 1 | I381: 1 | K381: 1 | L381: 1 | N381: 1 | Q381: 1 | R381: 1 | T381: 1 | U381: 1 | W381: 1
B382: PAC | C382: Obligatoire | D382: . | E382: =Calculs!J$98 -> Accessoires ECS : Ballon ECS 400 l | F382: =Calculs!E$96 -> . | G382: . | H382: . | I382: . | J382: . | N382: . | Q382: . | R382: . | T382: .
B383: flexoTHERM exclusive VWF 57/4-5 - 400V + aroCOLLECT | C383: Non | D383: 0010020646 | E383: Ballon uniSTOR VIH RW 400/3 BR (déconseillé avec le modèle 45/6) | F383: =VLOOKUP(D383,MATRICE_VA,3,FALSE) -> 2510 | H383: 1 | I383: 1 | K383: 1 | L383: 1 | N383: 1 | Q383: 1 | R383: 1 | T383: 1 | U383: 1 | W383: 1
B384: flexoTHERM exclusive VWF 87/4-5 - 400V + aroCOLLECT | C384: Non | D384: 0010020646 | E384: =VLOOKUP(D384,MATRICE_VA,2,FALSE) -> Ballon uniSTOR VIH RW 400/3 BR | F384: 2510 | H384: 1 | I384: 1 | K384: 1 | L384: 1 | N384: 1 | Q384: 1 | R384: 1 | T384: 1 | U384: 1 | W384: 1
B385: flexoTHERM exclusive VWF 117/4-5 - 400V + aroCOLLECT | C385: Non | D385: 0010020646 | E385: Ballon uniSTOR VIH RW 400/3 BR | F385: 2510 | H385: 1 | I385: 1 | K385: 1 | L385: 1 | N385: 1 | Q385: 1 | R385: 1 | T385: 1 | U385: 1 | W385: 1
B386: flexoTHERM exclusive VWF 157/4-5 - 400V + aroCOLLECT | C386: Non | D386: 0010020646 | E386: Ballon uniSTOR VIH RW 400/3 BR | F386: 2510 | H386: 1 | I386: 1 | K386: 1 | L386: 1 | N386: 1 | Q386: 1 | R386: 1 | T386: 1 | U386: 1 | W386: 1
B387: flexoTHERM exclusive VWF 197/4-5 - 400V + aroCOLLECT | C387: Non | D387: 0010020646 | E387: Ballon uniSTOR VIH RW 400/3 BR | F387: 2510 | H387: 1 | I387: 1 | K387: 1 | L387: 1 | N387: 1 | Q387: 1 | R387: 1 | T387: 1 | U387: 1 | W387: 1
C390: Non | D390: 302040 | E390: =VLOOKUP(D390,MATRICE_VA,2,FALSE) -> Mitigeur thermostatique | F390: =VLOOKUP(D390,MATRICE_VA,3,FALSE) -> 133 | H390: 1 | I390: 1 | K390: 1 | L390: 1 | N390: 1 | Q390: 1 | R390: 1 | T390: 1 | U390: 1 | W390: 1
C391: Non | D391: 305827 | E391: =VLOOKUP(D391,MATRICE_VA,2,FALSE) -> Grpe sécu. ballon sup. à 200l | F391: =VLOOKUP(D391,MATRICE_VA,3,FALSE) -> 159 | H391: 1 | I391: 1 | K391: 1 | L391: 1 | N391: 1 | Q391: 1 | R391: 1 | T391: 1 | U391: 1 | W391: 1
C392: Ajustez les quantités | D392: 306787 | E392: =VLOOKUP(D392,MATRICE_VA,2,FALSE) -> Sonde temp. sans connecteur | F392: =VLOOKUP(D392,MATRICE_VA,3,FALSE) -> 20 | H392: 1 | I392: 1 | K392: 1 | L392: 1 | N392: 1 | Q392: 1 | R392: 1 | T392: 1 | U392: 1 | W392: 1
B393: PAC | C393: Obligatoire | D393: . | E393: =Calculs!J$99 -> Accessoires ECS : Ballon ECS 500 l | F393: =Calculs!E$96 -> . | G393: . | H393: . | I393: . | J393: . | N393: . | Q393: . | R393: . | T393: .
B394: flexoTHERM exclusive VWF 57/4-5 - 400V + aroCOLLECT | C394: Non | D394: 0010020647 | E394: Ballon uniSTOR VIH RW 500/3 BR (déconseillé avec le modèle 45/6) | F394: =VLOOKUP(D394,MATRICE_VA,3,FALSE) -> 3150 | H394: 1 | I394: 1 | K394: 1 | L394: 1 | N394: 1 | Q394: 1 | R394: 1 | T394: 1 | U394: 1 | W394: 1
B395: flexoTHERM exclusive VWF 87/4-5 - 400V + aroCOLLECT | C395: Non | D395: 0010020647 | E395: =VLOOKUP(D395,MATRICE_VA,2,FALSE) -> Ballon uniSTOR VIH RW 500/3 BR | F395: 3150 | H395: 1 | I395: 1 | K395: 1 | L395: 1 | N395: 1 | Q395: 1 | R395: 1 | T395: 1 | U395: 1 | W395: 1
B396: flexoTHERM exclusive VWF 117/4-5 - 400V + aroCOLLECT | C396: Non | D396: 0010020647 | E396: Ballon uniSTOR VIH RW 500/3 BR | F396: 3150 | H396: 1 | I396: 1 | K396: 1 | L396: 1 | N396: 1 | Q396: 1 | R396: 1 | T396: 1 | U396: 1 | W396: 1
B397: flexoTHERM exclusive VWF 157/4-5 - 400V + aroCOLLECT | C397: Non | D397: 0010020647 | E397: Ballon uniSTOR VIH RW 500/3 BR | F397: 3150 | H397: 1 | I397: 1 | K397: 1 | L397: 1 | N397: 1 | Q397: 1 | R397: 1 | T397: 1 | U397: 1 | W397: 1
B398: flexoTHERM exclusive VWF 197/4-5 - 400V + aroCOLLECT | C398: Non | D398: 0010020647 | E398: Ballon uniSTOR VIH RW 500/3 BR | F398: 3150 | H398: 1 | I398: 1 | K398: 1 | L398: 1 | N398: 1 | Q398: 1 | R398: 1 | T398: 1 | U398: 1 | W398: 1
C401: Non | D401: 302040 | E401: =VLOOKUP(D401,MATRICE_VA,2,FALSE) -> Mitigeur thermostatique | F401: =VLOOKUP(D401,MATRICE_VA,3,FALSE) -> 133 | H401: 1 | I401: 1 | K401: 1 | L401: 1 | N401: 1 | Q401: 1 | R401: 1 | T401: 1 | U401: 1 | W401: 1
C402: Non | D402: 305827 | E402: =VLOOKUP(D402,MATRICE_VA,2,FALSE) -> Grpe sécu. ballon sup. à 200l | F402: =VLOOKUP(D402,MATRICE_VA,3,FALSE) -> 159 | H402: 1 | I402: 1 | K402: 1 | L402: 1 | N402: 1 | Q402: 1 | R402: 1 | T402: 1 | U402: 1 | W402: 1
C403: Ajustez les quantités | D403: 306787 | E403: =VLOOKUP(D403,MATRICE_VA,2,FALSE) -> Sonde temp. sans connecteur | F403: =VLOOKUP(D403,MATRICE_VA,3,FALSE) -> 20 | H403: 1 | I403: 1 | K403: 1 | L403: 1 | N403: 1 | Q403: 1 | R403: 1 | T403: 1 | U403: 1 | W403: 1
B404: PAC | C404: Obligatoire | D404: . | E404: =Calculs!J$100 -> Accessoires ECS : Ballon ECS intégré | F404: =Calculs!E$100 -> . | G404: . | H404: . | I404: . | J404: . | O404: . | P404: . | Q404: . | R404: . | S404: .
B415: PAC | C415: Obligatoire | D415: . | E415: =Calculs!J$101 -> Régulation : sensocomfort vrc 720 (filaire) | F415: =Calculs!E$101 -> . | G415: . | H415: . | I415: . | J415: . | O415: . | P415: . | Q415: . | R415: . | S415: .
A416: BDD_Commun
B436: PAC | C436: Obligatoire | D436: . | E436: =Calculs!J$102 -> Régulation : sensocomfort vrc 720f (radio) | F436: =Calculs!E$102 -> . | G436: . | H436: . | I436: . | J436: . | O436: . | P436: . | Q436: . | R436: . | S436: .
B457: PAC | C457: Obligatoire | D457: . | E457: =Calculs!J$103 -> Accessoires régulation : multimatic vrc 700 (filaire) | F457: =Calculs!E$103 -> . | G457: . | H457: . | I457: . | J457: . | O457: . | P457: . | Q457: . | R457: . | S457: .
B478: PAC | C478: Obligatoire | D478: . | E478: =Calculs!D$104 ->  | F478: =Calculs!E$104 ->  | G478: . | H478: . | I478: . | J478: . | O478: . | P478: . | Q478: . | R478: . | S478: .
B499: PAC | C499: Obligatoire | D499: . | E499: =Calculs!D$105 ->  | F499: =Calculs!E$105 ->  | G499: . | H499: . | I499: . | J499: . | O499: . | P499: . | Q499: . | R499: . | S499: .
A500: BDD_Commun
B520: PAC | C520: Obligatoire | D520: . | E520: =Calculs!J$106 -> Accessoires connectivité : myVAILLANT connect | F520: =Calculs!E$106 -> . | G520: . | H520: . | I520: . | J520: . | O520: . | P520: . | Q520: . | R520: . | S520: .
C521: Oui | D521: 0020260962 | E521: =VLOOKUP(D521,MATRICE_VA,2,FALSE) -> sensoNET eBUS (230 V) | F521: =VLOOKUP(D521,MATRICE_VA,3,FALSE) -> 190 | G521: 1 | H521: 1 | I521: 1 | J521: 1 | K521: 1 | L521: 1 | M521: 1 | N521: 1 | O521: 1 | P521: 1 | Q521: 1 | R521: 1 | S521: 1 | T521: 1 | U521: 1 | V521: 1 | W521: 1 | X521: 1
C522: Ajustez les quantités | D522: 0010048535 | E522: =VLOOKUP(D522,MATRICE_VA,2,FALSE) -> Superposition Plug&Play | F522: =VLOOKUP(D522,MATRICE_VA,3,FALSE) -> 6 | K522: 1 | L522: 1 | M522: 1 | T522: 1 | U522: 1 | V522: 1
B531: PAC | C531: Obligatoire | D531: . | E531: =Calculs!J$107 -> Accessoires connectivité : Sans | F531: =Calculs!K$107 -> . | G531: . | H531: . | I531: . | J531: . | O531: . | P531: . | Q531: . | R531: . | S531: .
B542: PAC | C542: Obligatoire | D542: . | E542: =Calculs!D$108 ->  | F542: =Calculs!E$108 ->  | G542: . | H542: . | I542: . | J542: . | O542: . | P542: . | Q542: . | R542: . | S542: .
B553: PAC | C553: Obligatoire | D553: . | E553: =Calculs!D$109 ->  | F553: =Calculs!E$109 ->  | G553: . | H553: . | I553: . | J553: . | O553: . | P553: . | Q553: . | R553: . | S553: .
B564: PAC | C564: Obligatoire | D564: . | E564: =Calculs!D$110 ->  | F564: =Calculs!E$110 ->  | G564: . | H564: . | I564: . | J564: . | O564: . | P564: . | Q564: . | R564: . | S564: .
B575: PAC | C575: Obligatoire | D575: . | E575: =Calculs!J$111 ->  | F575: =Calculs!K$111 ->  | G575: . | H575: . | I575: . | J575: . | K575: . | L575: . | M575: . | N575: . | O575: . | P575: . | Q575: . | R575: . | S575: . | T575: . | U575: . | V575: . | W575: . | X575: . | Y575: .
B586: PAC | C586: Obligatoire | D586: . | E586: =Calculs!J$112 ->  | F586: =Calculs!K$112 ->  | G586: . | H586: . | I586: . | J586: . | K586: . | L586: . | M586: . | N586: . | O586: . | P586: . | Q586: . | R586: . | S586: . | T586: . | U586: . | V586: . | W586: . | X586: .
B597: PAC | C597: Obligatoire | D597: . | E597: =Calculs!D$113 ->  | F597: =Calculs!E$113 ->  | G597: . | H597: . | I597: . | J597: . | O597: . | P597: . | Q597: . | R597: . | S597: .
B608: PAC | C608: Obligatoire | D608: . | E608: =Calculs!D$114 ->  | F608: =Calculs!E$114 ->  | G608: . | H608: . | I608: . | J608: . | O608: . | P608: . | Q608: . | R608: . | S608: .
B619: PAC | C619: Obligatoire | D619: . | E619: =Calculs!D$115 ->  | F619: =Calculs!E$115 ->  | G619: . | H619: . | I619: . | J619: . | O619: . | P619: . | Q619: . | R619: . | S619: .
B630: PAC | C630: Obligatoire | D630: . | E630: =Calculs!J116 -> Accessoires Raccordements : Verticaux | F630: =Calculs!K$116 -> . | G630: . | H630: . | I630: . | J630: . | O630: . | P630: . | Q630: . | R630: . | S630: .
B631: flexoTHERM exclusive VWF 57/4-5 - 400V + aroCOLLECT | C631: Non | D631: 0020212716 | E631: Kit de raccordement pour flexoTHERM, départs verticaux | F631: =VLOOKUP(D631,MATRICE_VA,3,FALSE) -> 234 | G631: =$Y631 -> 1 | H631: 1 | I631: 1 | J631: 1 | K631: 1 | L631: 1 | M631: 1 | N631: 1 | O631: 1 | P631: 1 | Q631: 1 | R631: 1 | S631: 1 | T631: 1 | U631: 1 | V631: 1 | W631: 1 | X631: 1 | Y631: =_xlfn.NUMBERVALUE($Y$5) -> 1
B632: flexoTHERM exclusive VWF 87/4-5 - 400V + aroCOLLECT | C632: Non | D632: 0020212716 | E632: Kit de raccordement pour flexoTHERM, départs verticaux | F632: 234 | G632: 1 | H632: 1 | I632: 1 | J632: 1 | K632: 1 | L632: 1 | M632: 1 | N632: 1 | O632: 1 | P632: 1 | Q632: 1 | R632: 1 | S632: 1 | T632: 1 | U632: 1 | V632: 1 | W632: 1 | X632: 1 | Y632: =_xlfn.NUMBERVALUE($Y$5) -> 1
B633: flexoTHERM exclusive VWF 117/4-5 - 400V + aroCOLLECT | C633: Non | D633: 0020212716 | E633: Kit de raccordement pour flexoTHERM, départs verticaux | F633: 234 | G633: 1 | H633: 1 | I633: 1 | J633: 1 | K633: 1 | L633: 1 | M633: 1 | N633: 1 | O633: 1 | P633: 1 | Q633: 1 | R633: 1 | S633: 1 | T633: 1 | U633: 1 | V633: 1 | W633: 1 | X633: 1 | Y633: 1
B634: flexoTHERM exclusive VWF 157/4-5 - 400V + aroCOLLECT | C634: Non | D634: 0020212716 | E634: Kit de raccordement pour flexoTHERM, départs verticaux | F634: 234 | G634: 1 | H634: 1 | I634: 1 | J634: 1 | K634: 1 | L634: 1 | M634: 1 | N634: 1 | O634: 1 | P634: 1 | Q634: 1 | R634: 1 | S634: 1 | T634: 1 | U634: 1 | V634: 1 | W634: 1 | X634: 1 | Y634: 1
B635: flexoTHERM exclusive VWF 197/4-5 - 400V + aroCOLLECT | C635: Non | D635: 0020212716 | E635: Kit de raccordement pour flexoTHERM, départs verticaux | F635: 234 | G635: 1 | H635: 1 | I635: 1 | J635: 1 | K635: 1 | L635: 1 | M635: 1 | N635: 1 | O635: 1 | P635: 1 | Q635: 1 | R635: 1 | S635: 1 | T635: 1 | U635: 1 | V635: 1 | W635: 1 | X635: 1 | Y635: 1
B636: FlexoCOMPACT exclusive VWF 58/4-5 - 400V + aroCOLLEC | C636: Non | D636: 0020212718 | E636: Kit de raccordement pour flexoCOMPACT, départs verticaux | F636: 190 | G636: 1 | H636: 1 | I636: 1 | J636: 1 | K636: 1 | L636: 1 | M636: 1 | N636: 1 | O636: 1 | P636: 1 | Q636: 1 | R636: 1 | S636: 1 | T636: 1 | U636: 1 | V636: 1 | W636: 1 | X636: 1 | Y636: 1
B637: FlexoCOMPACT exclusive VWF 88/4-5 - 400V + aroCOLLECT | C637: Non | D637: 0020212718 | E637: Kit de raccordement pour flexoCOMPACT, départs verticaux | F637: 190 | G637: 1 | H637: 1 | I637: 1 | J637: 1 | K637: 1 | L637: 1 | M637: 1 | N637: 1 | O637: 1 | P637: 1 | Q637: 1 | R637: 1 | S637: 1 | T637: 1 | U637: 1 | V637: 1 | W637: 1 | X637: 1 | Y637: 1
B638: FlexoCOMPACT exclusive VWF 118/4-5 - 400V + aroCOLLECT | C638: Non | D638: 0020212718 | E638: Kit de raccordement pour flexoCOMPACT, départs verticaux | F638: 190 | G638: 1 | H638: 1 | I638: 1 | J638: 1 | K638: 1 | L638: 1 | M638: 1 | N638: 1 | O638: 1 | P638: 1 | Q638: 1 | R638: 1 | S638: 1 | T638: 1 | U638: 1 | V638: 1 | W638: 1 | X638: 1 | Y638: 1
B641: PAC | C641: Obligatoire | D641: . | E641: =Calculs!J117 -> Accessoires Raccordements : Horizontaux | F641: =Calculs!K$117 -> . | G641: . | H641: . | I641: . | J641: . | O641: . | P641: . | Q641: . | R641: . | S641: .
B642: flexoTHERM exclusive VWF 57/4-5 - 400V + aroCOLLECT | C642: Non | D642: 0020212716 | E642: Kit de raccordement pour flexoTHERM, départs verticaux | F642: =VLOOKUP(D642,MATRICE_VA,3,FALSE) -> 234 | G642: =$Y642 -> 1 | H642: 1 | I642: 1 | J642: 1 | K642: 1 | L642: 1 | M642: 1 | N642: 1 | O642: 1 | P642: 1 | Q642: 1 | R642: 1 | S642: 1 | T642: 1 | U642: 1 | V642: 1 | W642: =$Y642 -> 1 | X642: 1 | Y642: =_xlfn.NUMBERVALUE($Y$5) -> 1
B643: flexoTHERM exclusive VWF 87/4-5 - 400V + aroCOLLECT | C643: Non | D643: 0020212716 | E643: Kit de raccordement pour flexoTHERM, départs verticaux | F643: 234 | G643: 1 | H643: 1 | I643: 1 | J643: 1 | K643: 1 | L643: 1 | M643: 1 | N643: 1 | O643: 1 | P643: 1 | Q643: 1 | R643: 1 | S643: 1 | T643: 1 | U643: 1 | V643: 1 | W643: 1 | X643: 1 | Y643: 1
B644: flexoTHERM exclusive VWF 117/4-5 - 400V + aroCOLLECT | C644: Non | D644: 0020212716 | E644: Kit de raccordement pour flexoTHERM, départs verticaux | F644: 234 | G644: 1 | H644: 1 | I644: 1 | J644: 1 | K644: 1 | L644: 1 | M644: 1 | N644: 1 | O644: 1 | P644: 1 | Q644: 1 | R644: 1 | S644: 1 | T644: 1 | U644: 1 | V644: 1 | W644: 1 | X644: 1 | Y644: 1
B645: flexoTHERM exclusive VWF 157/4-5 - 400V + aroCOLLECT | C645: Non | D645: 0020212716 | E645: Kit de raccordement pour flexoTHERM, départs verticaux | F645: 234 | G645: 1 | H645: 1 | I645: 1 | J645: 1 | K645: 1 | L645: 1 | M645: 1 | N645: 1 | O645: 1 | P645: 1 | Q645: 1 | R645: 1 | S645: 1 | T645: 1 | U645: 1 | V645: 1 | W645: 1 | X645: 1 | Y645: 1
B646: flexoTHERM exclusive VWF 197/4-5 - 400V + aroCOLLECT | C646: Non | D646: 0020212716 | E646: Kit de raccordement pour flexoTHERM, départs verticaux | F646: 234 | G646: 1 | H646: 1 | I646: 1 | J646: 1 | K646: 1 | L646: 1 | M646: 1 | N646: 1 | O646: 1 | P646: 1 | Q646: 1 | R646: 1 | S646: 1 | T646: 1 | U646: 1 | V646: 1 | W646: 1 | X646: 1 | Y646: 1
B647: FlexoCOMPACT exclusive VWF 58/4-5 - 400V + aroCOLLEC | C647: Non | D647: 0020212718 | E647: Kit de raccordement pour flexoCOMPACT, départs verticaux | F647: 190 | G647: 1 | H647: 1 | I647: 1 | J647: 1 | K647: 1 | L647: 1 | M647: 1 | N647: 1 | O647: 1 | P647: 1 | Q647: 1 | R647: 1 | S647: 1 | T647: 1 | U647: 1 | V647: 1 | W647: 1 | X647: 1 | Y647: 1
B648: FlexoCOMPACT exclusive VWF 88/4-5 - 400V + aroCOLLECT | C648: Non | D648: 0020212718 | E648: Kit de raccordement pour flexoCOMPACT, départs verticaux | F648: 190 | G648: 1 | H648: 1 | I648: 1 | J648: 1 | K648: 1 | L648: 1 | M648: 1 | N648: 1 | O648: 1 | P648: 1 | Q648: 1 | R648: 1 | S648: 1 | T648: 1 | U648: 1 | V648: 1 | W648: 1 | X648: 1 | Y648: 1
B649: FlexoCOMPACT exclusive VWF 118/4-5 - 400V + aroCOLLECT | C649: Non | D649: 0020212718 | E649: Kit de raccordement pour flexoCOMPACT, départs verticaux | F649: 190 | G649: 1 | H649: 1 | I649: 1 | J649: 1 | K649: 1 | L649: 1 | M649: 1 | N649: 1 | O649: 1 | P649: 1 | Q649: 1 | R649: 1 | S649: 1 | T649: 1 | U649: 1 | V649: 1 | W649: 1 | X649: 1 | Y649: 1
B652: PAC | C652: Obligatoire | D652: . | E652: =Calculs!J118 ->  | F652: =Calculs!E$118 ->  | G652: . | H652: . | I652: . | J652: . | O652: . | P652: . | Q652: . | R652: . | S652: .
B663: PAC | C663: Obligatoire | D663: . | E663: =Calculs!J119 ->  | F663: =Calculs!E$119 ->  | G663: . | H663: . | I663: . | J663: . | O663: . | P663: . | Q663: . | R663: . | S663: .
B674: PAC | C674: Obligatoire | D674: . | E674: =Calculs!J$120 ->  | F674: =Calculs!E$120 ->  | G674: . | H674: . | I674: . | J674: . | O674: . | P674: . | Q674: . | R674: . | S674: .
B685: PAC | C685: Obligatoire | D685: . | E685: =Calculs!J$121 ->  | F685: =Calculs!K$121 ->  | G685: . | H685: . | I685: . | J685: . | O685: . | P685: . | Q685: . | R685: . | S685: .
B696: PAC | C696: Obligatoire | D696: . | E696: =Calculs!J$122 ->  | F696: =Calculs!K$122 ->  | G696: . | H696: . | I696: . | J696: . | O696: . | P696: . | Q696: . | R696: . | S696: .
B707: PAC | C707: Obligatoire | D707: . | E707: =Calculs!J$123 ->  | F707: =Calculs!K$123 ->  | G707: . | H707: . | I707: . | J707: . | O707: . | P707: . | Q707: . | R707: . | S707: .
B718: PAC | C718: Obligatoire | D718: . | E718: =Calculs!J$124 ->  | F718: =Calculs!K$124 ->  | G718: . | H718: . | I718: . | J718: . | O718: . | P718: . | Q718: . | R718: . | S718: .
B729: PAC | C729: Obligatoire | D729: . | E729: =Calculs!J$125 ->  | F729: =Calculs!E$125 -> . | G729: . | H729: . | I729: . | J729: . | O729: . | P729: . | Q729: . | R729: . | S729: .
B740: PAC | C740: Obligatoire | D740: . | E740: Mise en service | F740: . | G740: . | H740: . | I740: . | J740: . | K740: . | L740: . | M740: . | N740: . | O740: . | P740: . | Q740: . | R740: . | S740: . | T740: . | U740: . | V740: . | W740: . | X740: . | Y740: .
C741: Oui | D741: 0010028538 | E741: =VLOOKUP(D741,MATRICE_VA,2,FALSE) -> Mise en service pompe à chaleur (à commander sur la plateforme e-SERVICES) | F741: =VLOOKUP(D741,MATRICE_VA,3,FALSE) -> 350 | G741: =$Y741 -> 1 | H741: 1 | I741: 1 | J741: 1 | K741: 1 | L741: 1 | M741: 1 | N741: 1 | O741: 1 | P741: 1 | Q741: 1 | R741: 1 | S741: 1 | T741: 1 | U741: 1 | V741: 1 | W741: 1 | X741: =$Y741 -> 1 | Y741: =_xlfn.NUMBERVALUE($Y$5) -> 1
B751: PAC | C751: Obligatoire | D751: . | E751: Matériel à prévoir | F751: . | G751: . | H751: . | I751: . | J751: . | O751: . | P751: . | Q751: . | R751: . | S751: .
C752: Ajustez les quantités | D752: 302363 | E752: Mélange d'eau glycolée - 10 litres pour solaire et PAC aérothermique | F752: =VLOOKUP(D752,MATRICE_VA,3,FALSE) ->  | G752: 1 | H752: 1 | I752: 1 | J752: 1 | K752: 1 | L752: =$Y752 -> 1 | M752: 1 | N752: 1 | O752: 1 | P752: 1 | Q752: 1 | R752: 1 | S752: 1 | T752: 1 | U752: 1 | V752: 1 | W752: 1 | X752: =$Y752 -> 1 | Y752: =_xlfn.NUMBERVALUE($Y$5) -> 1
C753: Ajustez les quantités | D753: 302498 | E753: Mélange d'eau glycolée - 20 litres pour solaire et PAC aérothermique | F753: =VLOOKUP(D753,MATRICE_VA,3,FALSE) ->  | G753: 1 | H753: 1 | I753: 1 | J753: 1 | K753: 1 | M753: 1 | V753: 1 | X753: 1
C754: Ajustez les quantités | D754: A prévoir | E754: Filtre à tamis sur le retour PAC | F754: - | G754: =$Y754 -> 1 | H754: 1 | I754: 1 | J754: 1 | K754: 1 | L754: 1 | M754: 1 | N754: 1 | O754: 1 | P754: 1 | Q754: 1 | R754: 1 | S754: 1 | T754: 1 | U754: 1 | V754: 1 | W754: 1 | X754: =$Y754 -> 1 | Y754: =_xlfn.NUMBERVALUE($Y$5) -> 1
C755: Ajustez les quantités | D755: A prévoir | E755: Soupape différentielle (repère 9d) | F755: - | G755: 1 | H755: 1 | I755: 1 | J755: 1 | K755: 1 | L755: 1 | M755: 1 | N755: 1 | O755: 1 | P755: 1 | Q755: 1 | R755: 1 | S755: 1 | T755: 1 | U755: 1 | V755: 1 | W755: 1 | X755: 1
B756: flexoTHERM exclusive VWF 57/4-5 - 400V + aroCOLLECT | D756: A prévoir | E756: Volume tampon minimal de 60 l | F756: - | G756: 1 | H756: 1 | I756: 1 | J756: 1 | K756: 1 | L756: 1 | M756: 1 | N756: 1 | O756: 1 | P756: 1 | Q756: 1 | R756: 1 | S756: 1 | T756: 1 | U756: 1 | V756: 1 | W756: 1 | X756: 1
B757: flexoTHERM exclusive VWF 87/4-5 - 400V + aroCOLLECT | D757: A prévoir | E757: Volume tampon minimal de 100 l | F757: - | G757: 1 | H757: 1 | I757: 1 | J757: 1 | K757: 1 | L757: 1 | M757: 1 | N757: 1 | O757: 1 | P757: 1 | Q757: 1 | R757: 1 | S757: 1 | T757: 1 | U757: 1 | V757: 1 | W757: 1 | X757: 1
B758: flexoTHERM exclusive VWF 117/4-5 - 400V + aroCOLLECT | D758: A prévoir | E758: Volume tampon minimal de 140 l | F758: - | G758: 1 | H758: 1 | I758: 1 | J758: 1 | K758: 1 | L758: 1 | M758: 1 | N758: 1 | O758: 1 | P758: 1 | Q758: 1 | R758: 1 | S758: 1 | T758: 1 | U758: 1 | V758: 1 | W758: 1 | X758: 1
B759: flexoTHERM exclusive VWF 157/4-5 - 400V + aroCOLLECT | D759: A prévoir | E759: Volume tampon minimal de 170 l | F759: - | G759: =$Y759 -> 1 | H759: 1 | I759: 1 | J759: 1 | K759: 1 | L759: 1 | M759: 1 | N759: 1 | O759: 1 | P759: 1 | Q759: 1 | R759: 1 | S759: 1 | T759: 1 | U759: 1 | V759: 1 | W759: =$Y759 -> 1 | X759: 1 | Y759: =IF(_xlfn.NUMBERVALUE($Y$5)>1,0,1) -> 1
B760: flexoTHERM exclusive VWF 197/4-5 - 400V + aroCOLLECT | D760: A prévoir | E760: Volume tampon minimal de 240 l | F760: - | G760: 1 | H760: 1 | I760: 1 | J760: 1 | K760: 1 | L760: 1 | M760: 1 | N760: 1 | O760: 1 | P760: 1 | Q760: 1 | R760: 1 | S760: 1 | T760: 1 | U760: 1 | V760: 1 | W760: 1 | X760: 1 | Y760: =IF(_xlfn.NUMBERVALUE($Y$5)>1,0,1) -> 1
B761: FlexoCOMPACT exclusive VWF 58/4-5 - 400V + aroCOLLEC | D761: A prévoir | E761: Volume tampon minimal de 60 l | F761: - | G761: 1 | H761: 1 | I761: 1 | J761: 1 | K761: 1 | L761: 1 | M761: 1 | N761: 1 | O761: 1 | P761: 1 | Q761: 1 | R761: 1 | S761: 1 | T761: 1 | U761: 1 | V761: 1 | W761: 1 | X761: 1
B762: FlexoCOMPACT exclusive VWF 88/4-5 - 400V + aroCOLLECT | D762: A prévoir | E762: Volume tampon minimal de 100 l | F762: - | G762: 1 | H762: 1 | I762: 1 | J762: 1 | K762: 1 | L762: 1 | M762: 1 | N762: 1 | O762: 1 | P762: 1 | Q762: 1 | R762: 1 | S762: 1 | T762: 1 | U762: 1 | V762: 1 | W762: 1 | X762: 1
B763: FlexoCOMPACT exclusive VWF 118/4-5 - 400V + aroCOLLECT | C763: Ajustez les quantités | D763: A prévoir | E763: Volume tampon minimal de 140 l | F763: - | G763: 1 | H763: 1 | I763: 1 | J763: 1 | K763: 1 | L763: 1 | M763: 1 | N763: 1 | O763: 1 | P763: 1 | Q763: 1 | R763: 1 | S763: 1 | T763: 1 | U763: 1 | V763: 1 | W763: 1 | X763: 1
C776: Ajustez les quantités | D776: A prévoir | E776: Vase expansion, soupape, manomètre. | F776: - | G776: 1 | H776: 1 | I776: 1 | J776: 1 | K776: 1 | L776: 1 | M776: 1 | U776: 1 | V776: 1 | W776: 1 | X776: 1
C777: Ajustez les quantités | D777: A prévoir | E777: En option circulateur bouclage sanitaire, vase expansion sanitaire… | F777: - | J777: 1 | K777: 1 | L777: 1 | M777: 1 | U777: 1 | V777: 1 | W777: 1 | X777: 1

Sheet BDD_G3 (hidden)
B1: Logiciel PAC_2020 v2
D2: =Calculs!H92 -> BDD_G3 : aroTHERM VWL | G2: Q-commun | H2: EI-commun | I2: commun-EI | J2: commun | K2: H-EI-commun | L2: H-commun-EI | M2: H-commun | N2: Hext-commun-EI | O2: Hext-commun | P2: Q-E-commun | Q2: EI-E-commun | R2: E-commun-EI | S2: E-commun | T2: E-H-EI-commun | U2: E-H-commun-EI | V2: E-H-commun | W2: E-Hext-commun-EI | X2: E-Hext-commun | Y2: Cascade de PAC
B3: 02/08/2022 | G3: 1 | H3: 2 | I3: 3 | J3: 4 | K3: 5 | L3: 6 | M3: 7 | N3: 8 | O3: 9 | P3: 10 | Q3: 11 | R3: 12 | S3: 13 | T3: 14 | U3: 15 | V3: 16 | W3: 17 | X3: 18
E4: ="Recherche la configuration >> "&Calculs!$C$2018&" << =>" -> Recherche la configuration >> colonne << => | F4: Schéma | G4: colonne | H4: ballon ECS avant bouteille | I4: ballon ECS aprés bouteille | J4: chauffage seul | K4: Hybride et ballon ECS avant Bouteille | L4: hybride et ballon ECS aprés bouteille | M4: hybride chauffage seul | N4: hybride non Ebus et ballon ECS aprés bouteille | O4: hybride non Ebus chauffage seul | P4: colonne avec echangeur glycol | Q4: ballon ECS avant bouteille avec echangeur glycol | R4: ballon ECS aprés bouteille avec echangeur glycol | S4: Chauffage Seul avec echangeur glycol | T4: hybride et ballon ECS avant bouteille avec echangeur glycol | U4: hybride et ballon ECS aprés bouteille avec echangeur glycol | V4: hybride chauffage Seul avec echangeur glycol | W4: hybride non Ebus et ballon ECS aprés bouteille avec echangeur glycol | X4: hybride non Ebus chauffage seul avec echangeur glycol | Y4: Nombre de PAC valeur à multipliers au accessoires
B5: Vers PARAMETRAGE | F5: Appoint | G5: Appoint interne | H5: Electrique | I5: Electrique | J5: Electrique | K5: Chaudière neuve | L5: Chaudière neuve | M5: Chaudière neuve | N5: Chaudière existante | O5: Chaudière existante | P5: Appoint interne | Q5: Electrique | R5: Electrique | S5: Electrique | T5: Chaudière neuve | U5: Chaudière neuve | V5: Chaudière neuve | W5: Chaudière existante | X5: Chaudière existante | Y5: =_xlfn.NUMBERVALUE(Calculs!$C$2173) -> 1
F6: Mode gestion | G6: Simultané | H6: Simultané | I6: Simultané | J6: Simultané | K6: Simultané | L6: Simultané | M6: Simultané | N6: Simultané | O6: Simultané | P6: Simultané | Q6: Simultané | R6: Simultané | S6: Simultané | T6: Simultané | U6: Simultané | V6: Simultané | W6: Simultané | X6: Simultané
F7: ECS | G7: Var. impossible | H7: Var. possible | I7: Var. possible | J7: Var. possible | K7: Var. possible | L7: Var. possible | M7: Var. impossible | N7: Var. impossible | O7: Var. possible | P7: Var. possible | Q7: Var. possible | R7: Var. possible | S7: Var. possible | T7: Var. impossible | U7: Var. possible | V7: Var. impossible | W7: Var. possible | X7: Var. impossible
F8: =Calculs!D29 -> Régulation : | G8: Var. possible | H8: Var. possible | I8: Var. possible | J8: Var. possible | K8: Var. possible | L8: Var. possible | M8: Var. possible | N8: Var. possible | O8: Var. possible | P8: Var. possible | Q8: Var. possible | R8: Var. possible | S8: Var. possible | T8: Var. possible | U8: Var. possible | V8: Var. possible | W8: Var. possible | X8: Var. possible
F9: =Calculs!D30 -> Connectivité : | G9: Var. possible | H9: Var. possible | I9: Var. possible | J9: Var. possible | K9: Var. possible | L9: Var. possible | M9: Var. possible | N9: Var. possible | O9: Var. possible | P9: Var. possible | Q9: Var. possible | R9: Var. possible | S9: Var. possible | T9: Var. possible | U9: Var. possible | V9: Var. possible | W9: Var. possible | X9: Var. possible
F10: =Calculs!D31 ->  | G10: Var. possible | H10: Var. possible | I10: Var. possible | J10: Var. possible | K10: Var. possible | L10: Var. possible | M10: Var. possible | N10: Var. possible | O10: Var. possible | P10: Var. possible | Q10: Var. possible | R10: Var. possible | S10: Var. possible | T10: Var. possible | U10: Var. possible | V10: Var. possible | W10: Var. possible | X10: Var. possible
F11: =Calculs!D32 -> Découplage glycol : | G11: Var. possible | H11: Var. possible | I11: Var. possible | J11: Var. possible | K11: Var. possible | L11: Var. possible | M11: Var. possible | N11: Var. possible | O11: Var. possible | P11: Var. possible | Q11: Var. possible | R11: Var. possible | S11: Var. possible | T11: Var. possible | U11: Var. possible | V11: Var. possible | W11: Var. possible | X11: Var. possible
F12: =Calculs!D33 -> Supports unité extérieure : | G12: Var. possible | H12: Var. possible | I12: Var. possible | J12: Var. possible | K12: Var. possible | L12: Var. possible | M12: Var. possible | N12: Var. possible | O12: Var. possible | P12: Var. possible | Q12: Var. possible | R12: Var. possible | S12: Var. possible | T12: Var. possible | U12: Var. possible | V12: Var. possible | W12: Var. possible | X12: Var. possible
F13: .
D14: Réf. | E14: Dénomination | F14: PU HT
D15: . | E15: Pompes à chaleur de la gamme | F15: . | G15: . | H15: . | I15: . | J15: . | K15: . | L15: . | M15: . | N15: . | O15: . | P15: . | Q15: . | R15: . | S15: . | U15: . | V15: . | W15: . | X15: .
D16: 0010019764 | E16: aroTHERM VWL 55/3 A 230V | F16: =VLOOKUP($D16,MATRICE_VA,3,FALSE) -> 6035 | G16: 1 | H16: 1 | I16: 1 | J16: 1 | K16: 1 | L16: 1 | M16: 1 | N16: 1 | O16: 1 | P16: 1 | Q16: 1 | R16: 1 | S16: 1 | T16: 1 | U16: 1 | V16: 1 | W16: 1 | X16: 1 | Y16: 1
D17: 0010019765 | E17: aroTHERM VWL 85/3 A 230V | F17: =VLOOKUP($D17,MATRICE_VA,3,FALSE) -> 7722 | G17: 1 | H17: 1 | I17: 1 | J17: 1 | K17: 1 | L17: 1 | M17: 1 | N17: 1 | O17: 1 | P17: 1 | Q17: 1 | R17: 1 | S17: 1 | T17: 1 | U17: 1 | V17: 1 | W17: 1 | X17: 1 | Y17: 1
D18: 0010016410 | E18: aroTHERM VWL 115/2 A 230V | F18: =VLOOKUP($D18,MATRICE_VA,3,FALSE) -> 9507 | G18: 1 | H18: 1 | I18: 1 | J18: 1 | K18: 1 | L18: 1 | M18: 1 | N18: 1 | O18: 1 | P18: 1 | Q18: 1 | R18: 1 | S18: 1 | T18: 1 | U18: 1 | V18: 1 | W18: 1 | X18: 1 | Y18: 1
D19: 0010016412 | E19: aroTHERM VWL 155/2 A 230V | F19: =VLOOKUP($D19,MATRICE_VA,3,FALSE) -> 11094 | G19: 1 | H19: 1 | I19: 1 | J19: 1 | K19: 1 | L19: 1 | M19: 1 | N19: 1 | O19: 1 | P19: 1 | Q19: 1 | R19: 1 | S19: 1 | T19: 1 | U19: 1 | V19: 1 | W19: 1 | X19: 1 | Y19: 1
B30: PAC | C30: Puissance | D30: . | E30: Appoint électrique VWZ MEH 61 | F30: . | G30: . | H30: . | I30: . | J30: . | O30: . | P30: . | Q30: . | R30: . | S30: .
B31: aroTHERM VWL 55/3 A 230V | C31: 5.4 | D31: 0020180703 | E31: =VLOOKUP($D31,MATRICE_VA,2,FALSE) -> Module hydraulique VWZ MEH 61 | F31: =VLOOKUP(D31,MATRICE_VA,3,FALSE) -> 1840 | H31: 1 | I31: 1 | J31: 1 | Q31: 1 | R31: 1 | S31: 1 | Y31: 1
B32: aroTHERM VWL 85/3 A 230V | C32: 5.4 | D32: 0020180703 | E32: =VLOOKUP($D32,MATRICE_VA,2,FALSE) -> Module hydraulique VWZ MEH 61 | F32: 1840 | H32: 1 | I32: 1 | J32: 1 | Q32: 1 | R32: 1 | S32: 1 | Y32: 1
B33: aroTHERM VWL 115/2 A 230V | C33: 5.4 | D33: 0020180703 | E33: =VLOOKUP($D33,MATRICE_VA,2,FALSE) -> Module hydraulique VWZ MEH 61 | F33: 1840 | H33: 1 | I33: 1 | J33: 1 | Q33: 1 | R33: 1 | S33: 1 | Y33: 1
B34: aroTHERM VWL 155/2 A 230V | C34: 5.4 | D34: 0020180703 | E34: =VLOOKUP($D34,MATRICE_VA,2,FALSE) -> Module hydraulique VWZ MEH 61 | F34: 1840 | H34: 1 | I34: 1 | J34: 1 | Q34: 1 | R34: 1 | S34: 1 | Y34: 1
B45: PAC | C45: Puissance | D45: . | E45: Appoint électrique VWZ MEH 60 | F45: . | G45: . | H45: . | I45: . | J45: . | O45: . | P45: . | Q45: . | R45: . | S45: .
B46: aroTHERM VWL 55/3 A 230V | C46: 6 | D46: 0020180702 | E46: =VLOOKUP($D46,MATRICE_VA,2,FALSE) -> Module électrique VWZ MEH 60 | F46: =VLOOKUP(D46,MATRICE_VA,3,FALSE) -> 656 | H46: 1 | I46: 1 | J46: 1 | Q46: 1 | R46: 1 | S46: 1
B47: aroTHERM VWL 85/3 A 230V | C47: 6 | D47: 0020180702 | E47: =VLOOKUP($D47,MATRICE_VA,2,FALSE) -> Module électrique VWZ MEH 60 | F47: 656 | H47: 1 | I47: 1 | J47: 1 | Q47: 1 | R47: 1 | S47: 1
B48: aroTHERM VWL 115/2 A 230V | C48: 6 | D48: 0020180702 | E48: =VLOOKUP($D48,MATRICE_VA,2,FALSE) -> Module électrique VWZ MEH 60 | F48: 656 | H48: 1 | I48: 1 | J48: 1 | Q48: 1 | R48: 1 | S48: 1
B49: aroTHERM VWL 155/2 A 230V | C49: 6 | D49: 0020180702 | E49: =VLOOKUP($D49,MATRICE_VA,2,FALSE) -> Module électrique VWZ MEH 60 | F49: 656 | H49: 1 | I49: 1 | J49: 1 | Q49: 1 | R49: 1 | S49: 1
D53: 0020117049 | E53: =VLOOKUP($D53,MATRICE_VA,2,FALSE) -> Interface VWZ AI - aroTHERM | F53: 302 | H53: 1 | I53: 1 | J53: 1 | Q53: 1 | R53: 1 | S53: 1 | Y53: =_xlfn.NUMBERVALUE(Y5-1) -> 0
C60: Puissance | D60: . | E60: Chaudière | F60: . | G60: . | H60: . | I60: . | J60: . | O60: . | P60: . | Q60: . | R60: . | S60: .
E61: chaudière | F61: 0 | K61: 1 | L61: 1 | M61: 1 | T61: 1 | U61: 1 | V61: 1
D62: . | E62: Accessoires chaudière | F62: . | G62: . | H62: . | I62: . | J62: . | K62: . | L62: . | M62: . | N62: . | O62: . | P62: . | Q62: . | R62: . | S62: . | T62: . | U62: . | V62: . | W62: . | X62: .
A63: BDD_Acc_Ch
B75: PAC | C75: Obligatoire | D75: . | E75: Préparateur ECS | F75: . | G75: . | H75: . | I75: . | J75: . | O75: . | P75: . | Q75: . | R75: . | S75: .
B90: PAC | C90: Obligatoire | D90: . | E90: Accessoires hydrauliques et électriques | F90: . | G90: . | H90: . | I90: . | J90: . | O90: . | P90: . | Q90: . | R90: . | S90: .
C91: Oui | D91: 0020117049 | E91: =VLOOKUP($D91,MATRICE_VA,2,FALSE) -> Interface VWZ AI - aroTHERM | F91: =VLOOKUP(D91,MATRICE_VA,3,FALSE) -> 302 | G91: =$Y91 -> 0 | H91: =$Y91 -> 0 | I91: =$Y91 -> 0 | J91: =$Y91 -> 0 | L91: =$Y91+1 -> 1 | M91: =$Y91+1 -> 1 | N91: =$Y91+1 -> 1 | O91: =$Y91+1 -> 1 | P91: =$Y91 -> 0 | Q91: =$Y91 -> 0 | R91: =$Y91 -> 0 | S91: =$Y91 -> 0 | U91: =$Y91+1 -> 1 | V91: =$Y91+1 -> 1 | W91: =$Y91+1 -> 1 | X91: =$Y91+1 -> 1 | Y91: =_xlfn.NUMBERVALUE(Y5-1) -> 0
B92: aroTHERM VWL 55/3 A 230V | C92: Oui | D92: 0010019708 | E92: =VLOOKUP($D92,MATRICE_VA,2,FALSE) -> uniTOWER VIH QW 190/1 E découp | F92: =VLOOKUP(D92,MATRICE_VA,3,FALSE) -> 4205 | P92: 1
B93: aroTHERM VWL 85/3 A 230V | C93: Oui | D93: 0010019708 | E93: =VLOOKUP($D93,MATRICE_VA,2,FALSE) -> uniTOWER VIH QW 190/1 E découp | F93: 4205 | P93: 1
B94: aroTHERM VWL 115/2 A 230V | C94: Oui | D94: 0010019709 | E94: =VLOOKUP($D94,MATRICE_VA,2,FALSE) -> uniTOWER - VIH QW 190/1 E | F94: 3693 | P94: 1
B96: aroTHERM VWL 155/2 A 230V | C96: Oui | D96: 0010019709 | E96: =VLOOKUP($D96,MATRICE_VA,2,FALSE) -> uniTOWER - VIH QW 190/1 E | F96: 3693 | P96: 1
C97: Oui | D97: 0010019709 | E97: =VLOOKUP($D97,MATRICE_VA,2,FALSE) -> uniTOWER - VIH QW 190/1 E | F97: =VLOOKUP(D97,MATRICE_VA,3,FALSE) -> 3693 | G97: 1
C98: Non | D98: 302040 | E98: =VLOOKUP(D98,MATRICE_VA,2,FALSE) -> Mitigeur thermostatique | F98: =VLOOKUP(D98,MATRICE_VA,3,FALSE) -> 133 | G98: 1 | N98: 1 | O98: 1 | P98: 1
D99: 0020218627 | E99: =VLOOKUP($D99,MATRICE_VA,2,FALSE) -> Vase expans. 2 litres uniTOWER | F99: =VLOOKUP(D99,MATRICE_VA,3,FALSE) -> 90 | P99: 1
C100: Oui | D100: 0020221263 | E100: =VLOOKUP(D100,MATRICE_VA,2,FALSE) -> Kit de raccordement uniTOWER | F100: =VLOOKUP(D100,MATRICE_VA,3,FALSE) -> 208 | G100: 1 | P100: 1
C101: Oui | D101: 0020139895 | E101: =VLOOKUP(D101,MATRICE_VA,2,FALSE) -> VR 32/3 HYB Coupl. bus PAC hyb | F101: =VLOOKUP(D101,MATRICE_VA,3,FALSE) -> 153 | G101: =IF(COUNTIF(G2,"*H-*"),1,"") ->  | H101: =IF(COUNTIF(H2,"*H-*"),1,"") ->  | K101: 1 | L101: 1 | M101: 1 | T101: 1 | U101: 1 | V101: 1
A119: BDD_Commun
B349: PAC | C349: Obligatoire | D349: . | E349: =Calculs!H$95 -> Accessoires ECS : Chaudière seule ou électrique | F349: =Calculs!E$95 -> . | G349: . | H349: . | I349: . | J349: . | O349: . | P349: . | Q349: . | R349: . | S349: .
B360: PAC | C360: Obligatoire | D360: . | E360: =Calculs!H$96 -> Accessoires ECS : Ballon ECS 200 l | F360: =Calculs!E$96 -> . | G360: . | H360: . | I360: . | J360: . | O360: . | P360: . | Q360: . | R360: . | S360: .
B361: aroTHERM VWL 55/3 A 230V | C361: Non | D361: 0020214407 | E361: =VLOOKUP(D361,MATRICE_VA,2,FALSE) -> Ballon uniSTOR VIH RW 200 | F361: =VLOOKUP(D361,MATRICE_VA,3,FALSE) -> 1850 | H361: 1 | I361: 1 | K361: 1 | L361: 1 | N361: 1 | Q361: 1 | R361: 1 | T361: 1 | U361: 1 | W361: 1
B362: aroTHERM VWL 85/3 A 230V | D362: 0020214407 | E362: Ballon uniSTOR VIH RW 200 | F362: 1850 | H362: 1 | I362: 1 | K362: 1 | L362: 1 | N362: 1 | Q362: 1 | R362: 1 | T362: 1 | U362: 1 | W362: 1
B363: aroTHERM VWL 115/2 A 230V | D363: 0020214407 | E363: Ballon uniSTOR VIH RW 200 | F363: 1850 | H363: 1 | I363: 1 | K363: 1 | L363: 1 | N363: 1 | Q363: 1 | R363: 1 | T363: 1 | U363: 1 | W363: 1
B364: aroTHERM VWL 155/2 A 230V | D364: 0020214407 | E364: Ballon uniSTOR VIH RW 200 | F364: 1850 | H364: 1 | I364: 1 | K364: 1 | L364: 1 | N364: 1 | Q364: 1 | R364: 1 | T364: 1 | U364: 1 | W364: 1
C368: Non | D368: 302040 | E368: =VLOOKUP(D368,MATRICE_VA,2,FALSE) -> Mitigeur thermostatique | F368: =VLOOKUP(D368,MATRICE_VA,3,FALSE) -> 133 | H368: 1 | I368: 1 | K368: 1 | L368: 1 | N368: 1 | Q368: 1 | R368: 1 | T368: 1 | U368: 1 | W368: 1
C369: Non | D369: 305827 | E369: =VLOOKUP(D369,MATRICE_VA,2,FALSE) -> Grpe sécu. ballon sup. à 200l | F369: =VLOOKUP(D369,MATRICE_VA,3,FALSE) -> 159 | H369: 1 | I369: 1 | K369: 1 | L369: 1 | N369: 1 | Q369: 1 | R369: 1 | T369: 1 | U369: 1 | W369: 1
C370: Ajustez les quantités | D370: 306787 | E370: =VLOOKUP(D370,MATRICE_VA,2,FALSE) -> Sonde temp. sans connecteur | F370: =VLOOKUP(D370,MATRICE_VA,3,FALSE) -> 20 | H370: 1 | I370: 1 | K370: 1 | L370: 1 | N370: 1 | Q370: 1 | R370: 1 | T370: 1 | U370: 1 | W370: 1
B371: PAC | C371: Obligatoire | D371: . | E371: =Calculs!H$97 -> Accessoires ECS : Ballon ECS 300 l | F371: =Calculs!E$96 -> . | G371: . | H371: . | I371: . | J371: . | O371: . | P371: . | Q371: . | R371: . | S371: . | T371: .
B372: aroTHERM VWL 55/3 A 230V | C372: Non | D372: 0010020645 | E372: Ballon uniSTOR VIH RW 300/3 BR (déconseillé avec le modèle 45/6) | F372: =VLOOKUP(D372,MATRICE_VA,3,FALSE) -> 2150 | H372: 1 | I372: 1 | K372: 1 | L372: 1 | N372: 1 | Q372: 1 | R372: 1 | T372: 1 | U372: 1 | W372: 1
B373: aroTHERM VWL 85/3 A 230V | C373: Non | D373: 0010020645 | E373: =VLOOKUP(D373,MATRICE_VA,2,FALSE) -> Ballon uniSTOR VIH RW 300/3 BR | F373: 2150 | H373: 1 | I373: 1 | K373: 1 | L373: 1 | N373: 1 | Q373: 1 | R373: 1 | T373: 1 | U373: 1 | W373: 1
B374: aroTHERM VWL 115/2 A 230V | C374: Non | D374: 0010020645 | E374: Ballon uniSTOR VIH RW 300/3 BR | F374: 2150 | H374: 1 | I374: 1 | K374: 1 | L374: 1 | N374: 1 | Q374: 1 | R374: 1 | T374: 1 | U374: 1 | W374: 1
B375: aroTHERM VWL 155/2 A 230V | C375: Non | D375: 0010020645 | E375: Ballon uniSTOR VIH RW 300/3 BR | F375: 2150 | H375: 1 | I375: 1 | K375: 1 | L375: 1 | N375: 1 | Q375: 1 | R375: 1 | T375: 1 | U375: 1 | W375: 1
C379: Non | D379: 302040 | E379: =VLOOKUP(D379,MATRICE_VA,2,FALSE) -> Mitigeur thermostatique | F379: =VLOOKUP(D379,MATRICE_VA,3,FALSE) -> 133 | H379: 1 | I379: 1 | K379: 1 | L379: 1 | N379: 1 | Q379: 1 | R379: 1 | T379: 1 | U379: 1 | W379: 1
C380: Non | D380: 305827 | E380: =VLOOKUP(D380,MATRICE_VA,2,FALSE) -> Grpe sécu. ballon sup. à 200l | F380: =VLOOKUP(D380,MATRICE_VA,3,FALSE) -> 159 | H380: 1 | I380: 1 | K380: 1 | L380: 1 | N380: 1 | Q380: 1 | R380: 1 | T380: 1 | U380: 1 | W380: 1
C381: Ajustez les quantités | D381: 306787 | E381: =VLOOKUP(D381,MATRICE_VA,2,FALSE) -> Sonde temp. sans connecteur | F381: =VLOOKUP(D381,MATRICE_VA,3,FALSE) -> 20 | H381: 1 | I381: 1 | K381: 1 | L381: 1 | N381: 1 | Q381: 1 | R381: 1 | T381: 1 | U381: 1 | W381: 1
B382: PAC | C382: Obligatoire | D382: . | E382: =Calculs!H$98 -> Accessoires ECS : Ballon ECS 400 l | F382: =Calculs!E$96 -> . | G382: . | H382: . | I382: . | J382: . | O382: . | P382: . | Q382: . | R382: . | S382: . | T382: .
B383: aroTHERM 5 kW 230 V | C383: Non | D383: 0010020646 | E383: Ballon uniSTOR VIH RW 400/3 BR (déconseillé avec le modèle 45/6) | F383: =VLOOKUP(D383,MATRICE_VA,3,FALSE) -> 2510 | H383: 1 | I383: 1 | K383: 1 | L383: 1 | N383: 1 | Q383: 1 | R383: 1 | T383: 1 | U383: 1 | W383: 1
B384: aroTHERM 8 kW 230 V | C384: Non | D384: 0010020646 | E384: =VLOOKUP(D384,MATRICE_VA,2,FALSE) -> Ballon uniSTOR VIH RW 400/3 BR | F384: 2510 | H384: 1 | I384: 1 | K384: 1 | L384: 1 | N384: 1 | Q384: 1 | R384: 1 | T384: 1 | U384: 1 | W384: 1
B385: aroTHERM 11 kW 230 V | C385: Non | D385: 0010020646 | E385: Ballon uniSTOR VIH RW 400/3 BR | F385: 2510 | H385: 1 | I385: 1 | K385: 1 | L385: 1 | N385: 1 | Q385: 1 | R385: 1 | T385: 1 | U385: 1 | W385: 1
B386: aroTHERM 15 kW 230 V | C386: Non | D386: 0010020646 | E386: Ballon uniSTOR VIH RW 400/3 BR | F386: 2510 | H386: 1 | I386: 1 | K386: 1 | L386: 1 | N386: 1 | Q386: 1 | R386: 1 | T386: 1 | U386: 1 | W386: 1
C390: Non | D390: 302040 | E390: =VLOOKUP(D390,MATRICE_VA,2,FALSE) -> Mitigeur thermostatique | F390: =VLOOKUP(D390,MATRICE_VA,3,FALSE) -> 133 | H390: 1 | I390: 1 | K390: 1 | L390: 1 | N390: 1 | Q390: 1 | R390: 1 | T390: 1 | U390: 1 | W390: 1
C391: Non | D391: 305827 | E391: =VLOOKUP(D391,MATRICE_VA,2,FALSE) -> Grpe sécu. ballon sup. à 200l | F391: =VLOOKUP(D391,MATRICE_VA,3,FALSE) -> 159 | H391: 1 | I391: 1 | K391: 1 | L391: 1 | N391: 1 | Q391: 1 | R391: 1 | T391: 1 | U391: 1 | W391: 1
C392: Ajustez les quantités | D392: 306787 | E392: =VLOOKUP(D392,MATRICE_VA,2,FALSE) -> Sonde temp. sans connecteur | F392: =VLOOKUP(D392,MATRICE_VA,3,FALSE) -> 20 | H392: 1 | I392: 1 | K392: 1 | L392: 1 | N392: 1 | Q392: 1 | R392: 1 | T392: 1 | U392: 1 | W392: 1
B393: PAC | C393: Obligatoire | D393: . | E393: =Calculs!H$99 -> Accessoires ECS : Ballon ECS 500 l | F393: =Calculs!E$96 -> . | G393: . | H393: . | I393: . | J393: . | O393: . | P393: . | Q393: . | R393: . | S393: . | T393: .
B394: aroTHERM VWL 55/3 A 230V | C394: Non | D394: 0010020647 | E394: Ballon uniSTOR VIH RW 500/3 BR (déconseillé avec le modèle 45/6) | F394: =VLOOKUP(D394,MATRICE_VA,3,FALSE) -> 3150 | H394: 1 | I394: 1 | K394: 1 | L394: 1 | N394: 1 | Q394: 1 | R394: 1 | T394: 1 | U394: 1 | W394: 1
B395: aroTHERM VWL 85/3 A 230V | C395: Non | D395: 0010020647 | E395: =VLOOKUP(D395,MATRICE_VA,2,FALSE) -> Ballon uniSTOR VIH RW 500/3 BR | F395: 3150 | H395: 1 | I395: 1 | K395: 1 | L395: 1 | N395: 1 | Q395: 1 | R395: 1 | T395: 1 | U395: 1 | W395: 1
B396: aroTHERM VWL 115/2 A 230V | C396: Non | D396: 0010020647 | E396: Ballon uniSTOR VIH RW 500/3 BR | F396: 3150 | H396: 1 | I396: 1 | K396: 1 | L396: 1 | N396: 1 | Q396: 1 | R396: 1 | T396: 1 | U396: 1 | W396: 1
B397: aroTHERM VWL 155/2 A 230V | C397: Non | D397: 0010020647 | E397: Ballon uniSTOR VIH RW 500/3 BR | F397: 3150 | H397: 1 | I397: 1 | K397: 1 | L397: 1 | N397: 1 | Q397: 1 | R397: 1 | T397: 1 | U397: 1 | W397: 1
C401: Non | D401: 302040 | E401: =VLOOKUP(D401,MATRICE_VA,2,FALSE) -> Mitigeur thermostatique | F401: =VLOOKUP(D401,MATRICE_VA,3,FALSE) -> 133 | H401: 1 | I401: 1 | K401: 1 | L401: 1 | N401: 1 | Q401: 1 | R401: 1 | T401: 1 | U401: 1 | W401: 1
C402: Non | D402: 305827 | E402: =VLOOKUP(D402,MATRICE_VA,2,FALSE) -> Grpe sécu. ballon sup. à 200l | F402: =VLOOKUP(D402,MATRICE_VA,3,FALSE) -> 159 | H402: 1 | I402: 1 | K402: 1 | L402: 1 | N402: 1 | Q402: 1 | R402: 1 | T402: 1 | U402: 1 | W402: 1
C403: Ajustez les quantités | D403: 306787 | E403: =VLOOKUP(D403,MATRICE_VA,2,FALSE) -> Sonde temp. sans connecteur | F403: =VLOOKUP(D403,MATRICE_VA,3,FALSE) -> 20 | H403: 1 | I403: 1 | K403: 1 | L403: 1 | N403: 1 | Q403: 1 | R403: 1 | T403: 1 | U403: 1 | W403: 1
B404: PAC | C404: Obligatoire | D404: . | E404: =Calculs!H$100 -> Accessoires ECS : Ballon ECS intégré | F404: =Calculs!I$100 -> . | G404: . | H404: . | I404: . | J404: . | O404: . | P404: . | Q404: . | R404: . | S404: .
B415: PAC | C415: Obligatoire | D415: . | E415: =Calculs!H$101 -> Régulation : sensocomfort vrc 720 (filaire) | F415: =Calculs!I$101 -> . | G415: . | H415: . | I415: . | J415: . | O415: . | P415: . | Q415: . | R415: . | S415: .
A416: BDD_Commun
B436: PAC | C436: Obligatoire | D436: . | E436: =Calculs!H$102 -> Régulation : sensocomfort vrc 720f (radio) | F436: =Calculs!I$102 -> . | G436: . | H436: . | I436: . | J436: . | O436: . | P436: . | Q436: . | R436: . | S436: .
B457: PAC | C457: Obligatoire | D457: . | E457: =Calculs!H$103 -> Accessoires régulation : multiMATIC VRC 700 (filaire) | F457: =Calculs!I$103 -> . | G457: . | H457: . | I457: . | J457: . | O457: . | P457: . | Q457: . | R457: . | S457: .
B478: PAC | C478: Obligatoire | D478: . | E478: =Calculs!D$104 ->  | F478: =Calculs!E$104 ->  | G478: . | H478: . | I478: . | J478: . | O478: . | P478: . | Q478: . | R478: . | S478: .
B499: PAC | C499: Obligatoire | D499: . | E499: =Calculs!D$105 ->  | F499: =Calculs!E$105 ->  | G499: . | H499: . | I499: . | J499: . | O499: . | P499: . | Q499: . | R499: . | S499: .
A500: BDD_Commun
B520: PAC | C520: Obligatoire | D520: . | E520: =Calculs!H$106 -> Accessoires connectivité : myVAILLANT connect | F520: =Calculs!I$106 -> . | G520: . | H520: . | I520: . | J520: . | O520: . | P520: . | Q520: . | R520: . | S520: .
C521: Oui | D521: 0020260962 | E521: =VLOOKUP(D521,MATRICE_VA,2,FALSE) -> sensoNET eBUS (230 V) | F521: =VLOOKUP(D521,MATRICE_VA,3,FALSE) -> 190 | G521: 1 | H521: 1 | I521: 1 | J521: 1 | K521: 1 | L521: 1 | M521: 1 | N521: 1 | O521: 1 | P521: 1 | Q521: 1 | R521: 1 | S521: 1 | T521: 1 | U521: 1 | V521: 1 | W521: 1 | X521: 1
C522: Ajustez les quantités | D522: 0010048535 | E522: =VLOOKUP(D522,MATRICE_VA,2,FALSE) -> Superposition Plug&Play | F522: =VLOOKUP(D522,MATRICE_VA,3,FALSE) -> 6 | K522: 1 | L522: 1 | M522: 1 | T522: 1 | U522: 1 | V522: 1
B531: PAC | C531: Obligatoire | D531: . | E531: =Calculs!H$107 -> Accessoires connectivité : Sans | F531: =Calculs!I$107 -> . | G531: . | H531: . | I531: . | J531: . | O531: . | P531: . | Q531: . | R531: . | S531: .
B542: PAC | C542: Obligatoire | D542: . | E542: =Calculs!D$108 ->  | F542: =Calculs!E$108 ->  | G542: . | H542: . | I542: . | J542: . | O542: . | P542: . | Q542: . | R542: . | S542: .
B553: PAC | C553: Obligatoire | D553: . | E553: =Calculs!D$109 ->  | F553: =Calculs!E$109 ->  | G553: . | H553: . | I553: . | J553: . | O553: . | P553: . | Q553: . | R553: . | S553: .
B564: PAC | C564: Obligatoire | D564: . | E564: =Calculs!D$110 ->  | F564: =Calculs!E$110 ->  | G564: . | H564: . | I564: . | J564: . | O564: . | P564: . | Q564: . | R564: . | S564: .
B575: PAC | C575: Obligatoire | D575: . | E575: =Calculs!H$111 ->  | F575: =Calculs!I$111 ->  | G575: . | H575: . | I575: . | J575: . | K575: . | L575: . | M575: . | N575: . | O575: . | P575: . | Q575: . | R575: . | S575: . | T575: . | U575: . | V575: . | W575: . | X575: . | Y575: .
B586: PAC | C586: Obligatoire | D586: . | E586: =Calculs!H$112 ->  | F586: =Calculs!I$112 ->  | G586: . | H586: . | I586: . | J586: . | K586: . | L586: . | M586: . | N586: . | O586: . | P586: . | Q586: . | R586: . | S586: . | T586: . | U586: . | V586: . | W586: . | X586: .
B597: PAC | C597: Obligatoire | D597: . | E597: =Calculs!D$113 ->  | F597: =Calculs!E$113 ->  | G597: . | H597: . | I597: . | J597: . | O597: . | P597: . | Q597: . | R597: . | S597: .
B608: PAC | C608: Obligatoire | D608: . | E608: =Calculs!D$114 ->  | F608: =Calculs!E$114 ->  | G608: . | H608: . | I608: . | J608: . | O608: . | P608: . | Q608: . | R608: . | S608: .
B619: PAC | C619: Obligatoire | D619: . | E619: =Calculs!D$115 ->  | F619: =Calculs!E$115 ->  | G619: . | H619: . | I619: . | J619: . | O619: . | P619: . | Q619: . | R619: . | S619: .
B630: PAC | C630: Obligatoire | D630: . | E630: =Calculs!H$116 -> Accessoires Découplage glycol : Avec échangeur | F630: =Calculs!I$116 -> . | G630: . | H630: . | I630: . | J630: . | O630: . | P630: . | Q630: . | R630: . | S630: .
C631: Oui | D631: 0020180704 | E631: =VLOOKUP($D631,MATRICE_VA,2,FALSE) -> Echangeur découp. VWZ MWT 150 | F631: =VLOOKUP($D631,MATRICE_VA,3,FALSE) -> 1025 | Q631: 1 | R631: 1 | S631: 1 | T631: 1 | U631: 1 | V631: 1 | W631: 1 | X631: 1
B632: aroTHERM VWL 115/2 A 230V | C632: Oui | D632: 0020220369 | E632: =VLOOKUP($D632,MATRICE_VA,2,FALSE) -> Kit découpl uniTOWER 11-15 kW | F632: =VLOOKUP(D632,MATRICE_VA,3,FALSE) -> 585 | P632: 1
B634: aroTHERM VWL 155/2 A 230V | C634: Oui | D634: 0020220369 | E634: =VLOOKUP($D634,MATRICE_VA,2,FALSE) -> Kit découpl uniTOWER 11-15 kW | F634: 585 | P634: 1
B641: PAC | C641: Obligatoire | D641: . | E641: =Calculs!H$117 -> Accessoires Découplage glycol : Pas de découplage | F641: =Calculs!I$117 -> . | G641: . | H641: . | I641: . | J641: . | O641: . | P641: . | Q641: . | R641: . | S641: .
B652: PAC | C652: Obligatoire | D652: . | E652: =Calculs!D$118 ->  | F652: =Calculs!E$118 ->  | G652: . | H652: . | I652: . | J652: . | O652: . | P652: . | Q652: . | R652: . | S652: .
B663: PAC | C663: Obligatoire | D663: . | E663: =Calculs!D$119 ->  | F663: =Calculs!E$119 ->  | G663: . | H663: . | I663: . | J663: . | O663: . | P663: . | Q663: . | R663: . | S663: .
B674: PAC | C674: Obligatoire | D674: . | E674: =Calculs!D$120 ->  | F674: =Calculs!E$120 ->  | G674: . | H674: . | I674: . | J674: . | O674: . | P674: . | Q674: . | R674: . | S674: .
B685: PAC | C685: Obligatoire | D685: . | E685: =Calculs!H$121 -> Accessoires Supports unité extérieure : Plots anti-vibratiles en caoutchouc (x4) | F685: =Calculs!I$121 -> . | G685: . | H685: . | I685: . | J685: . | O685: . | P685: . | Q685: . | R685: . | S685: .
C686: Non | D686: 0020252091 | E686: =VLOOKUP(D686,MATRICE_VA,2,FALSE) -> Plots anti-vibratiles (x4) | F686: =VLOOKUP(D686,MATRICE_VA,3,FALSE) -> 72 | G686: =_xlfn.NUMBERVALUE($Y686) -> 1 | H686: =_xlfn.NUMBERVALUE($Y686) -> 1 | I686: 1 | J686: 1 | K686: 1 | L686: 1 | M686: 1 | N686: 1 | O686: 1 | P686: 1 | Q686: 1 | R686: 1 | S686: 1 | T686: 1 | U686: 1 | V686: 1 | W686: 1 | X686: 1 | Y686: =_xlfn.NUMBERVALUE($Y$5) -> 1
B696: PAC | C696: Obligatoire | D696: . | E696: =Calculs!H$122 -> Accessoires Supports unité extérieure : Support anti-vibratiles 60 cm (x2) | F696: =Calculs!E$122 -> . | G696: . | H696: . | I696: . | J696: . | O696: . | P696: . | Q696: . | R696: . | S696: .
C697: Non | D697: 0020250226 | E697: =VLOOKUP(D697,MATRICE_VA,2,FALSE) -> Pieds anti-vibratiles 60 cm | F697: =VLOOKUP(D697,MATRICE_VA,3,FALSE) -> 115 | G697: =_xlfn.NUMBERVALUE($Y697) -> 1 | H697: 1 | I697: 1 | J697: 1 | K697: 1 | L697: 1 | M697: 1 | N697: 1 | O697: 1 | P697: 1 | Q697: 1 | R697: 1 | S697: 1 | T697: 1 | U697: 1 | V697: 1 | W697: 1 | X697: 1 | Y697: =_xlfn.NUMBERVALUE($Y$5) -> 1
B707: PAC | C707: Obligatoire | D707: . | E707: =Calculs!D$123 ->  | F707: =Calculs!E$123 ->  | G707: . | H707: . | I707: . | J707: . | O707: . | P707: . | Q707: . | R707: . | S707: .
C708: Non | D708: 0020250224 | E708: =VLOOKUP(D708,MATRICE_VA,2,FALSE) -> Support mural pour mur isolé | F708: =VLOOKUP(D708,MATRICE_VA,3,FALSE) -> 624 | G708: =_xlfn.NUMBERVALUE($Y708) -> 1 | H708: 1 | I708: 1 | J708: 1 | K708: 1 | L708: 1 | M708: 1 | N708: 1 | O708: 1 | P708: 1 | Q708: 1 | R708: 1 | S708: 1 | T708: 1 | U708: 1 | V708: 1 | W708: 1 | X708: 1 | Y708: =_xlfn.NUMBERVALUE($Y$5) -> 1
B718: PAC | C718: Obligatoire | D718: . | E718: =Calculs!D$124 ->  | F718: =Calculs!E$124 ->  | G718: . | H718: . | I718: . | J718: . | O718: . | P718: . | Q718: . | R718: . | S718: .
C719: Non | D719: 0020250225 | E719: =VLOOKUP(D719,MATRICE_VA,2,FALSE) -> Support mural standard | F719: =VLOOKUP(D719,MATRICE_VA,3,FALSE) -> 310 | G719: =_xlfn.NUMBERVALUE($Y719) -> 1 | H719: 1 | I719: 1 | J719: 1 | K719: 1 | L719: 1 | M719: 1 | N719: 1 | O719: 1 | P719: 1 | Q719: 1 | R719: 1 | S719: 1 | T719: 1 | U719: 1 | V719: 1 | W719: 1 | X719: 1 | Y719: =_xlfn.NUMBERVALUE($Y$5) -> 1
B729: PAC | C729: Obligatoire | D729: . | E729: =Calculs!D$125 -> Accessoires Supports unité extérieure : Réhausse anti-neige (40 centimètres) | F729: =Calculs!E$125 -> . | G729: . | H729: . | I729: . | J729: . | O729: . | P729: . | Q729: . | R729: . | S729: .
C730: Non | D730: 0010027984 | E730: =VLOOKUP(D730,MATRICE_VA,2,FALSE) -> Réhausse anti-neige (+plots) | F730: =VLOOKUP(D730,MATRICE_VA,3,FALSE) -> 441 | G730: =_xlfn.NUMBERVALUE($Y730) -> 1 | H730: 1 | I730: 1 | J730: 1 | K730: 1 | L730: 1 | M730: 1 | N730: 1 | O730: 1 | P730: 1 | Q730: 1 | R730: 1 | S730: 1 | T730: 1 | U730: 1 | V730: 1 | W730: 1 | X730: 1 | Y730: =_xlfn.NUMBERVALUE($Y$5) -> 1
B740: PAC | C740: Obligatoire | D740: . | E740: Mise en service | F740: . | G740: . | H740: . | I740: . | J740: . | K740: . | L740: . | M740: . | N740: . | O740: . | P740: . | Q740: . | R740: . | S740: . | T740: . | U740: . | V740: . | W740: . | X740: . | Y740: .
C741: Oui | D741: 0010028538 | E741: =VLOOKUP(D741,MATRICE_VA,2,FALSE) -> Mise en service pompe à chaleur (à commander sur la plateforme e-SERVICES) | F741: =VLOOKUP(D741,MATRICE_VA,3,FALSE) -> 350 | G741: =$Y741 -> 1 | H741: =$Y741 -> 1 | I741: 1 | J741: 1 | K741: 1 | L741: 1 | M741: 1 | N741: 1 | O741: 1 | P741: 1 | Q741: 1 | R741: 1 | S741: 1 | T741: 1 | U741: 1 | V741: 1 | W741: 1 | X741: 1 | Y741: =_xlfn.NUMBERVALUE($Y$5) -> 1
B751: PAC | C751: Obligatoire | D751: . | E751: Matériel à prévoir | F751: . | G751: . | H751: . | I751: . | J751: . | O751: . | P751: . | Q751: . | R751: . | S751: .
C752: Ajustez les quantités | D752: A prévoir | E752: Filtre à tamis sur le retour PAC | F752: - | G752: =$Y752 -> 1 | H752: =$Y752 -> 1 | I752: 1 | J752: 1 | K752: 1 | L752: 1 | M752: 1 | N752: 1 | O752: 1 | P752: 1 | Q752: 1 | R752: 1 | S752: 1 | T752: 1 | U752: 1 | V752: 1 | W752: 1 | X752: 1 | Y752: =_xlfn.NUMBERVALUE($Y$5) -> 1
C754: Ajustez les quantités | D754: A prévoir | E754: Soupape différentielle (repère 9d) | F754: - | G754: 1 | J754: 1 | M754: 1 | V754: 1 | X754: 1
C755: Ajustez les quantités | D755: A prévoir | E755: Electrovannes 230 V~ (repère 9b) | F755: -
C756: Ajustez les quantités | D756: A prévoir | E756: Vase expansion, soupape, manomètre. | F756: - | G756: 1 | H756: 1 | I756: 1 | J756: 1 | K756: 1 | L756: 1 | M756: 1 | U756: 1 | V756: 1 | W756: 1 | X756: 1
C757: Ajustez les quantités | D757: A prévoir | E757: En option circulateur bouclage sanitaire, vase expansion sanitaire… | F757: - | J757: 1 | K757: 1 | L757: 1 | M757: 1 | U757: 1 | V757: 1 | W757: 1 | X757: 1
B758: aroTHERM VWL 55/3 A 230V | C758: Ajustez les quantités | D758: A prévoir | E758: Volume tampon minimal de 18 l | F758: - | G758: 1 | H758: 1 | I758: 1 | J758: 1 | K758: 1 | L758: 1 | M758: 1 | U758: 1 | V758: 1 | W758: 1 | X758: 1
B760: aroTHERM VWL 85/3 A 230V | C760: Ajustez les quantités | D760: A prévoir | E760: Volume tampon minimal de 18 l | F760: - | G760: 1 | H760: 1 | I760: 1 | J760: 1 | K760: 1 | L760: 1 | M760: 1 | U760: 1 | V760: 1 | W760: 1 | X760: 1
B761: aroTHERM VWL 115/2 A 230V | C761: Ajustez les quantités | D761: A prévoir | E761: Volume tampon minimal de 35 l | F761: - | G761: =$Y761 -> 1 | H761: =$Y761 -> 1 | I761: 1 | J761: 1 | K761: 1 | L761: 1 | M761: 1 | N761: 1 | O761: 1 | P761: 1 | Q761: 1 | R761: 1 | S761: 1 | T761: 1 | U761: 1 | V761: 1 | W761: 1 | X761: 1 | Y761: =_xlfn.NUMBERVALUE(IF($Y$5>1,0,1)) -> 1
B763: aroTHERM VWL 155/2 A 230V | C763: Ajustez les quantités | D763: A prévoir | E763: Volume tampon minimal de 60 l | F763: - | G763: =$Y763 -> 1 | H763: 1 | I763: 1 | J763: 1 | K763: 1 | L763: 1 | M763: 1 | N763: 1 | O763: 1 | P763: 1 | Q763: 1 | R763: 1 | S763: 1 | T763: 1 | U763: 1 | V763: 1 | W763: 1 | X763: 1 | Y763: =_xlfn.VALUETOTEXT(IF($Y$5>1,0,1)) -> 1
C767: Ajustez les quantités | D767: A prévoir | E767: Volume tampon minimal de 100 l | F767: - | G767: =$Y767 -> 0 | H767: 0 | I767: 0 | J767: 0 | K767: 0 | L767: 0 | M767: 0 | N767: 0 | O767: 0 | P767: 0 | Q767: 0 | R767: 0 | S767: 0 | T767: 0 | U767: 0 | V767: 0 | W767: =$Y767 -> 0 | X767: 0 | Y767: =IF(AND(_xlfn.NUMBERVALUE($Y$5)>1,_xlfn.NUMBERVALUE($Y$5)<4)=TRUE,1,0) -> 0
C768: Ajustez les quantités | D768: A prévoir | E768: Volume tampon minimal de 200 l | F768: - | G768: 0 | H768: 0 | I768: 0 | J768: 0 | K768: 0 | L768: 0 | M768: 0 | N768: 0 | O768: 0 | P768: 0 | Q768: 0 | R768: 0 | S768: 0 | T768: 0 | U768: 0 | V768: 0 | W768: 0 | X768: 0 | Y768: =IF(AND(_xlfn.NUMBERVALUE($Y$5)>3,_xlfn.NUMBERVALUE($Y$5)<8)=TRUE,1,0) -> 0

Sheet BDD_G2 (hidden)
B1: Logiciel PAC_2020 v2
D2: =Calculs!F93 -> INSTALLATIONS ET ACCESSOIRES pour la gamme BDD_G2 : aroTHERM Split VWL | G2: Q-commun | H2: EI-commun | I2: commun-EI | J2: commun | K2: H-EI-commun | L2: H-commun-EI | M2: H-commun | N2: Hext-commun-EI | O2: Hext-commun | Y2: Cascade de PAC
B3: 02/08/2022 | G3: 1 | H3: 2 | I3: 3 | J3: 4 | K3: 5 | L3: 6 | M3: 7 | N3: 8 | O3: 9
E4: ="Recherche la configuration >> "&Calculs!$C$2018&" << =>" -> Recherche la configuration >> colonne << => | F4: Schéma | G4: colonne | H4: ballon ECS avant bouteille | I4: ballon ECS aprés bouteille | J4: chauffage seul | K4: Hybride et ballon ECS avant Bouteille | L4: hybride et ballon ECS aprés bouteille | M4: hybride chauffage seul | N4: hybride non Ebus et ballon ECS aprés bouteille | O4: hybride non Ebus chauffage seul | P4: colonne avec echangeur glycol | Q4: ballon ECS avant bouteille avec echangeur glycol | R4: ballon ECS aprés bouteille avec echangeur glycol | S4: Chauffage Seul avec echangeur glycol | T4: hybride et ballon ECS avant bouteille avec echangeur glycol | U4: hybride et ballon ECS aprés bouteille avec echangeur glycol | V4: hybride chauffage Seul avec echangeur glycol | W4: hybride non Ebus et ballon ECS aprés bouteille avec echangeur glycol | X4: hybride non Ebus chauffage seul avec echangeur glycol | Y4: Nombre de PAC valeur à multipliers au accessoires
B5: Vers PARAMETRAGE | F5: Appoint | G5: Appoint interne | H5: Electrique | I5: Electrique | J5: Electrique | K5: Chaudière neuve | L5: Chaudière neuve | M5: Chaudière neuve | N5: Chaudière existante | O5: Chaudière existante | Y5: =_xlfn.NUMBERVALUE(Calculs!$C$2173) -> 1
F6: Mode gestion | G6: Simultané | H6: Simultané | I6: Simultané | J6: Simultané | K6: Simultané | L6: Simultané | M6: Simultané | N6: Simultané | O6: Simultané
F7: ECS | G7: Var. impossible | H7: Var. possible | I7: Var. possible | J7: Var. possible | K7: Var. possible | L7: Var. possible | M7: Var. impossible | N7: Var. impossible | O7: Var. possible
F8: =Calculs!D24 -> Régulation : | G8: Var. possible | H8: Var. possible | I8: Var. possible | J8: Var. possible | K8: Var. possible | L8: Var. possible | M8: Var. possible | N8: Var. possible | O8: Var. possible
F9: =Calculs!D25 -> Connectivité : | G9: Var. possible | H9: Var. possible | I9: Var. possible | J9: Var. possible | K9: Var. possible | L9: Var. possible | M9: Var. possible | N9: Var. possible | O9: Var. possible
F10: =Calculs!D26 ->  | G10: Var. possible | H10: Var. possible | I10: Var. possible | J10: Var. possible | K10: Var. possible | L10: Var. possible | M10: Var. possible | N10: Var. possible | O10: Var. possible
F11: =Calculs!D27 -> Découplage glycol : | G11: Var. impossible | H11: Var. impossible | I11: Var. impossible | J11: Var. impossible | K11: Var. impossible | L11: Var. impossible | M11: Var. impossible | N11: Var. impossible | O11: Var. impossible
F12: =Calculs!D28 -> Supports unité extérieure : | G12: Var. possible | H12: Var. possible | I12: Var. possible | J12: Var. possible | K12: Var. possible | L12: Var. possible | M12: Var. possible | N12: Var. possible | O12: Var. possible
F13: .
D14: Réf. | E14: Dénomination | F14: PU HT
D15: . | E15: Pompes à chaleur de la gamme | F15: . | G15: . | H15: . | I15: . | J15: . | K15: . | L15: . | M15: . | N15: . | O15: .
D16: 0010021617 | E16: aroTHERM Split 3 - 230V | F16: =VLOOKUP(D16,MATRICE_VA,3,FALSE) -> 5223 | G16: 1 | H16: 1 | I16: 1 | J16: 1 | K16: 1 | L16: 1 | M16: 1 | N16: 1 | O16: 1 | Y16: 1
D17: 0010021618 | E17: aroTHERM Split 5 - 230V | F17: 6016 | G17: 1 | H17: 1 | I17: 1 | J17: 1 | K17: 1 | L17: 1 | M17: 1 | N17: 1 | O17: 1 | Y17: 1
D18: 0010021619 | E18: aroTHERM Split 7 - 230V | F18: 7349 | G18: 1 | H18: 1 | I18: 1 | J18: 1 | K18: 1 | L18: 1 | M18: 1 | N18: 1 | O18: 1 | Y18: 1
D19: 0010021620 | E19: aroTHERM Split 10 - 230V | F19: 9340 | G19: 1 | H19: 1 | I19: 1 | J19: 1 | K19: 1 | L19: 1 | M19: 1 | N19: 1 | O19: 1 | Y19: 1
D20: 0010021621 | E20: aroTHERM Split 10 - 400V | F20: 9842 | G20: =$Y20 -> 1 | H20: 1 | I20: 1 | J20: 1 | K20: 1 | L20: 1 | M20: 1 | N20: 1 | O20: 1 | Y20: =_xlfn.NUMBERVALUE($Y$5) -> 1
D21: 0010021622 | E21: aroTHERM Split 12 - 230V | F21: 10474 | G21: 1 | H21: 1 | I21: 1 | J21: 1 | K21: 1 | L21: 1 | M21: 1 | N21: 1 | O21: 1 | Y21: 1
D22: 0010021623 | E22: aroTHERM Split 12 - 400V | F22: 11032 | G22: =$Y22 -> 1 | H22: 1 | I22: 1 | J22: 1 | K22: 1 | L22: 1 | M22: 1 | N22: 1 | O22: 1 | Y22: =_xlfn.NUMBERVALUE($Y$5) -> 1
B30: PAC | C30: Puissance | D30: . | E30: Appoint électrique VWZ MEH 96/6 | F30: . | G30: . | H30: . | I30: . | J30: . | O30: .
B31: aroTHERM Split 3 - 230V | C31: 5.4 | D31: 0010023502 | E31: =VLOOKUP(D31,MATRICE_VA,2,FALSE) -> Module mural Split 3/5 | F31: =VLOOKUP(D31,MATRICE_VA,3,FALSE) -> 2861 | H31: 1 | I31: 1 | J31: 1 | K31: 1 | L31: 1 | M31: 1 | N31: 1 | O31: 1 | Y31: 1
B32: aroTHERM Split 5 - 230V | C32: 5.4 | D32: 0010023502 | E32: Module mural Split 3/5 | F32: 2861 | H32: 1 | I32: 1 | J32: 1 | K32: 1 | L32: 1 | M32: 1 | N32: 1 | O32: 1 | Y32: 1
B33: aroTHERM Split 7 - 230V | C33: 5.4 | D33: 0010023504 | E33: Module mural Split 7 | F33: 2881 | H33: 1 | I33: 1 | J33: 1 | K33: 1 | L33: 1 | M33: 1 | N33: 1 | O33: 1 | Y33: 1
B34: aroTHERM Split 10 - 230V | C34: 5.4 | D34: 0010023525 | E34: Module mural Split 10/12 | F34: 3242 | H34: 1 | I34: 1 | J34: 1 | K34: 1 | L34: 1 | M34: 1 | N34: 1 | O34: 1 | Y34: 1
B35: aroTHERM Split 10 - 400V | C35: 8.9 | D35: 0010023525 | E35: Module mural Split 10/12 | F35: 3242 | G35: =$Y35-1 -> 0 | H35: =$Y35 -> 1 | I35: 1 | J35: 1 | K35: 1 | L35: 1 | M35: 1 | N35: 1 | O35: 1 | Y35: =_xlfn.NUMBERVALUE($Y$5) -> 1
B36: aroTHERM Split 12 - 230V | C36: 5.4 | D36: 0010023525 | E36: Module mural Split 10/12 | F36: 3242 | H36: 1 | I36: 1 | J36: 1 | K36: 1 | L36: 1 | M36: 1 | N36: 1 | O36: 1 | Y36: 1
B37: aroTHERM Split 12 - 400V | C37: 8.9 | D37: 0010023525 | E37: Module mural Split 10/12 | F37: 3242 | G37: =$Y37-1 -> 0 | H37: =$Y37 -> 1 | I37: 1 | J37: 1 | K37: 1 | L37: 1 | M37: 1 | N37: 1 | O37: 1 | Y37: =_xlfn.NUMBERVALUE($Y$5) -> 1
B45: PAC | C45: Puissance | D45: . | E45: Appoint électrique | F45: . | G45: . | H45: . | I45: . | J45: . | O45: .
R53: 1 | S53: 1 | Y53: =_xlfn.NUMBERVALUE(Y5-1) -> 0
C60: Puissance | D60: . | E60: Chaudière | F60: . | G60: . | H60: . | I60: . | J60: . | O60: .
E61: chaudière | F61: 0 | K61: 1 | L61: 1 | M61: 1
D62: . | E62: Accessoires chaudière | F62: . | G62: . | H62: . | I62: . | J62: . | K62: . | L62: . | M62: . | N62: . | O62: .
A63: BDD_Acc_Ch
B75: PAC | C75: Obligatoire | D75: . | E75: Préparateur ECS | F75: . | G75: . | H75: . | I75: . | J75: . | O75: .
B90: PAC | C90: Obligatoire | D90: . | E90: Accessoires hydrauliques et électriques | F90: . | G90: . | H90: . | I90: . | J90: . | O90: .
B91: aroTHERM Split 3 - 230V | C91: Oui | D91: 0010022084 | E91: =VLOOKUP(D91,MATRICE_VA,2,FALSE) -> uniTOWER Split 3/5 | F91: =VLOOKUP(D91,MATRICE_VA,3,FALSE) -> 4770 | G91: 1
B92: aroTHERM Split 5 - 230V | C92: Oui | D92: 0010022084 | E92: uniTOWER Split 3/5 | F92: 4770 | G92: 1
B93: aroTHERM Split 7 - 230V | C93: Oui | D93: 0010022085 | E93: uniTOWER Split 7 | F93: 4782 | G93: 1
B94: aroTHERM Split 10 - 230V | C94: Oui | D94: 0010022086 | E94: uniTOWER Split 10/12 | F94: 5033 | G94: 1
B95: aroTHERM Split 10 - 400V | C95: Oui | D95: 0010022086 | E95: uniTOWER Split 10/12 | F95: 5033 | G95: 1
B96: aroTHERM Split 12 - 230V | C96: Oui | D96: 0010022086 | E96: uniTOWER Split 10/12 | F96: 5033 | G96: 1
B97: aroTHERM Split 12 - 400V | C97: Oui | D97: 0010022086 | E97: uniTOWER Split 10/12 | F97: 5033 | G97: 1
C98: Oui | D98: 0020221263 | E98: Kit de raccordement uniTOWER | F98: 208 | G98: 1
C99: Oui | D99: 0020139895 | E99: =VLOOKUP(D99,MATRICE_VA,2,FALSE) -> VR 32/3 HYB Coupl. bus PAC hyb | F99: =VLOOKUP(D99,MATRICE_VA,3,FALSE) -> 153 | G99: =IF(COUNTIF(G2,"*H-*"),1,"") ->  | H99: =IF(COUNTIF(H2,"*H-*"),1,"") ->  | K99: 1 | L99: 1 | M99: 1
A119: BDD_Commun
B349: PAC | C349: Obligatoire | D349: . | E349: =Calculs!F$95 -> Accessoires ECS : Chaudière seule ou électrique | F349: =Calculs!E$95 -> . | G349: . | H349: . | I349: . | J349: . | O349: .
B360: PAC | C360: Obligatoire | D360: . | E360: =Calculs!F$96 -> Accessoires ECS : Ballon ECS 200 l | F360: =Calculs!E$96 -> . | G360: . | H360: . | I360: . | J360: . | O360: .
B361: aroTHERM Split 3 - 230V | C361: Non | D361: 0020214407 | E361: =VLOOKUP(D361,MATRICE_VA,2,FALSE) -> Ballon uniSTOR VIH RW 200 | F361: =VLOOKUP(D361,MATRICE_VA,3,FALSE) -> 1850 | H361: 1 | I361: 1 | K361: 1 | L361: 1 | N361: 1
B362: aroTHERM Split 5 - 230V | C362: Non | D362: 0020214407 | E362: Ballon uniSTOR VIH RW 200 | F362: 1850 | H362: 1 | I362: 1 | K362: 1 | L362: 1 | N362: 1
B363: aroTHERM Split 7 - 230V | C363: Non | D363: 0020214407 | E363: Ballon uniSTOR VIH RW 200 | F363: 1850 | H363: 1 | I363: 1 | K363: 1 | L363: 1 | N363: 1
B364: aroTHERM Split 10 - 230V | C364: Non | D364: 0020214407 | E364: Ballon uniSTOR VIH RW 200 | F364: 1850 | H364: 1 | I364: 1 | K364: 1 | L364: 1 | N364: 1
B365: aroTHERM Split 10 - 400V | C365: Non | D365: 0020214407 | E365: Ballon uniSTOR VIH RW 200 | F365: 1850 | H365: 1 | I365: 1 | K365: 1 | L365: 1 | N365: 1
B366: aroTHERM Split 12 - 230V | C366: Non | D366: 0020214407 | E366: Ballon uniSTOR VIH RW 200 | F366: 1850 | H366: 1 | I366: 1 | K366: 1 | L366: 1 | N366: 1
B367: aroTHERM Split 12 - 400V | C367: Non | D367: 0020214407 | E367: Ballon uniSTOR VIH RW 200 | F367: 1850 | H367: 1 | I367: 1 | K367: 1 | L367: 1 | N367: 1
C369: Non | D369: 305827 | E369: =VLOOKUP(D369,MATRICE_VA,2,FALSE) -> Grpe sécu. ballon sup. à 200l | F369: =VLOOKUP(D369,MATRICE_VA,3,FALSE) -> 159 | H369: 1 | I369: 1 | K369: 1 | L369: 1 | N369: 1
C370: Ajustez les quantités | D370: 306787 | E370: =VLOOKUP(D370,MATRICE_VA,2,FALSE) -> Sonde temp. sans connecteur | F370: =VLOOKUP(D370,MATRICE_VA,3,FALSE) -> 20 | H370: 1 | I370: 1 | K370: 1 | L370: 1 | N370: 1
B371: PAC | C371: Obligatoire | D371: . | E371: =Calculs!F$97 -> Accessoires ECS : Ballon ECS 300 l | F371: =Calculs!E$96 -> . | G371: . | H371: . | I371: . | J371: . | O371: .
B372: aroTHERM Split 3 - 230V | C372: Non | D372: 0010020645 | E372: Ballon uniSTOR VIH RW 300/3 BR (déconseillé avec le modèle 45/6) | F372: =VLOOKUP(D372,MATRICE_VA,3,FALSE) -> 2150 | H372: 1 | I372: 1 | K372: 1 | L372: 1 | N372: 1
B373: aroTHERM Split 5 - 230V | C373: Non | D373: 0010020645 | E373: =VLOOKUP(D373,MATRICE_VA,2,FALSE) -> Ballon uniSTOR VIH RW 300/3 BR | F373: 2150 | H373: 1 | I373: 1 | K373: 1 | L373: 1 | N373: 1
B374: aroTHERM Split 7 - 230V | C374: Non | D374: 0010020645 | E374: Ballon uniSTOR VIH RW 300/3 BR | F374: 2150 | H374: 1 | I374: 1 | K374: 1 | L374: 1 | N374: 1
B375: aroTHERM Split 10 - 230V | C375: Non | D375: 0010020645 | E375: Ballon uniSTOR VIH RW 300/3 BR | F375: 2150 | H375: 1 | I375: 1 | K375: 1 | L375: 1 | N375: 1
B376: aroTHERM Split 10 - 400V | C376: Non | D376: 0010020645 | E376: Ballon uniSTOR VIH RW 300/3 BR | F376: 2150 | H376: 1 | I376: 1 | K376: 1 | L376: 1 | N376: 1
B377: aroTHERM Split 12 - 230V | C377: Non | D377: 0010020645 | E377: Ballon uniSTOR VIH RW 300/3 BR | F377: 2150 | H377: 1 | I377: 1 | K377: 1 | L377: 1 | N377: 1
B378: aroTHERM Split 12 - 400V | C378: Non | D378: 0010020645 | E378: Ballon uniSTOR VIH RW 300/3 BR | F378: 2150 | H378: 1 | I378: 1 | K378: 1 | L378: 1 | N378: 1
C380: Non | D380: 305827 | E380: =VLOOKUP(D380,MATRICE_VA,2,FALSE) -> Grpe sécu. ballon sup. à 200l | F380: =VLOOKUP(D380,MATRICE_VA,3,FALSE) -> 159 | H380: 1 | I380: 1 | K380: 1 | L380: 1 | N380: 1
C381: Ajustez les quantités | D381: 306787 | E381: =VLOOKUP(D381,MATRICE_VA,2,FALSE) -> Sonde temp. sans connecteur | F381: =VLOOKUP(D381,MATRICE_VA,3,FALSE) -> 20 | H381: 1 | I381: 1 | K381: 1 | L381: 1 | N381: 1
B382: PAC | C382: Obligatoire | D382: . | E382: =Calculs!F$98 -> Accessoires ECS : Ballon ECS 400 l | F382: =Calculs!E$96 -> . | G382: . | H382: . | I382: . | J382: . | O382: .
B383: aroTHERM Split 3 - 230V | C383: Non | D383: 0010020646 | E383: Ballon uniSTOR VIH RW 400/3 BR (déconseillé avec le modèle 45/6) | F383: =VLOOKUP(D383,MATRICE_VA,3,FALSE) -> 2510 | H383: 1 | I383: 1 | K383: 1 | L383: 1 | N383: 1
B384: aroTHERM Split 5 - 230V | C384: Non | D384: 0010020646 | E384: =VLOOKUP(D384,MATRICE_VA,2,FALSE) -> Ballon uniSTOR VIH RW 400/3 BR | F384: 2510 | H384: 1 | I384: 1 | K384: 1 | L384: 1 | N384: 1
B385: aroTHERM Split 7 - 230V | C385: Non | D385: 0010020646 | E385: Ballon uniSTOR VIH RW 400/3 BR | F385: 2510 | H385: 1 | I385: 1 | K385: 1 | L385: 1 | N385: 1
B386: aroTHERM Split 10 - 230V | C386: Non | D386: 0010020646 | E386: Ballon uniSTOR VIH RW 400/3 BR | F386: 2510 | H386: 1 | I386: 1 | K386: 1 | L386: 1 | N386: 1
B387: aroTHERM Split 10 - 400V | C387: Non | D387: 0010020646 | E387: Ballon uniSTOR VIH RW 400/3 BR | F387: 2510 | H387: 1 | I387: 1 | K387: 1 | L387: 1 | N387: 1
B388: aroTHERM Split 12 - 230V | C388: Non | D388: 0010020646 | E388: Ballon uniSTOR VIH RW 400/3 BR | F388: 2510 | H388: 1 | I388: 1 | K388: 1 | L388: 1 | N388: 1
B389: aroTHERM Split 12 - 400V | C389: Non | D389: 0010020646 | E389: Ballon uniSTOR VIH RW 400/3 BR | F389: 2510 | H389: 1 | I389: 1 | K389: 1 | L389: 1 | N389: 1
C391: Non | D391: 305827 | E391: =VLOOKUP(D391,MATRICE_VA,2,FALSE) -> Grpe sécu. ballon sup. à 200l | F391: =VLOOKUP(D391,MATRICE_VA,3,FALSE) -> 159 | H391: 1 | I391: 1 | K391: 1 | L391: 1 | N391: 1
C392: Ajustez les quantités | D392: 306787 | E392: =VLOOKUP(D392,MATRICE_VA,2,FALSE) -> Sonde temp. sans connecteur | F392: =VLOOKUP(D392,MATRICE_VA,3,FALSE) -> 20 | H392: 1 | I392: 1 | K392: 1 | L392: 1 | N392: 1
B393: PAC | C393: Obligatoire | D393: . | E393: =Calculs!F$99 -> Accessoires ECS : Ballon ECS 500 l | F393: =Calculs!E$96 -> . | G393: . | H393: . | I393: . | J393: . | O393: .
B394: aroTHERM Split 3 - 230V | C394: Non | D394: 0010020647 | E394: Ballon uniSTOR VIH RW 500/3 BR (déconseillé avec le modèle 45/6) | F394: =VLOOKUP(D394,MATRICE_VA,3,FALSE) -> 3150 | H394: 1 | I394: 1 | K394: 1 | L394: 1 | N394: 1
B395: aroTHERM Split 5 - 230V | C395: Non | D395: 0010020647 | E395: =VLOOKUP(D395,MATRICE_VA,2,FALSE) -> Ballon uniSTOR VIH RW 500/3 BR | F395: 3150 | H395: 1 | I395: 1 | K395: 1 | L395: 1 | N395: 1
B396: aroTHERM Split 7 - 230V | C396: Non | D396: 0010020647 | E396: Ballon uniSTOR VIH RW 500/3 BR | F396: 3150 | H396: 1 | I396: 1 | K396: 1 | L396: 1 | N396: 1
B397: aroTHERM Split 10 - 230V | C397: Non | D397: 0010020647 | E397: Ballon uniSTOR VIH RW 500/3 BR | F397: 3150 | H397: 1 | I397: 1 | K397: 1 | L397: 1 | N397: 1
B398: aroTHERM Split 10 - 400V | C398: Non | D398: 0010020647 | E398: Ballon uniSTOR VIH RW 500/3 BR | F398: 3150 | H398: 1 | I398: 1 | K398: 1 | L398: 1 | N398: 1
B399: aroTHERM Split 12 - 230V | C399: Non | D399: 0010020647 | E399: Ballon uniSTOR VIH RW 500/3 BR | F399: 3150 | H399: 1 | I399: 1 | K399: 1 | L399: 1 | N399: 1
B400: aroTHERM Split 12 - 400V | C400: Non | D400: 0010020647 | E400: Ballon uniSTOR VIH RW 500/3 BR | F400: 3150 | H400: 1 | I400: 1 | K400: 1 | L400: 1 | N400: 1
C402: Non | D402: 305827 | E402: =VLOOKUP(D402,MATRICE_VA,2,FALSE) -> Grpe sécu. ballon sup. à 200l | F402: =VLOOKUP(D402,MATRICE_VA,3,FALSE) -> 159 | H402: 1 | I402: 1 | K402: 1 | L402: 1 | N402: 1
C403: Ajustez les quantités | D403: 306787 | E403: =VLOOKUP(D403,MATRICE_VA,2,FALSE) -> Sonde temp. sans connecteur | F403: =VLOOKUP(D403,MATRICE_VA,3,FALSE) -> 20 | H403: 1 | I403: 1 | K403: 1 | L403: 1 | N403: 1
B404: PAC | C404: Obligatoire | D404: . | E404: =Calculs!F$100 -> Accessoires ECS : Ballon ECS intégré | F404: =Calculs!E$100 -> . | G404: . | H404: . | I404: . | J404: . | O404: .
B415: PAC | C415: Obligatoire | D415: . | E415: =Calculs!F$101 -> Régulation : sensocomfort vrc 720 (filaire) | F415: =Calculs!E$101 -> . | G415: . | H415: . | I415: . | J415: . | O415: .
A416: BDD_Commun
B436: PAC | C436: Obligatoire | D436: . | E436: =Calculs!F$102 -> Régulation : sensocomfort vrc 720f (radio) | F436: =Calculs!E$102 -> . | G436: . | H436: . | I436: . | J436: . | O436: .
B457: PAC | C457: Obligatoire | D457: . | E457: =Calculs!F$103 -> Accessoires régulation : multimatic vrc 700 (filaire) | F457: =Calculs!E$103 -> . | G457: . | H457: . | I457: . | J457: . | O457: .
B478: PAC | C478: Obligatoire | D478: . | E478: =Calculs!D$104 ->  | F478: =Calculs!E$104 ->  | G478: . | H478: . | I478: . | J478: . | O478: .
B499: PAC | C499: Obligatoire | D499: . | E499: =Calculs!D$105 ->  | F499: =Calculs!E$105 ->  | G499: . | H499: . | I499: . | J499: . | O499: . | P499: . | Q499: . | R499: . | S499: .
A500: BDD_Commun
B520: PAC | C520: Obligatoire | D520: . | E520: =Calculs!F$106 -> Accessoires connectivité : myVAILLANT connect | F520: =Calculs!E$106 -> . | G520: . | H520: . | I520: . | J520: . | O520: .
C521: Oui | D521: 0020260962 | E521: =VLOOKUP(D521,MATRICE_VA,2,FALSE) -> sensoNET eBUS (230 V) | F521: =VLOOKUP(D521,MATRICE_VA,3,FALSE) -> 190 | G521: 1 | H521: 1 | I521: 1 | J521: 1 | K521: 1 | L521: 1 | M521: 1 | N521: 1 | O521: 1
C522: Ajustez les quantités | D522: 0010048535 | E522: =VLOOKUP(D522,MATRICE_VA,2,FALSE) -> Superposition Plug&Play | F522: =VLOOKUP(D522,MATRICE_VA,3,FALSE) -> 6 | K522: 1 | L522: 1 | M522: 1
B531: PAC | C531: Obligatoire | D531: . | E531: =Calculs!F$107 -> Accessoires connectivité : Sans | F531: =Calculs!E$107 -> . | G531: . | H531: . | I531: . | J531: . | O531: .
B542: PAC | C542: Obligatoire | D542: . | E542: =Calculs!D$108 ->  | F542: =Calculs!E$108 ->  | G542: . | H542: . | I542: . | J542: . | O542: . | P542: . | Q542: . | R542: . | S542: .
B553: PAC | C553: Obligatoire | D553: . | E553: =Calculs!D$109 ->  | F553: =Calculs!E$109 ->  | G553: . | H553: . | I553: . | J553: . | O553: . | P553: . | Q553: . | R553: . | S553: .
B564: PAC | C564: Obligatoire | D564: . | E564: =Calculs!D$110 ->  | F564: =Calculs!E$110 ->  | G564: . | H564: . | I564: . | J564: . | O564: . | P564: . | Q564: . | R564: . | S564: .
B575: PAC | C575: Obligatoire | D575: . | E575: =Calculs!F$111 ->  | F575: =Calculs!E$111 ->  | G575: . | H575: . | I575: . | J575: . | K575: . | L575: . | M575: . | N575: . | O575: . | Y575: .
L577: 2
B586: PAC | C586: Obligatoire | D586: . | E586: =Calculs!F$112 ->  | F586: =Calculs!E$112 ->  | G586: . | H586: . | I586: . | J586: . | K586: . | L586: . | M586: . | N586: . | O586: .
B597: PAC | C597: Obligatoire | D597: . | E597: =Calculs!D$113 ->  | F597: =Calculs!E$113 ->  | G597: . | H597: . | I597: . | J597: . | O597: . | P597: . | Q597: . | R597: . | S597: .
B608: PAC | C608: Obligatoire | D608: . | E608: =Calculs!D$114 ->  | F608: =Calculs!E$114 ->  | G608: . | H608: . | I608: . | J608: . | O608: . | P608: . | Q608: . | R608: . | S608: .
B619: PAC | C619: Obligatoire | D619: . | E619: =Calculs!D$115 ->  | F619: =Calculs!E$115 ->  | G619: . | H619: . | I619: . | J619: . | O619: . | P619: . | Q619: . | R619: . | S619: .
B630: PAC | C630: Obligatoire | D630: . | E630: =Calculs!F$116 ->  | F630: =Calculs!G$116 ->  | G630: . | H630: . | I630: . | J630: . | O630: .
B641: PAC | C641: Obligatoire | D641: . | E641: =Calculs!F$117 ->  | F641: =Calculs!G$117 ->  | G641: . | H641: . | I641: . | J641: . | O641: .
B652: PAC | C652: Obligatoire | D652: . | E652: =Calculs!D$118 ->  | F652: =Calculs!E$118 ->  | G652: . | H652: . | I652: . | J652: . | O652: . | P652: . | Q652: . | R652: . | S652: .
B663: PAC | C663: Obligatoire | D663: . | E663: =Calculs!D$119 ->  | F663: =Calculs!E$119 ->  | G663: . | H663: . | I663: . | J663: . | O663: . | P663: . | Q663: . | R663: . | S663: .
B674: PAC | C674: Obligatoire | D674: . | E674: =Calculs!D$120 ->  | F674: =Calculs!E$120 ->  | G674: . | H674: . | I674: . | J674: . | O674: . | P674: . | Q674: . | R674: . | S674: .
B685: PAC | C685: Obligatoire | D685: . | E685: =Calculs!F$121 -> Accessoires Supports unité extérieure : Plots anti-vibratiles en caoutchouc (x4) | F685: =Calculs!E$121 -> . | G685: . | H685: . | I685: . | J685: . | O685: .
C686: Non | D686: 0020252091 | E686: =VLOOKUP(D686,MATRICE_VA,2,FALSE) -> Plots anti-vibratiles (x4) | F686: =VLOOKUP(D686,MATRICE_VA,3,FALSE) -> 72 | G686: =_xlfn.NUMBERVALUE($Y686) -> 1 | H686: 1 | I686: 1 | J686: 1 | K686: 1 | L686: 1 | M686: 1 | N686: 1 | O686: 1 | Y686: =_xlfn.NUMBERVALUE($Y$5) -> 1
B696: PAC | C696: Obligatoire | D696: . | E696: =Calculs!F$122 -> Accessoires Supports unité extérieure : Support anti-vibratiles 60 cm (x2) | F696: =Calculs!E$122 -> . | G696: . | H696: . | I696: . | J696: . | O696: .
C697: Non | D697: 0020250226 | E697: =VLOOKUP(D697,MATRICE_VA,2,FALSE) -> Pieds anti-vibratiles 60 cm | F697: =VLOOKUP(D697,MATRICE_VA,3,FALSE) -> 115 | G697: =_xlfn.NUMBERVALUE($Y697) -> 1 | H697: 1 | I697: 1 | J697: 1 | K697: 1 | L697: 1 | M697: 1 | N697: 1 | O697: 1 | Y697: =_xlfn.NUMBERVALUE($Y$5) -> 1
B707: PAC | C707: Obligatoire | D707: . | E707: =Calculs!F$123 ->  | F707: =Calculs!E$123 ->  | G707: . | H707: . | I707: . | J707: . | O707: . | P707: . | Q707: . | R707: . | S707: .
C708: Non | D708: 0020250224 | E708: =VLOOKUP(D708,MATRICE_VA,2,FALSE) -> Support mural pour mur isolé | F708: =VLOOKUP(D708,MATRICE_VA,3,FALSE) -> 624 | G708: =_xlfn.NUMBERVALUE($Y708) -> 1 | H708: 1 | I708: 1 | J708: 1 | K708: 1 | L708: 1 | M708: 1 | N708: 1 | O708: 1 | Y708: =_xlfn.NUMBERVALUE($Y$5) -> 1
B718: PAC | C718: Obligatoire | D718: . | E718: =Calculs!F$124 ->  | F718: =Calculs!E$124 ->  | G718: . | H718: . | I718: . | J718: . | O718: . | P718: . | Q718: . | R718: . | S718: .
C719: Non | D719: 0020250225 | E719: =VLOOKUP(D719,MATRICE_VA,2,FALSE) -> Support mural standard | F719: =VLOOKUP(D719,MATRICE_VA,3,FALSE) -> 310 | G719: =_xlfn.NUMBERVALUE($Y719) -> 1 | H719: 1 | I719: 1 | J719: 1 | K719: 1 | L719: 1 | M719: 1 | N719: 1 | O719: 1 | Y719: =_xlfn.NUMBERVALUE($Y$5) -> 1
B729: PAC | C729: Obligatoire | D729: . | E729: =Calculs!D$125 -> Accessoires Supports unité extérieure : Réhausse anti-neige (40 centimètres) | F729: =Calculs!E$125 -> . | G729: . | H729: . | I729: . | J729: . | O729: . | P729: . | Q729: . | R729: . | S729: .
C730: Non | D730: 0010027984 | E730: =VLOOKUP(D730,MATRICE_VA,2,FALSE) -> Réhausse anti-neige (+plots) | F730: =VLOOKUP(D730,MATRICE_VA,3,FALSE) -> 441 | G730: =_xlfn.NUMBERVALUE($Y730) -> 1 | H730: 1 | I730: 1 | J730: 1 | K730: 1 | L730: 1 | M730: 1 | N730: 1 | O730: 1 | Y730: =_xlfn.NUMBERVALUE($Y$5) -> 1
B740: PAC | C740: Obligatoire | D740: . | E740: Mise en service | F740: . | G740: . | H740: . | I740: . | J740: . | K740: . | L740: . | M740: . | N740: . | O740: . | Y740: .
C741: Oui | D741: 0010028538 | E741: =VLOOKUP(D741,MATRICE_VA,2,FALSE) -> Mise en service pompe à chaleur (à commander sur la plateforme e-SERVICES) | F741: =VLOOKUP(D741,MATRICE_VA,3,FALSE) -> 350 | G741: =$Y741 -> 1 | H741: 1 | I741: 1 | J741: 1 | K741: 1 | L741: 1 | M741: 1 | N741: 1 | O741: 1 | Y741: =_xlfn.NUMBERVALUE($Y$5) -> 1
B751: PAC | C751: Obligatoire | D751: . | E751: Matériel à prévoir | F751: . | G751: . | H751: . | I751: . | J751: . | O751: .
C752: Ajustez les quantités | D752: A prévoir | E752: Filtre à tamis sur le retour PAC | F752: - | G752: =$Y752 -> 1 | H752: 1 | I752: 1 | J752: 1 | K752: 1 | L752: 1 | M752: 1 | N752: 1 | O752: 1 | Y752: =_xlfn.NUMBERVALUE($Y$5) -> 1
C753: Ajustez les quantités | D753: A prévoir | E753: Soupape différentielle (repère 9d) | F753: - | G753: 1 | J753: 1 | M753: 1
C754: Ajustez les quantités | D754: A prévoir | E754: Electrovannes 230 V~ (repère 9b) | F754: -
C755: Ajustez les quantités | D755: A prévoir | E755: Vase expansion, soupape, manomètre. | F755: - | G755: 1 | H755: 1 | I755: 1 | J755: 1 | K755: 1 | L755: 1 | M755: 1
C756: Ajustez les quantités | D756: A prévoir | E756: En option circulateur bouclage sanitaire, vase expansion sanitaire… | F756: - | J756: 1 | K756: 1 | L756: 1 | M756: 1
B757: aroTHERM Split 3 - 230V | C757: Ajustez les quantités | D757: A prévoir | E757: Volume tampon minimal de 18 l | F757: - | G757: 1 | H757: 1 | I757: 1 | J757: 1 | K757: 1 | L757: 1 | M757: 1
B758: aroTHERM Split 5 - 230V | C758: Ajustez les quantités | D758: A prévoir | E758: Volume tampon minimal de 18 l | F758: - | G758: 1 | H758: 1 | I758: 1 | J758: 1 | K758: 1 | L758: 1 | M758: 1
B759: aroTHERM Split 7 - 230V | C759: Ajustez les quantités | D759: A prévoir | E759: Volume tampon minimal de 18 l | F759: - | G759: 1 | H759: 1 | I759: 1 | J759: 1 | K759: 1 | L759: 1 | M759: 1
B760: aroTHERM Split 10 - 230V | C760: Ajustez les quantités | D760: A prévoir | E760: Volume tampon minimal de 35 l | F760: - | G760: 1 | H760: 1 | I760: 1 | J760: 1 | K760: 1 | L760: 1 | M760: 1 | Y760: =_xlfn.NUMBERVALUE(IF($Y$5>1,0,1)) -> 1
B761: aroTHERM Split 10 - 400V | C761: Ajustez les quantités | D761: A prévoir | E761: Volume tampon minimal de 35 l | F761: - | G761: =$Y761 -> 0 | H761: 0 | I761: 0 | J761: 0 | K761: 0 | L761: 0 | M761: 0 | N761: 0 | O761: 0
B762: aroTHERM Split 12 - 230V | C762: Ajustez les quantités | D762: A prévoir | E762: Volume tampon minimal de 60 l | F762: - | G762: 1 | H762: 1 | I762: 1 | J762: 1 | K762: 1 | L762: 1 | M762: 1 | Y762: =_xlfn.VALUETOTEXT(IF($Y$5>1,0,1)) -> 1
B763: aroTHERM Split 12 - 400V | C763: Ajustez les quantités | D763: A prévoir | E763: Volume tampon minimal de 60 l | F763: - | G763: =$Y763 -> 0 | H763: 0 | I763: 0 | J763: 0 | K763: 0 | L763: 0 | M763: 0 | N763: 0 | O763: 0
C766: Ajustez les quantités | D766: A prévoir | E766: Volume tampon minimal de 100 l | F766: - | G766: =$Y766 -> 0 | H766: 0 | I766: 0 | J766: 0 | K766: 0 | L766: 0 | M766: 0 | N766: 0 | O766: 0 | Y766: =IF(AND(_xlfn.NUMBERVALUE($Y$5)>1,_xlfn.NUMBERVALUE($Y$5)<4)=TRUE,1,0) -> 0
C767: Ajustez les quantités | D767: A prévoir | E767: Volume tampon minimal de 200 l | F767: - | G767: 0 | H767: 0 | I767: 0 | J767: 0 | K767: 0 | L767: 0 | M767: 0 | N767: 0 | O767: 0 | Y767: =IF(AND(_xlfn.NUMBERVALUE($Y$5)>3,_xlfn.NUMBERVALUE($Y$5)<8)=TRUE,1,0) -> 0

Sheet BDD_G1 (hidden)
B1: Logiciel PAC_2020 v2
D2: =Calculs!D93 -> INSTALLATIONS ET ACCESSOIRES pour la gamme BDD_G1 : aroTHERM plus VWL | G2: Q-commun | H2: EI-commun | I2: commun-EI | J2: commun | K2: H-EI-commun | L2: H-commun-EI | M2: H-commun | N2: Hext-commun-EI | O2: Hext-commun | P2: Q-E-commun | Q2: EI-E-commun | R2: E-commun-EI | S2: E-commun | T2: E-H-EI-commun | U2: E-H-commun-EI | V2: E-H-commun | W2: E-Hext-commun-EI | X2: E-Hext-commun | Y2: Cascade de PAC
B3: 02/08/2022 | G3: 1 | H3: 2 | I3: 3 | J3: 4 | K3: 5 | L3: 6 | M3: 7 | N3: 8 | O3: 9 | P3: 10 | Q3: 11 | R3: 12 | S3: 13 | T3: 14 | U3: 15 | V3: 16 | W3: 17 | X3: 18
E4: ="Recherche la configuration >> "&Calculs!$C$2018&" << =>" -> Recherche la configuration >> colonne << => | F4: Schéma | G4: colonne | H4: ballon ECS avant bouteille | I4: ballon ECS aprés bouteille | J4: chauffage seul | K4: Hybride et ballon ECS avant Bouteille | L4: hybride et ballon ECS aprés bouteille | M4: hybride chauffage seul | N4: hybride non Ebus et ballon ECS aprés bouteille | O4: hybride non Ebus chauffage seul | P4: colonne avec echangeur glycol | Q4: ballon ECS avant bouteille avec echangeur glycol | R4: ballon ECS aprés bouteille avec echangeur glycol | S4: Chauffage Seul avec echangeur glycol | T4: hybride et ballon ECS avant bouteille avec echangeur glycol | U4: hybride et ballon ECS aprés bouteille avec echangeur glycol | V4: hybride chauffage Seul avec echangeur glycol | W4: hybride non Ebus et ballon ECS aprés bouteille avec echangeur glycol | X4: hybride non Ebus chauffage seul avec echangeur glycol | Y4: Nombre de PAC valeur à multipliers au accessoires
B5: Vers PARAMETRAGE | F5: Appoint | G5: Appoint interne | H5: Electrique | I5: Electrique | J5: Electrique | K5: Chaudière neuve | L5: Chaudière neuve | M5: Chaudière neuve | N5: Chaudière existante | O5: Chaudière existante | P5: Appoint interne | Q5: Electrique | R5: Electrique | S5: Electrique | T5: Chaudière neuve | U5: Chaudière neuve | V5: Chaudière neuve | W5: Chaudière existante | X5: Chaudière existante | Y5: =_xlfn.NUMBERVALUE(Calculs!$C$2173) -> 1
F6: Mode gestion | G6: Simultané | H6: Simultané | I6: Simultané | J6: Simultané | K6: Simultané | L6: Simultané | M6: Simultané | N6: Simultané | O6: Simultané | P6: Simultané | Q6: Simultané | R6: Simultané | S6: Simultané | T6: Simultané | U6: Simultané | V6: Simultané | W6: Simultané | X6: Simultané
F7: ECS | G7: Var. impossible | H7: Var. possible | I7: Var. possible | J7: Var. possible | K7: Var. possible | L7: Var. possible | M7: Var. impossible | N7: Var. impossible | O7: Var. possible | P7: Var. possible | Q7: Var. possible | R7: Var. possible | S7: Var. possible | T7: Var. impossible | U7: Var. possible | V7: Var. impossible | W7: Var. possible | X7: Var. impossible
F8: =Calculs!D19 -> Régulation : | G8: Var. possible | H8: Var. possible | I8: Var. possible | J8: Var. possible | K8: Var. possible | L8: Var. possible | M8: Var. possible | N8: Var. possible | O8: Var. possible | P8: Var. possible | Q8: Var. possible | R8: Var. possible | S8: Var. possible | T8: Var. possible | U8: Var. possible | V8: Var. possible | W8: Var. possible | X8: Var. possible
F9: =Calculs!D20 -> Connectivité : | G9: Var. possible | H9: Var. possible | I9: Var. possible | J9: Var. possible | K9: Var. possible | L9: Var. possible | M9: Var. possible | N9: Var. possible | O9: Var. possible | P9: Var. possible | Q9: Var. possible | R9: Var. possible | S9: Var. possible | T9: Var. possible | U9: Var. possible | V9: Var. possible | W9: Var. possible | X9: Var. possible
F10: =Calculs!D21 ->  | G10: Var. possible | H10: Var. possible | I10: Var. possible | J10: Var. possible | K10: Var. possible | L10: Var. possible | M10: Var. possible | N10: Var. possible | O10: Var. possible | P10: Var. possible | Q10: Var. possible | R10: Var. possible | S10: Var. possible | T10: Var. possible | U10: Var. possible | V10: Var. possible | W10: Var. possible | X10: Var. possible
F11: =Calculs!D22 -> Découplage glycol : | G11: Var. possible | H11: Var. possible | I11: Var. possible | J11: Var. possible | K11: Var. possible | L11: Var. possible | M11: Var. possible | N11: Var. possible | O11: Var. possible | P11: Var. possible | Q11: Var. possible | R11: Var. possible | S11: Var. possible | T11: Var. possible | U11: Var. possible | V11: Var. possible | W11: Var. possible | X11: Var. possible
F12: =Calculs!D23 -> Supports unité extérieure : | G12: Var. possible | H12: Var. possible | I12: Var. possible | J12: Var. possible | K12: Var. possible | L12: Var. possible | M12: Var. possible | N12: Var. possible | O12: Var. possible | P12: Var. possible | Q12: Var. possible | R12: Var. possible | S12: Var. possible | T12: Var. possible | U12: Var. possible | V12: Var. possible | W12: Var. possible | X12: Var. possible
F13: .
D14: Réf. | E14: Dénomination | F14: PU HT
D15: . | E15: Pompes à chaleur de la gamme | F15: . | G15: . | H15: . | I15: . | J15: . | K15: . | L15: . | M15: . | N15: . | O15: . | P15: . | Q15: . | R15: . | S15: . | U15: . | V15: . | W15: . | X15: .
D16: 0010021638 | E16: aroTHERM plus 45/6 - 230 V S3 | F16: =VLOOKUP(D16,MATRICE_VA,3,FALSE) -> 6744 | G16: 1 | H16: 1 | I16: 1 | J16: 1 | K16: 1 | L16: 1 | M16: 1 | N16: 1 | O16: 1 | P16: 1 | Q16: 1 | R16: 1 | S16: 1 | T16: 1 | U16: 1 | V16: 1 | W16: 1 | X16: 1 | Y16: 1
D17: 0010021639 | E17: aroTHERM plus 55/6 - 230 V S3 | F17: 7538 | G17: 1 | H17: 1 | I17: 1 | J17: 1 | K17: 1 | L17: 1 | M17: 1 | N17: 1 | O17: 1 | P17: 1 | Q17: 1 | R17: 1 | S17: 1 | T17: 1 | U17: 1 | V17: 1 | W17: 1 | X17: 1 | Y17: 1
D18: 0010021641 | E18: aroTHERM plus 85/6 - 230 V S3 | F18: 10242 | G18: 1 | H18: 1 | I18: 1 | J18: 1 | K18: 1 | L18: 1 | M18: 1 | N18: 1 | O18: 1 | P18: 1 | Q18: 1 | R18: 1 | S18: 1 | T18: 1 | U18: 1 | V18: 1 | W18: 1 | X18: 1 | Y18: 1
D19: 0010021642 | E19: aroTHERM plus 125/6 - 230 V S3 | F19: 12129 | G19: 1 | H19: 1 | I19: 1 | J19: 1 | K19: 1 | L19: 1 | M19: 1 | N19: 1 | O19: 1 | P19: 1 | Q19: 1 | R19: 1 | S19: 1 | T19: 1 | U19: 1 | V19: 1 | W19: 1 | X19: 1 | Y19: 1
D20: 0010021643 | E20: aroTHERM plus 125/6 - 400 V S3 | F20: 12500 | G20: =$Y20 -> 1 | H20: 1 | I20: 1 | J20: 1 | K20: 1 | L20: 1 | M20: 1 | N20: 1 | O20: 1 | P20: 1 | Q20: 1 | R20: 1 | S20: 1 | T20: 1 | U20: 1 | V20: 1 | W20: 1 | X20: =$Y20 -> 1 | Y20: =_xlfn.NUMBERVALUE($Y$5) -> 1
D21: 0010021644 | E21: aroTHERM plus 155/6 - 230 V S3 | F21: 12867 | G21: 1 | H21: 1 | I21: 1 | J21: 1 | K21: 1 | L21: 1 | M21: 1 | N21: 1 | O21: 1 | P21: 1 | Q21: 1 | R21: 1 | S21: 1 | T21: 1 | U21: 1 | V21: 1 | W21: 1 | X21: 1 | Y21: 1
D22: 0010031660 | E22: aroTHERM plus 155/6 - 400 V S3 | F22: 13271 | G22: =$Y22 -> 1 | H22: 1 | I22: 1 | J22: 1 | K22: 1 | L22: 1 | M22: 1 | N22: 1 | O22: 1 | P22: 1 | Q22: 1 | R22: 1 | S22: 1 | T22: 1 | U22: 1 | V22: 1 | W22: 1 | X22: 1 | Y22: =_xlfn.NUMBERVALUE($Y$5) -> 1
B30: PAC | C30: Puissance | D30: . | E30: Appoint électrique VWZ MEH 97/6 | F30: . | G30: . | H30: . | I30: . | J30: . | O30: . | P30: . | Q30: . | R30: . | S30: .
B31: aroTHERM plus 45/6 - 230 V S3 | C31: 5.4 | D31: 0010023613 | E31: Module hydraulique double service VWZ MEH 97/6 | F31: =VLOOKUP(D31,MATRICE_VA,3,FALSE) -> 2704 | H31: 1 | I31: 1 | J31: 1 | Q31: 1 | R31: 1 | S31: 1 | Y31: 1
B32: aroTHERM plus 55/6 - 230 V S3 | C32: 5.4 | D32: 0010023613 | E32: Module hydraulique double service VWZ MEH 97/6 | F32: 2704 | H32: 1 | I32: 1 | J32: 1 | Q32: 1 | R32: 1 | S32: 1 | Y32: 1
B33: aroTHERM plus 85/6 - 230 V S3 | C33: 5.4 | D33: 0010023613 | E33: Module hydraulique double service VWZ MEH 97/6 | F33: 2704 | H33: 1 | I33: 1 | J33: 1 | Q33: 1 | R33: 1 | S33: 1 | Y33: 1
B34: aroTHERM plus 125/6 - 230 V S3 | C34: 5.4 | D34: 0010023613 | E34: Module hydraulique double service VWZ MEH 97/6 | F34: 2704 | H34: 1 | I34: 1 | J34: 1 | Q34: 1 | R34: 1 | S34: 1 | Y34: 1
B35: aroTHERM plus 125/6 - 400 V S3 | C35: 8.9 | D35: 0010023613 | E35: Module hydraulique double service VWZ MEH 97/6 | F35: 2704 | H35: 1 | I35: 1 | J35: 1 | Q35: 1 | R35: 1 | S35: 1 | Y35: 1
B36: aroTHERM plus 155/6 - 230 V S3 | C36: 5.4 | D36: 0010023613 | E36: Module hydraulique double service VWZ MEH 97/6 | F36: 2704 | H36: 1 | I36: 1 | J36: 1 | Q36: 1 | R36: 1 | S36: 1 | Y36: 1
B37: aroTHERM plus 155/6 - 400 V S3 | C37: 8.9 | D37: 0010023613 | E37: Module hydraulique double service VWZ MEH 97/6 | F37: 2704 | H37: 1 | I37: 1 | J37: 1 | Q37: 1 | R37: 1 | S37: 1 | Y37: 1
B45: PAC | C45: Puissance | D45: . | E45: Appoint électrique VWZ MEH 60 | F45: . | G45: . | H45: . | I45: . | J45: . | O45: . | P45: . | Q45: . | R45: . | S45: .
B46: aroTHERM plus 45/6 - 230 V S3 | C46: 6 | D46: 0020180702 | E46: Module électrique VWZ MEH 60 | F46: =VLOOKUP(D46,MATRICE_VA,3,FALSE) -> 656 | H46: 1 | I46: 1 | J46: 1 | Q46: 1 | R46: 1 | S46: 1
B47: aroTHERM plus 55/6 - 230 V S3 | C47: 6 | D47: 0020180702 | E47: Module électrique VWZ MEH 60 | F47: 656 | H47: 1 | I47: 1 | J47: 1 | Q47: 1 | R47: 1 | S47: 1
B48: aroTHERM plus 85/6 - 230 V S3 | C48: 6 | D48: 0020180702 | E48: Module électrique VWZ MEH 60 | F48: 656 | H48: 1 | I48: 1 | J48: 1 | Q48: 1 | R48: 1 | S48: 1
B49: aroTHERM plus 125/6 - 230 V S3 | C49: 6 | D49: 0020180702 | E49: Module électrique VWZ MEH 60 | F49: 656 | H49: 1 | I49: 1 | J49: 1 | Q49: 1 | R49: 1 | S49: 1
B50: aroTHERM plus 125/6 - 400 V S3 | C50: 6 | D50: 0020180702 | E50: Module électrique VWZ MEH 60 | F50: 656 | H50: 1 | I50: 1 | J50: 1 | Q50: 1 | R50: 1 | S50: 1
B51: aroTHERM plus 155/6 - 230 V S3 | C51: 6 | D51: 0020180702 | E51: Module électrique VWZ MEH 60 | F51: 656 | H51: 1 | I51: 1 | J51: 1 | Q51: 1 | R51: 1 | S51: 1
B52: aroTHERM plus 155/6 - 400 V S3 | C52: 6 | D52: 0020180702 | E52: Module électrique VWZ MEH 60 | F52: 656 | H52: 1 | I52: 1 | J52: 1 | Q52: 1 | R52: 1 | S52: 1
D53: 0010031647 | E53: Interface aroTHERM plus VWZ AI | F53: 291 | H53: 1 | I53: 1 | J53: 1 | Q53: 1 | R53: 1 | S53: 1 | Y53: =_xlfn.NUMBERVALUE(Y5-1) -> 0
C60: Puissance | D60: . | E60: Chaudière | F60: . | G60: . | H60: . | I60: . | J60: . | O60: . | P60: . | Q60: . | R60: . | S60: .
E61: chaudière | F61: 0 | K61: 1 | L61: 1 | M61: 1 | T61: 1 | U61: 1 | V61: 1
D62: . | E62: Accessoires chaudière | F62: . | G62: . | H62: . | I62: . | J62: . | K62: . | L62: . | M62: . | N62: . | O62: . | P62: . | Q62: . | R62: . | S62: . | T62: . | U62: . | V62: . | W62: . | X62: .
A63: BDD_Acc_Ch
B75: PAC | C75: Obligatoire | D75: . | E75: Préparateur ECS | F75: . | G75: . | H75: . | I75: . | J75: . | O75: . | P75: . | Q75: . | R75: . | S75: .
B90: PAC | C90: Obligatoire | D90: . | E90: Accessoires hydrauliques et électriques | F90: . | G90: . | H90: . | I90: . | J90: . | O90: . | P90: . | Q90: . | R90: . | S90: .
C91: Oui | D91: 0010031647 | E91: =VLOOKUP(D91,MATRICE_VA,2,FALSE) -> Interface VWZ AI - aroTH. plus | F91: =VLOOKUP(D91,MATRICE_VA,3,FALSE) -> 291 | G91: =$Y91 -> 0 | H91: =$Y91 -> 0 | I91: =$Y91 -> 0 | J91: =$Y91 -> 0 | L91: =$Y91+1 -> 1 | M91: =$Y91+1 -> 1 | N91: =$Y91+1 -> 1 | O91: =$Y91+1 -> 1 | P91: =$Y91 -> 0 | Q91: =$Y91 -> 0 | R91: =$Y91 -> 0 | S91: =$Y91 -> 0 | U91: =$Y91+1 -> 1 | V91: =$Y91+1 -> 1 | W91: =$Y91+1 -> 1 | X91: =$Y91+1 -> 1 | Y91: =_xlfn.NUMBERVALUE(Y5-1) -> 0
C94: Oui | D94: 0010022087 | E94: =VLOOKUP(D94,MATRICE_VA,2,FALSE) -> uniTOWER Plus - VIH QW 190/6 E | F94: =VLOOKUP(D94,MATRICE_VA,3,FALSE) -> 4404 | G94: 1 | P94: 1
C95: Oui | D95: 0020221263 | E95: =VLOOKUP(D95,MATRICE_VA,2,FALSE) -> Kit de raccordement uniTOWER | F95: =VLOOKUP(D95,MATRICE_VA,3,FALSE) -> 208 | G95: 1 | P95: 1
D96: 302040 | E96: =VLOOKUP(D96,MATRICE_VA,2,FALSE) -> Mitigeur thermostatique | F96: =VLOOKUP(D96,MATRICE_VA,3,FALSE) -> 133 | G96: 1 | P96: 1
C97: Oui | D97: 0020139895 | E97: =VLOOKUP(D97,MATRICE_VA,2,FALSE) -> VR 32/3 HYB Coupl. bus PAC hyb | F97: =VLOOKUP(D97,MATRICE_VA,3,FALSE) -> 153 | K97: 1 | L97: 1 | M97: 1 | T97: 1 | U97: 1 | V97: 1
A119: BDD_Commun
B349: PAC | C349: Obligatoire | D349: . | E349: =Calculs!D$95 -> Accessoires ECS : Chaudière seule ou électrique | F349: =Calculs!E$95 -> . | G349: . | H349: . | I349: . | J349: . | O349: . | P349: . | Q349: . | R349: . | S349: .
B360: PAC | C360: Obligatoire | D360: . | E360: =Calculs!D$96 -> Accessoires ECS : Ballon ECS 200 l | F360: =Calculs!E$96 -> . | G360: . | H360: . | I360: . | J360: . | O360: . | P360: . | Q360: . | R360: . | S360: .
B361: aroTHERM plus 45/6 - 230 V S3 | C361: Non | D361: 0020214407 | E361: =VLOOKUP(D361,MATRICE_VA,2,FALSE) -> Ballon uniSTOR VIH RW 200 | F361: =VLOOKUP(D361,MATRICE_VA,3,FALSE) -> 1850 | H361: 1 | I361: 1 | K361: 1 | L361: 1 | N361: 1 | Q361: 1 | R361: 1 | T361: 1 | U361: 1 | W361: 1
B362: aroTHERM plus 55/6 - 230 V S3 | D362: 0020214407 | E362: Ballon uniSTOR VIH RW 200 | F362: 1850 | H362: 1 | I362: 1 | K362: 1 | L362: 1 | N362: 1 | Q362: 1 | R362: 1 | T362: 1 | U362: 1 | W362: 1
B363: aroTHERM plus 85/6 - 230 V S3 | D363: 0020214407 | E363: Ballon uniSTOR VIH RW 200 | F363: 1850 | H363: 1 | I363: 1 | K363: 1 | L363: 1 | N363: 1 | Q363: 1 | R363: 1 | T363: 1 | U363: 1 | W363: 1
B364: aroTHERM plus 125/6 - 230 V S3 | D364: 0020214407 | E364: Ballon uniSTOR VIH RW 200 | F364: 1850 | H364: 1 | I364: 1 | K364: 1 | L364: 1 | N364: 1 | Q364: 1 | R364: 1 | T364: 1 | U364: 1 | W364: 1
B365: aroTHERM plus 125/6 - 400 V S3 | D365: 0020214407 | E365: Ballon uniSTOR VIH RW 200 | F365: 1850 | H365: 1 | I365: 1 | K365: 1 | L365: 1 | N365: 1 | Q365: 1 | R365: 1 | T365: 1 | U365: 1 | W365: 1
B366: aroTHERM plus 155/6 - 230 V S3 | D366: 0020214407 | E366: Ballon uniSTOR VIH RW 200 | F366: 1850 | H366: 1 | I366: 1 | K366: 1 | L366: 1 | N366: 1 | Q366: 1 | R366: 1 | T366: 1 | U366: 1 | W366: 1
B367: aroTHERM plus 155/6 - 400 V S3 | D367: 0020214407 | E367: Ballon uniSTOR VIH RW 200 | F367: 1850 | H367: 1 | I367: 1 | K367: 1 | L367: 1 | N367: 1 | Q367: 1 | R367: 1 | T367: 1 | U367: 1 | W367: 1
C368: Non | D368: 302040 | E368: =VLOOKUP(D368,MATRICE_VA,2,FALSE) -> Mitigeur thermostatique | F368: =VLOOKUP(D368,MATRICE_VA,3,FALSE) -> 133 | H368: 1 | I368: 1 | K368: 1 | L368: 1 | N368: 1 | Q368: 1 | R368: 1 | T368: 1 | U368: 1 | W368: 1
C369: Non | D369: 305827 | E369: =VLOOKUP(D369,MATRICE_VA,2,FALSE) -> Grpe sécu. ballon sup. à 200l | F369: =VLOOKUP(D369,MATRICE_VA,3,FALSE) -> 159 | H369: 1 | I369: 1 | K369: 1 | L369: 1 | N369: 1 | Q369: 1 | R369: 1 | T369: 1 | U369: 1 | W369: 1
C370: Ajustez les quantités | D370: 306787 | E370: =VLOOKUP(D370,MATRICE_VA,2,FALSE) -> Sonde temp. sans connecteur | F370: =VLOOKUP(D370,MATRICE_VA,3,FALSE) -> 20 | H370: 1 | I370: 1 | K370: 1 | L370: 1 | N370: 1 | Q370: 1 | R370: 1 | T370: 1 | U370: 1 | W370: 1
B371: PAC | C371: Obligatoire | D371: . | E371: =Calculs!D$97 -> Accessoires ECS : Ballon ECS 300 l | F371: =Calculs!E$96 -> . | G371: . | H371: . | I371: . | J371: . | N371: . | Q371: . | R371: . | T371: .
B372: aroTHERM plus 45/6 - 230 V S3 | C372: Non | D372: 0010020645 | E372: Ballon uniSTOR VIH RW 300/3 BR (déconseillé avec le modèle 45/6) | F372: =VLOOKUP(D372,MATRICE_VA,3,FALSE) -> 2150 | H372: 1 | I372: 1 | K372: 1 | L372: 1 | N372: 1 | Q372: 1 | R372: 1 | T372: 1 | U372: 1 | W372: 1
B373: aroTHERM plus 55/6 - 230 V S3 | C373: Non | D373: 0010020645 | E373: =VLOOKUP(D373,MATRICE_VA,2,FALSE) -> Ballon uniSTOR VIH RW 300/3 BR | F373: 2150 | H373: 1 | I373: 1 | K373: 1 | L373: 1 | N373: 1 | Q373: 1 | R373: 1 | T373: 1 | U373: 1 | W373: 1
B374: aroTHERM plus 85/6 - 230 V S3 | C374: Non | D374: 0010020645 | E374: Ballon uniSTOR VIH RW 300/3 BR | F374: 2150 | H374: 1 | I374: 1 | K374: 1 | L374: 1 | N374: 1 | Q374: 1 | R374: 1 | T374: 1 | U374: 1 | W374: 1
B375: aroTHERM plus 125/6 - 230 V S3 | C375: Non | D375: 0010020645 | E375: Ballon uniSTOR VIH RW 300/3 BR | F375: 2150 | H375: 1 | I375: 1 | K375: 1 | L375: 1 | N375: 1 | Q375: 1 | R375: 1 | T375: 1 | U375: 1 | W375: 1
B376: aroTHERM plus 125/6 - 400 V S3 | C376: Non | D376: 0010020645 | E376: Ballon uniSTOR VIH RW 300/3 BR | F376: 2150 | H376: 1 | I376: 1 | K376: 1 | L376: 1 | N376: 1 | Q376: 1 | R376: 1 | T376: 1 | U376: 1 | W376: 1
B377: aroTHERM plus 155/6 - 230 V S3 | C377: Non | D377: 0010020645 | E377: Ballon uniSTOR VIH RW 300/3 BR | F377: 2150 | H377: 1 | I377: 1 | K377: 1 | L377: 1 | N377: 1 | Q377: 1 | R377: 1 | T377: 1 | U377: 1 | W377: 1
B378: aroTHERM plus 155/6 - 400 V S3 | C378: Non | D378: 0010020645 | E378: Ballon uniSTOR VIH RW 300/3 BR | F378: 2150 | H378: 1 | I378: 1 | K378: 1 | L378: 1 | N378: 1 | Q378: 1 | R378: 1 | T378: 1 | U378: 1 | W378: 1
C379: Non | D379: 302040 | E379: =VLOOKUP(D379,MATRICE_VA,2,FALSE) -> Mitigeur thermostatique | F379: =VLOOKUP(D379,MATRICE_VA,3,FALSE) -> 133 | H379: 1 | I379: 1 | K379: 1 | L379: 1 | N379: 1 | Q379: 1 | R379: 1 | T379: 1 | U379: 1 | W379: 1
C380: Non | D380: 305827 | E380: =VLOOKUP(D380,MATRICE_VA,2,FALSE) -> Grpe sécu. ballon sup. à 200l | F380: =VLOOKUP(D380,MATRICE_VA,3,FALSE) -> 159 | H380: 1 | I380: 1 | K380: 1 | L380: 1 | N380: 1 | Q380: 1 | R380: 1 | T380: 1 | U380: 1 | W380: 1
C381: Ajustez les quantités | D381: 306787 | E381: =VLOOKUP(D381,MATRICE_VA,2,FALSE) -> Sonde temp. sans connecteur | F381: =VLOOKUP(D381,MATRICE_VA,3,FALSE) -> 20 | H381: 1 | I381: 1 | K381: 1 | L381: 1 | N381: 1 | Q381: 1 | R381: 1 | T381: 1 | U381: 1 | W381: 1
B382: PAC | C382: Obligatoire | D382: . | E382: =Calculs!D$98 -> Accessoires ECS : Ballon ECS 400 l | F382: =Calculs!E$96 -> . | G382: . | H382: . | I382: . | J382: . | N382: . | Q382: . | R382: . | T382: .
B383: aroTHERM plus 45/6 - 230 V S3 | C383: Non | D383: 0010020646 | E383: Ballon uniSTOR VIH RW 400/3 BR (déconseillé avec le modèle 45/6) | F383: =VLOOKUP(D383,MATRICE_VA,3,FALSE) -> 2510 | H383: 1 | I383: 1 | K383: 1 | L383: 1 | N383: 1 | Q383: 1 | R383: 1 | T383: 1 | U383: 1 | W383: 1
B384: aroTHERM plus 55/6 - 230 V S3 | C384: Non | D384: 0010020646 | E384: =VLOOKUP(D384,MATRICE_VA,2,FALSE) -> Ballon uniSTOR VIH RW 400/3 BR | F384: 2510 | H384: 1 | I384: 1 | K384: 1 | L384: 1 | N384: 1 | Q384: 1 | R384: 1 | T384: 1 | U384: 1 | W384: 1
B385: aroTHERM plus 85/6 - 230 V S3 | C385: Non | D385: 0010020646 | E385: Ballon uniSTOR VIH RW 400/3 BR | F385: 2510 | H385: 1 | I385: 1 | K385: 1 | L385: 1 | N385: 1 | Q385: 1 | R385: 1 | T385: 1 | U385: 1 | W385: 1
B386: aroTHERM plus 125/6 - 230 V S3 | C386: Non | D386: 0010020646 | E386: Ballon uniSTOR VIH RW 400/3 BR | F386: 2510 | H386: 1 | I386: 1 | K386: 1 | L386: 1 | N386: 1 | Q386: 1 | R386: 1 | T386: 1 | U386: 1 | W386: 1
B387: aroTHERM plus 125/6 - 400 V S3 | C387: Non | D387: 0010020646 | E387: Ballon uniSTOR VIH RW 400/3 BR | F387: 2510 | H387: 1 | I387: 1 | K387: 1 | L387: 1 | N387: 1 | Q387: 1 | R387: 1 | T387: 1 | U387: 1 | W387: 1
B388: aroTHERM plus 155/6 - 230 V S3 | C388: Non | D388: 0010020646 | E388: Ballon uniSTOR VIH RW 400/3 BR | F388: 2510 | H388: 1 | I388: 1 | K388: 1 | L388: 1 | N388: 1 | Q388: 1 | R388: 1 | T388: 1 | U388: 1 | W388: 1
B389: aroTHERM plus 155/6 - 400 V S3 | C389: Non | D389: 0010020646 | E389: Ballon uniSTOR VIH RW 400/3 BR | F389: 2510 | H389: 1 | I389: 1 | K389: 1 | L389: 1 | N389: 1 | Q389: 1 | R389: 1 | T389: 1 | U389: 1 | W389: 1
C390: Non | D390: 302040 | E390: =VLOOKUP(D390,MATRICE_VA,2,FALSE) -> Mitigeur thermostatique | F390: =VLOOKUP(D390,MATRICE_VA,3,FALSE) -> 133 | H390: 1 | I390: 1 | K390: 1 | L390: 1 | N390: 1 | Q390: 1 | R390: 1 | T390: 1 | U390: 1 | W390: 1
C391: Non | D391: 305827 | E391: =VLOOKUP(D391,MATRICE_VA,2,FALSE) -> Grpe sécu. ballon sup. à 200l | F391: =VLOOKUP(D391,MATRICE_VA,3,FALSE) -> 159 | H391: 1 | I391: 1 | K391: 1 | L391: 1 | N391: 1 | Q391: 1 | R391: 1 | T391: 1 | U391: 1 | W391: 1
C392: Ajustez les quantités | D392: 306787 | E392: =VLOOKUP(D392,MATRICE_VA,2,FALSE) -> Sonde temp. sans connecteur | F392: =VLOOKUP(D392,MATRICE_VA,3,FALSE) -> 20 | H392: 1 | I392: 1 | K392: 1 | L392: 1 | N392: 1 | Q392: 1 | R392: 1 | T392: 1 | U392: 1 | W392: 1
B393: PAC | C393: Obligatoire | D393: . | E393: =Calculs!D$99 -> Accessoires ECS : Ballon ECS 500 l | F393: =Calculs!E$96 -> . | G393: . | H393: . | I393: . | J393: . | N393: . | Q393: . | R393: . | T393: .
B394: aroTHERM plus 45/6 - 230 V S3 | C394: Non | D394: 0010020647 | E394: Ballon uniSTOR VIH RW 500/3 BR (déconseillé avec le modèle 45/6) | F394: =VLOOKUP(D394,MATRICE_VA,3,FALSE) -> 3150 | H394: 1 | I394: 1 | K394: 1 | L394: 1 | N394: 1 | Q394: 1 | R394: 1 | T394: 1 | U394: 1 | W394: 1
B395: aroTHERM plus 55/6 - 230 V S3 | C395: Non | D395: 0010020647 | E395: =VLOOKUP(D395,MATRICE_VA,2,FALSE) -> Ballon uniSTOR VIH RW 500/3 BR | F395: 3150 | H395: 1 | I395: 1 | K395: 1 | L395: 1 | N395: 1 | Q395: 1 | R395: 1 | T395: 1 | U395: 1 | W395: 1
B396: aroTHERM plus 85/6 - 230 V S3 | C396: Non | D396: 0010020647 | E396: Ballon uniSTOR VIH RW 500/3 BR | F396: 3150 | H396: 1 | I396: 1 | K396: 1 | L396: 1 | N396: 1 | Q396: 1 | R396: 1 | T396: 1 | U396: 1 | W396: 1
B397: aroTHERM plus 125/6 - 230 V S3 | C397: Non | D397: 0010020647 | E397: Ballon uniSTOR VIH RW 500/3 BR | F397: 3150 | H397: 1 | I397: 1 | K397: 1 | L397: 1 | N397: 1 | Q397: 1 | R397: 1 | T397: 1 | U397: 1 | W397: 1
B398: aroTHERM plus 125/6 - 400 V S3 | C398: Non | D398: 0010020647 | E398: Ballon uniSTOR VIH RW 500/3 BR | F398: 3150 | H398: 1 | I398: 1 | K398: 1 | L398: 1 | N398: 1 | Q398: 1 | R398: 1 | T398: 1 | U398: 1 | W398: 1
B399: aroTHERM plus 155/6 - 230 V S3 | C399: Non | D399: 0010020647 | E399: Ballon uniSTOR VIH RW 500/3 BR | F399: 3150 | H399: 1 | I399: 1 | K399: 1 | L399: 1 | N399: 1 | Q399: 1 | R399: 1 | T399: 1 | U399: 1 | W399: 1
B400: aroTHERM plus 155/6 - 400 V S3 | C400: Non | D400: 0010020647 | E400: Ballon uniSTOR VIH RW 500/3 BR | F400: 3150 | H400: 1 | I400: 1 | K400: 1 | L400: 1 | N400: 1 | Q400: 1 | R400: 1 | T400: 1 | U400: 1 | W400: 1
C401: Non | D401: 302040 | E401: =VLOOKUP(D401,MATRICE_VA,2,FALSE) -> Mitigeur thermostatique | F401: =VLOOKUP(D401,MATRICE_VA,3,FALSE) -> 133 | H401: 1 | I401: 1 | K401: 1 | L401: 1 | N401: 1 | Q401: 1 | R401: 1 | T401: 1 | U401: 1 | W401: 1
C402: Non | D402: 305827 | E402: =VLOOKUP(D402,MATRICE_VA,2,FALSE) -> Grpe sécu. ballon sup. à 200l | F402: =VLOOKUP(D402,MATRICE_VA,3,FALSE) -> 159 | H402: 1 | I402: 1 | K402: 1 | L402: 1 | N402: 1 | Q402: 1 | R402: 1 | T402: 1 | U402: 1 | W402: 1
C403: Ajustez les quantités | D403: 306787 | E403: =VLOOKUP(D403,MATRICE_VA,2,FALSE) -> Sonde temp. sans connecteur | F403: =VLOOKUP(D403,MATRICE_VA,3,FALSE) -> 20 | H403: 1 | I403: 1 | K403: 1 | L403: 1 | N403: 1 | Q403: 1 | R403: 1 | T403: 1 | U403: 1 | W403: 1
B404: PAC | C404: Obligatoire | D404: . | E404: =Calculs!D$100 -> Accessoires ECS : Ballon ECS intégré | F404: =Calculs!E$100 -> . | G404: . | H404: . | I404: . | J404: . | O404: . | P404: . | Q404: . | R404: . | S404: .
B415: PAC | C415: Obligatoire | D415: . | E415: =Calculs!D$101 -> Régulation : sensocomfort vrc 720 (filaire) | F415: =Calculs!E$101 -> . | G415: . | H415: . | I415: . | J415: . | O415: . | P415: . | Q415: . | R415: . | S415: .
A416: BDD_Commun
B436: PAC | C436: Obligatoire | D436: . | E436: =Calculs!D$102 -> Régulation : sensocomfort vrc 720f (radio) | F436: =Calculs!E$102 -> . | G436: . | H436: . | I436: . | J436: . | O436: . | P436: . | Q436: . | R436: . | S436: .
B457: PAC | C457: Obligatoire | D457: . | E457: =Calculs!D$103 -> Accessoires régulation : multiMATIC VRC 700 (filaire) | F457: =Calculs!E$103 -> . | G457: . | H457: . | I457: . | J457: . | O457: . | P457: . | Q457: . | R457: . | S457: .
B478: PAC | C478: Obligatoire | D478: . | E478: =Calculs!D$104 ->  | F478: =Calculs!E$104 ->  | G478: . | H478: . | I478: . | J478: . | O478: . | P478: . | Q478: . | R478: . | S478: .
B499: PAC | C499: Obligatoire | D499: . | E499: =Calculs!D$105 ->  | F499: =Calculs!E$105 ->  | G499: . | H499: . | I499: . | J499: . | O499: . | P499: . | Q499: . | R499: . | S499: .
A500: BDD_Commun
B520: PAC | C520: Obligatoire | D520: . | E520: =Calculs!D$106 -> Accessoires connectivité : myVAILLANT connect | F520: =Calculs!E$106 -> . | G520: . | H520: . | I520: . | J520: . | O520: . | P520: . | Q520: . | R520: . | S520: .
C521: Oui | D521: 0020260962 | E521: =VLOOKUP(D521,MATRICE_VA,2,FALSE) -> sensoNET eBUS (230 V) | F521: =VLOOKUP(D521,MATRICE_VA,3,FALSE) -> 190 | G521: 1 | H521: 1 | I521: 1 | J521: 1 | K521: 1 | L521: 1 | M521: 1 | N521: 1 | O521: 1 | P521: 1 | Q521: 1 | R521: 1 | S521: 1 | T521: 1 | U521: 1 | V521: 1 | W521: 1 | X521: 1
C522: Ajustez les quantités | D522: 0010048535 | E522: =VLOOKUP(D522,MATRICE_VA,2,FALSE) -> Superposition Plug&Play | F522: =VLOOKUP(D522,MATRICE_VA,3,FALSE) -> 6 | K522: 1 | L522: 1 | M522: 1 | T522: 1 | U522: 1 | V522: 1
B531: PAC | C531: Obligatoire | D531: . | E531: =Calculs!D$107 -> Accessoires connectivité : Sans | F531: =Calculs!E$107 -> . | G531: . | H531: . | I531: . | J531: . | O531: . | P531: . | Q531: . | R531: . | S531: .
B542: PAC | C542: Obligatoire | D542: . | E542: =Calculs!D$108 ->  | F542: =Calculs!E$108 ->  | G542: . | H542: . | I542: . | J542: . | O542: . | P542: . | Q542: . | R542: . | S542: .
B553: PAC | C553: Obligatoire | D553: . | E553: =Calculs!D$109 ->  | F553: =Calculs!E$109 ->  | G553: . | H553: . | I553: . | J553: . | O553: . | P553: . | Q553: . | R553: . | S553: .
B564: PAC | C564: Obligatoire | D564: . | E564: =Calculs!D$110 ->  | F564: =Calculs!E$110 ->  | G564: . | H564: . | I564: . | J564: . | O564: . | P564: . | Q564: . | R564: . | S564: .
B575: PAC | C575: Obligatoire | D575: . | E575: =Calculs!D$111 ->  | F575: =Calculs!E$111 ->  | G575: . | H575: . | I575: . | J575: . | K575: . | L575: . | M575: . | N575: . | O575: . | P575: . | Q575: . | R575: . | S575: . | T575: . | U575: . | V575: . | W575: . | X575: . | Y575: .
B586: PAC | C586: Obligatoire | D586: . | E586: =Calculs!D$112 ->  | F586: =Calculs!E$112 ->  | G586: . | H586: . | I586: . | J586: . | K586: . | L586: . | M586: . | N586: . | O586: . | P586: . | Q586: . | R586: . | S586: . | T586: . | U586: . | V586: . | W586: . | X586: .
B597: PAC | C597: Obligatoire | D597: . | E597: =Calculs!D$113 ->  | F597: =Calculs!E$113 ->  | G597: . | H597: . | I597: . | J597: . | O597: . | P597: . | Q597: . | R597: . | S597: .
B608: PAC | C608: Obligatoire | D608: . | E608: =Calculs!D$114 ->  | F608: =Calculs!E$114 ->  | G608: . | H608: . | I608: . | J608: . | O608: . | P608: . | Q608: . | R608: . | S608: .
B619: PAC | C619: Obligatoire | D619: . | E619: =Calculs!D$115 ->  | F619: =Calculs!E$115 ->  | G619: . | H619: . | I619: . | J619: . | O619: . | P619: . | Q619: . | R619: . | S619: .
B630: PAC | C630: Obligatoire | D630: . | E630: =Calculs!D$116 -> Accessoires Découplage glycol : Avec échangeur | F630: =Calculs!E$116 -> . | G630: . | H630: . | I630: . | J630: . | O630: . | P630: . | Q630: . | R630: . | S630: .
C631: Oui | D631: 0020180704 | E631: =VLOOKUP($D631,MATRICE_VA,2,FALSE) -> Echangeur découp. VWZ MWT 150 | F631: =VLOOKUP($D631,MATRICE_VA,3,FALSE) -> 1025 | Q631: 1 | R631: 1 | S631: 1 | T631: 1 | U631: 1 | V631: 1 | W631: 1 | X631: 1
B632: aroTHERM plus 45/6 - 230 V S3 | C632: Oui | D632: 0010027982 | E632: Kit découp. uniTOWER Plus 4-8 | F632: =VLOOKUP(D632,MATRICE_VA,3,FALSE) -> 653 | P632: 1
B633: aroTHERM plus 55/6 - 230 V S3 | C633: Oui | D633: 0010027982 | E633: Kit découp. uniTOWER Plus 4-8 | F633: 653 | P633: 1
B634: aroTHERM plus 85/6 - 230 V S3 | C634: Oui | D634: 0010027982 | E634: Kit découp. uniTOWER Plus 4-8 | F634: 653 | P634: 1
B635: aroTHERM plus 125/6 - 230 V S3 | C635: Oui | D635: 0010027973 | E635: Kit découp uniTOWER Plus 12-15 | F635: 718 | P635: 1
B636: aroTHERM plus 125/6 - 400 V S3 | C636: Oui | D636: 0010027973 | E636: Kit découp uniTOWER Plus 12-15 | F636: 718 | P636: 1
B637: aroTHERM plus 155/6 - 230 V S3 | C637: Oui | D637: 0010027973 | E637: Kit découp uniTOWER Plus 12-15 | F637: 718 | P637: 1
B638: aroTHERM plus 155/6 - 400 V S3 | C638: Oui | D638: 0010027973 | E638: Kit découp uniTOWER Plus 12-15 | F638: 718 | P638: 1
C639: Non | D639: 0010030975 | E639: Vase expans. 2 litres uniTOWER | F639: =VLOOKUP(D639,MATRICE_VA,3,FALSE) -> 83 | P639: 1
B641: PAC | C641: Obligatoire | D641: . | E641: =Calculs!D$117 -> Accessoires Découplage glycol : Pas de découplage | F641: =Calculs!E$117 -> . | G641: . | H641: . | I641: . | J641: . | O641: . | P641: . | Q641: . | R641: . | S641: .
B652: PAC | C652: Obligatoire | D652: . | E652: =Calculs!D$118 ->  | F652: =Calculs!E$118 ->  | G652: . | H652: . | I652: . | J652: . | O652: . | P652: . | Q652: . | R652: . | S652: .
B663: PAC | C663: Obligatoire | D663: . | E663: =Calculs!D$119 ->  | F663: =Calculs!E$119 ->  | G663: . | H663: . | I663: . | J663: . | O663: . | P663: . | Q663: . | R663: . | S663: .
B674: PAC | C674: Obligatoire | D674: . | E674: =Calculs!D$120 ->  | F674: =Calculs!E$120 ->  | G674: . | H674: . | I674: . | J674: . | O674: . | P674: . | Q674: . | R674: . | S674: .
B685: PAC | C685: Obligatoire | D685: . | E685: =Calculs!D$121 -> Accessoires Supports unité extérieure : Plots anti-vibratiles en caoutchouc (x4) | F685: =Calculs!E$121 -> . | G685: . | H685: . | I685: . | J685: . | O685: . | P685: . | Q685: . | R685: . | S685: .
C686: Non | D686: 0020252091 | E686: =VLOOKUP(D686,MATRICE_VA,2,FALSE) -> Plots anti-vibratiles (x4) | F686: =VLOOKUP(D686,MATRICE_VA,3,FALSE) -> 72 | G686: =_xlfn.NUMBERVALUE($Y686) -> 1 | H686: =_xlfn.NUMBERVALUE($Y686) -> 1 | I686: 1 | J686: 1 | K686: 1 | L686: 1 | M686: 1 | N686: 1 | O686: 1 | P686: 1 | Q686: 1 | R686: 1 | S686: 1 | T686: 1 | U686: 1 | V686: 1 | W686: 1 | X686: 1 | Y686: =_xlfn.NUMBERVALUE($Y$5) -> 1
B696: PAC | C696: Obligatoire | D696: . | E696: =Calculs!D$122 -> Accessoires Supports unité extérieure : Support anti-vibratiles 60 cm (x2) | F696: =Calculs!E$122 -> . | G696: . | H696: . | I696: . | J696: . | O696: . | P696: . | Q696: . | R696: . | S696: .
C697: Non | D697: 0020250226 | E697: =VLOOKUP(D697,MATRICE_VA,2,FALSE) -> Pieds anti-vibratiles 60 cm | F697: =VLOOKUP(D697,MATRICE_VA,3,FALSE) -> 115 | G697: =_xlfn.NUMBERVALUE($Y697) -> 1 | H697: 1 | I697: 1 | J697: 1 | K697: 1 | L697: 1 | M697: 1 | N697: 1 | O697: 1 | P697: 1 | Q697: 1 | R697: 1 | S697: 1 | T697: 1 | U697: 1 | V697: 1 | W697: 1 | X697: 1 | Y697: =_xlfn.NUMBERVALUE($Y$5) -> 1
B707: PAC | C707: Obligatoire | D707: . | E707: =Calculs!D$123 ->  | F707: =Calculs!E$123 ->  | G707: . | H707: . | I707: . | J707: . | O707: . | P707: . | Q707: . | R707: . | S707: .
C708: Non | D708: 0020250224 | E708: =VLOOKUP(D708,MATRICE_VA,2,FALSE) -> Support mural pour mur isolé | F708: =VLOOKUP(D708,MATRICE_VA,3,FALSE) -> 624 | G708: =_xlfn.NUMBERVALUE($Y708) -> 1 | H708: 1 | I708: 1 | J708: 1 | K708: 1 | L708: 1 | M708: 1 | N708: 1 | O708: 1 | P708: 1 | Q708: 1 | R708: 1 | S708: 1 | T708: 1 | U708: 1 | V708: 1 | W708: 1 | X708: 1 | Y708: =_xlfn.NUMBERVALUE($Y$5) -> 1
B718: PAC | C718: Obligatoire | D718: . | E718: =Calculs!D$124 ->  | F718: =Calculs!E$124 ->  | G718: . | H718: . | I718: . | J718: . | O718: . | P718: . | Q718: . | R718: . | S718: .
C719: Non | D719: 0020250225 | E719: =VLOOKUP(D719,MATRICE_VA,2,FALSE) -> Support mural standard | F719: =VLOOKUP(D719,MATRICE_VA,3,FALSE) -> 310 | G719: =_xlfn.NUMBERVALUE($Y719) -> 1 | H719: 1 | I719: 1 | J719: 1 | K719: 1 | L719: 1 | M719: 1 | N719: 1 | O719: 1 | P719: 1 | Q719: 1 | R719: 1 | S719: 1 | T719: 1 | U719: 1 | V719: 1 | W719: 1 | X719: 1 | Y719: =_xlfn.NUMBERVALUE($Y$5) -> 1
B729: PAC | C729: Obligatoire | D729: . | E729: =Calculs!D$125 -> Accessoires Supports unité extérieure : Réhausse anti-neige (40 centimètres) | F729: =Calculs!E$125 -> . | G729: . | H729: . | I729: . | J729: . | O729: . | P729: . | Q729: . | R729: . | S729: .
C730: Non | D730: 0010027984 | E730: =VLOOKUP(D730,MATRICE_VA,2,FALSE) -> Réhausse anti-neige (+plots) | F730: =VLOOKUP(D730,MATRICE_VA,3,FALSE) -> 441 | G730: =_xlfn.NUMBERVALUE($Y730) -> 1 | H730: 1 | I730: 1 | J730: 1 | K730: 1 | L730: 1 | M730: 1 | N730: 1 | O730: 1 | P730: 1 | Q730: 1 | R730: 1 | S730: 1 | T730: 1 | U730: 1 | V730: 1 | W730: 1 | X730: 1 | Y730: =_xlfn.NUMBERVALUE($Y$5) -> 1
B740: PAC | C740: Obligatoire | D740: . | E740: Mise en service | F740: . | G740: . | H740: . | I740: . | J740: . | K740: . | L740: . | M740: . | N740: . | O740: . | P740: . | Q740: . | R740: . | S740: . | T740: . | U740: . | V740: . | W740: . | X740: . | Y740: .
C741: Oui | D741: 0010028538 | E741: =VLOOKUP(D741,MATRICE_VA,2,FALSE) -> Mise en service pompe à chaleur (à commander sur la plateforme e-SERVICES) | F741: =VLOOKUP(D741,MATRICE_VA,3,FALSE) -> 350 | G741: =$Y741 -> 1 | H741: =$Y741 -> 1 | I741: 1 | J741: 1 | K741: 1 | L741: 1 | M741: 1 | N741: 1 | O741: 1 | P741: 1 | Q741: 1 | R741: 1 | S741: 1 | T741: 1 | U741: 1 | V741: 1 | W741: 1 | X741: 1 | Y741: =_xlfn.NUMBERVALUE($Y$5) -> 1
B751: PAC | C751: Obligatoire | D751: . | E751: Matériel à prévoir | F751: . | G751: . | H751: . | I751: . | J751: . | O751: . | P751: . | Q751: . | R751: . | S751: .
C752: Ajustez les quantités | D752: A prévoir | E752: Filtre à tamis sur le retour PAC | F752: - | G752: =$Y752 -> 1 | H752: =$Y752 -> 1 | I752: 1 | J752: 1 | K752: 1 | L752: 1 | M752: 1 | N752: 1 | O752: 1 | P752: 1 | Q752: 1 | R752: 1 | S752: 1 | T752: 1 | U752: 1 | V752: 1 | W752: 1 | X752: 1 | Y752: =_xlfn.NUMBERVALUE($Y$5) -> 1
C753: Ajustez les quantités | D753: A prévoir | E753: Soupape différentielle (repère 9d) | F753: - | G753: 1 | J753: 1 | M753: 1 | V753: 1 | X753: 1
C754: Ajustez les quantités | D754: A prévoir | E754: Electrovannes 230 V~ (repère 9b) | F754: -
C755: Ajustez les quantités | D755: A prévoir | E755: Vase expansion, soupape, manomètre. | F755: - | G755: 1 | H755: 1 | I755: 1 | J755: 1 | K755: 1 | L755: 1 | M755: 1 | U755: 1 | V755: 1 | W755: 1 | X755: 1
C756: Ajustez les quantités | D756: A prévoir | E756: En option circulateur bouclage sanitaire, vase expansion sanitaire… | F756: - | J756: 1 | K756: 1 | L756: 1 | M756: 1 | U756: 1 | V756: 1 | W756: 1 | X756: 1
B757: aroTHERM plus 45/6 - 230 V S3 | C757: Ajustez les quantités | D757: A prévoir | E757: Volume tampon minimal de 18 l | F757: - | G757: 1 | H757: 1 | I757: 1 | J757: 1 | K757: 1 | L757: 1 | M757: 1 | U757: 1 | V757: 1 | W757: 1 | X757: 1
B758: aroTHERM plus 55/6 - 230 V S3 | C758: Ajustez les quantités | D758: A prévoir | E758: Volume tampon minimal de 18 l | G758: 1 | H758: 1 | I758: 1 | J758: 1 | K758: 1 | L758: 1 | M758: 1 | U758: 1 | V758: 1 | W758: 1 | X758: 1
B759: aroTHERM plus 85/6 - 230 V S3 | C759: Ajustez les quantités | D759: A prévoir | E759: Volume tampon minimal de 18 l | F759: - | G759: 1 | H759: 1 | I759: 1 | J759: 1 | K759: 1 | L759: 1 | M759: 1 | U759: 1 | V759: 1 | W759: 1 | X759: 1
B760: aroTHERM plus 125/6 - 230 V S3 | C760: Ajustez les quantités | D760: A prévoir | E760: Volume tampon minimal de 35 l | F760: - | G760: =$Y760 -> 1 | H760: =$Y760 -> 1 | I760: 1 | J760: 1 | K760: 1 | L760: 1 | M760: 1 | N760: 1 | O760: 1 | P760: 1 | Q760: 1 | R760: 1 | S760: 1 | T760: 1 | U760: 1 | V760: 1 | W760: 1 | X760: 1 | Y760: =_xlfn.NUMBERVALUE(IF($Y$5>1,0,1)) -> 1
B761: aroTHERM plus 125/6 - 400 V S3 | C761: Ajustez les quantités | D761: A prévoir | E761: Volume tampon minimal de 35 l | G761: 1 | H761: 1 | I761: 1 | J761: 1 | K761: 1 | L761: 1 | M761: 1 | U761: 1 | V761: 1 | W761: 1 | X761: 1
B762: aroTHERM plus 155/6 - 230 V S3 | C762: Ajustez les quantités | D762: A prévoir | E762: Volume tampon minimal de 60 l | F762: - | G762: =$Y762 -> 1 | H762: 1 | I762: 1 | J762: 1 | K762: 1 | L762: 1 | M762: 1 | N762: 1 | O762: 1 | P762: 1 | Q762: 1 | R762: 1 | S762: 1 | T762: 1 | U762: 1 | V762: 1 | W762: 1 | X762: 1 | Y762: =_xlfn.VALUETOTEXT(IF($Y$5>1,0,1)) -> 1
B763: aroTHERM plus 155/6 - 400 V S3 | C763: Ajustez les quantités | D763: A prévoir | E763: Volume tampon minimal de 60 l | G763: 1 | H763: 1 | I763: 1 | J763: 1 | K763: 1 | L763: 1 | M763: 1 | U763: 1 | V763: 1 | W763: 1 | X763: 1
C766: Ajustez les quantités | D766: A prévoir | E766: Volume tampon minimal de 100 l | F766: - | G766: =$Y766 -> 0 | H766: 0 | I766: 0 | J766: 0 | K766: 0 | L766: 0 | M766: 0 | N766: 0 | O766: 0 | P766: 0 | Q766: 0 | R766: 0 | S766: 0 | T766: 0 | U766: 0 | V766: 0 | W766: =$Y766 -> 0 | X766: 0 | Y766: =IF(AND(_xlfn.NUMBERVALUE($Y$5)>1,_xlfn.NUMBERVALUE($Y$5)<4)=TRUE,1,0) -> 0
C767: Ajustez les quantités | D767: A prévoir | E767: Volume tampon minimal de 200 l | F767: - | G767: 0 | H767: 0 | I767: 0 | J767: 0 | K767: 0 | L767: 0 | M767: 0 | N767: 0 | O767: 0 | P767: 0 | Q767: 0 | R767: 0 | S767: 0 | T767: 0 | U767: 0 | V767: 0 | W767: 0 | X767: 0 | Y767: =IF(AND(_xlfn.NUMBERVALUE($Y$5)>3,_xlfn.NUMBERVALUE($Y$5)<8)=TRUE,1,0) -> 0

Sheet BDD_Commun (hidden)
B1: Logiciel PAC_2020 v2
D2: =Calculs!Z93 -> INSTALLATIONS ET ACCESSOIRES pour la gamme BDD_G12 : 0 | G2: D | H2: B-D | I2: B-D2 | J2: B-D3 | K2: B-M | L2: B-M2 | M2: B-M3 | N2: B-DM | O2: B-D2M | P2: B-DM2 | Q2: Q-D | R2: Q-B-D | S2: Q-B-D2 | T2: Q-B-D3 | U2: Q-B-M | V2: Q-B-M2 | W2: Q-B-M3 | X2: Q-B-DM | Y2: Q-B-D2M | Z2: Q-B-DM2 | AA2: Cascade de PAC
B3: 02/08/2022 | G3: 1 | H3: 2 | I3: 3 | J3: 4 | K3: 5 | L3: 6 | M3: 7 | N3: 8 | O3: 9 | P3: 10 | Q3: 11 | R3: 12 | S3: 13 | T3: 14 | U3: 15 | V3: 16 | W3: 17 | X3: 18 | Y3: 19 | Z3: 20
E4: ="Recherche la configuration >> "&Calculs!G2084&" << =>" -> Recherche la configuration >> Q-B-M << => | F4: Schéma | G4: circuit direct | H4: circuit direct sur bouteille | I4: 2 circuits directs sur bouteille | J4: 3 circuits directs sur bouteille | K4: circuit mélangé sur bouteille | L4: 2 circuits mélangés sur bouteille | M4: 3 circuits mélangés sur bouteille | N4: circuit direct et mélangé sur bouteille | O4: 2 circuits directs et 1 mélangé sur bouteille | P4: 1 circuit direct et 2 mélangés sur bouteille | Q4: circuit direct | R4: circuit direct sur bouteille | S4: 2 circuits directs sur bouteille | T4: 3 circuits directs sur bouteille | U4: circuit mélangé sur bouteille | V4: 2 circuits mélangés sur bouteille | W4: 3 circuits mélangés sur bouteille | X4: circuit direct et mélangé sur bouteille | Y4: 2 circuits directs et 1 mélangé sur bouteille | Z4: 1 circuit direct et 2 mélangés sur bouteille | AA4: Nombre de PAC valeur à multipliers au accessoires
B5: Vers PARAMETRAGE | F5: Appoint | AA5: =Calculs!$C$2173 -> 1
F6: Mode gestion
F7: ECS
F8: =Calculs!D74 -> Régulation :
F9: =Calculs!D75 -> 
F10: =Calculs!D76 -> 
F11: =Calculs!D77 -> 
F12: =Calculs!D78 -> 
F13: .
D14: Réf. | E14: Dénomination | F14: PU HT
D15: . | E15: Pompes à chaleur de la gamme | F15: . | G15: . | H15: . | I15: . | J15: . | K15: . | L15: . | M15: . | N15: . | O15: . | P15: . | Q15: . | R15: . | S15: . | T15: . | U15: . | V15: . | W15: . | X15: . | Y15: . | Z15: .
C30: Puissance | D30: . | E30: Appoint | F30: . | G30: . | H30: . | I30: . | J30: . | K30: . | L30: . | M30: . | N30: . | O30: . | P30: . | Q30: . | R30: . | S30: . | T30: . | U30: . | V30: . | W30: . | X30: . | Y30: . | Z30: .
B75: PAC | C75: Obligatoire | D75: . | E75: Préparateur ECS | F75: . | G75: . | H75: . | I75: . | J75: . | K75: . | L75: .
B90: PAC | C90: Obligatoire | D90: . | E90: Accessoires spécifiques à la gamme | F90: . | G90: . | H90: . | I90: . | J90: . | K90: . | L90: . | M90: . | N90: . | O90: . | P90: . | Q90: . | R90: . | S90: . | T90: . | U90: . | V90: . | W90: . | X90: . | Y90: . | Z90: .
A119: BDD_Commun | B119: aroTHERM plus 45/6 - 230 V S3 | C119: Non | D119: 0020269273 | E119: Réservoir tampon 18 litres pour uniTOWER | F119: =VLOOKUP(D119,MATRICE_VA,3,FALSE) -> 647 | Q119: =$AA119 -> 1 | AA119: =IF(_xlfn.NUMBERVALUE($AA$5)>1,0,1) -> 1
B120: aroTHERM plus 55/6 - 230 V S3 | C120: Non | D120: 0020269273 | E120: Réservoir tampon 18 litres pour uniTOWER | F120: 647 | Q120: 1 | AA120: 1
B121: aroTHERM plus 85/6 - 230 V S3 | C121: Non | D121: 0020269273 | E121: Réservoir tampon 18 litres pour uniTOWER | F121: 647 | Q121: 1 | AA121: 1
B122: aroTHERM plus 45/6 - 230 V S3 | C122: Non | D122: 0010034126 | E122: Ballon tampon de 45 litres VP RW 45/2 B | F122: 733 | G122: =$AA122 -> 1 | H122: 1 | I122: 1 | J122: 1 | K122: 1 | L122: 1 | M122: 1 | N122: =$AA122 -> 1 | O122: =$AA122 -> 1 | P122: =$AA122 -> 1 | AA122: 1
B123: aroTHERM plus 55/6 - 230 V S3 | C123: Non | D123: 0010034126 | E123: Ballon tampon de 45 litres VP RW 45/2 B | F123: 733 | G123: 1 | H123: 1 | I123: 1 | J123: 1 | K123: 1 | L123: 1 | M123: 1 | N123: 1 | O123: 1 | P123: 1 | AA123: 1
B124: aroTHERM plus 85/6 - 230 V S3 | C124: Non | D124: 0010034126 | E124: Ballon tampon de 45 litres VP RW 45/2 B | F124: 733 | G124: 1 | H124: 1 | I124: 1 | J124: 1 | K124: 1 | L124: 1 | M124: 1 | N124: 1 | O124: 1 | P124: 1 | AA124: 1
B125: aroTHERM plus 125/6 - 230 V S3 | C125: Non | D125: 0010034126 | E125: Ballon tampon de 45 litres VP RW 45/2 B | F125: 733 | G125: 1 | H125: 1 | I125: 1 | J125: 1 | K125: 1 | L125: 1 | M125: 1 | N125: 1 | O125: 1 | P125: 1 | R125: =$AA125 -> 1 | S125: 1 | T125: 1 | U125: 1 | V125: 1 | W125: 1 | X125: =$AA125 -> 1 | Y125: =$AA125 -> 1 | Z125: 1 | AA125: 1
B126: aroTHERM plus 125/6 - 400 V S3 | C126: Non | D126: 0010034126 | E126: Ballon tampon de 45 litres VP RW 45/2 B | F126: 733 | G126: 1 | H126: 1 | I126: 1 | J126: 1 | K126: 1 | L126: 1 | M126: 1 | N126: 1 | O126: 1 | P126: 1 | R126: 1 | S126: 1 | T126: 1 | U126: 1 | V126: 1 | W126: 1 | X126: 1 | Y126: 1 | Z126: 1 | AA126: 1
B127: aroTHERM plus 155/6 - 230 V S3 | C127: Non | D127: 0010021456 | E127: Ballon tampon VPS R 100/1 M | F127: 1097 | G127: 1 | H127: 1 | I127: 1 | J127: 1 | K127: 1 | L127: 1 | M127: 1 | N127: 1 | O127: 1 | P127: 1 | R127: 1 | S127: 1 | T127: 1 | U127: 1 | V127: 1 | W127: 1 | X127: 1 | Y127: 1 | Z127: 1 | AA127: 1
B128: aroTHERM plus 155/6 - 400 V S3 | C128: Non | D128: 0010021456 | E128: Ballon tampon VPS R 100/1 M | F128: 1097 | G128: 1 | H128: 1 | I128: 1 | J128: 1 | K128: 1 | L128: 1 | M128: 1 | N128: 1 | O128: 1 | P128: 1 | R128: 1 | S128: 1 | T128: 1 | U128: 1 | V128: 1 | W128: 1 | X128: 1 | Y128: 1 | Z128: 1 | AA128: =IF(_xlfn.NUMBERVALUE($AA$5)>1,0,1) -> 1
B129: aroTHERM VWL 55/3 A 230V | C129: Non | D129: 0020269273 | E129: Réservoir tampon 18 litres pour uniTOWER | F129: 647 | Q129: 1 | AA129: 1
B130: aroTHERM VWL 85/3 A 230V | C130: Non | D130: 0020269273 | E130: Réservoir tampon 18 litres pour uniTOWER | F130: 647 | Q130: 1 | AA130: 1
B131: aroTHERM VWL 55/3 A 230V | C131: Non | D131: 0010034126 | E131: Ballon tampon de 45 litres VP RW 45/2 B | F131: 733 | G131: 1 | H131: 1 | I131: 1 | J131: 1 | K131: 1 | L131: 1 | M131: 1 | N131: 1 | O131: 1 | P131: 1 | AA131: 1
B132: aroTHERM VWL 85/3 A 230V | C132: Non | D132: 0010034126 | E132: Ballon tampon de 45 litres VP RW 45/2 B | F132: 733 | G132: 1 | H132: 1 | I132: 1 | J132: 1 | K132: 1 | L132: 1 | M132: 1 | N132: 1 | O132: 1 | P132: 1 | AA132: 1
B133: aroTHERM VWL 115/2 A 230V | C133: Non | D133: 0010034126 | E133: Ballon tampon de 45 litres VP RW 45/2 B | F133: 733 | G133: 1 | H133: 1 | I133: 1 | J133: 1 | K133: 1 | L133: 1 | M133: 1 | N133: 1 | O133: 1 | P133: 1 | R133: 1 | S133: 1 | T133: 1 | U133: 1 | V133: 1 | W133: 1 | X133: 1 | Y133: 1 | Z133: 1 | AA133: 1
B134: aroTHERM VWL 155/2 A 230V | C134: Non | D134: 0010021456 | E134: Ballon tampon VPS R 100/1 M | F134: 1097 | G134: 1 | H134: 1 | I134: 1 | J134: 1 | K134: 1 | L134: 1 | M134: 1 | N134: 1 | O134: 1 | P134: 1 | R134: 1 | S134: 1 | T134: 1 | U134: 1 | V134: 1 | W134: 1 | X134: 1 | Y134: 1 | Z134: 1 | AA134: 1
B135: aroTHERM Split 3 - 230V | C135: Non | D135: 0020269273 | E135: Réservoir tampon 18 litres pour uniTOWER | F135: 647 | Q135: 1 | AA135: 1
B136: aroTHERM Split 5 - 230V | C136: Non | D136: 0020269273 | E136: Réservoir tampon 18 litres pour uniTOWER | F136: 647 | Q136: 1 | AA136: 1
B137: aroTHERM Split 7 - 230V | C137: Non | D137: 0020269273 | E137: Réservoir tampon 18 litres pour uniTOWER | F137: 647 | Q137: 1 | AA137: 1
